Workbook

Sheet NCAA Eye Chart (All Teams) (hidden)
A1: 2012 NCAA March Madness "Eye Chart"
A2: Performance Management "Eye Chart"™ NCAA March Madness 2012 338 Teams | B2: Binghamton | C2: South Carolina St. | D2: Grambling | E2: Alabama A&M | F2: UC Davis | G2: Northern Ill. | H2: Longwood | I2: Alcorn St. | J2: UMBC | K2: Northern Ariz. | L2: Chicago St. | M2: Kennesaw St. | N2: Fairleigh Dickinson | O2: Southeastern La. | P2: Canisius | Q2: Navy | R2: Radford | S2: UT Martin | T2: Florida A&M | U2: Dartmouth | V2: Citadel | W2: Cal St. Northridge | X2: Houston Baptist | Y2: A&M-Corpus Chris | Z2: Arkansas St. | AA2: La.-Monroe | AB2: Central Ark. | AC2: Sacramento St. | AD2: Jackson St. | AE2: Brown | AF2: Saint Francis (PA) | AG2: Hampton | AH2: NJIT | AI2: Md.-East. Shore | AJ2: Hartford | AK2: Towson | AL2: Loyola Chicago | AM2: Alabama St. | AN2: Chattanooga | AO2: Prairie View | AP2: Colgate | AQ2: Army | AR2: Ill.-Chicago | AS2: Saint Peter's | AT2: Morgan St. | AU2: New Hampshire | AV2: Southern U. | AW2: Tex.-Pan American | AX2: William & Mary | AY2: Gardner-Webb | AZ2: Howard | BA2: Santa Clara | BB2: Mt. St. Mary's | BC2: Eastern Ill. | BD2: Central Mich. | BE2: Nicholls St. | BF2: Pacific | BG2: Liberty | BH2: Maine | BI2: VMI | BJ2: IPFW | BK2: N.C. A&T | BL2: Idaho St. | BM2: Winthrop | BN2: Texas St. | BO2: San Jose St. | BP2: Sam Houston St. | BQ2: Montana St. | BR2: High Point | BS2: UC Irvine | BT2: Utah | BU2: Stetson | BV2: Coppin St. | BW2: UMKC | BX2: Appalachian St. | BY2: Jacksonville | BZ2: Pepperdine | CA2: Samford | CB2: Bethune-Cookman | CC2: Hofstra | CD2: Bradley | CE2: Northern Colo. | CF2: Southern California | CG2: Troy | CH2: Southern Ill. | CI2: Ave. Bottom Quartile Team | CJ2: Southeast Mo. St. | CK2: Ball St. | CL2: James Madison | CM2: Rhode Island | CN2: Arizona St. | CO2: UC Riverside | CP2: N.C. Central | CQ2: Arkansas | CR2: Furman | CS2: Southern Utah | CT2: Toledo | CU2: Texas Southern | CV2: Western Caro. | CW2: Elon | CX2: FIU | CY2: Fla. Gulf Coast | CZ2: UNC Greensboro | DA2: Sacred Heart | DB2: Miami (OH) | DC2: Boston College | DD2: Texas Tech | DE2: Siena | DF2: Monmouth | DG2: Portland | DH2: Central Conn. St. | DI2: Eastern Mich. | DJ2: Marist | DK2: Jacksonville St. | DL2: Stephen F. Austin | DM2: Lipscomb | DN2: Western Ky. | DO2: UNC Wilmington | DP2: SMU | DQ2: Fordham | DR2: Albany (NY) | DS2: Northwestern St. | DT2: Wright St. | DU2: Eastern Ky. | DV2: CSU Bakersfield | DW2: Cal Poly | DX2: Utah Valley | DY2: IUPUI | DZ2: Eastern Wash. | EA2: Lafayette | EB2: Houston | EC2: Fresno St. | ED2: Tulane | EE2: Delaware St. | EF2: Niagara | EG2: St. Francis (NY) | EH2: North Texas | EI2: UTSA | EJ2: DePaul | EK2: Campbell | EL2: Rider | EM2: San Diego | EN2: Fla. Atlantic | EO2: Ga. Southern | EP2: Louisiana Tech | EQ2: Hawaii | ER2: East Carolina | ES2: Savannah St. | ET2: McNeese St. | EU2: East Tenn. St. | EV2: Western Mich. | EW2: Western Ill. | EX2: Austin Peay | EY2: South Carolina | EZ2: Boston U. | FA2: Washington St. | FB2: Columbia | FC2: La.-Lafayette | FD2: Portland St. | FE2: Northeastern | FF2: South Ala. | FG2: North Dakota St. | FH2: Morehead St. | FI2: Coastal Caro. | FJ2: Georgia Tech | FK2: Youngstown St. | FL2: Cornell | FM2: George Washington | FN2: North Florida | FO2: Wofford | FP2: Ave. Lower-Middle Quartile Team | FQ2: Charleston So. | FR2: Quinnipiac | FS2: UALR | FT2: Boise St. | FU2: Holy Cross | FV2: Air Force | FW2: Texas A&M | FX2: Charlotte | FY2: Wake Forest | FZ2: Rice | GA2: Vermont | GB2: Providence | GC2: Cal St. Fullerton | GD2: Tennessee Tech | GE2: Idaho | GF2: Utah St. | GG2: Oregon St. | GH2: Penn St. | GI2: Detroit | GJ2: Mississippi Val. | GK2: San Francisco | GL2: American | GM2: Stony Brook | GN2: Delaware | GO2: Auburn | GP2: Manhattan | GQ2: Georgia St. | GR2: Bowling Green | GS2: Evansville | GT2: Clemson | GU2: Green Bay | GV2: Rutgers | GW2: Norfolk St. | GX2: Oakland | GY2: UTEP | GZ2: Lamar | HA2: St. John's (NY) | HB2: Drake | HC2: UCLA | HD2: Indiana St. | HE2: Iowa | HF2: Nebraska | HG2: S.C. Upstate | HH2: Illinois St. | HI2: Fairfield | HJ2: Richmond | HK2: Tennessee St. | HL2: Mercer | HM2: Robert Morris | HN2: Oklahoma | HO2: Butler | HP2: UNC Asheville | HQ2: UC Santa Barbara | HR2: Villanova | HS2: Milwaukee | HT2: Loyola Marymount | HU2: Old Dominion | HV2: Missouri St. | HW2: Oklahoma St. | HX2: Col. of Charleston | HY2: UAB | HZ2: Georgia | IA2: Kent St. | IB2: Stanford | IC2: Duquesne | ID2: Lehigh | IE2: Virginia Tech | IF2: Montana | IG2: Maryland | IH2: St. Bonaventure | II2: Princeton | IJ2: Tulsa | IK2: Pittsburgh | IL2: Yale | IM2: LIU Brooklyn | IN2: Penn | IO2: Buffalo | IP2: Tennessee | IQ2: Denver | IR2: TCU | IS2: Valparaiso | IT2: La Salle | IU2: Loyola Maryland | IV2: Wagner | IW2: Ave. Upper-Middle Quartile Team | IX2: Minnesota | IY2: Texas-Arlington | IZ2: George Mason | JA2: Ark.-Pine Bluff | JB2: Massachusetts | JC2: Bucknell | JD2: Wyoming | JE2: Cleveland St. | JF2: Cincinnati | JG2: Colorado | JH2: Weber St. | JI2: Illinois | JJ2: Ohio | JK2: North Carolina St. | JL2: New Mexico St. | JM2: Ole Miss | JN2: Arizona | JO2: LSU | JP2: Drexel | JQ2: UCF | JR2: Mississippi St. | JS2: Davidson | JT2: UNI | JU2: Marshall | JV2: Dayton | JW2: VCU | JX2: Belmont | JY2: Akron | JZ2: South Dakota St. | KA2: Nevada | KB2: Texas | KC2: Xavier | KD2: Oregon | KE2: Washington | KF2: Saint Joseph's | KG2: West Virginia | KH2: BYU | KI2: Miami (FL) | KJ2: Middle Tenn. | KK2: South Fla. | KL2: Kansas St. | KM2: Seton Hall | KN2: Northwestern | KO2: Oral Roberts | KP2: Notre Dame | KQ2: Purdue | KR2: Iona | KS2: Virginia | KT2: Harvard | KU2: California | KV2: Saint Louis | KW2: New Mexico | KX2: Long Beach St. | KY2: St. Mary's (CA) | KZ2: Iowa St. | LA2: Connecticut | LB2: Murray St. | LC2: San Diego St. | LD2: Colorado St. | LE2: Florida St. | LF2: Alabama | LG2: Creighton | LH2: Vanderbilt | LI2: Memphis | LJ2: Louisville | LK2: Wisconsin | LL2: Florida | LM2: Gonzaga | LN2: Indiana | LO2: Missouri | LP2: Michigan | LQ2: Temple | LR2: Southern Miss. | LS2: Georgetown | LT2: UNLV | LU2: Wichita St. | LV2: Ohio St. | LW2: Baylor | LX2: Marquette | LY2: Kansas | LZ2: North Carolina | MA2: Michigan St. | MB2: Duke | MC2: Kentucky | MD2: Syracuse | ME2: Ave. Upper-Middle Quartile Team | MF2: Performance Management "Eye Chart"™ NCAA March Madness 2012 338 Teams
A3: Games Played | B3: 29 | C3: 27 | D3: 25 | E3: 24 | F3: 28 | G3: 27 | H3: 29 | I3: 28 | J3: 29 | K3: 28 | L3: 28 | M3: 31 | N3: 29 | O3: 27 | P3: 29 | Q3: 28 | R3: 31 | S3: 31 | T3: 28 | U3: 28 | V3: 29 | W3: 27 | X3: 28 | Y3: 28 | Z3: 31 | AA3: 29 | AB3: 27 | AC3: 28 | AD3: 27 | AE3: 29 | AF3: 29 | AG3: 28 | AH3: 28 | AI3: 27 | AJ3: 29 | AK3: 31 | AL3: 29 | AM3: 27 | AN3: 31 | AO3: 28 | AP3: 29 | AQ3: 29 | AR3: 29 | AS3: 30 | AT3: 26 | AU3: 28 | AV3: 29 | AW3: 29 | AX3: 31 | AY3: 31 | AZ3: 29 | BA3: 29 | BB3: 29 | BC3: 29 | BD3: 28 | BE3: 27 | BF3: 27 | BG3: 31 | BH3: 28 | BI3: 29 | BJ3: 29 | BK3: 29 | BL3: 28 | BM3: 30 | BN3: 28 | BO3: 28 | BP3: 29 | BQ3: 27 | BR3: 29 | BS3: 28 | BT3: 28 | BU3: 29 | BV3: 27 | BW3: 31 | BX3: 29 | BY3: 29 | BZ3: 28 | CA3: 29 | CB3: 29 | CC3: 31 | CD3: 31 | CE3: 27 | CF3: 29 | CG3: 27 | CH3: 30 | CI3: =SUM(B3:CH3) -> 2430 | CJ3: 29 | CK3: 27 | CL3: 31 | CM3: 29 | CN3: 29 | CO3: 29 | CP3: 28 | CQ3: 29 | CR3: 29 | CS3: 29 | CT3: 29 | CU3: 27 | CV3: 31 | CW3: 29 | CX3: 28 | CY3: 29 | CZ3: 30 | DA3: 31 | DB3: 27 | DC3: 28 | DD3: 28 | DE3: 29 | DF3: 31 | DG3: 29 | DH3: 28 | DI3: 29 | DJ3: 30 | DK3: 31 | DL3: 28 | DM3: 30 | DN3: 29 | DO3: 29 | DP3: 29 | DQ3: 27 | DR3: 31 | DS3: 29 | DT3: 31 | DU3: 31 | DV3: 30 | DW3: 29 | DX3: 30 | DY3: 31 | DZ3: 29 | EA3: 29 | EB3: 27 | EC3: 30 | ED3: 28 | EE3: 26 | EF3: 31 | EG3: 29 | EH3: 29 | EI3: 29 | EJ3: 28 | EK3: 31 | EL3: 31 | EM3: 29 | EN3: 29 | EO3: 28 | EP3: 29 | EQ3: 28 | ER3: 27 | ES3: 29 | ET3: 27 | EU3: 29 | EV3: 29 | EW3: 28 | EX3: 31 | EY3: 28 | EZ3: 31 | FA3: 28 | FB3: 28 | FC3: 30 | FD3: 28 | FE3: 29 | FF3: 27 | FG3: 29 | FH3: 31 | FI3: 29 | FJ3: 28 | FK3: 29 | FL3: 26 | FM3: 28 | FN3: 31 | FO3: 31 | FP3: =SUM(CJ3:FO3) -> 2438 | FQ3: 29 | FR3: 29 | FS3: 30 | FT3: 27 | FU3: 28 | FV3: 26 | FW3: 28 | FX3: 27 | FY3: 28 | FZ3: 29 | GA3: 31 | GB3: 29 | GC3: 27 | GD3: 30 | GE3: 28 | GF3: 29 | GG3: 28 | GH3: 29 | GI3: 31 | GJ3: 28 | GK3: 30 | GL3: 29 | GM3: 28 | GN3: 29 | GO3: 28 | GP3: 31 | GQ3: 30 | GR3: 28 | GS3: 29 | GT3: 28 | GU3: 29 | GV3: 29 | GW3: 29 | GX3: 31 | GY3: 28 | GZ3: 29 | HA3: 29 | HB3: 30 | HC3: 29 | HD3: 30 | HE3: 29 | HF3: 27 | HG3: 31 | HH3: 30 | HI3: 30 | HJ3: 30 | HK3: 30 | HL3: 31 | HM3: 31 | HN3: 28 | HO3: 31 | HP3: 30 | HQ3: 25 | HR3: 28 | HS3: 31 | HT3: 30 | HU3: 31 | HV3: 31 | HW3: 29 | HX3: 30 | HY3: 27 | HZ3: 28 | IA3: 28 | IB3: 29 | IC3: 28 | ID3: 30 | IE3: 29 | IF3: 28 | IG3: 28 | IH3: 26 | II3: 27 | IJ3: 28 | IK3: 29 | IL3: 26 | IM3: 30 | IN3: 28 | IO3: 26 | IP3: 29 | IQ3: 29 | IR3: 28 | IS3: 31 | IT3: 29 | IU3: 29 | IV3: 29 | IW3: =SUM(FQ3:IV3) -> 2426 | IX3: 29 | IY3: 28 | IZ3: 31 | JA3: 29 | JB3: 28 | JC3: 30 | JD3: 28 | JE3: 31 | JF3: 29 | JG3: 28 | JH3: 27 | JI3: 29 | JJ3: 29 | JK3: 29 | JL3: 30 | JM3: 28 | JN3: 30 | JO3: 28 | JP3: 30 | JQ3: 28 | JR3: 29 | JS3: 29 | JT3: 31 | JU3: 28 | JV3: 28 | JW3: 31 | JX3: 31 | JY3: 29 | JZ3: 31 | KA3: 28 | KB3: 29 | KC3: 28 | KD3: 28 | KE3: 28 | KF3: 30 | KG3: 29 | KH3: 31 | KI3: 27 | KJ3: 30 | KK3: 29 | KL3: 28 | KM3: 29 | KN3: 28 | KO3: 31 | KP3: 29 | KQ3: 29 | KR3: 30 | KS3: 28 | KT3: 28 | KU3: 30 | KV3: 28 | KW3: 28 | KX3: 28 | KY3: 30 | KZ3: 29 | LA3: 28 | LB3: 29 | LC3: 28 | LD3: 27 | LE3: 28 | LF3: 28 | LG3: 30 | LH3: 29 | LI3: 29 | LJ3: 29 | LK3: 29 | LL3: 29 | LM3: 28 | LN3: 29 | LO3: 29 | LP3: 29 | LQ3: 28 | LR3: 29 | LS3: 27 | LT3: 30 | LU3: 30 | LV3: 29 | LW3: 29 | LX3: 29 | LY3: 29 | LZ3: 29 | MA3: 29 | MB3: 29 | MC3: 29 | MD3: 30 | ME3: =SUM(IX3:MD3) -> 2460 | MF3: Games Played
A4: Winning % | B4: 3.4 | C4: 14.8 | D4: 12 | E4: 25 | F4: 17.9 | G4: 11.1 | H4: 34.5 | I4: 32.1 | J4: 13.8 | K4: 17.9 | L4: 14.3 | M4: 9.7 | N4: 10.3 | O4: 37 | P4: 17.2 | Q4: 10.7 | R4: 19.4 | S4: 12.9 | T4: 28.6 | U4: 17.9 | V4: 20.7 | W4: 25.9 | X4: 32.1 | Y4: 17.9 | Z4: 38.7 | AA4: 10.3 | AB4: 29.6 | AC4: 35.7 | AD4: 25.9 | AE4: 27.6 | AF4: 20.7 | AG4: 35.7 | AH4: 42.9 | AI4: 25.9 | AJ4: 27.6 | AK4: 3.2 | AL4: 24.1 | AM4: 37 | AN4: 35.5 | AO4: 42.9 | AP4: 27.6 | AQ4: 41.4 | AR4: 27.6 | AS4: 16.7 | AT4: 26.9 | AU4: 46.4 | AV4: 51.7 | AW4: 37.9 | AX4: 19.4 | AY4: 38.7 | AZ4: 31 | BA4: 27.6 | BB4: 27.6 | BC4: 41.4 | BD4: 32.1 | BE4: 37 | BF4: 40.7 | BG4: 45.2 | BH4: 42.9 | BI4: 48.3 | BJ4: 37.9 | BK4: 41.4 | BL4: 32.1 | BM4: 36.7 | BN4: 46.4 | BO4: 32.1 | BP4: 41.4 | BQ4: 40.7 | BR4: 41.4 | BS4: 39.3 | BT4: 21.4 | BU4: 31 | BV4: 48.1 | BW4: 32.3 | BX4: 41.4 | BY4: 27.6 | BZ4: 35.7 | CA4: 37.9 | CB4: 44.8 | CC4: 32.3 | CD4: 22.6 | CE4: 33.3 | CF4: 20.7 | CG4: 37 | CH4: 26.7 | CI4: =AVERAGE(B4:CH4) -> 29.53764706 | CJ4: 48.3 | CK4: 48.1 | CL4: 38.7 | CM4: 20.7 | CN4: 31 | CO4: 44.8 | CP4: 50 | CQ4: 62.1 | CR4: 48.3 | CS4: 44.8 | CT4: 51.7 | CU4: 40.7 | CV4: 45.2 | CW4: 48.3 | CX4: 28.6 | CY4: 44.8 | CZ4: 40 | DA4: 45.2 | DB4: 33.3 | DC4: 28.6 | DD4: 28.6 | DE4: 44.8 | DF4: 38.7 | DG4: 20.7 | DH4: 46.4 | DI4: 44.8 | DJ4: 43.3 | DK4: 45.2 | DL4: 60.7 | DM4: 43.3 | DN4: 37.9 | DO4: 31 | DP4: 41.4 | DQ4: 37 | DR4: 58.1 | DS4: 51.7 | DT4: 41.9 | DU4: 51.6 | DV4: 53.3 | DW4: 51.7 | DX4: 66.7 | DY4: 45.2 | DZ4: 44.8 | EA4: 41.4 | EB4: 48.1 | EC4: 43.3 | ED4: 53.6 | EE4: 53.8 | EF4: 41.9 | EG4: 51.7 | EH4: 55.2 | EI4: 55.2 | EJ4: 39.3 | EK4: 54.8 | EL4: 41.9 | EM4: 41.4 | EN4: 37.9 | EO4: 50 | EP4: 51.7 | EQ4: 53.6 | ER4: 44.4 | ES4: 65.5 | ET4: 55.6 | EU4: 55.2 | EV4: 41.4 | EW4: 53.6 | EX4: 38.7 | EY4: 35.7 | EZ4: 51.6 | FA4: 50 | FB4: 50 | FC4: 53.3 | FD4: 53.6 | FE4: 44.8 | FF4: 59.3 | FG4: 58.6 | FH4: 54.8 | FI4: 65.5 | FJ4: 35.7 | FK4: 51.7 | FL4: 42.3 | FM4: 35.7 | FN4: 51.6 | FO4: 61.3 | FP4: =AVERAGE(CJ4:FO4) -> 46.38928571 | FQ4: 62.1 | FR4: 58.6 | FS4: 50 | FT4: 48.1 | FU4: 53.6 | FV4: 50 | FW4: 46.4 | FX4: 48.1 | FY4: 46.4 | FZ4: 55.2 | GA4: 64.5 | GB4: 48.3 | GC4: 70.4 | GD4: 60 | GE4: 57.1 | GF4: 51.7 | GG4: 53.6 | GH4: 41.4 | GI4: 58.1 | GJ4: 60.7 | GK4: 60 | GL4: 65.5 | GM4: 71.4 | GN4: 58.6 | GO4: 50 | GP4: 64.5 | GQ4: 66.7 | GR4: 53.6 | GS4: 51.7 | GT4: 53.6 | GU4: 51.7 | GV4: 44.8 | GW4: 69 | GX4: 54.8 | GY4: 50 | GZ4: 62.1 | HA4: 44.8 | HB4: 53.3 | HC4: 55.2 | HD4: 56.7 | HE4: 51.7 | HF4: 44.4 | HG4: 64.5 | HH4: 60 | HI4: 56.7 | HJ4: 50 | HK4: 63.3 | HL4: 67.7 | HM4: 71 | HN4: 50 | HO4: 58.1 | HP4: 70 | HQ4: 64 | HR4: 39.3 | HS4: 61.3 | HT4: 63.3 | HU4: 61.3 | HV4: 51.6 | HW4: 48.3 | HX4: 63.3 | HY4: 48.1 | HZ4: 46.4 | IA4: 67.9 | IB4: 65.5 | IC4: 53.6 | ID4: 76.7 | IE4: 51.7 | IF4: 78.6 | IG4: 57.1 | IH4: 61.5 | II4: 59.3 | IJ4: 60.7 | IK4: 51.7 | IL4: 73.1 | IM4: 73.3 | IN4: 60.7 | IO4: 65.4 | IP4: 55.2 | IQ4: 72.4 | IR4: 60.7 | IS4: 67.7 | IT4: 62.1 | IU4: 72.4 | IV4: 82.8 | IW4: =AVERAGE(FQ4:IV4) -> 58.41309524 | IX4: 58.6 | IY4: 78.6 | IZ4: 74.2 | JA4: 27.6 | JB4: 67.9 | JC4: 73.3 | JD4: 67.9 | JE4: 71 | JF4: 69 | JG4: 67.9 | JH4: 85.2 | JI4: 58.6 | JJ4: 79.3 | JK4: 62.1 | JL4: 73.3 | JM4: 57.1 | JN4: 70 | JO4: 60.7 | JP4: 83.3 | JQ4: 71.4 | JR4: 65.5 | JS4: 75.9 | JT4: 61.3 | JU4: 60.7 | JV4: 64.3 | JW4: 80.6 | JX4: 77.4 | JY4: 69 | JZ4: 77.4 | KA4: 82.1 | KB4: 62.1 | KC4: 64.3 | KD4: 71.4 | KE4: 71.4 | KF4: 63.3 | KG4: 58.6 | KH4: 77.4 | KI4: 63 | KJ4: 83.3 | KK4: 62.1 | KL4: 67.9 | KM4: 65.5 | KN4: 60.7 | KO4: 83.9 | KP4: 69 | KQ4: 65.5 | KR4: 80 | KS4: 75 | KT4: 85.7 | KU4: 76.7 | KV4: 78.6 | KW4: 78.6 | KX4: 75 | KY4: 83.3 | KZ4: 72.4 | LA4: 60.7 | LB4: 96.6 | LC4: 78.6 | LD4: 63 | LE4: 67.9 | LF4: 67.9 | LG4: 83.3 | LH4: 69 | LI4: 72.4 | LJ4: 75.9 | LK4: 72.4 | LL4: 75.9 | LM4: 82.1 | LN4: 75.9 | LO4: 86.2 | LP4: 72.4 | LQ4: 78.6 | LR4: 79.3 | LS4: 77.8 | LT4: 80 | LU4: 86.7 | LV4: 79.3 | LW4: 82.8 | LX4: 82.8 | LY4: 82.8 | LZ4: 86.2 | MA4: 82.8 | MB4: 86.2 | MC4: 96.6 | MD4: 96.7 | ME4: =AVERAGE(IX4:MD4) -> 73.46705882 | MF4: Winning % | MI4: 39.3 | MJ4: 51.7 | MK4: 65.5
A5: Scoring Margin | B5: -14.8 | C5: -13.9 | D5: -19 | E5: -8.1 | F5: -10.3 | G5: -13.3 | H5: -9.4 | I5: -7.1 | J5: -14.1 | K5: -8.8 | L5: -14.6 | M5: -13.2 | N5: -11.9 | O5: -2.7 | P5: -10.2 | Q5: -7.8 | R5: -7.5 | S5: -12.4 | T5: -8.1 | U5: -5.6 | V5: -7.6 | W5: -6.7 | X5: -5.1 | Y5: -9.4 | Z5: -1.8 | AA5: -11.3 | AB5: -11 | AC5: -2.2 | AD5: -10 | AE5: -7 | AF5: -8.8 | AG5: -1.9 | AH5: 2 | AI5: -10.5 | AJ5: -7.7 | AK5: -18.6 | AL5: -5.6 | AM5: -5.7 | AN5: 2 | AO5: -2.4 | AP5: -10.4 | AQ5: -1.6 | AR5: -6.7 | AS5: -11.1 | AT5: -3.3 | AU5: -1 | AV5: -3.6 | AW5: -5.7 | AX5: -9.1 | AY5: -0.8 | AZ5: -9.8 | BA5: -5.4 | BB5: -6.8 | BC5: -3 | BD5: -5 | BE5: -9.6 | BF5: -2.6 | BG5: -2.2 | BH5: 0.6 | BI5: -1.8 | BJ5: -4.8 | BK5: -2.4 | BL5: -6.9 | BM5: -2.4 | BN5: 2.4 | BO5: -4.9 | BP5: -1.2 | BQ5: -2 | BR5: 1.4 | BS5: -3.4 | BT5: -13.3 | BU5: -6.4 | BV5: -1.4 | BW5: -6.6 | BX5: -1.9 | BY5: -7.2 | BZ5: -6.1 | CA5: -3.4 | CB5: -2.7 | CC5: -0.8 | CD5: -9.2 | CE5: -3.1 | CF5: -6.4 | CG5: -4.4 | CH5: -6.2 | CI5: =AVERAGE(B5:CH5) -> -6.403529412 | CJ5: 0.6 | CK5: 2 | CL5: -3.5 | CM5: -7.8 | CN5: -5.2 | CO5: -3.6 | CP5: 7.1 | CQ5: 3.7 | CR5: -0.2 | CS5: -1.9 | CT5: 3.4 | CU5: -2.9 | CV5: 0.2 | CW5: -1.4 | CX5: -4 | CY5: 0 | CZ5: -7.7 | DA5: -1 | DB5: -3.1 | DC5: -8.9 | DD5: -7.3 | DE5: -2.7 | DF5: -8.4 | DG5: -11.1 | DH5: 0 | DI5: -5.1 | DJ5: -4.7 | DK5: 1.5 | DL5: 7 | DM5: -1.8 | DN5: -3.9 | DO5: -6 | DP5: 0.1 | DQ5: -8.8 | DR5: 3.1 | DS5: 0.2 | DT5: -3 | DU5: 0.5 | DV5: -0.9 | DW5: 3.3 | DX5: 4.3 | DY5: 0.4 | DZ5: 1.1 | EA5: -2.8 | EB5: -0.7 | EC5: 0.5 | ED5: 5.2 | EE5: 1.9 | EF5: -4 | EG5: 1 | EH5: 5.8 | EI5: 5.3 | EJ5: -2.8 | EK5: 0.8 | EL5: -3 | EM5: -4 | EN5: -1.9 | EO5: -1.1 | EP5: 0.9 | EQ5: -0.1 | ER5: 3.7 | ES5: 4.7 | ET5: 1.8 | EU5: 3 | EV5: -1.9 | EW5: 1.5 | EX5: -3.3 | EY5: -3.3 | EZ5: 0.5 | FA5: 3.2 | FB5: 3.3 | FC5: 1.4 | FD5: 3.1 | FE5: -3 | FF5: -0.3 | FG5: 5.4 | FH5: 1.5 | FI5: 7.8 | FJ5: -2.1 | FK5: 1.7 | FL5: -2.8 | FM5: -4 | FN5: -3.1 | FO5: 2.1 | FP5: =AVERAGE(CJ5:FO5) -> -0.6488095238 | FQ5: 5.3 | FR5: 4.4 | FS5: -0.4 | FT5: 3.4 | FU5: -1.6 | FV5: 1.7 | FW5: 0.2 | FX5: -0.7 | FY5: -4.1 | FZ5: 3.7 | GA5: 6.7 | GB5: 0.8 | GC5: 7.9 | GD5: 1.8 | GE5: 1.9 | GF5: 3 | GG5: 6.4 | GH5: -2.8 | GI5: 4.2 | GJ5: -0.8 | GK5: 4.6 | GL5: 3 | GM5: 8.3 | GN5: 1.4 | GO5: -1.3 | GP5: 6.3 | GQ5: 7.9 | GR5: 3.4 | GS5: 1.8 | GT5: 4.6 | GU5: -1 | GV5: 0.4 | GW5: 2 | GX5: 1.2 | GY5: 1.1 | GZ5: 7.7 | HA5: -3.5 | HB5: 0 | HC5: 5.3 | HD5: -0.2 | HE5: 1 | HF5: -3.8 | HG5: 3.5 | HH5: 4 | HI5: 4.2 | HJ5: 1.8 | HK5: 1.8 | HL5: 5.5 | HM5: 5 | HN5: 1.2 | HO5: 2.1 | HP5: 8.6 | HQ5: 5 | HR5: -0.2 | HS5: 2.5 | HT5: 3.4 | HU5: 4.3 | HV5: 3.3 | HW5: -0.2 | HX5: 2.9 | HY5: -1 | HZ5: -1.3 | IA5: 5.6 | IB5: 7.7 | IC5: 1.2 | ID5: 11 | IE5: 3.6 | IF5: 8.4 | IG5: -1.6 | IH5: 6.3 | II5: 3.8 | IJ5: 4 | IK5: 2.4 | IL5: 5.9 | IM5: 3.9 | IN5: 0.6 | IO5: 6.1 | IP5: 3.7 | IQ5: 7.9 | IR5: 1.9 | IS5: 3.8 | IT5: 7.7 | IU5: 3.2 | IV5: 9.6 | IW5: =AVERAGE(FQ5:IV5) -> 3.027380952 | IX5: 3.1 | IY5: 10.1 | IZ5: 6.1 | JA5: -10.4 | JB5: 5.2 | JC5: 7.1 | JD5: 8.5 | JE5: 6.8 | JF5: 8.1 | JG5: 6.1 | JH5: 10.9 | JI5: 2.4 | JJ5: 9.3 | JK5: 5 | JL5: 10.4 | JM5: 0.4 | JN5: 7.4 | JO5: 2.5 | JP5: 9.3 | JQ5: 4.9 | JR5: 4.6 | JS5: 10.4 | JT5: 3.9 | JU5: 3.1 | JV5: 4.5 | JW5: 8.7 | JX5: 14.4 | JY5: 7.3 | JZ5: 10.6 | KA5: 6.3 | KB5: 7.4 | KC5: 4.1 | KD5: 3.8 | KE5: 5.2 | KF5: 4.3 | KG5: 5.4 | KH5: 12.8 | KI5: 4.8 | KJ5: 10.8 | KK5: 2.5 | KL5: 7.9 | KM5: 5.7 | KN5: 2.1 | KO5: 7.6 | KP5: 6.5 | KQ5: 6.6 | KR5: 10.9 | KS5: 10.5 | KT5: 11 | KU5: 11.2 | KV5: 12.4 | KW5: 14 | KX5: 9.3 | KY5: 13.1 | KZ5: 7.3 | LA5: 4.8 | LB5: 13.1 | LC5: 8.6 | LD5: 2 | LE5: 7.8 | LF5: 7.8 | LG5: 10.2 | LH5: 7.8 | LI5: 10.2 | LJ5: 8.4 | LK5: 12 | LL5: 12.5 | LM5: 10.3 | LN5: 12.1 | LO5: 14.5 | LP5: 5.9 | LQ5: 6.2 | LR5: 7.8 | LS5: 10.9 | LT5: 12 | LU5: 15.5 | LV5: 17.1 | LW5: 10.9 | LX5: 11.1 | LY5: 13.8 | LZ5: 15.8 | MA5: 14.7 | MB5: 10.6 | MC5: 19 | MD5: 15.2 | ME5: =AVERAGE(IX5:MD5) -> 8.385882353 | MF5: Scoring Margin | MI5: -3.1 | MJ5: 1.45 | MK5: 5.575
A6: Rebound Margin | B6: -3.5 | C6: -1.6 | D6: -5.6 | E6: -2.4 | F6: -5 | G6: 3.3 | H6: -4.9 | I6: -6.1 | J6: -2.7 | K6: -1 | L6: -2.7 | M6: -6.8 | N6: -3.3 | O6: 1.2 | P6: -2.1 | Q6: -0.9 | R6: -4.1 | S6: -2.5 | T6: -3.8 | U6: -0.4 | V6: -1.6 | W6: -1.6 | X6: -3.3 | Y6: -3 | Z6: 1.9 | AA6: -4.1 | AB6: -3.6 | AC6: 1.5 | AD6: -2 | AE6: -5.5 | AF6: -6 | AG6: -1.6 | AH6: -1.4 | AI6: 0.7 | AJ6: -7 | AK6: 1.6 | AL6: 0.2 | AM6: -2.5 | AN6: 2.6 | AO6: 2.1 | AP6: -1.4 | AQ6: -4 | AR6: 1.1 | AS6: -6 | AT6: -2.5 | AU6: -1.8 | AV6: -6.3 | AW6: -4.9 | AX6: -3.5 | AY6: 2.4 | AZ6: 0.1 | BA6: -3.3 | BB6: 0.1 | BC6: -1.7 | BD6: -4 | BE6: -6.4 | BF6: -4 | BG6: 1.4 | BH6: -2.1 | BI6: -6.9 | BJ6: 1.9 | BK6: -3.2 | BL6: -3.9 | BM6: 0.5 | BN6: -2.3 | BO6: -4.8 | BP6: 1.6 | BQ6: -0.6 | BR6: -0.9 | BS6: -0.6 | BT6: -5.1 | BU6: 0.3 | BV6: -4.3 | BW6: -6 | BX6: -0.5 | BY6: 0.3 | BZ6: 3.1 | CA6: -3.5 | CB6: -2.7 | CC6: 0.1 | CD6: -4.3 | CE6: 5.2 | CF6: -8.6 | CG6: -2.6 | CH6: -1.4 | CI6: =AVERAGE(B6:CH6) -> -2.158823529 | CJ6: 2 | CK6: 1.5 | CL6: -5.1 | CM6: 2.7 | CN6: 1.8 | CO6: -1.6 | CP6: 0.1 | CQ6: -3.1 | CR6: 1.9 | CS6: 2.7 | CT6: -0.8 | CU6: -1.6 | CV6: -0.2 | CW6: -2.5 | CX6: -1.7 | CY6: 0.5 | CZ6: -1.1 | DA6: 0 | DB6: -1.7 | DC6: -6.3 | DD6: -2.1 | DE6: 2 | DF6: -7.2 | DG6: -0.5 | DH6: -2.8 | DI6: -3 | DJ6: -1 | DK6: -0.5 | DL6: 7.1 | DM6: -3 | DN6: -1.4 | DO6: 0.3 | DP6: -4.7 | DQ6: 0.1 | DR6: 2.6 | DS6: -3.8 | DT6: -4.1 | DU6: -3.9 | DV6: 0.5 | DW6: 4.8 | DX6: 4.2 | DY6: -0.7 | DZ6: -2.7 | EA6: -5.6 | EB6: 1.5 | EC6: -3.7 | ED6: 1.9 | EE6: -6.3 | EF6: -3.9 | EG6: 2.7 | EH6: 4.9 | EI6: -2.8 | EJ6: -6.8 | EK6: 1.3 | EL6: -2.9 | EM6: -3.9 | EN6: -1.8 | EO6: -1.1 | EP6: -0.6 | EQ6: 3.3 | ER6: -0.3 | ES6: 4.4 | ET6: 1.3 | EU6: 0.6 | EV6: 5.1 | EW6: -0.9 | EX6: -1.7 | EY6: -1.9 | EZ6: 0.2 | FA6: 1.6 | FB6: 2.2 | FC6: 3.2 | FD6: 3.4 | FE6: -0.9 | FF6: 7.5 | FG6: 1.6 | FH6: 2.6 | FI6: 6.3 | FJ6: 3.8 | FK6: -4.2 | FL6: -5.7 | FM6: -0.6 | FN6: -0.5 | FO6: 2.5 | FP6: =AVERAGE(CJ6:FO6) -> -0.3154761905 | FQ6: 1.6 | FR6: 10.8 | FS6: -2.2 | FT6: 2.9 | FU6: 0.1 | FV6: -5.2 | FW6: 1.5 | FX6: -1 | FY6: -3.7 | FZ6: 1.1 | GA6: 3.6 | GB6: 1.4 | GC6: 6 | GD6: 2.6 | GE6: 2.4 | GF6: 0 | GG6: -0.4 | GH6: 2.8 | GI6: 2.1 | GJ6: 0.5 | GK6: 1.2 | GL6: -1.1 | GM6: 7.6 | GN6: -0.4 | GO6: -0.4 | GP6: 3 | GQ6: 0.9 | GR6: 1 | GS6: -5.2 | GT6: 0.7 | GU6: 1.2 | GV6: 1.3 | GW6: 1.8 | GX6: -0.4 | GY6: -0.5 | GZ6: 5.6 | HA6: -3.6 | HB6: -1.9 | HC6: 3 | HD6: 0 | HE6: 0.4 | HF6: -0.6 | HG6: 4.6 | HH6: 2.7 | HI6: 0.7 | HJ6: -6.1 | HK6: 2.6 | HL6: 1 | HM6: 4.5 | HN6: 4 | HO6: 3.4 | HP6: 1.3 | HQ6: 3.9 | HR6: 4.4 | HS6: 1.4 | HT6: -0.2 | HU6: 6 | HV6: 1.2 | HW6: -4.9 | HX6: -3.3 | HY6: 3.4 | HZ6: -1.4 | IA6: -0.6 | IB6: 6 | IC6: -7.4 | ID6: 2.1 | IE6: 0.1 | IF6: -1 | IG6: 1.8 | IH6: 5 | II6: 0.1 | IJ6: 6.1 | IK6: 7.7 | IL6: 5 | IM6: 2.9 | IN6: -3 | IO6: 7.5 | IP6: 3.4 | IQ6: -4.2 | IR6: -0.6 | IS6: 1 | IT6: -3.2 | IU6: 3.8 | IV6: 1.1 | IW6: =AVERAGE(FQ6:IV6) -> 1.229761905 | IX6: 3 | IY6: 4.3 | IZ6: 1.7 | JA6: -3 | JB6: 1 | JC6: 6.6 | JD6: -0.8 | JE6: 0.2 | JF6: 0.9 | JG6: 4.6 | JH6: 2 | JI6: 1.8 | JJ6: 0.1 | JK6: 4.7 | JL6: 8.1 | JM6: 3.1 | JN6: 2.2 | JO6: 0.9 | JP6: 5.8 | JQ6: 4.4 | JR6: 3.2 | JS6: 7.1 | JT6: -0.8 | JU6: 7.4 | JV6: 3.8 | JW6: -0.5 | JX6: 2.6 | JY6: 2.2 | JZ6: 2.3 | KA6: 3.2 | KB6: 3.3 | KC6: 2.8 | KD6: 1.2 | KE6: 4.9 | KF6: 2.4 | KG6: 6 | KH6: 4.7 | KI6: -0.3 | KJ6: 2.8 | KK6: 3.3 | KL6: 5.4 | KM6: 1.7 | KN6: -5.1 | KO6: 3.9 | KP6: -0.2 | KQ6: -0.8 | KR6: 1.1 | KS6: 3.6 | KT6: 4.6 | KU6: 4.3 | KV6: 1.5 | KW6: 6.7 | KX6: 2.6 | KY6: 7.2 | KZ6: 4.5 | LA6: 4 | LB6: 2.1 | LC6: 4.9 | LD6: 1 | LE6: 4.3 | LF6: 2.3 | LG6: 5.5 | LH6: 1.6 | LI6: 1.2 | LJ6: 2.5 | LK6: 2.9 | LL6: 3.2 | LM6: 6.9 | LN6: 4.1 | LO6: 1 | LP6: -0.6 | LQ6: 0.7 | LR6: 4.6 | LS6: 5.6 | LT6: 4.2 | LU6: 6.5 | LV6: 6.9 | LW6: 5 | LX6: -0.4 | LY6: 6.1 | LZ6: 11.4 | MA6: 9.6 | MB6: 3.3 | MC6: 7.3 | MD6: -0.8 | ME6: =AVERAGE(IX6:MD6) -> 3.189411765 | MF6: Rebound Margin | MI6: -1.975 | MJ6: 0.55 | MK6: 2.9
A7: Strength of Schedule | B7: 317 | C7: 336 | D7: 341 | E7: 338 | F7: 318 | G7: 252 | H7: 339 | I7: 343 | J7: 313 | K7: 272 | L7: 279 | M7: 221 | N7: 257 | O7: 330 | P7: 299 | Q7: 193 | R7: 234 | S7: 208 | T7: 319 | U7: 212 | V7: 226 | W7: 308 | X7: 286 | Y7: 260 | Z7: 175 | AA7: 194 | AB7: 295 | AC7: 322 | AD7: 291 | AE7: 237 | AF7: 218 | AG7: 333 | AH7: 329 | AI7: 276 | AJ7: 310 | AK7: 91 | AL7: 245 | AM7: 335 | AN7: 231 | AO7: 331 | AP7: 248 | AQ7: 321 | AR7: 210 | AS7: 157 | AT7: 258 | AU7: 342 | AV7: 344 | AW7: 247 | AX7: 148 | AY7: 311 | AZ7: 264 | BA7: 165 | BB7: 265 | BC7: 315 | BD7: 262 | BE7: 287 | BF7: 282 | BG7: 300 | BH7: 326 | BI7: 324 | BJ7: 217 | BK7: 307 | BL7: 228 | BM7: 241 | BN7: 292 | BO7: 197 | BP7: 229 | BQ7: 306 | BR7: 255 | BS7: 211 | BT7: 69 | BU7: 177 | BV7: 314 | BW7: 188 | BX7: 242 | BY7: 160 | BZ7: 209 | CA7: 205 | CB7: 323 | CC7: 144 | CD7: 82 | CE7: 166 | CF7: 83 | CG7: 203 | CH7: 117 | CI7: =AVERAGE(B7:CH7) -> 253.5882353 | CJ7: 296 | CK7: 312 | CL7: 224 | CM7: 98 | CN7: 132 | CO7: 267 | CP7: 316 | CQ7: 62 | CR7: 290 | CS7: 243 | CT7: 301 | CU7: 297 | CV7: 266 | CW7: 278 | CX7: 152 | CY7: 253 | CZ7: 199 | DA7: 269 | DB7: 109 | DC7: 79 | DD7: 72 | DE7: 227 | DF7: 202 | DG7: 64 | DH7: 259 | DI7: 238 | DJ7: 196 | DK7: 213 | DL7: 320 | DM7: 198 | DN7: 137 | DO7: 128 | DP7: 130 | DQ7: 139 | DR7: 334 | DS7: 275 | DT7: 158 | DU7: 268 | DV7: 283 | DW7: 289 | DX7: 340 | DY7: 162 | DZ7: 236 | EA7: 187 | EB7: 164 | EC7: 169 | ED7: 216 | EE7: 303 | EF7: 163 | EG7: 288 | EH7: 239 | EI7: 298 | EJ7: 114 | EK7: 305 | EL7: 153 | EM7: 113 | EN7: 125 | EO7: 220 | EP7: 178 | EQ7: 180 | ER7: 81 | ES7: 332 | ET7: 250 | EU7: 270 | EV7: 112 | EW7: 190 | EX7: 106 | EY7: 36 | EZ7: 219 | FA7: 145 | FB7: 167 | FC7: 201 | FD7: 223 | FE7: 161 | FF7: 235 | FG7: 232 | FH7: 184 | FI7: 273 | FJ7: 75 | FK7: 183 | FL7: 111 | FM7: 59 | FN7: 189 | FO7: 284 | FP7: =AVERAGE(CJ7:FO7) -> 202.9047619 | FQ7: 277 | FR7: 254 | FS7: 137 | FT7: 89 | FU7: 206 | FV7: 70 | FW7: 65 | FX7: 138 | FY7: 80 | FZ7: 134 | GA7: 274 | GB7: 92 | GC7: 328 | GD7: 195 | GE7: 147 | GF7: 103 | GG7: 127 | GH7: 33 | GI7: 172 | GJ7: 304 | GK7: 155 | GL7: 302 | GM7: 325 | GN7: 192 | GO7: 71 | GP7: 251 | GQ7: 240 | GR7: 140 | GS7: 88 | GT7: 118 | GU7: 110 | GV7: 51 | GW7: 293 | GX7: 131 | GY7: 76 | GZ7: 215 | HA7: 26 | HB7: 97 | HC7: 87 | HD7: 136 | HE7: 73 | HF7: 39 | HG7: 230 | HH7: 135 | HI7: 142 | HJ7: 84 | HK7: 186 | HL7: 256 | HM7: 281 | HN7: 46 | HO7: 122 | HP7: 214 | HQ7: 171 | HR7: 5 | HS7: 159 | HT7: 116 | HU7: 124 | HV7: 68 | HW7: 22 | HX7: 151 | HY7: 56 | HZ7: 16 | IA7: 168 | IB7: 143 | IC7: 61 | ID7: 309 | IE7: 35 | IF7: 222 | IG7: 55 | IH7: 129 | II7: 126 | IJ7: 107 | IK7: 30 | IL7: 225 | IM7: 271 | IN7: 95 | IO7: 133 | IP7: 34 | IQ7: 185 | IR7: 77 | IS7: 149 | IT7: 121 | IU7: 207 | IV7: 263 | IW7: =AVERAGE(FQ7:IV7) -> 144.8809524 | IX7: 37 | IY7: 280 | IZ7: 200 | JA7: 337 | JB7: 123 | JC7: 204 | JD7: 105 | JE7: 150 | JF7: 100 | JG7: 86 | JH7: 246 | JI7: 29 | JJ7: 182 | JK7: 25 | JL7: 115 | JM7: 44 | JN7: 99 | JO7: 60 | JP7: 261 | JQ7: 94 | JR7: 67 | JS7: 154 | JT7: 53 | JU7: 40 | JV7: 58 | JW7: 181 | JX7: 191 | JY7: 108 | JZ7: 176 | KA7: 156 | KB7: 31 | KC7: 43 | KD7: 78 | KE7: 74 | KF7: 47 | KG7: 12 | KH7: 104 | KI7: 32 | KJ7: 173 | KK7: 19 | KL7: 52 | KM7: 41 | KN7: 10 | KO7: 174 | KP7: 45 | KQ7: 23 | KR7: 146 | KS7: 85 | KT7: 170 | KU7: 96 | KV7: 102 | KW7: 90 | KX7: 120 | KY7: 119 | KZ7: 48 | LA7: 2 | LB7: 179 | LC7: 63 | LD7: 4 | LE7: 13 | LF7: 15 | LG7: 101 | LH7: 6 | LI7: 18 | LJ7: 28 | LK7: 17 | LL7: 49 | LM7: 93 | LN7: 27 | LO7: 66 | LP7: 9 | LQ7: 42 | LR7: 57 | LS7: 14 | LT7: 50 | LU7: 54 | LV7: 11 | LW7: 21 | LX7: 20 | LY7: 8 | LZ7: 7 | MA7: 1 | MB7: 3 | MC7: 38 | MD7: 24 | ME7: =AVERAGE(IX7:MD7) -> 81.58823529 | MF7: Strength of Schedule | MI7: 85.25 | MJ7: 169.5 | MK7: 256.75
A8: Ratings Percentage Index | B8: 344 | C8: 343 | D8: 342 | E8: 341 | F8: 340 | G8: 339 | H8: 337 | I8: 336 | J8: 335 | K8: 334 | L8: 333 | M8: 332 | N8: 331 | O8: 330 | P8: 329 | Q8: 328 | R8: 327 | S8: 326 | T8: 325 | U8: 324 | V8: 323 | W8: 322 | X8: 321 | Y8: 320 | Z8: 319 | AA8: 318 | AB8: 317 | AC8: 316 | AD8: 315 | AE8: 314 | AF8: 313 | AG8: 312 | AH8: 311 | AI8: 310 | AJ8: 309 | AK8: 308 | AL8: 307 | AM8: 306 | AN8: 305 | AO8: 303 | AP8: 302 | AQ8: 301 | AR8: 300 | AS8: 299 | AT8: 298 | AU8: 297 | AV8: 296 | AW8: 295 | AX8: 294 | AY8: 293 | AZ8: 292 | BA8: 291 | BB8: 289 | BC8: 288 | BD8: 287 | BE8: 286 | BF8: 285 | BG8: 284 | BH8: 283 | BI8: 281 | BJ8: 280 | BK8: 279 | BL8: 278 | BM8: 276 | BN8: 275 | BO8: 274 | BP8: 273 | BQ8: 272 | BR8: 271 | BS8: 270 | BT8: 269 | BU8: 268 | BV8: 267 | BW8: 266 | BX8: 265 | BY8: 264 | BZ8: 263 | CA8: 262 | CB8: 261 | CC8: 260 | CD8: 259 | CE8: 258 | CF8: 257 | CG8: 256 | CH8: 255 | CI8: =AVERAGE(B8:CH8) -> 299.5764706 | CJ8: 254 | CK8: 253 | CL8: 252 | CM8: 251 | CN8: 250 | CO8: 249 | CP8: 248 | CQ8: 247 | CR8: 246 | CS8: 245 | CT8: 243 | CU8: 242 | CV8: 241 | CW8: 240 | CX8: 239 | CY8: 238 | CZ8: 237 | DA8: 236 | DB8: 235 | DC8: 234 | DD8: 233 | DE8: 232 | DF8: 231 | DG8: 230 | DH8: 229 | DI8: 228 | DJ8: 227 | DK8: 226 | DL8: 225 | DM8: 224 | DN8: 223 | DO8: 222 | DP8: 221 | DQ8: 220 | DR8: 219 | DS8: 218 | DT8: 217 | DU8: 216 | DV8: 215 | DW8: 214 | DX8: 213 | DY8: 212 | DZ8: 211 | EA8: 210 | EB8: 209 | EC8: 208 | ED8: 207 | EE8: 206 | EF8: 205 | EG8: 204 | EH8: 203 | EI8: 202 | EJ8: 201 | EK8: 200 | EL8: 199 | EM8: 198 | EN8: 197 | EO8: 196 | EP8: 195 | EQ8: 194 | ER8: 193 | ES8: 192 | ET8: 191 | EU8: 190 | EV8: 189 | EW8: 188 | EX8: 187 | EY8: 186 | EZ8: 185 | FA8: 184 | FB8: 183 | FC8: 182 | FD8: 181 | FE8: 180 | FF8: 179 | FG8: 178 | FH8: 177 | FI8: 176 | FJ8: 175 | FK8: 174 | FL8: 173 | FM8: 172 | FN8: 171 | FO8: 170 | FP8: =AVERAGE(CJ8:FO8) -> 211.6190476 | FQ8: 169 | FR8: 168 | FS8: 167 | FT8: 166 | FU8: 165 | FV8: 163 | FW8: 163 | FX8: 162 | FY8: 161 | FZ8: 160 | GA8: 159 | GB8: 158 | GC8: 157 | GD8: 156 | GE8: 155 | GF8: 154 | GG8: 153 | GH8: 152 | GI8: 151 | GJ8: 150 | GK8: 149 | GL8: 148 | GM8: 147 | GN8: 146 | GO8: 145 | GP8: 144 | GQ8: 143 | GR8: 142 | GS8: 141 | GT8: 140 | GU8: 139 | GV8: 138 | GW8: 137 | GX8: 136 | GY8: 135 | GZ8: 134 | HA8: 133 | HB8: 132 | HC8: 131 | HD8: 130 | HE8: 129 | HF8: 128 | HG8: 127 | HH8: 126 | HI8: 125 | HJ8: 124 | HK8: 123 | HL8: 122 | HM8: 121 | HN8: 120 | HO8: 119 | HP8: 118 | HQ8: 117 | HR8: 116 | HS8: 115 | HT8: 114 | HU8: 113 | HV8: 112 | HW8: 111 | HX8: 110 | HY8: 109 | HZ8: 108 | IA8: 107 | IB8: 106 | IC8: 105 | ID8: 104 | IE8: 103 | IF8: 102 | IG8: 101 | IH8: 100 | II8: 99 | IJ8: 98 | IK8: 97 | IL8: 96 | IM8: 95 | IN8: 94 | IO8: 93 | IP8: 92 | IQ8: 91 | IR8: 90 | IS8: 89 | IT8: 88 | IU8: 87 | IV8: 86 | IW8: =AVERAGE(FQ8:IV8) -> 127.4880952 | IX8: 85 | IY8: 84 | IZ8: 83 | JA8: 82 | JB8: 81 | JC8: 80 | JD8: 79 | JE8: 78 | JF8: 77 | JG8: 76 | JH8: 75 | JI8: 74 | JJ8: 73 | JK8: 72 | JL8: 71 | JM8: 70 | JN8: 69 | JO8: 68 | JP8: 67 | JQ8: 66 | JR8: 65 | JS8: 64 | JT8: 63 | JU8: 62 | JV8: 61 | JW8: 60 | JX8: 59 | JY8: 58 | JZ8: 57 | KA8: 56 | KB8: 55 | KC8: 54 | KD8: 53 | KE8: 52 | KF8: 51 | KG8: 50 | KH8: 49 | KI8: 48 | KJ8: 47 | KK8: 46 | KL8: 45 | KM8: 44 | KN8: 43 | KO8: 42 | KP8: 41 | KQ8: 40 | KR8: 39 | KS8: 38 | KT8: 37 | KU8: 36 | KV8: 35 | KW8: 34 | KX8: 33 | KY8: 32 | KZ8: 31 | LA8: 30 | LB8: 29 | LC8: 28 | LD8: 27 | LE8: 26 | LF8: 25 | LG8: 24 | LH8: 23 | LI8: 22 | LJ8: 21 | LK8: 20 | LL8: 19 | LM8: 18 | LN8: 17 | LO8: 16 | LP8: 15 | LQ8: 14 | LR8: 13 | LS8: 12 | LT8: 11 | LU8: 10 | LV8: 9 | LW8: 8 | LX8: 7 | LY8: 6 | LZ8: 5 | MA8: 4 | MB8: 3 | MC8: 2 | MD8: 1 | ME8: =AVERAGE(IX8:MD8) -> 43 | MF8: Ratings Percentage Index | MI8: 85.25 | MJ8: 169.5 | MK8: 254.75
A9: Team Quartile Performance | B9: Bottom Quartile Performance | CJ9: Lower-Middle Quartile Performance | FQ9: Upper-Middle Quartile Performance | IX9: Top Quartile Performance | MF9: Player Quartile Performance
A10: Points Per Game | B10: 55.9 | C10: 64.9 | D10: 53 | E10: 62.4 | F10: 63.5 | G10: 55.2 | H10: 73.9 | I10: 61.9 | J10: 63.1 | K10: 62.3 | L10: 63 | M10: 61.9 | N10: 60.8 | O10: 59.5 | P10: 65.3 | Q10: 57.7 | R10: 61.5 | S10: 62.7 | T10: 66.1 | U10: 57.7 | V10: 64.4 | W10: 67.9 | X10: 74.3 | Y10: 58 | Z10: 64.3 | AA10: 60.3 | AB10: 71.6 | AC10: 67 | AD10: 55.9 | AE10: 62.7 | AF10: 60.8 | AG10: 65.2 | AH10: 70.2 | AI10: 60.3 | AJ10: 59.8 | AK10: 51 | AL10: 56.8 | AM10: 59.7 | AN10: 70.6 | AO10: 62.4 | AP10: 63.3 | AQ10: 68.5 | AR10: 61.1 | AS10: 58.1 | AT10: 66.2 | AU10: 61.8 | AV10: 60.7 | AW10: 62.6 | AX10: 60.7 | AY10: 66 | AZ10: 61 | BA10: 69.5 | BB10: 60.3 | BC10: 65.4 | BD10: 61.6 | BE10: 67.5 | BF10: 64.3 | BG10: 68.6 | BH10: 69.6 | BI10: 81.1 | BJ10: 70.1 | BK10: 71.4 | BL10: 65.7 | BM10: 63.6 | BN10: 77.4 | BO10: 68.9 | BP10: 59.3 | BQ10: 70.3 | BR10: 71.5 | BS10: 69.2 | BT10: 55.9 | BU10: 72 | BV10: 74 | BW10: 64.5 | BX10: 68 | BY10: 65.1 | BZ10: 59.5 | CA10: 66.1 | CB10: 63.5 | CC10: 65.8 | CD10: 61.5 | CE10: 72.3 | CF10: 53.3 | CG10: 70.9 | CH10: 63.1 | CI10: =AVERAGE(B10:CH10) -> 64.19176471 | CJ10: 70.5 | CK10: 63.1 | CL10: 66.3 | CM10: 67.8 | CN10: 60 | CO10: 59.1 | CP10: 71.9 | CQ10: 72.8 | CR10: 64.7 | CS10: 65.8 | CT10: 70.6 | CU10: 60.7 | CV10: 70.3 | CW10: 70.4 | CX10: 63.3 | CY10: 72.6 | CZ10: 69.6 | DA10: 71.3 | DB10: 61.6 | DC10: 59.6 | DD10: 59.9 | DE10: 63.1 | DF10: 66.8 | DG10: 64.8 | DH10: 69.7 | DI10: 53.3 | DJ10: 68.3 | DK10: 65 | DL10: 62.1 | DM10: 73 | DN10: 64.5 | DO10: 65.4 | DP10: 59.9 | DQ10: 62.2 | DR10: 72.8 | DS10: 70.6 | DT10: 58.2 | DU10: 66.4 | DV10: 68.4 | DW10: 64.9 | DX10: 70.1 | DY10: 73 | DZ10: 72.5 | EA10: 69.8 | EB10: 71.6 | EC10: 65.8 | ED10: 65.6 | EE10: 65.7 | EF10: 70 | EG10: 69.4 | EH10: 70.3 | EI10: 72.2 | EJ10: 73.9 | EK10: 74.7 | EL10: 71.9 | EM10: 66.7 | EN10: 66.3 | EO10: 66.7 | EP10: 69.2 | EQ10: 74.3 | ER10: 68.7 | ES10: 64 | ET10: 66.7 | EU10: 67.9 | EV10: 68.9 | EW10: 62.1 | EX10: 69.2 | EY10: 61.6 | EZ10: 64.4 | FA10: 70 | FB10: 65.1 | FC10: 68.8 | FD10: 76.5 | FE10: 62.7 | FF10: 66.6 | FG10: 73.8 | FH10: 62.9 | FI10: 72.9 | FJ10: 61 | FK10: 67 | FL10: 65.4 | FM10: 62.7 | FN10: 67.8 | FO10: 64.1 | FP10: =AVERAGE(CJ10:FO10) -> 67.0452381 | FQ10: 76.9 | FR10: 70.8 | FS10: 63.7 | FT10: 69.4 | FU10: 64.6 | FV10: 61.6 | FW10: 60.6 | FX10: 66.9 | FY10: 65.6 | FZ10: 69.6 | GA10: 68 | GB10: 69.5 | GC10: 78.3 | GD10: 72.9 | GE10: 69.1 | GF10: 67.2 | GG10: 79.6 | GH10: 62 | GI10: 72.3 | GJ10: 68.7 | GK10: 75.2 | GL10: 64.7 | GM10: 67.4 | GN10: 69 | GO10: 63.3 | GP10: 70.7 | GQ10: 67.4 | GR10: 67.3 | GS10: 73.2 | GT10: 64.6 | GU10: 64.7 | GV10: 66 | GW10: 68.7 | GX10: 79.5 | GY10: 64.2 | GZ10: 74.3 | HA10: 67 | HB10: 67.2 | HC10: 68.9 | HD10: 64.9 | HE10: 72.7 | HF10: 60.9 | HG10: 72.1 | HH10: 68.6 | HI10: 65.3 | HJ10: 68.4 | HK10: 69.3 | HL10: 68.5 | HM10: 67.9 | HN10: 70 | HO10: 63.4 | HP10: 80.8 | HQ10: 72.5 | HR10: 71.6 | HS10: 64.3 | HT10: 70 | HU10: 65.3 | HV10: 66 | HW10: 67.1 | HX10: 70.3 | HY10: 59.9 | HZ10: 61.5 | IA10: 71.1 | IB10: 69.8 | IC10: 72.2 | ID10: 75.9 | IE10: 65.8 | IF10: 70.2 | IG10: 68.3 | IH10: 69.6 | II10: 65.9 | IJ10: 66.5 | IK10: 68.6 | IL10: 70.4 | IM10: 81.8 | IN10: 65.9 | IO10: 72.8 | IP10: 68.8 | IQ10: 68.6 | IR10: 71.7 | IS10: 69.6 | IT10: 73.6 | IU10: 67.6 | IV10: 73.2 | IW10: =AVERAGE(FQ10:IV10) -> 68.92619048 | IX10: 67.4 | IY10: 76.1 | IZ10: 70.9 | JA10: 60.1 | JB10: 75.3 | JC10: 67.8 | JD10: 63.1 | JE10: 66.3 | JF10: 68.9 | JG10: 68.2 | JH10: 79.1 | JI10: 66.2 | JJ10: 71.6 | JK10: 73.7 | JL10: 78.8 | JM10: 66 | JN10: 69.8 | JO10: 65.7 | JP10: 65 | JQ10: 66.7 | JR10: 71.4 | JS10: 77.9 | JT10: 65.9 | JU10: 69.2 | JV10: 71.9 | JW10: 68.3 | JX10: 82.1 | JY10: 72.8 | JZ10: 78.6 | KA10: 71.1 | KB10: 73.7 | KC10: 71.7 | KD10: 71.1 | KE10: 74.9 | KF10: 71.3 | KG10: 71.8 | KH10: 79 | KI10: 71.5 | KJ10: 72.3 | KK10: 60.1 | KL10: 71 | KM10: 69 | KN10: 69.4 | KO10: 73.7 | KP10: 68 | KQ10: 71.7 | KR10: 83.4 | KS10: 62.7 | KT10: 65 | KU10: 72 | KV10: 68.8 | KW10: 72.6 | KX10: 73.8 | KY10: 74.6 | KZ10: 73.3 | LA10: 68.6 | LB10: 74.8 | LC10: 70.9 | LD10: 70.8 | LE10: 69.6 | LF10: 65.9 | LG10: 79.7 | LH10: 73.9 | LI10: 74.7 | LJ10: 70.7 | LK10: 64 | LL10: 77.7 | LM10: 73.2 | LN10: 77.6 | LO10: 79.7 | LP10: 66.3 | LQ10: 75.6 | LR10: 71.6 | LS10: 69.6 | LT10: 78.4 | LU10: 78.3 | LV10: 74.7 | LW10: 74.4 | LX10: 76.4 | LY10: 75 | LZ10: 81.9 | MA10: 72.5 | MB10: 79 | MC10: 77.8 | MD10: 75.8 | ME10: =AVERAGE(IX10:MD10) -> 72.01647059 | MF10: Points Per Game | MI10: 64.325 | MJ10: 68.35 | MK10: 71.7
B11: =PERCENTRANK($B10:$MD10, B10) -> 0.014 | C11: 0.282 | D11: 0.002 | E11: 0.161 | F11: 0.217 | G11: 0.011 | H11: 0.864 | I11: 0.141 | J11: 0.191 | K11: 0.158 | L11: 0.188 | M11: 0.141 | N11: 0.1 | O11: 0.047 | P11: 0.308 | Q11: 0.026 | R11: 0.117 | S11: 0.17 | T11: 0.376 | U11: 0.026 | V11: 0.252 | W11: 0.473 | X11: 0.876 | Y11: 0.032 | Z11: 0.244 | AA11: 0.079 | AB11: 0.735 | AC11: 0.426 | AD11: 0.014 | AE11: 0.17 | AF11: 0.1 | AG11: 0.305 | AH11: =PERCENTRANK($B10:$MD10, AH10) -> 0.65 | AI11: 0.079 | AJ11: 0.058 | AK11: 0 | AL11: 0.023 | AM11: 0.055 | AN11: 0.676 | AO11: 0.161 | AP11: 0.205 | AQ11: 0.508 | AR11: 0.114 | AS11: 0.035 | AT11: 0.382 | AU11: 0.138 | AV11: 0.091 | AW11: 0.167 | AX11: 0.091 | AY11: 0.364 | AZ11: 0.108 | BA11: 0.594 | BB11: 0.079 | BC11: 0.317 | BD11: 0.126 | BE11: 0.458 | BF11: 0.244 | BG11: 0.514 | BH11: 0.6 | BI11: 0.988 | BJ11: 0.644 | BK11: 0.723 | BL11: 0.332 | BM11: 0.223 | BN11: =PERCENTRANK($B10:$MD10, BN10) -> 0.935 | BO11: 0.547 | BP11: 0.044 | BQ11: 0.655 | BR11: 0.729 | BS11: 0.57 | BT11: 0.014 | BU11: 0.77 | BV11: 0.873 | BW11: 0.258 | BX11: 0.482 | BY11: 0.3 | BZ11: 0.047 | CA11: 0.376 | CB11: 0.217 | CC11: 0.341 | CD11: 0.117 | CE11: 0.785 | CF11: 0.005 | CG11: 0.697 | CH11: 0.191 | CI11: 0.3052470588 | CJ11: =PERCENTRANK($B10:$MD10, CJ10) -> 0.673 | CK11: 0.191 | CL11: 0.388 | CM11: 0.464 | CN11: 0.07 | CO11: 0.041 | CP11: 0.761 | CQ11: 0.811 | CR11: 0.27 | CS11: 0.341 | CT11: 0.676 | CU11: 0.091 | CV11: 0.655 | CW11: 0.667 | CX11: 0.205 | CY11: 0.802 | CZ11: 0.6 | DA11: 0.717 | DB11: 0.126 | DC11: 0.052 | DD11: 0.061 | DE11: 0.191 | DF11: 0.42 | DG11: 0.279 | DH11: 0.62 | DI11: 0.005 | DJ11: 0.494 | DK11: 0.291 | DL11: 0.15 | DM11: 0.829 | DN11: 0.258 | DO11: 0.317 | DP11: =PERCENTRANK($B10:$MD10, DP10) -> 0.061 | DQ11: 0.155 | DR11: 0.811 | DS11: 0.676 | DT11: 0.038 | DU11: 0.4 | DV11: 0.502 | DW11: 0.282 | DX11: 0.644 | DY11: 0.829 | DZ11: 0.794 | EA11: 0.623 | EB11: 0.735 | EC11: 0.341 | ED11: 0.326 | EE11: 0.332 | EF11: 0.632 | EG11: 0.585 | EH11: 0.655 | EI11: 0.779 | EJ11: 0.864 | EK11: 0.891 | EL11: 0.761 | EM11: 0.408 | EN11: 0.388 | EO11: 0.408 | EP11: 0.57 | EQ11: 0.876 | ER11: 0.529 | ES11: 0.229 | ET11: 0.408 | EU11: 0.473 | EV11: =PERCENTRANK($B10:$MD10, EV10) -> 0.547 | EW11: 0.15 | EX11: 0.57 | EY11: 0.126 | EZ11: 0.252 | FA11: 0.632 | FB11: 0.3 | FC11: 0.538 | FD11: 0.929 | FE11: 0.17 | FF11: 0.405 | FG11: 0.858 | FH11: 0.185 | FI11: 0.823 | FJ11: 0.108 | FK11: 0.426 | FL11: 0.317 | FM11: 0.17 | FN11: 0.464 | FO11: 0.235 | FP11: 0.4491190476 | FQ11: =PERCENTRANK($B10:$MD10, FQ10) -> 0.932 | FR11: 0.691 | FS11: 0.226 | FT11: 0.585 | FU11: 0.264 | FV11: 0.126 | FW11: 0.088 | FX11: 0.423 | FY11: 0.326 | FZ11: 0.6 | GA11: 0.482 | GB11: 0.594 | GC11: 0.95 | GD11: 0.823 | GE11: 0.567 | GF11: 0.441 | GG11: 0.976 | GH11: 0.147 | GI11: 0.785 | GJ11: 0.529 | GK11: 0.908 | GL11: 0.27 | GM11: 0.45 | GN11: 0.561 | GO11: 0.205 | GP11: 0.685 | GQ11: 0.45 | GR11: 0.447 | GS11: 0.835 | GT11: 0.264 | GU11: 0.27 | GV11: 0.364 | GW11: =PERCENTRANK($B10:$MD10, GW10) -> 0.529 | GX11: 0.973 | GY11: 0.241 | GZ11: 0.876 | HA11: 0.426 | HB11: 0.441 | HC11: 0.547 | HD11: 0.282 | HE11: 0.808 | HF11: 0.105 | HG11: 0.776 | HH11: 0.514 | HI11: 0.308 | HJ11: 0.502 | HK11: 0.582 | HL11: 0.508 | HM11: 0.473 | HN11: 0.632 | HO11: 0.214 | HP11: 0.985 | HQ11: 0.794 | HR11: 0.735 | HS11: 0.244 | HT11: 0.632 | HU11: 0.308 | HV11: 0.364 | HW11: 0.438 | HX11: 0.655 | HY11: 0.061 | HZ11: 0.117 | IA11: 0.708 | IB11: 0.623 | IC11: =PERCENTRANK($B10:$MD10, IC10) -> 0.779 | ID11: 0.92 | IE11: 0.341 | IF11: 0.65 | IG11: 0.494 | IH11: 0.6 | II11: 0.352 | IJ11: 0.402 | IK11: 0.514 | IL11: 0.667 | IM11: 0.991 | IN11: 0.352 | IO11: 0.811 | IP11: 0.538 | IQ11: 0.514 | IR11: 0.75 | IS11: 0.6 | IT11: 0.847 | IU11: 0.461 | IV11: 0.835 | IW11: 0.536702381 | IX11: =PERCENTRANK($B10:$MD10, IX10) -> 0.45 | IY11: 0.923 | IZ11: 0.697 | JA11: 0.073 | JB11: 0.911 | JC11: 0.464 | JD11: 0.191 | JE11: 0.388 | JF11: 0.547 | JG11: 0.491 | JH11: 0.97 | JI11: 0.382 | JJ11: 0.735 | JK11: 0.85 | JL11: 0.961 | JM11: 0.364 | JN11: 0.623 | JO11: 0.332 | JP11: 0.291 | JQ11: 0.408 | JR11: 0.723 | JS11: 0.947 | JT11: 0.352 | JU11: 0.57 | JV11: 0.761 | JW11: 0.494 | JX11: 0.997 | JY11: 0.811 | JZ11: 0.958 | KA11: 0.708 | KB11: 0.85 | KC11: 0.75 | KD11: =PERCENTRANK($B10:$MD10, KD10) -> 0.708 | KE11: 0.902 | KF11: 0.717 | KG11: 0.758 | KH11: 0.964 | KI11: 0.729 | KJ11: 0.785 | KK11: 0.073 | KL11: 0.705 | KM11: 0.561 | KN11: 0.585 | KO11: 0.85 | KP11: 0.482 | KQ11: 0.75 | KR11: 1 | KS11: 0.17 | KT11: 0.291 | KU11: 0.77 | KV11: 0.538 | KW11: 0.802 | KX11: 0.858 | KY11: 0.888 | KZ11: 0.844 | LA11: 0.514 | LB11: 0.9 | LC11: 0.697 | LD11: 0.691 | LE11: 0.6 | LF11: 0.352 | LG11: 0.979 | LH11: 0.864 | LI11: 0.891 | LJ11: =PERCENTRANK($B10:$MD10, LJ10) -> 0.685 | LK11: 0.229 | LL11: 0.941 | LM11: 0.835 | LN11: 0.938 | LO11: 0.979 | LP11: 0.388 | LQ11: 0.914 | LR11: 0.735 | LS11: 0.6 | LT11: 0.955 | LU11: 0.95 | LV11: 0.891 | LW11: 0.885 | LX11: 0.926 | LY11: 0.905 | LZ11: 0.994 | MA11: 0.794 | MB11: 0.964 | MC11: 0.944 | MD11: 0.917 | ME11: =AVERAGE(IX11:MD11) -> 0.7006941176 | MI11: 0.24525 | MJ11: 0.4965 | MK11: 0.747
A12: Field Goal Percentage | B12: 39.2 | C12: 39.3 | D12: 35.4 | E12: 40.1 | F12: 41.4 | G12: 36.5 | H12: 43.9 | I12: 41.1 | J12: 39.3 | K12: 40.8 | L12: 39.8 | M12: 41.5 | N12: 41.2 | O12: 40.5 | P12: 40.3 | Q12: 40.2 | R12: 38.6 | S12: 41.3 | T12: 40.8 | U12: 39.5 | V12: 43.5 | W12: 38.2 | X12: 42.1 | Y12: 38.9 | Z12: 43.1 | AA12: 41 | AB12: 42.2 | AC12: 45.1 | AD12: 37.7 | AE12: 41.1 | AF12: 45.9 | AG12: 40.2 | AH12: 42.8 | AI12: 38 | AJ12: 41.4 | AK12: 36.8 | AL12: 41.9 | AM12: 37.9 | AN12: 41.5 | AO12: 39 | AP12: 43.1 | AQ12: 42.7 | AR12: 39.7 | AS12: 40.4 | AT12: 42.5 | AU12: 40.5 | AV12: 40.8 | AW12: 41.8 | AX12: 40.6 | AY12: 41.8 | AZ12: 38.3 | BA12: 41.1 | BB12: 42.4 | BC12: 43.6 | BD12: 39.6 | BE12: 44.2 | BF12: 40.7 | BG12: 45.3 | BH12: 44.6 | BI12: 44.3 | BJ12: 45.1 | BK12: 42.7 | BL12: 42.2 | BM12: 42.3 | BN12: 43.7 | BO12: 39.8 | BP12: 41.7 | BQ12: 42.4 | BR12: 44.2 | BS12: 42 | BT12: 40.6 | BU12: 44.1 | BV12: 43.5 | BW12: 43.1 | BX12: 44 | BY12: 41.9 | BZ12: 39.6 | CA12: 44.3 | CB12: 42.2 | CC12: 40.6 | CD12: 40.2 | CE12: 47.9 | CF12: 39.1 | CG12: 41 | CH12: 41.6 | CI12: 41.37411765 | CJ12: 47.5 | CK12: 41.9 | CL12: 42.2 | CM12: 39.9 | CN12: 45.3 | CO12: 41 | CP12: 47.2 | CQ12: 43.8 | CR12: 41.4 | CS12: 47.2 | CT12: 45.7 | CU12: 41.5 | CV12: 41.7 | CW12: 41.8 | CX12: 41.7 | CY12: 46.1 | CZ12: 40.2 | DA12: 45.9 | DB12: 43.5 | DC12: 40.9 | DD12: 43.8 | DE12: 42 | DF12: 41.8 | DG12: 42.5 | DH12: 42.6 | DI12: 37.8 | DJ12: 41.4 | DK12: 42.4 | DL12: 45 | DM12: 43.7 | DN12: 39.4 | DO12: 41.8 | DP12: 42.4 | DQ12: 38.2 | DR12: 45 | DS12: 41.9 | DT12: 39.9 | DU12: 43.5 | DV12: 45.6 | DW12: 42.5 | DX12: 42.8 | DY12: 44.3 | DZ12: 40.5 | EA12: 43.7 | EB12: 46.4 | EC12: 41 | ED12: 42.9 | EE12: 43.3 | EF12: 40.4 | EG12: 43.4 | EH12: 43 | EI12: 44.6 | EJ12: 44 | EK12: 48.6 | EL12: 45.1 | EM12: 44.7 | EN12: 41.5 | EO12: 46.7 | EP12: 41.6 | EQ12: 46.3 | ER12: 43.2 | ES12: 42.5 | ET12: 42.6 | EU12: 43.9 | EV12: 43.1 | EW12: 45.7 | EX12: 44.2 | EY12: 40.3 | EZ12: 42.5 | FA12: 46.8 | FB12: 42.7 | FC12: 43.1 | FD12: 48.4 | FE12: 42.8 | FF12: 42.3 | FG12: 49.2 | FH12: 43.4 | FI12: 48.7 | FJ12: 43.2 | FK12: 42.6 | FL12: 40.9 | FM12: 42.4 | FN12: 46 | FO12: 44 | FP12: 43.3202381 | FQ12: 44.7 | FR12: 42.4 | FS12: 40.6 | FT12: 43 | FU12: 42.8 | FV12: 44.5 | FW12: 43.2 | FX12: 41.1 | FY12: 42.7 | FZ12: 44.3 | GA12: 44.6 | GB12: 43.6 | GC12: 48.6 | GD12: 47 | GE12: 47.6 | GF12: 47.1 | GG12: 46.8 | GH12: 39.2 | GI12: 45.2 | GJ12: 40 | GK12: 46.8 | GL12: 43.2 | GM12: 43.3 | GN12: 42.5 | GO12: 42 | GP12: 43.2 | GQ12: 43.3 | GR12: 46.3 | GS12: 45.8 | GT12: 43.3 | GU12: 42.2 | GV12: 43.3 | GW12: 44 | GX12: 45.1 | GY12: 47 | GZ12: 43.3 | HA12: 42.3 | HB12: 44.4 | HC12: 46.4 | HD12: 42.1 | HE12: 45 | HF12: 43.1 | HG12: 44.7 | HH12: 44.1 | HI12: 44.6 | HJ12: 42.6 | HK12: 43.7 | HL12: 46.7 | HM12: 41.9 | HN12: 43.4 | HO12: 40.7 | HP12: 48.2 | HQ12: 45.3 | HR12: 40.9 | HS12: 42 | HT12: 42.8 | HU12: 40.4 | HV12: 43.6 | HW12: 41.9 | HX12: 42.6 | HY12: 42.2 | HZ12: 39.7 | IA12: 45.2 | IB12: 44 | IC12: 44.7 | ID12: 44.6 | IE12: 42.5 | IF12: 46.4 | IG12: 42.6 | IH12: 45.8 | II12: 45.1 | IJ12: 45.3 | IK12: 44.7 | IL12: 44.2 | IM12: 47.4 | IN12: 44.5 | IO12: 46 | IP12: 44.5 | IQ12: 49 | IR12: 43.7 | IS12: 47.2 | IT12: 46 | IU12: 42.2 | IV12: 44.1 | IW12: 44.03095238 | IX12: 46.4 | IY12: 44.7 | IZ12: 46.5 | JA12: 40.9 | JB12: 43 | JC12: 46.1 | JD12: 45.2 | JE12: 45.3 | JF12: 42 | JG12: 44.3 | JH12: 46.6 | JI12: 44.4 | JJ12: 43.1 | JK12: 46 | JL12: 47.7 | JM12: 43.1 | JN12: 44.4 | JO12: 40.8 | JP12: 43.9 | JQ12: 43.5 | JR12: 45.6 | JS12: 44.5 | JT12: 43.8 | JU12: 43 | JV12: 43.6 | JW12: 40.8 | JX12: 48.7 | JY12: 46.5 | JZ12: 46.8 | KA12: 45.2 | KB12: 44.2 | KC12: 45.6 | KD12: 45.7 | KE12: 44.6 | KF12: 46.9 | KG12: 44.7 | KH12: 46.8 | KI12: 43.8 | KJ12: 49.8 | KK12: 44 | KL12: 43.7 | KM12: 43.7 | KN12: 45.6 | KO12: 49 | KP12: 43.7 | KQ12: 43.5 | KR12: 50.2 | KS12: 46.1 | KT12: 46.3 | KU12: 48.1 | KV12: 45.3 | KW12: 46 | KX12: 47.4 | KY12: 47.4 | KZ12: 45.2 | LA12: 45.2 | LB12: 47.8 | LC12: 45.4 | LD12: 47.5 | LE12: 45.1 | LF12: 45.7 | LG12: 50.8 | LH12: 46.4 | LI12: 49 | LJ12: 43.2 | LK12: 42.6 | LL12: 46.5 | LM12: 46.9 | LN12: 49 | LO12: 49.7 | LP12: 45.6 | LQ12: 47.4 | LR12: 41.6 | LS12: 46.2 | LT12: 46.8 | LU12: 49 | LV12: 48.3 | LW12: 47.2 | LX12: 46.4 | LY12: 48.3 | LZ12: 46.2 | MA12: 47.6 | MB12: 46.5 | MC12: 48.8 | MD12: 47.1 | ME12: =AVERAGE(IX12:MD12) -> 45.73529412 | MF12: Field Goal Percentage | MI12: 41.8 | MJ12: 43.5 | MK12: 45.6
B13: =PERCENTRANK($B12:$MD12, B12) -> 0.041 | C13: 0.047 | D13: 0 | E13: 0.085 | F13: 0.2 | G13: 0.002 | H13: 0.558 | I13: 0.179 | J13: 0.047 | K13: 0.141 | L13: 0.07 | M13: 0.211 | N13: 0.191 | O13: 0.114 | P13: 0.1 | Q13: 0.088 | R13: 0.029 | S13: 0.194 | T13: 0.141 | U13: 0.055 | V13: 0.494 | W13: 0.02 | X13: 0.288 | Y13: 0.032 | Z13: 0.423 | AA13: 0.167 | AB13: 0.294 | AC13: 0.694 | AD13: 0.008 | AE13: 0.179 | AF13: 0.782 | AG13: 0.088 | AH13: =PERCENTRANK($B12:$MD12, AH12) -> 0.394 | AI13: 0.017 | AJ13: 0.2 | AK13: 0.005 | AL13: 0.255 | AM13: 0.014 | AN13: 0.211 | AO13: 0.035 | AP13: 0.423 | AQ13: 0.382 | AR13: 0.064 | AS13: 0.105 | AT13: 0.341 | AU13: 0.114 | AV13: 0.141 | AW13: 0.241 | AX13: 0.123 | AY13: 0.241 | AZ13: 0.026 | BA13: 0.179 | BB13: 0.323 | BC13: 0.511 | BD13: 0.058 | BE13: 0.597 | BF13: 0.135 | BG13: 0.729 | BH13: 0.647 | BI13: 0.611 | BJ13: 0.694 | BK13: 0.382 | BL13: 0.294 | BM13: 0.314 | BN13: =PERCENTRANK($B12:$MD12, BN12) -> 0.523 | BO13: 0.07 | BP13: 0.232 | BQ13: 0.323 | BR13: 0.597 | BS13: 0.273 | BT13: 0.123 | BU13: 0.588 | BV13: 0.494 | BW13: 0.423 | BX13: 0.567 | BY13: 0.255 | BZ13: 0.058 | CA13: 0.611 | CB13: 0.294 | CC13: 0.123 | CD13: 0.088 | CE13: 0.941 | CF13: 0.038 | CG13: 0.167 | CH13: 0.223 | CI13: 0.2562235294 | CJ13: =PERCENTRANK($B12:$MD12, CJ12) -> 0.923 | CK13: 0.255 | CL13: 0.294 | CM13: 0.076 | CN13: 0.729 | CO13: 0.167 | CP13: 0.9 | CQ13: 0.547 | CR13: 0.2 | CS13: 0.9 | CT13: 0.764 | CU13: 0.211 | CV13: 0.232 | CW13: 0.241 | CX13: 0.232 | CY13: 0.802 | CZ13: 0.088 | DA13: 0.782 | DB13: 0.494 | DC13: 0.155 | DD13: 0.547 | DE13: 0.273 | DF13: 0.241 | DG13: 0.341 | DH13: 0.361 | DI13: 0.011 | DJ13: 0.2 | DK13: 0.323 | DL13: 0.685 | DM13: 0.523 | DN13: 0.052 | DO13: 0.241 | DP13: =PERCENTRANK($B12:$MD12, DP12) -> 0.323 | DQ13: 0.02 | DR13: 0.685 | DS13: 0.255 | DT13: 0.076 | DU13: 0.494 | DV13: 0.75 | DW13: 0.341 | DX13: 0.394 | DY13: 0.611 | DZ13: 0.114 | EA13: 0.523 | EB13: 0.826 | EC13: 0.167 | ED13: 0.408 | EE13: 0.464 | EF13: 0.105 | EG13: 0.485 | EH13: 0.411 | EI13: 0.647 | EJ13: 0.567 | EK13: 0.958 | EL13: 0.694 | EM13: 0.664 | EN13: 0.211 | EO13: 0.858 | EP13: 0.223 | EQ13: 0.817 | ER13: 0.447 | ES13: 0.341 | ET13: 0.361 | EU13: 0.558 | EV13: =PERCENTRANK($B12:$MD12, EV12) -> 0.423 | EW13: 0.764 | EX13: 0.597 | EY13: 0.1 | EZ13: 0.341 | FA13: 0.864 | FB13: 0.382 | FC13: 0.423 | FD13: 0.955 | FE13: 0.394 | FF13: 0.314 | FG13: 0.988 | FH13: 0.485 | FI13: 0.964 | FJ13: 0.447 | FK13: 0.361 | FL13: 0.155 | FM13: 0.323 | FN13: 0.788 | FO13: 0.567 | FP13: 0.4550357143 | FQ13: =PERCENTRANK($B12:$MD12, FQ12) -> 0.664 | FR13: 0.323 | FS13: 0.123 | FT13: 0.411 | FU13: 0.394 | FV13: 0.635 | FW13: 0.447 | FX13: 0.179 | FY13: 0.382 | FZ13: 0.611 | GA13: 0.647 | GB13: 0.511 | GC13: 0.958 | GD13: 0.888 | GE13: 0.929 | GF13: 0.894 | GG13: 0.864 | GH13: 0.041 | GI13: 0.711 | GJ13: 0.082 | GK13: 0.864 | GL13: 0.447 | GM13: 0.464 | GN13: 0.341 | GO13: 0.273 | GP13: 0.447 | GQ13: 0.464 | GR13: 0.817 | GS13: 0.776 | GT13: 0.464 | GU13: 0.294 | GV13: 0.464 | GW13: =PERCENTRANK($B12:$MD12, GW12) -> 0.567 | GX13: 0.694 | GY13: 0.888 | GZ13: 0.464 | HA13: 0.314 | HB13: 0.626 | HC13: 0.826 | HD13: 0.288 | HE13: 0.685 | HF13: 0.423 | HG13: 0.664 | HH13: 0.588 | HI13: 0.647 | HJ13: 0.361 | HK13: 0.523 | HL13: 0.858 | HM13: 0.255 | HN13: 0.485 | HO13: 0.135 | HP13: 0.947 | HQ13: 0.729 | HR13: 0.155 | HS13: 0.273 | HT13: 0.394 | HU13: 0.105 | HV13: 0.511 | HW13: 0.255 | HX13: 0.361 | HY13: 0.294 | HZ13: 0.064 | IA13: 0.711 | IB13: 0.567 | IC13: =PERCENTRANK($B12:$MD12, IC12) -> 0.664 | ID13: 0.647 | IE13: 0.341 | IF13: 0.826 | IG13: 0.361 | IH13: 0.776 | II13: 0.694 | IJ13: 0.729 | IK13: 0.664 | IL13: 0.597 | IM13: 0.911 | IN13: 0.635 | IO13: 0.788 | IP13: 0.635 | IQ13: 0.973 | IR13: 0.523 | IS13: 0.9 | IT13: 0.788 | IU13: 0.294 | IV13: 0.588 | IW13: 0.5452380952 | IX13: =PERCENTRANK($B12:$MD12, IX12) -> 0.826 | IY13: 0.664 | IZ13: 0.844 | JA13: 0.155 | JB13: 0.411 | JC13: 0.802 | JD13: 0.711 | JE13: 0.729 | JF13: 0.273 | JG13: 0.611 | JH13: 0.855 | JI13: 0.626 | JJ13: 0.423 | JK13: 0.788 | JL13: 0.935 | JM13: 0.423 | JN13: 0.626 | JO13: 0.141 | JP13: 0.558 | JQ13: 0.494 | JR13: 0.75 | JS13: 0.635 | JT13: 0.547 | JU13: 0.411 | JV13: 0.511 | JW13: 0.141 | JX13: 0.964 | JY13: 0.844 | JZ13: 0.864 | KA13: 0.711 | KB13: 0.597 | KC13: 0.75 | KD13: =PERCENTRANK($B12:$MD12, KD12) -> 0.764 | KE13: 0.647 | KF13: 0.882 | KG13: 0.664 | KH13: 0.864 | KI13: 0.547 | KJ13: 0.994 | KK13: 0.567 | KL13: 0.523 | KM13: 0.523 | KN13: 0.75 | KO13: 0.973 | KP13: 0.523 | KQ13: 0.494 | KR13: 0.997 | KS13: 0.802 | KT13: 0.817 | KU13: 0.944 | KV13: 0.729 | KW13: 0.788 | KX13: 0.911 | KY13: 0.911 | KZ13: 0.711 | LA13: 0.711 | LB13: 0.938 | LC13: 0.747 | LD13: 0.923 | LE13: 0.694 | LF13: 0.764 | LG13: 1 | LH13: 0.826 | LI13: 0.973 | LJ13: =PERCENTRANK($B12:$MD12, LJ12) -> 0.447 | LK13: 0.361 | LL13: 0.844 | LM13: 0.882 | LN13: 0.973 | LO13: 0.991 | LP13: 0.75 | LQ13: 0.911 | LR13: 0.223 | LS13: 0.811 | LT13: 0.864 | LU13: 0.973 | LV13: 0.95 | LW13: 0.9 | LX13: 0.826 | LY13: 0.95 | LZ13: 0.811 | MA13: 0.929 | MB13: 0.844 | MC13: 0.97 | MD13: 0.894 | ME13: =AVERAGE(IX13:MD13) -> 0.725 | MI13: 0.24 | MJ13: 0.492 | MK13: 0.747
A14: 3 Point Percentage | B14: 30.2 | C14: 28.9 | D14: 27.5 | E14: 31.7 | F14: 38 | G14: 30.5 | H14: 35.3 | I14: 29.8 | J14: 30 | K14: 32.7 | L14: 30.4 | M14: 34.1 | N14: 27.7 | O14: 30.1 | P14: 32.7 | Q14: 27.4 | R14: 30.3 | S14: 28.6 | T14: 31 | U14: 34.3 | V14: 33.3 | W14: 30.7 | X14: 31.6 | Y14: 30.6 | Z14: 36.4 | AA14: 36.4 | AB14: 31.5 | AC14: 33.9 | AD14: 32.1 | AE14: 36.9 | AF14: 35.6 | AG14: 28.9 | AH14: 35.6 | AI14: 28 | AJ14: 30.8 | AK14: 27 | AL14: 31 | AM14: 30.1 | AN14: 33.5 | AO14: 30.5 | AP14: 38.7 | AQ14: 36.3 | AR14: 32.7 | AS14: 31.8 | AT14: 30.7 | AU14: 34.6 | AV14: 31.4 | AW14: 36.4 | AX14: 32.3 | AY14: 32 | AZ14: 31.1 | BA14: 36.4 | BB14: 31.7 | BC14: 34.2 | BD14: 32.6 | BE14: 33.3 | BF14: 32.3 | BG14: 31.6 | BH14: 33.7 | BI14: 31.1 | BJ14: 33.1 | BK14: 33.9 | BL14: 33.7 | BM14: 31 | BN14: 36.8 | BO14: 33.7 | BP14: 29.7 | BQ14: 34.9 | BR14: 40.9 | BS14: 35.7 | BT14: 30.9 | BU14: 34.3 | BV14: 37.5 | BW14: 37.7 | BX14: 34.5 | BY14: 31.9 | BZ14: 31.7 | CA14: 34.1 | CB14: 33.3 | CC14: 33.3 | CD14: 30 | CE14: 45 | CF14: 27.5 | CG14: 34.4 | CH14: 28.2 | CI14: 32.68470588 | CJ14: 36.8 | CK14: 32.4 | CL14: 36.8 | CM14: 27.5 | CN14: 35.8 | CO14: 31.1 | CP14: 34.9 | CQ14: 35.5 | CR14: 33.8 | CS14: 28.6 | CT14: 36.4 | CU14: 33 | CV14: 33.8 | CW14: 35.7 | CX14: 33.7 | CY14: 37.6 | CZ14: 33.5 | DA14: 36.9 | DB14: 36.8 | DC14: 33.8 | DD14: 36.2 | DE14: 30.7 | DF14: 33.9 | DG14: 32 | DH14: 34.5 | DI14: 35.7 | DJ14: 35.7 | DK14: 27 | DL14: 28.4 | DM14: 37.5 | DN14: 29.9 | DO14: 32.6 | DP14: 33.9 | DQ14: 27.5 | DR14: 35.1 | DS14: 30.2 | DT14: 34.6 | DU14: 33.8 | DV14: 36.7 | DW14: 35 | DX14: 32 | DY14: 35.6 | DZ14: 36 | EA14: 38 | EB14: 35.6 | EC14: 31.6 | ED14: 35.4 | EE14: 35.1 | EF14: 32 | EG14: 35.4 | EH14: 31.1 | EI14: 39.2 | EJ14: 33.1 | EK14: 37.3 | EL14: 37.6 | EM14: 36.3 | EN14: 34.1 | EO14: 35.7 | EP14: 32.2 | EQ14: 32.4 | ER14: 34.2 | ES14: 33.7 | ET14: 31.8 | EU14: 31.1 | EV14: 34.2 | EW14: 38.6 | EX14: 32.1 | EY14: 32.3 | EZ14: 32.4 | FA14: 36.7 | FB14: 36.9 | FC14: 33.4 | FD14: 33.3 | FE14: 34.9 | FF14: 34.5 | FG14: 37.2 | FH14: 36 | FI14: 33.4 | FJ14: 31.3 | FK14: 38.2 | FL14: 33.4 | FM14: 33 | FN14: 36.3 | FO14: 33.8 | FP14: 34.09166667 | FQ14: 37.7 | FR14: 33.1 | FS14: 32.9 | FT14: 34.7 | FU14: 33.5 | FV14: 32.4 | FW14: 32.9 | FX14: 32.5 | FY14: 33.2 | FZ14: 34.3 | GA14: 34.7 | GB14: 34.2 | GC14: 41.4 | GD14: 36.2 | GE14: 38.8 | GF14: 36.9 | GG14: 35.3 | GH14: 30.6 | GI14: 30.3 | GJ14: 33.1 | GK14: 34.4 | GL14: 40.6 | GM14: 34.3 | GN14: 31.6 | GO14: 31.2 | GP14: 36.5 | GQ14: 31.5 | GR14: 35.2 | GS14: 39.3 | GT14: 33 | GU14: 35.9 | GV14: 33.8 | GW14: 30.6 | GX14: 36.5 | GY14: 34.3 | GZ14: 34 | HA14: 28.6 | HB14: 36.6 | HC14: 37.2 | HD14: 34.7 | HE14: 36.6 | HF14: 32.7 | HG14: 34.7 | HH14: 36.8 | HI14: 35.8 | HJ14: 35.9 | HK14: 35 | HL14: 35.6 | HM14: 34.5 | HN14: 35.6 | HO14: 28.1 | HP14: 36.1 | HQ14: 36.5 | HR14: 31 | HS14: 34.8 | HT14: 34.9 | HU14: 31.1 | HV14: 34.1 | HW14: 32.2 | HX14: 34.1 | HY14: 34.7 | HZ14: 32 | IA14: 35.7 | IB14: 36.3 | IC14: 33 | ID14: 35.3 | IE14: 36.5 | IF14: 36.9 | IG14: 33.9 | IH14: 33.7 | II14: 36.9 | IJ14: 38.4 | IK14: 33.8 | IL14: 35.5 | IM14: 37.3 | IN14: 37.7 | IO14: 35.1 | IP14: 36.2 | IQ14: 39.9 | IR14: 37 | IS14: 35.3 | IT14: 40.8 | IU14: 33 | IV14: 36.2 | IW14: 34.8297619 | IX14: 35.5 | IY14: 35.9 | IZ14: 33.3 | JA14: 29.6 | JB14: 33.6 | JC14: 38.8 | JD14: 33.7 | JE14: 36.6 | JF14: 35.8 | JG14: 35.1 | JH14: 40.8 | JI14: 30.9 | JJ14: 33.8 | JK14: 35.5 | JL14: 33 | JM14: 30.8 | JN14: 37.8 | JO14: 31.4 | JP14: 38.3 | JQ14: 30.4 | JR14: 36.4 | JS14: 34.1 | JT14: 39.5 | JU14: 31.2 | JV14: 33.8 | JW14: 33.2 | JX14: 37.7 | JY14: 37.1 | JZ14: 39.5 | KA14: 36.6 | KB14: 33.8 | KC14: 35.9 | KD14: 36.8 | KE14: 33.4 | KF14: 35.8 | KG14: 30.7 | KH14: 34.4 | KI14: 35.9 | KJ14: 36.9 | KK14: 31.3 | KL14: 33 | KM14: 36.4 | KN14: 38.3 | KO14: 36.4 | KP14: 33.2 | KQ14: 36.6 | KR14: 39.4 | KS14: 33.8 | KT14: 34.7 | KU14: 37.1 | KV14: 36.3 | KW14: 38.4 | KX14: 35.8 | KY14: 34.7 | KZ14: 38.3 | LA14: 32.7 | LB14: 41.5 | LC14: 33.2 | LD14: 41 | LE14: 33 | LF14: 28.5 | LG14: 42.8 | LH14: 39.8 | LI14: 36.8 | LJ14: 32.2 | LK14: 35.8 | LL14: 39.4 | LM14: 37.5 | LN14: 42.6 | LO14: 38.4 | LP14: 34.7 | LQ14: 40.5 | LR14: 36.3 | LS14: 35.3 | LT14: 37.2 | LU14: 37.2 | LV14: 33.1 | LW14: 39 | LX14: 34.6 | LY14: 35.2 | LZ14: 34.8 | MA14: 35.2 | MB14: 38.7 | MC14: 37.6 | MD14: 34.2 | ME14: 36.08157895 | MF14: 3 Point Percentage | MI14: 33.15 | MJ14: 34.8 | MK14: 36.6
E15: 0.119 | F15: 0.884 | G15: 0.042 | H15: 0.554 | J15: 0.021 | K15: 0.192 | L15: 0.035 | M15: 0.385 | P15: 0.192 | Q15: 0 | R15: 0.031 | T15: 0.073 | U15: 0.421 | V15: 0.263 | W15: 0.056 | X15: 0.108 | Z15: 0.705 | AA15: 0.705 | AB15: 0.101 | AC15: 0.368 | AE15: 0.796 | AG15: 0.014 | AH15: 0.592 | AI15: 0.007 | AJ15: 0.063 | AM15: 0.024 | AN15: 0.287 | AO15: 0.042 | AP15: 0.919 | AQ15: 0.684 | AR15: 0.192 | AS15: 0.126 | AU15: 0.456 | AW15: 0.705 | AX15: 0.157 | AY15: 0.133 | BA15: 0.705 | BB15: 0.119 | BC15: 0.407 | BD15: 0.185 | BE15: 0.263 | BF15: 0.157 | BH15: 0.305 | BI15: 0.08 | BJ15: 0.238 | BK15: 0.368 | BL15: 0.305 | BN15: 0.771 | BO15: 0.305 | BQ15: 0.505 | BR15: 0.978 | BS15: 0.607 | BT15: 0.066 | BU15: 0.421 | BV15: 0.845 | BW15: 0.866 | BX15: 0.445 | BY15: 0.129 | CA15: 0.385 | CB15: 0.263 | CE15: 1 | CG15: 0.435 | CI15: 0.3484677419 | CJ15: 0.771 | CK15: 0.168 | CL15: 0.771 | CM15: 0.003 | CN15: 0.624 | CP15: 0.505 | CQ15: 0.578 | CR15: 0.329 | CT15: 0.705 | CU15: 0.217 | CV15: 0.329 | CW15: 0.607 | CX15: 0.305 | CY15: 0.856 | CZ15: 0.287 | DA15: 0.796 | DB15: 0.771 | DC15: 0.329 | DF15: 0.368 | DH15: 0.445 | DJ15: 0.607 | DM15: 0.845 | DN15: 0.017 | DO15: 0.185 | DP15: 0.368 | DR15: 0.529 | DS15: 0.028 | DT15: 0.456 | DU15: 0.329 | DV15: 0.764 | DW15: 0.519 | DX15: 0.133 | DY15: 0.592 | DZ15: 0.663 | EA15: 0.884 | EB15: 0.592 | EC15: 0.108 | ED15: 0.571 | EE15: 0.529 | EF15: 0.133 | EG15: 0.571 | EI15: 0.936 | EJ15: 0.238 | EK15: 0.838 | EL15: 0.856 | EM15: 0.684 | EN15: 0.385 | EO15: 0.607 | EP15: 0.147 | EQ15: 0.168 | ER15: 0.407 | ES15: 0.305 | EV15: 0.407 | EW15: 0.915 | EY15: 0.157 | EZ15: 0.168 | FA15: 0.764 | FB15: 0.796 | FC15: 0.277 | FD15: 0.263 | FE15: 0.505 | FG15: 0.824 | FH15: 0.663 | FJ15: 0.094 | FK15: 0.891 | FL15: 0.277 | FN15: 0.684 | FO15: 0.329 | FP15: 0.4819411765 | FQ15: 0.866 | FS15: 0.21 | FT15: 0.47 | FU15: 0.287 | FV15: 0.168 | FW15: 0.21 | FX15: 0.182 | FY15: 0.249 | FZ15: 0.421 | GA15: 0.47 | GC15: 0.985 | GD15: 0.673 | GE15: 0.926 | GF15: 0.796 | GG15: 0.554 | GH15: 0.049 | GJ15: 0.238 | GK15: 0.435 | GL15: 0.968 | GM15: 0.421 | GN15: 0.108 | GO15: 0.087 | GP15: 0.733 | GQ15: 0.101 | GR15: 0.543 | GS15: 0.94 | GT15: 0.217 | GU15: 0.645 | GV15: 0.329 | GW15: 0.049 | GX15: 0.733 | HB15: 0.747 | HC15: 0.824 | HD15: 0.47 | HE15: 0.747 | HF15: 0.192 | HG15: 0.47 | HH15: 0.771 | HI15: 0.624 | HJ15: 0.645 | HK15: 0.519 | HL15: 0.592 | HM15: 0.445 | HO15: 0.01 | HP15: 0.67 | HQ15: 0.733 | HR15: 0.073 | HS15: 0.498 | HT15: 0.505 | HU15: 0.08 | HV15: 0.385 | HW15: 0.147 | HX15: 0.385 | HY15: 0.47 | HZ15: 0.133 | IA15: 0.607 | IB15: 0.684 | IC15: 0.217 | ID15: 0.554 | IE15: 0.733 | IF15: 0.796 | IG15: 0.368 | IH15: 0.305 | II15: 0.796 | IJ15: 0.905 | IK15: 0.329 | IL15: 0.578 | IM15: 0.838 | IN15: 0.866 | IO15: 0.529 | IP15: 0.673 | IQ15: 0.961 | IR15: 0.817 | IS15: 0.554 | IT15: 0.971 | IU15: 0.217 | IV15: 0.673 | IW15: 0.5086883117 | IX15: 0.578 | IY15: 0.645 | JB15: 0.301 | JC15: 0.926 | JD15: 0.305 | JE15: 0.747 | JF15: 0.624 | JG15: 0.529 | JH15: 0.971 | JI15: 0.066 | JJ15: 0.329 | JK15: 0.578 | JN15: 0.88 | JO15: 0.098 | JP15: 0.894 | JQ15: 0.035 | JR15: 0.705 | JS15: 0.385 | JT15: 0.95 | JU15: 0.087 | JV15: 0.329 | JW15: 0.249 | JX15: 0.866 | JY15: 0.821 | JZ15: 0.95 | KA15: 0.747 | KB15: 0.329 | KC15: 0.645 | KD15: 0.771 | KE15: 0.277 | KF15: 0.624 | KG15: 0.056 | KH15: 0.435 | KI15: 0.645 | KL15: 0.217 | KM15: 0.705 | KN15: 0.894 | KO15: 0.705 | KP15: 0.249 | KQ15: 0.747 | KR15: 0.943 | KS15: 0.329 | KT15: 0.47 | KV15: 0.684 | KW15: 0.905 | KX15: 0.624 | KY15: 0.47 | KZ15: 0.894 | LA15: 0.192 | LB15: 0.989 | LC15: 0.249 | LD15: 0.982 | LE15: 0.217 | LG15: 0.996 | LH15: 0.957 | LI15: 0.771 | LJ15: 0.147 | LK15: 0.624 | LL15: 0.943 | LM15: 0.845 | LN15: 0.992 | LO15: 0.905 | LP15: 0.47 | LQ15: 0.964 | LR15: 0.684 | LS15: 0.554 | LT15: 0.824 | LU15: 0.824 | LW15: 0.933 | LX15: 0.456 | LY15: 0.543 | LZ15: 0.498 | MA15: 0.543 | MB15: 0.919 | MC15: 0.856 | MD15: 0.407 | MI15: 0.2435 | MJ15: 0.498 | MK15: 0.747
A16: Free Throw Percentage | B16: 69.6 | C16: 64.2 | D16: 68.1 | E16: 64 | F16: 68.3 | G16: 66.1 | H16: 67.5 | I16: 69.9 | J16: 66.4 | K16: 68.9 | L16: 65.2 | M16: 62.5 | N16: 66 | O16: 58.4 | P16: 73.4 | Q16: 68.4 | R16: 64 | S16: 70.3 | T16: 59.6 | U16: 70.5 | V16: 66.5 | W16: 75.5 | X16: 68.8 | Y16: 60.2 | Z16: 66.1 | AA16: 65.3 | AB16: 55 | AC16: 69.9 | AD16: 70 | AE16: 63.3 | AF16: 65.3 | AG16: 62.6 | AH16: 70.3 | AI16: 64.7 | AJ16: 67.1 | AK16: 58.2 | AL16: 69.4 | AM16: 58.7 | AN16: 68 | AO16: 54.9 | AP16: 68.5 | AQ16: 72.9 | AR16: 66.5 | AS16: 65 | AT16: 66.6 | AU16: 60.9 | AV16: 69 | AW16: 70.4 | AX16: 71.5 | AY16: 66.7 | AZ16: 67.7 | BA16: 70.3 | BB16: 64.4 | BC16: 75.7 | BD16: 64.4 | BE16: 67.2 | BF16: 69.8 | BG16: 70.8 | BH16: 73 | BI16: 71.6 | BJ16: 68.6 | BK16: 66.1 | BL16: 67.9 | BM16: 65.3 | BN16: 70.6 | BO16: 74.5 | BP16: 60.2 | BQ16: 69.4 | BR16: 68.6 | BS16: 65.2 | BT16: 67.5 | BU16: 69.5 | BV16: 69 | BW16: 69.5 | BX16: 64.3 | BY16: 65.6 | BZ16: 66.3 | CA16: 65.7 | CB16: 65.5 | CC16: 72 | CD16: 68.1 | CE16: 70.4 | CF16: 61.2 | CG16: 67.7 | CH16: 63.5 | CI16: 66.89647059 | CJ16: 63.4 | CK16: 68.1 | CL16: 67 | CM16: 68.9 | CN16: 66.9 | CO16: 69.1 | CP16: 71.4 | CQ16: 69.1 | CR16: 72.4 | CS16: 73.2 | CT16: 72.3 | CU16: 61.5 | CV16: 68.6 | CW16: 67.2 | CX16: 72.2 | CY16: 67.7 | CZ16: 68.4 | DA16: 74.5 | DB16: 69.7 | DC16: 68.1 | DD16: 70.5 | DE16: 68.3 | DF16: 64.5 | DG16: 71.2 | DH16: 75.3 | DI16: 69 | DJ16: 73 | DK16: 67.6 | DL16: 63.3 | DM16: 63.4 | DN16: 70.1 | DO16: 66.9 | DP16: 67.5 | DQ16: 61.2 | DR16: 75 | DS16: 60.6 | DT16: 71 | DU16: 73.2 | DV16: 68.1 | DW16: 68.5 | DX16: 68.9 | DY16: 77.4 | DZ16: 70.1 | EA16: 76.1 | EB16: 71.5 | EC16: 73.3 | ED16: 65.8 | EE16: 69.7 | EF16: 70 | EG16: 66.4 | EH16: 70.3 | EI16: 75.3 | EJ16: 68.4 | EK16: 66.7 | EL16: 71.9 | EM16: 65.7 | EN16: 65.9 | EO16: 67 | EP16: 64.2 | EQ16: 66.9 | ER16: 68.4 | ES16: 59.1 | ET16: 67.9 | EU16: 63.5 | EV16: 70.8 | EW16: 68.3 | EX16: 67.4 | EY16: 70.3 | EZ16: 67.8 | FA16: 71.5 | FB16: 74.9 | FC16: 63.5 | FD16: 73.8 | FE16: 70.9 | FF16: 70.2 | FG16: 72.8 | FH16: 74.5 | FI16: 67.3 | FJ16: 66.1 | FK16: 65.1 | FL16: 67.6 | FM16: 66.9 | FN16: 60.5 | FO16: 66.7 | FP16: 68.75238095 | FQ16: 69 | FR16: 64.5 | FS16: 69.7 | FT16: 69.2 | FU16: 71.9 | FV16: 68.4 | FW16: 64.8 | FX16: 65.5 | FY16: 73.1 | FZ16: 67.5 | GA16: 74.1 | GB16: 70.2 | GC16: 68.9 | GD16: 71.6 | GE16: 66.8 | GF16: 71 | GG16: 68.6 | GH16: 67.6 | GI16: 72.8 | GJ16: 65.4 | GK16: 69.1 | GL16: 71.3 | GM16: 69.3 | GN16: 72.5 | GO16: 64.8 | GP16: 73.1 | GQ16: 65.3 | GR16: 67.4 | GS16: 76.4 | GT16: 67.7 | GU16: 70.4 | GV16: 69.2 | GW16: 65 | GX16: 73.1 | GY16: 69.4 | GZ16: 71.7 | HA16: 68.3 | HB16: 64.2 | HC16: 66.4 | HD16: 72.7 | HE16: 71.8 | HF16: 75.4 | HG16: 63.9 | HH16: 74.3 | HI16: 65.2 | HJ16: 75.7 | HK16: 69 | HL16: 70.3 | HM16: 71.3 | HN16: 72.6 | HO16: 64.4 | HP16: 76 | HQ16: 69.4 | HR16: 76.2 | HS16: 61.6 | HT16: 73.5 | HU16: 62.1 | HV16: 72.5 | HW16: 74.4 | HX16: 64.4 | HY16: 68.6 | HZ16: 69.2 | IA16: 69.1 | IB16: 65.3 | IC16: 65.9 | ID16: 78.4 | IE16: 72.7 | IF16: 71.3 | IG16: 66.9 | IH16: 76.9 | II16: 66.4 | IJ16: 67.9 | IK16: 70.1 | IL16: 70.7 | IM16: 73 | IN16: 72.9 | IO16: 65.5 | IP16: 69.2 | IQ16: 76.5 | IR16: 69.6 | IS16: 71.3 | IT16: 72.1 | IU16: 71.1 | IV16: 74.5 | IW16: 69.8452381 | IX16: 68.8 | IY16: 69.7 | IZ16: 69.6 | JA16: 62 | JB16: 67.1 | JC16: 76 | JD16: 75.4 | JE16: 71 | JF16: 64.1 | JG16: 69.6 | JH16: 81.2 | JI16: 71.5 | JJ16: 68.2 | JK16: 72.5 | JL16: 66.3 | JM16: 60 | JN16: 69.5 | JO16: 70 | JP16: 74.6 | JQ16: 63 | JR16: 69.4 | JS16: 76.6 | JT16: 72.8 | JU16: 60.2 | JV16: 76.7 | JW16: 70.1 | JX16: 73.9 | JY16: 68.9 | JZ16: 72.6 | KA16: 64.3 | KB16: 73.1 | KC16: 69 | KD16: 70.3 | KE16: 62.2 | KF16: 69.3 | KG16: 66.1 | KH16: 71.1 | KI16: 72.8 | KJ16: 63.4 | KK16: 70.5 | KL16: 65.7 | KM16: 66.5 | KN16: 68.8 | KO16: 75.3 | KP16: 71.7 | KQ16: 64.8 | KR16: 71.8 | KS16: 72.4 | KT16: 74.2 | KU16: 75.1 | KV16: 70.5 | KW16: 69.5 | KX16: 66.3 | KY16: 72.6 | KZ16: 67.4 | LA16: 67.1 | LB16: 73.3 | LC16: 69.4 | LD16: 76.7 | LE16: 69.2 | LF16: 71 | LG16: 72.9 | LH16: 70.6 | LI16: 71.1 | LJ16: 68.1 | LK16: 73.6 | LL16: 70.3 | LM16: 71.7 | LN16: 75.5 | LO16: 77 | LP16: 70.8 | LQ16: 71.2 | LR16: 74.9 | LS16: 70.7 | LT16: 67.6 | LU16: 75.2 | LV16: 69.7 | LW16: 74.6 | LX16: 72.2 | LY16: 69.3 | LZ16: 66.8 | MA16: 70.1 | MB16: 69.5 | MC16: 72.4 | MD16: 69.7 | ME16: 70.33176471 | MF16: Free Throw Percentage | MI16: 66.4 | MJ16: 69.15 | MK16: 71.6
B17: =PERCENTRANK($B16:$MD16, B16) -> 0.558 | C17: 0.105 | D17: 0.379 | E17: 0.097 | F17: 0.4 | G17: 0.217 | H17: 0.329 | I17: 0.594 | J17: 0.241 | K17: 0.458 | L17: 0.158 | M17: 0.061 | N17: 0.214 | O17: 0.008 | P17: 0.876 | Q17: 0.411 | R17: 0.097 | S17: 0.629 | T17: 0.017 | U17: 0.661 | V17: 0.252 | W17: 0.95 | X17: 0.45 | Y17: 0.023 | Z17: 0.217 | AA17: 0.167 | AB17: 0.002 | AC17: 0.594 | AD17: 0.6 | AE17: 0.07 | AF17: 0.167 | AG17: 0.064 | AH17: =PERCENTRANK($B16:$MD16, AH16) -> 0.629 | AI17: 0.138 | AJ17: 0.302 | AK17: 0.005 | AL17: 0.526 | AM17: 0.011 | AN17: 0.376 | AO17: 0 | AP17: 0.426 | AQ17: 0.835 | AR17: 0.252 | AS17: 0.15 | AT17: 0.261 | AU17: 0.038 | AV17: 0.473 | AW17: 0.652 | AX17: 0.738 | AY17: 0.264 | AZ17: 0.352 | BA17: 0.629 | BB17: 0.12 | BC17: 0.955 | BD17: 0.12 | BE17: 0.311 | BF17: 0.588 | BG17: 0.685 | BH17: 0.844 | BI17: 0.75 | BJ17: 0.432 | BK17: 0.217 | BL17: 0.367 | BM17: 0.167 | BN17: =PERCENTRANK($B16:$MD16, BN16) -> 0.673 | BO17: 0.902 | BP17: 0.023 | BQ17: 0.526 | BR17: 0.432 | BS17: 0.158 | BT17: 0.329 | BU17: 0.544 | BV17: 0.473 | BW17: 0.544 | BX17: 0.114 | BY17: 0.194 | BZ17: 0.232 | CA17: 0.197 | CB17: 0.185 | CC17: 0.776 | CD17: 0.379 | CE17: 0.652 | CF17: 0.041 | CG17: 0.352 | CH17: 0.085 | CI17: 0.3587058824 | CJ17: =PERCENTRANK($B16:$MD16, CJ16) -> 0.076 | CK17: 0.379 | CL17: 0.297 | CM17: 0.458 | CN17: 0.282 | CO17: 0.491 | CP17: 0.735 | CQ17: 0.491 | CR17: 0.791 | CS17: 0.864 | CT17: 0.788 | CU17: 0.047 | CV17: 0.432 | CW17: 0.311 | CX17: 0.782 | CY17: 0.352 | CZ17: 0.411 | DA17: 0.902 | DB17: 0.57 | DC17: 0.379 | DD17: 0.661 | DE17: 0.4 | DF17: 0.132 | DG17: 0.717 | DH17: 0.935 | DI17: 0.473 | DJ17: 0.844 | DK17: 0.341 | DL17: 0.07 | DM17: 0.076 | DN17: 0.608 | DO17: 0.282 | DP17: =PERCENTRANK($B16:$MD16, DP16) -> 0.329 | DQ17: 0.041 | DR17: 0.926 | DS17: 0.035 | DT17: 0.697 | DU17: 0.864 | DV17: 0.379 | DW17: 0.426 | DX17: 0.458 | DY17: 0.994 | DZ17: 0.608 | EA17: 0.967 | EB17: 0.738 | EC17: 0.87 | ED17: 0.205 | EE17: 0.57 | EF17: 0.6 | EG17: 0.241 | EH17: 0.629 | EI17: 0.935 | EJ17: 0.411 | EK17: 0.264 | EL17: 0.77 | EM17: 0.197 | EN17: 0.208 | EO17: 0.297 | EP17: 0.105 | EQ17: 0.282 | ER17: 0.411 | ES17: 0.014 | ET17: 0.367 | EU17: 0.085 | EV17: =PERCENTRANK($B16:$MD16, EV16) -> 0.685 | EW17: 0.4 | EX17: 0.32 | EY17: 0.629 | EZ17: 0.364 | FA17: 0.738 | FB17: 0.92 | FC17: 0.085 | FD17: 0.885 | FE17: 0.694 | FF17: 0.623 | FG17: 0.823 | FH17: 0.902 | FI17: 0.317 | FJ17: 0.217 | FK17: 0.155 | FL17: 0.341 | FM17: 0.282 | FN17: 0.032 | FO17: 0.264 | FP17: 0.4759047619 | FQ17: =PERCENTRANK($B16:$MD16, FQ16) -> 0.473 | FR17: 0.132 | FS17: 0.57 | FT17: 0.502 | FU17: 0.77 | FV17: 0.411 | FW17: 0.141 | FX17: 0.185 | FY17: 0.852 | FZ17: 0.329 | GA17: 0.891 | GB17: 0.623 | GC17: 0.458 | GD17: 0.75 | GE17: 0.273 | GF17: 0.697 | GG17: 0.432 | GH17: 0.341 | GI17: 0.823 | GJ17: 0.182 | GK17: 0.491 | GL17: 0.723 | GM17: 0.517 | GN17: 0.8 | GO17: 0.141 | GP17: 0.852 | GQ17: 0.167 | GR17: 0.32 | GS17: 0.973 | GT17: 0.352 | GU17: 0.652 | GV17: 0.502 | GW17: =PERCENTRANK($B16:$MD16, GW16) -> 0.15 | GX17: 0.852 | GY17: 0.526 | GZ17: 0.755 | HA17: 0.4 | HB17: 0.105 | HC17: 0.241 | HD17: 0.817 | HE17: 0.764 | HF17: 0.944 | HG17: 0.094 | HH17: 0.897 | HI17: 0.158 | HJ17: 0.955 | HK17: 0.473 | HL17: 0.629 | HM17: 0.723 | HN17: 0.808 | HO17: 0.12 | HP17: 0.961 | HQ17: 0.526 | HR17: 0.97 | HS17: 0.05 | HT17: 0.879 | HU17: 0.055 | HV17: 0.8 | HW17: 0.9 | HX17: 0.12 | HY17: 0.432 | HZ17: 0.502 | IA17: 0.491 | IB17: 0.167 | IC17: =PERCENTRANK($B16:$MD16, IC16) -> 0.208 | ID17: 0.997 | IE17: 0.817 | IF17: 0.723 | IG17: 0.282 | IH17: 0.988 | II17: 0.241 | IJ17: 0.367 | IK17: 0.608 | IL17: 0.679 | IM17: 0.844 | IN17: 0.835 | IO17: 0.185 | IP17: 0.502 | IQ17: 0.976 | IR17: 0.558 | IS17: 0.723 | IT17: 0.779 | IU17: 0.708 | IV17: 0.902 | IW17: 0.553702381 | IX17: =PERCENTRANK($B16:$MD16, IX16) -> 0.45 | IY17: 0.57 | IZ17: 0.558 | JA17: 0.052 | JB17: 0.302 | JC17: 0.961 | JD17: 0.944 | JE17: 0.697 | JF17: 0.102 | JG17: 0.558 | JH17: 1 | JI17: 0.738 | JJ17: 0.397 | JK17: 0.8 | JL17: 0.232 | JM17: 0.02 | JN17: 0.544 | JO17: 0.6 | JP17: 0.914 | JQ17: 0.067 | JR17: 0.526 | JS17: 0.979 | JT17: 0.823 | JU17: 0.023 | JV17: 0.982 | JW17: 0.608 | JX17: 0.888 | JY17: 0.458 | JZ17: 0.808 | KA17: 0.114 | KB17: 0.852 | KC17: 0.473 | KD17: =PERCENTRANK($B16:$MD16, KD16) -> 0.629 | KE17: 0.058 | KF17: 0.517 | KG17: 0.217 | KH17: 0.708 | KI17: 0.823 | KJ17: 0.076 | KK17: 0.661 | KL17: 0.197 | KM17: 0.252 | KN17: 0.45 | KO17: 0.935 | KP17: 0.755 | KQ17: 0.141 | KR17: 0.764 | KS17: 0.791 | KT17: 0.894 | KU17: 0.929 | KV17: 0.661 | KW17: 0.544 | KX17: 0.232 | KY17: 0.808 | KZ17: 0.32 | LA17: 0.302 | LB17: 0.87 | LC17: 0.526 | LD17: 0.982 | LE17: 0.502 | LF17: 0.697 | LG17: 0.835 | LH17: 0.673 | LI17: 0.708 | LJ17: =PERCENTRANK($B16:$MD16, LJ16) -> 0.379 | LK17: 0.882 | LL17: 0.629 | LM17: 0.755 | LN17: 0.95 | LO17: 0.991 | LP17: 0.685 | LQ17: 0.717 | LR17: 0.92 | LS17: 0.679 | LT17: 0.341 | LU17: 0.932 | LV17: 0.57 | LW17: 0.914 | LX17: 0.782 | LY17: 0.517 | LZ17: 0.273 | MA17: 0.608 | MB17: 0.544 | MC17: 0.791 | MD17: 0.57 | ME17: =AVERAGE(IX17:MD17) -> 0.5991294118 | MI17: 0.243 | MJ17: 0.495 | MK17: 0.747
A18: Assists Per Game | B18: 10.9 | C18: 10.6 | D18: 8.4 | E18: 10.8 | F18: 12.1 | G18: 9.3 | H18: 15.5 | I18: 8.6 | J18: 10.3 | K18: 14.1 | L18: 10.9 | M18: 12.1 | N18: 11.1 | O18: 10.9 | P18: 10.9 | Q18: 11.4 | R18: 10.8 | S18: 13 | T18: 10.8 | U18: 9.9 | V18: 13.4 | W18: 13.5 | X18: 12.6 | Y18: 11.3 | Z18: 9.7 | AA18: 11.4 | AB18: 14.9 | AC18: 13.8 | AD18: 8.3 | AE18: 13.8 | AF18: 12.5 | AG18: 11.3 | AH18: 13.1 | AI18: 10.7 | AJ18: 13.1 | AK18: 8.2 | AL18: 12.3 | AM18: 11.5 | AN18: 14.5 | AO18: 10.8 | AP18: 12.1 | AQ18: 13.5 | AR18: 11.6 | AS18: 12.5 | AT18: 11.7 | AU18: 10 | AV18: 11 | AW18: 13.6 | AX18: 10.6 | AY18: 11.9 | AZ18: 9.1 | BA18: 13 | BB18: 11.4 | BC18: 13.2 | BD18: 10.1 | BE18: 12.4 | BF18: 12.5 | BG18: 13.7 | BH18: 14.3 | BI18: 13.2 | BJ18: 13.8 | BK18: 13.1 | BL18: 12 | BM18: 10.9 | BN18: 14.1 | BO18: 13.4 | BP18: 13 | BQ18: 13 | BR18: 12.8 | BS18: 16 | BT18: 10.6 | BU18: 15 | BV18: 15 | BW18: 12.3 | BX18: 12.4 | BY18: 12.1 | BZ18: 12.5 | CA18: 14.1 | CB18: 11.7 | CC18: 12.3 | CD18: 10.8 | CE18: 12.4 | CF18: 9.5 | CG18: 12.8 | CH18: 11.8 | CI18: 12.02235294 | CJ18: 14.8 | CK18: 13.3 | CL18: 13.4 | CM18: 10.9 | CN18: 12 | CO18: 10.1 | CP18: 14.6 | CQ18: 14 | CR18: 11.1 | CS18: 14.6 | CT18: 13.2 | CU18: 10.4 | CV18: 10.8 | CW18: 13.3 | CX18: 9.3 | CY18: 13.7 | CZ18: 11.7 | DA18: 14 | DB18: 11.4 | DC18: 11.4 | DD18: 11.2 | DE18: 12.2 | DF18: 13.9 | DG18: 11.6 | DH18: 13.6 | DI18: 9.7 | DJ18: 12 | DK18: 12.1 | DL18: 14 | DM18: 14.5 | DN18: 11.2 | DO18: 12.2 | DP18: 12 | DQ18: 12 | DR18: 12.3 | DS18: 12.7 | DT18: 9.9 | DU18: 11.9 | DV18: 14.2 | DW18: 12.6 | DX18: 13.6 | DY18: 11.7 | DZ18: 12.4 | EA18: 12.6 | EB18: 12.8 | EC18: 11.3 | ED18: 12.5 | EE18: 12.1 | EF18: 11.6 | EG18: 13.1 | EH18: 12.1 | EI18: 13.3 | EJ18: 15.2 | EK18: 15.6 | EL18: 13.9 | EM18: 13.4 | EN18: 13 | EO18: 12.3 | EP18: 13.2 | EQ18: 15 | ER18: 14.4 | ES18: 12.8 | ET18: 10.2 | EU18: 10.5 | EV18: 13.2 | EW18: 12.6 | EX18: 12.2 | EY18: 10 | EZ18: 11.6 | FA18: 14.3 | FB18: 12.6 | FC18: 11.7 | FD18: 11.4 | FE18: 12.1 | FF18: 11.2 | FG18: 13.8 | FH18: 12 | FI18: 12.9 | FJ18: 10.9 | FK18: 12.8 | FL18: 13.5 | FM18: 12.4 | FN18: 12.4 | FO18: 14.3 | FP18: 12.50357143 | FQ18: 12.8 | FR18: 12.3 | FS18: 10.5 | FT18: 11.8 | FU18: 12.7 | FV18: 13.8 | FW18: 11.9 | FX18: 13.1 | FY18: 11.7 | FZ18: 14.2 | GA18: 13.4 | GB18: 13.5 | GC18: 15 | GD18: 13.7 | GE18: 14.5 | GF18: 12.7 | GG18: 16.1 | GH18: 11 | GI18: 13 | GJ18: 13.5 | GK18: 13.7 | GL18: 12.6 | GM18: 11.3 | GN18: 9.6 | GO18: 12.8 | GP18: 14.4 | GQ18: 12.7 | GR18: 14 | GS18: 16 | GT18: 12.8 | GU18: 12.2 | GV18: 13 | GW18: 11.9 | GX18: 13.3 | GY18: 14.5 | GZ18: 13.3 | HA18: 10.9 | HB18: 10.5 | HC18: 14.2 | HD18: 12.3 | HE18: 14.4 | HF18: 12.4 | HG18: 13.2 | HH18: 13.3 | HI18: 14.6 | HJ18: 12.6 | HK18: 12.4 | HL18: 13.6 | HM18: 13.1 | HN18: 14.2 | HO18: 12.3 | HP18: 16.5 | HQ18: 14.8 | HR18: 12.4 | HS18: 12.6 | HT18: 11.9 | HU18: 12.7 | HV18: 13.6 | HW18: 11 | HX18: 12 | HY18: 11.6 | HZ18: 11.1 | IA18: 14.9 | IB18: 12.4 | IC18: 15.3 | ID18: 13.3 | IE18: 11.9 | IF18: 14 | IG18: 10.5 | IH18: 13.7 | II18: 14.4 | IJ18: 11.4 | IK18: 15.1 | IL18: 13.9 | IM18: 14.9 | IN18: 13.7 | IO18: 16.4 | IP18: 13.1 | IQ18: 16 | IR18: 13.9 | IS18: 14.1 | IT18: 14.7 | IU18: 11.8 | IV18: 12.9 | IW18: 13.16428571 | IX18: 15.4 | IY18: 13.5 | IZ18: 13.1 | JA18: 10.9 | JB18: 15.8 | JC18: 13.5 | JD18: 11.4 | JE18: 13.8 | JF18: 13.1 | JG18: 12.3 | JH18: 13.7 | JI18: 12.7 | JJ18: 13.3 | JK18: 16.3 | JL18: 13.8 | JM18: 11.4 | JN18: 14 | JO18: 12.4 | JP18: 12.7 | JQ18: 11.5 | JR18: 12.8 | JS18: 13.6 | JT18: 11.3 | JU18: 12.8 | JV18: 14.6 | JW18: 12.4 | JX18: 17.8 | JY18: 13.8 | JZ18: 14.4 | KA18: 12.8 | KB18: 12.5 | KC18: 14.1 | KD18: 13.5 | KE18: 12.9 | KF18: 14.3 | KG18: 14.9 | KH18: 17.3 | KI18: 12.1 | KJ18: 15.6 | KK18: 12.2 | KL18: 14.2 | KM18: 14.4 | KN18: 15.4 | KO18: 13.8 | KP18: 14.7 | KQ18: 13.4 | KR18: 19.5 | KS18: 12.4 | KT18: 12.7 | KU18: 16.1 | KV18: 13.6 | KW18: 16.3 | KX18: 14 | KY18: 16 | KZ18: 14.4 | LA18: 13.4 | LB18: 13 | LC18: 12.5 | LD18: 12.4 | LE18: 11.8 | LF18: 12.7 | LG18: 18 | LH18: 13 | LI18: 14.1 | LJ18: 14.1 | LK18: 11.7 | LL18: 15.2 | LM18: 13.3 | LN18: 13.8 | LO18: 16.1 | LP18: 13.2 | LQ18: 15.4 | LR18: 11.3 | LS18: 13.8 | LT18: 18.3 | LU18: 15 | LV18: 15 | LW18: 15.1 | LX18: 17.3 | LY18: 15.8 | LZ18: 17.6 | MA18: 15.7 | MB18: 12.8 | MC18: 13.4 | MD18: 16.1 | ME18: 14.02470588 | MF18: Assists Per Game | MI18: 11.825 | MJ18: 12.8 | MK18: 13.975
B19: =PERCENTRANK($B18:$MD18, B18) -> 0.1 | C19: 0.07 | D19: 0.005 | E19: 0.082 | F19: 0.291 | G19: 0.014 | H19: 0.929 | I19: 0.008 | J19: 0.052 | K19: 0.773 | L19: 0.1 | M19: 0.291 | N19: 0.135 | O19: 0.1 | P19: 0.1 | Q19: 0.17 | R19: 0.082 | S19: 0.517 | T19: 0.082 | U19: 0.032 | V19: 0.62 | W19: 0.644 | X19: 0.423 | Y19: 0.152 | Z19: 0.026 | AA19: 0.17 | AB19: 0.876 | AC19: 0.708 | AD19: 0.002 | AE19: 0.708 | AF19: 0.4 | AG19: 0.152 | AH19: =PERCENTRANK($B18:$MD18, AH18) -> 0.544 | AI19: 0.079 | AJ19: 0.544 | AK19: 0 | AL19: 0.332 | AM19: 0.197 | AN19: 0.841 | AO19: 0.082 | AP19: 0.291 | AQ19: 0.644 | AR19: 0.202 | AS19: 0.4 | AT19: 0.217 | AU19: 0.038 | AV19: 0.126 | AW19: 0.667 | AX19: 0.07 | AY19: 0.25 | AZ19: 0.011 | BA19: 0.517 | BB19: 0.17 | BC19: 0.573 | BD19: 0.044 | BE19: 0.358 | BF19: 0.4 | BG19: 0.688 | BH19: 0.808 | BI19: 0.573 | BJ19: 0.708 | BK19: 0.544 | BL19: 0.267 | BM19: 0.1 | BN19: =PERCENTRANK($B18:$MD18, BN18) -> 0.773 | BO19: 0.62 | BP19: 0.517 | BQ19: 0.517 | BR19: 0.473 | BS19: 0.947 | BT19: 0.07 | BU19: 0.888 | BV19: 0.888 | BW19: 0.332 | BX19: 0.358 | BY19: 0.291 | BZ19: 0.4 | CA19: 0.773 | CB19: 0.217 | CC19: 0.332 | CD19: 0.082 | CE19: 0.358 | CF19: 0.02 | CG19: 0.473 | CH19: 0.238 | CI19: 0.3490117647 | CJ19: =PERCENTRANK($B18:$MD18, CJ18) -> 0.87 | CK19: 0.594 | CL19: 0.62 | CM19: 0.1 | CN19: 0.267 | CO19: 0.044 | CP19: 0.852 | CQ19: 0.752 | CR19: 0.135 | CS19: 0.852 | CT19: 0.573 | CU19: 0.055 | CV19: 0.082 | CW19: 0.594 | CX19: 0.014 | CY19: 0.688 | CZ19: 0.217 | DA19: 0.752 | DB19: 0.17 | DC19: 0.17 | DD19: 0.144 | DE19: 0.317 | DF19: 0.741 | DG19: 0.202 | DH19: 0.667 | DI19: 0.026 | DJ19: 0.267 | DK19: 0.291 | DL19: 0.752 | DM19: 0.841 | DN19: 0.144 | DO19: 0.317 | DP19: =PERCENTRANK($B18:$MD18, DP18) -> 0.267 | DQ19: 0.267 | DR19: 0.332 | DS19: 0.447 | DT19: 0.032 | DU19: 0.25 | DV19: 0.794 | DW19: 0.423 | DX19: 0.667 | DY19: 0.217 | DZ19: 0.358 | EA19: 0.423 | EB19: 0.473 | EC19: 0.152 | ED19: 0.4 | EE19: 0.291 | EF19: 0.202 | EG19: 0.544 | EH19: 0.291 | EI19: 0.594 | EJ19: 0.911 | EK19: 0.932 | EL19: 0.741 | EM19: 0.62 | EN19: 0.517 | EO19: 0.332 | EP19: 0.573 | EQ19: 0.888 | ER19: 0.82 | ES19: 0.473 | ET19: 0.05 | EU19: 0.058 | EV19: =PERCENTRANK($B18:$MD18, EV18) -> 0.573 | EW19: 0.423 | EX19: 0.317 | EY19: 0.038 | EZ19: 0.202 | FA19: 0.808 | FB19: 0.423 | FC19: 0.217 | FD19: 0.17 | FE19: 0.291 | FF19: 0.144 | FG19: 0.708 | FH19: 0.267 | FI19: 0.508 | FJ19: 0.1 | FK19: 0.473 | FL19: 0.644 | FM19: 0.358 | FN19: 0.358 | FO19: 0.808 | FP19: 0.4199880952 | FQ19: =PERCENTRANK($B18:$MD18, FQ18) -> 0.473 | FR19: 0.332 | FS19: 0.058 | FT19: 0.238 | FU19: 0.447 | FV19: 0.708 | FW19: 0.25 | FX19: 0.544 | FY19: 0.217 | FZ19: 0.794 | GA19: 0.62 | GB19: 0.644 | GC19: 0.888 | GD19: 0.688 | GE19: 0.841 | GF19: 0.447 | GG19: 0.958 | GH19: 0.126 | GI19: 0.517 | GJ19: 0.644 | GK19: 0.688 | GL19: 0.423 | GM19: 0.152 | GN19: 0.023 | GO19: 0.473 | GP19: 0.82 | GQ19: 0.447 | GR19: 0.752 | GS19: 0.947 | GT19: 0.473 | GU19: 0.317 | GV19: 0.517 | GW19: =PERCENTRANK($B18:$MD18, GW18) -> 0.25 | GX19: 0.594 | GY19: 0.841 | GZ19: 0.594 | HA19: 0.1 | HB19: 0.058 | HC19: 0.794 | HD19: 0.332 | HE19: 0.82 | HF19: 0.358 | HG19: 0.573 | HH19: 0.594 | HI19: 0.852 | HJ19: 0.423 | HK19: 0.358 | HL19: 0.667 | HM19: 0.544 | HN19: 0.794 | HO19: 0.332 | HP19: 0.979 | HQ19: 0.87 | HR19: 0.358 | HS19: 0.423 | HT19: 0.25 | HU19: 0.447 | HV19: 0.667 | HW19: 0.126 | HX19: 0.267 | HY19: 0.202 | HZ19: 0.135 | IA19: 0.876 | IB19: 0.358 | IC19: =PERCENTRANK($B18:$MD18, IC18) -> 0.917 | ID19: 0.594 | IE19: 0.25 | IF19: 0.752 | IG19: 0.058 | IH19: 0.688 | II19: 0.82 | IJ19: 0.17 | IK19: 0.905 | IL19: 0.741 | IM19: 0.876 | IN19: 0.688 | IO19: 0.976 | IP19: 0.544 | IQ19: 0.947 | IR19: 0.741 | IS19: 0.773 | IT19: 0.864 | IU19: 0.238 | IV19: 0.508 | IW19: 0.5399047619 | IX19: =PERCENTRANK($B18:$MD18, IX18) -> 0.92 | IY19: 0.644 | IZ19: 0.544 | JA19: 0.1 | JB19: 0.941 | JC19: 0.644 | JD19: 0.17 | JE19: 0.708 | JF19: 0.544 | JG19: 0.332 | JH19: 0.688 | JI19: 0.447 | JJ19: 0.594 | JK19: 0.97 | JL19: 0.708 | JM19: 0.17 | JN19: 0.752 | JO19: 0.358 | JP19: 0.447 | JQ19: 0.197 | JR19: 0.473 | JS19: 0.667 | JT19: 0.152 | JU19: 0.473 | JV19: 0.852 | JW19: 0.358 | JX19: 0.991 | JY19: 0.708 | JZ19: 0.82 | KA19: 0.473 | KB19: 0.4 | KC19: 0.773 | KD19: =PERCENTRANK($B18:$MD18, KD18) -> 0.644 | KE19: 0.508 | KF19: 0.808 | KG19: 0.876 | KH19: 0.982 | KI19: 0.291 | KJ19: 0.932 | KK19: 0.317 | KL19: 0.794 | KM19: 0.82 | KN19: 0.92 | KO19: 0.708 | KP19: 0.864 | KQ19: 0.62 | KR19: 1 | KS19: 0.358 | KT19: 0.447 | KU19: 0.958 | KV19: 0.667 | KW19: 0.97 | KX19: 0.752 | KY19: 0.947 | KZ19: 0.82 | LA19: 0.62 | LB19: 0.517 | LC19: 0.4 | LD19: 0.358 | LE19: 0.238 | LF19: 0.447 | LG19: 0.994 | LH19: 0.517 | LI19: 0.773 | LJ19: =PERCENTRANK($B18:$MD18, LJ18) -> 0.773 | LK19: 0.217 | LL19: 0.911 | LM19: 0.594 | LN19: 0.708 | LO19: 0.958 | LP19: 0.573 | LQ19: 0.92 | LR19: 0.152 | LS19: 0.708 | LT19: 0.997 | LU19: 0.888 | LV19: 0.888 | LW19: 0.905 | LX19: 0.982 | LY19: 0.941 | LZ19: 0.988 | MA19: 0.938 | MB19: 0.473 | MC19: 0.62 | MD19: 0.958 | ME19: 0.6585529412 | MI19: 0.243 | MJ19: 0.471 | MK19: 0.747
A20: Turn Overs Per Game | B20: 14.9 | C20: 16 | D20: 17 | E20: 16.3 | F20: 15.3 | G20: 16.5 | H20: 12.8 | I20: 14.7 | J20: 14.8 | K20: 14.9 | L20: 17 | M20: 13.8 | N20: 15.2 | O20: 15.6 | P20: 14.7 | Q20: 14.3 | R20: 13.8 | S20: 15.4 | T20: 16.1 | U20: 14 | V20: 14.8 | W20: 13.9 | X20: 15.5 | Y20: 14.9 | Z20: 13.8 | AA20: 13 | AB20: 15.6 | AC20: 13.7 | AD20: 15.5 | AE20: 12.5 | AF20: 15.8 | AG20: 14 | AH20: 12.8 | AI20: 17.2 | AJ20: 15.6 | AK20: 18.3 | AL20: 14.1 | AM20: 15 | AN20: 13.8 | AO20: 15.9 | AP20: 14.4 | AQ20: 15.7 | AR20: 14.6 | AS20: 15.7 | AT20: 15.3 | AU20: 13.3 | AV20: 14.1 | AW20: 15.4 | AX20: 12.9 | AY20: 14.2 | AZ20: 17.1 | BA20: 12 | BB20: 16.6 | BC20: 13.1 | BD20: 12.7 | BE20: 14.9 | BF20: 12.1 | BG20: 12 | BH20: 13.1 | BI20: 13.3 | BJ20: 14.4 | BK20: 16 | BL20: 14 | BM20: 12.3 | BN20: 15.1 | BO20: 11.1 | BP20: 15.4 | BQ20: 14 | BR20: 12.6 | BS20: 15.2 | BT20: 13.9 | BU20: 17.7 | BV20: 13.1 | BW20: 13.3 | BX20: 14.2 | BY20: 15.1 | BZ20: 13.4 | CA20: 13.1 | CB20: 13.9 | CC20: 13.8 | CD20: 13.7 | CE20: 16.5 | CF20: 10.9 | CG20: 12.7 | CH20: 14 | CI20: 14.47882353 | CJ20: 13.1 | CK20: 12.9 | CL20: 13 | CM20: 14.7 | CN20: 16.6 | CO20: 13.6 | CP20: 15.3 | CQ20: 13.2 | CR20: 13.9 | CS20: 14.1 | CT20: 13.9 | CU20: 17.2 | CV20: 13.6 | CW20: 14 | CX20: 14.7 | CY20: 15.4 | CZ20: 15.5 | DA20: 15.3 | DB20: 13.6 | DC20: 14.6 | DD20: 17.1 | DE20: 14.3 | DF20: 14.1 | DG20: 15.6 | DH20: 14.5 | DI20: 14 | DJ20: 15.3 | DK20: 13.4 | DL20: 13.7 | DM20: 15.3 | DN20: 15.3 | DO20: 14 | DP20: 12.8 | DQ20: 14 | DR20: 12.7 | DS20: 14.9 | DT20: 13.8 | DU20: 11 | DV20: 14.8 | DW20: 10.8 | DX20: 12.6 | DY20: 11.7 | DZ20: 11.7 | EA20: 12.3 | EB20: 14.9 | EC20: 10.6 | ED20: 13 | EE20: 10.3 | EF20: 13 | EG20: 16.3 | EH20: 14.8 | EI20: 13.8 | EJ20: 13.7 | EK20: 14.1 | EL20: 15 | EM20: 13.7 | EN20: 12.3 | EO20: 15.5 | EP20: 13.4 | EQ20: 16 | ER20: 13.9 | ES20: 15 | ET20: 12.5 | EU20: 13.6 | EV20: 15 | EW20: 11.1 | EX20: 14.5 | EY20: 12.8 | EZ20: 13.5 | FA20: 13.7 | FB20: 12.4 | FC20: 16.3 | FD20: 13.5 | FE20: 15.4 | FF20: 16.2 | FG20: 12.6 | FH20: 15 | FI20: 13.8 | FJ20: 14.8 | FK20: 11.2 | FL20: 13.7 | FM20: 13 | FN20: 15.5 | FO20: 11.9 | FP20: 13.91904762 | FQ20: 13.4 | FR20: 12.9 | FS20: 12.6 | FT20: 12.2 | FU20: 13.6 | FV20: 13 | FW20: 13.6 | FX20: 14.1 | FY20: 13 | FZ20: 13.6 | GA20: 12.3 | GB20: 12.7 | GC20: 15.7 | GD20: 15 | GE20: 13.5 | GF20: 12 | GG20: 14 | GH20: 12.2 | GI20: 12.5 | GJ20: 15.2 | GK20: 13.4 | GL20: 11.2 | GM20: 12.6 | GN20: 13 | GO20: 13.8 | GP20: 16.1 | GQ20: 11.8 | GR20: 13.9 | GS20: 13 | GT20: 12.1 | GU20: 14 | GV20: 15 | GW20: 15.7 | GX20: 12.5 | GY20: 13.4 | GZ20: 12.7 | HA20: 13.2 | HB20: 13.4 | HC20: 12 | HD20: 12.4 | HE20: 12.7 | HF20: 13.6 | HG20: 15.1 | HH20: 12.3 | HI20: 15 | HJ20: 11.5 | HK20: 14.7 | HL20: 15.1 | HM20: 13.9 | HN20: 12.8 | HO20: 13.3 | HP20: 13.8 | HQ20: 12.6 | HR20: 14 | HS20: 13.5 | HT20: 13.2 | HU20: 14 | HV20: 10.6 | HW20: 12 | HX20: 13.5 | HY20: 14.8 | HZ20: 10.5 | IA20: 13.6 | IB20: 14.2 | IC20: 12 | ID20: 11.4 | IE20: 12 | IF20: 12.9 | IG20: 13.3 | IH20: 14.5 | II20: 12.4 | IJ20: 14.7 | IK20: 13.5 | IL20: 14.3 | IM20: 16.7 | IN20: 12.8 | IO20: 15.3 | IP20: 14 | IQ20: 12 | IR20: 13.9 | IS20: 14.2 | IT20: 12.9 | IU20: 13.6 | IV20: 13.2 | IW20: 13.35952381 | IX20: 14.3 | IY20: 16.4 | IZ20: 15.2 | JA20: 15 | JB20: 15.4 | JC20: 11.7 | JD20: 11.7 | JE20: 13.6 | JF20: 10.8 | JG20: 13.2 | JH20: 10.8 | JI20: 13.8 | JJ20: 13.3 | JK20: 12.9 | JL20: 14.9 | JM20: 14.9 | JN20: 12.4 | JO20: 12.8 | JP20: 11.7 | JQ20: 12.5 | JR20: 12 | JS20: 12 | JT20: 11.1 | JU20: 12.9 | JV20: 13.4 | JW20: 11.6 | JX20: 12.6 | JY20: 14.1 | JZ20: 10.5 | KA20: 13.6 | KB20: 12.8 | KC20: 13.4 | KD20: 13.7 | KE20: 13.4 | KF20: 13.3 | KG20: 13.2 | KH20: 13.1 | KI20: 12.1 | KJ20: 14.1 | KK20: 13.6 | KL20: 14.7 | KM20: 12.4 | KN20: 10.3 | KO20: 12.9 | KP20: 10 | KQ20: 8.6 | KR20: 12.5 | KS20: 11.3 | KT20: 12.2 | KU20: 11.8 | KV20: 11.1 | KW20: 14.1 | KX20: 13.3 | KY20: 11.7 | KZ20: 12.5 | LA20: 13.1 | LB20: 14.1 | LC20: 12.8 | LD20: 12.9 | LE20: 16.5 | LF20: 13.1 | LG20: 12.5 | LH20: 13.7 | LI20: 12.9 | LJ20: 14.8 | LK20: 9 | LL20: 11.4 | LM20: 13.7 | LN20: 13.1 | LO20: 10.5 | LP20: 10.6 | LQ20: 12.2 | LR20: 11.6 | LS20: 12.6 | LT20: 13.7 | LU20: 12.1 | LV20: 11.8 | LW20: 14.2 | LX20: 12.7 | LY20: 13.5 | LZ20: 12 | MA20: 13.3 | MB20: 12.4 | MC20: 11.7 | MD20: 10.5 | ME20: 12.73176471 | MF20: Turn Overs Per Game | MI20: 12.6 | MJ20: 13.6 | MK20: 14.775
B21: =PERCENTRANK($B20:$MD20, B20) -> 0.773 | C21: 0.932 | D21: 0.979 | E21: 0.95 | F21: 0.847 | G21: 0.961 | H21: 0.273 | I21: 0.732 | J21: 0.752 | K21: 0.773 | L21: 0.979 | M21: 0.55 | N21: 0.835 | O21: 0.902 | P21: 0.732 | Q21: 0.697 | R21: 0.55 | S21: 0.87 | T21: 0.941 | U21: 0.611 | V21: 0.752 | W21: 0.582 | X21: 0.888 | Y21: 0.773 | Z21: 0.55 | AA21: 0.329 | AB21: 0.902 | AC21: 0.517 | AD21: 0.888 | AE21: 0.205 | AF21: 0.926 | AG21: 0.611 | AH21: =PERCENTRANK($B20:$MD20, AH20) -> 0.273 | AI21: 0.991 | AJ21: 0.902 | AK21: 1 | AL21: 0.652 | AM21: 0.797 | AN21: 0.55 | AO21: 0.929 | AP21: 0.708 | AQ21: 0.914 | AR21: 0.726 | AS21: 0.914 | AT21: 0.847 | AU21: 0.4 | AV21: 0.652 | AW21: 0.87 | AX21: 0.3 | AY21: 0.682 | AZ21: 0.985 | BA21: 0.117 | BB21: 0.97 | BC21: 0.355 | BD21: 0.252 | BE21: 0.773 | BF21: 0.15 | BG21: 0.117 | BH21: 0.355 | BI21: 0.4 | BJ21: 0.708 | BK21: 0.932 | BL21: 0.611 | BM21: 0.173 | BN21: =PERCENTRANK($B20:$MD20, BN20) -> 0.823 | BO21: 0.05 | BP21: 0.87 | BQ21: 0.611 | BR21: 0.229 | BS21: 0.835 | BT21: 0.582 | BU21: 0.997 | BV21: 0.355 | BW21: 0.4 | BX21: 0.682 | BY21: 0.823 | BZ21: 0.429 | CA21: 0.355 | CB21: 0.582 | CC21: 0.55 | CD21: 0.517 | CE21: 0.961 | CF21: 0.044 | CG21: 0.252 | CH21: 0.611 | CI21: 0.6485294118 | CJ21: =PERCENTRANK($B20:$MD20, CJ20) -> 0.355 | CK21: 0.3 | CL21: 0.329 | CM21: 0.732 | CN21: 0.97 | CO21: 0.479 | CP21: 0.847 | CQ21: 0.382 | CR21: 0.582 | CS21: 0.652 | CT21: 0.582 | CU21: 0.991 | CV21: 0.479 | CW21: 0.611 | CX21: 0.732 | CY21: 0.87 | CZ21: 0.888 | DA21: 0.847 | DB21: 0.479 | DC21: 0.726 | DD21: 0.985 | DE21: 0.697 | DF21: 0.652 | DG21: 0.902 | DH21: 0.717 | DI21: 0.611 | DJ21: 0.847 | DK21: 0.429 | DL21: 0.517 | DM21: 0.847 | DN21: 0.847 | DO21: 0.611 | DP21: =PERCENTRANK($B20:$MD20, DP20) -> 0.273 | DQ21: 0.611 | DR21: 0.252 | DS21: 0.773 | DT21: 0.55 | DU21: 0.047 | DV21: 0.752 | DW21: 0.035 | DX21: 0.229 | DY21: 0.085 | DZ21: 0.085 | EA21: 0.173 | EB21: 0.773 | EC21: 0.026 | ED21: 0.329 | EE21: 0.008 | EF21: 0.329 | EG21: 0.95 | EH21: 0.752 | EI21: 0.55 | EJ21: 0.517 | EK21: 0.652 | EL21: 0.797 | EM21: 0.517 | EN21: 0.173 | EO21: 0.888 | EP21: 0.429 | EQ21: 0.932 | ER21: 0.582 | ES21: 0.797 | ET21: 0.205 | EU21: 0.479 | EV21: =PERCENTRANK($B20:$MD20, EV20) -> 0.797 | EW21: 0.05 | EX21: 0.717 | EY21: 0.273 | EZ21: 0.458 | FA21: 0.517 | FB21: 0.188 | FC21: 0.95 | FD21: 0.458 | FE21: 0.87 | FF21: 0.947 | FG21: 0.229 | FH21: 0.797 | FI21: 0.55 | FJ21: 0.752 | FK21: 0.061 | FL21: 0.517 | FM21: 0.329 | FN21: 0.888 | FO21: 0.114 | FP21: 0.5536547619 | FQ21: =PERCENTRANK($B20:$MD20, FQ20) -> 0.429 | FR21: 0.3 | FS21: 0.229 | FT21: 0.161 | FU21: 0.479 | FV21: 0.329 | FW21: 0.479 | FX21: 0.652 | FY21: 0.329 | FZ21: 0.479 | GA21: 0.173 | GB21: 0.252 | GC21: 0.914 | GD21: 0.797 | GE21: 0.458 | GF21: 0.117 | GG21: 0.611 | GH21: 0.161 | GI21: 0.205 | GJ21: 0.835 | GK21: 0.429 | GL21: 0.061 | GM21: 0.229 | GN21: 0.329 | GO21: 0.55 | GP21: 0.941 | GQ21: 0.105 | GR21: 0.582 | GS21: 0.329 | GT21: 0.15 | GU21: 0.611 | GV21: 0.797 | GW21: =PERCENTRANK($B20:$MD20, GW20) -> 0.914 | GX21: 0.205 | GY21: 0.429 | GZ21: 0.252 | HA21: 0.382 | HB21: 0.429 | HC21: 0.117 | HD21: 0.188 | HE21: 0.252 | HF21: 0.479 | HG21: 0.823 | HH21: 0.173 | HI21: 0.797 | HJ21: 0.076 | HK21: 0.732 | HL21: 0.823 | HM21: 0.582 | HN21: 0.273 | HO21: 0.4 | HP21: 0.55 | HQ21: 0.229 | HR21: 0.611 | HS21: 0.458 | HT21: 0.382 | HU21: 0.611 | HV21: 0.026 | HW21: 0.117 | HX21: 0.458 | HY21: 0.752 | HZ21: 0.014 | IA21: 0.479 | IB21: 0.682 | IC21: =PERCENTRANK($B20:$MD20, IC20) -> 0.117 | ID21: 0.07 | IE21: 0.117 | IF21: 0.3 | IG21: 0.4 | IH21: 0.717 | II21: 0.188 | IJ21: 0.732 | IK21: 0.458 | IL21: 0.697 | IM21: 0.976 | IN21: 0.273 | IO21: 0.847 | IP21: 0.611 | IQ21: 0.117 | IR21: 0.582 | IS21: 0.682 | IT21: 0.3 | IU21: 0.479 | IV21: 0.382 | IW21: 0.431452381 | IX21: =PERCENTRANK($B20:$MD20, IX20) -> 0.697 | IY21: 0.958 | IZ21: 0.835 | JA21: 0.797 | JB21: 0.87 | JC21: 0.085 | JD21: 0.085 | JE21: 0.479 | JF21: 0.035 | JG21: 0.382 | JH21: 0.035 | JI21: 0.55 | JJ21: 0.4 | JK21: 0.3 | JL21: 0.773 | JM21: 0.773 | JN21: 0.188 | JO21: 0.273 | JP21: 0.085 | JQ21: 0.205 | JR21: 0.117 | JS21: 0.117 | JT21: 0.05 | JU21: 0.3 | JV21: 0.429 | JW21: 0.079 | JX21: 0.229 | JY21: 0.652 | JZ21: 0.014 | KA21: 0.479 | KB21: 0.273 | KC21: 0.429 | KD21: =PERCENTRANK($B20:$MD20, KD20) -> 0.517 | KE21: 0.429 | KF21: 0.4 | KG21: 0.382 | KH21: 0.355 | KI21: 0.15 | KJ21: 0.652 | KK21: 0.479 | KL21: 0.732 | KM21: 0.188 | KN21: 0.008 | KO21: 0.3 | KP21: 0.005 | KQ21: 0 | KR21: 0.205 | KS21: 0.067 | KT21: 0.161 | KU21: 0.105 | KV21: 0.05 | KW21: 0.652 | KX21: 0.4 | KY21: 0.085 | KZ21: 0.205 | LA21: 0.355 | LB21: 0.652 | LC21: 0.273 | LD21: 0.3 | LE21: 0.961 | LF21: 0.355 | LG21: 0.205 | LH21: 0.517 | LI21: 0.3 | LJ21: =PERCENTRANK($B20:$MD20, LJ20) -> 0.752 | LK21: 0.002 | LL21: 0.07 | LM21: 0.517 | LN21: 0.355 | LO21: 0.014 | LP21: 0.026 | LQ21: 0.161 | LR21: 0.079 | LS21: 0.229 | LT21: 0.517 | LU21: 0.15 | LV21: 0.105 | LW21: 0.682 | LX21: 0.252 | LY21: 0.458 | LZ21: 0.117 | MA21: 0.4 | MB21: 0.188 | MC21: 0.085 | MD21: 0.014 | ME21: 0.3246 | MI21: 0.231 | MJ21: 0.48 | MK21: 0.74475
B22: =AVERAGE(B21,B19,B17,B15,B13,B11) -> 0.2972 | C22: 0.2872 | D22: 0.273 | E22: 0.249 | F22: 0.4731666667 | G22: 0.2078333333 | H22: 0.5845 | I22: 0.3308 | J22: 0.2173333333 | K22: 0.4158333333 | L22: 0.255 | M22: 0.2731666667 | N22: 0.295 | O22: 0.2342 | P22: 0.3846666667 | Q22: 0.232 | R22: 0.151 | S22: 0.476 | T22: 0.2716666667 | U22: 0.301 | V22: 0.4388333333 | W22: 0.4541666667 | X22: 0.5055 | Y22: 0.2024 | Z22: 0.3608333333 | AA22: 0.2695 | AB22: 0.485 | AC22: 0.5511666667 | AD22: 0.3024 | AE22: 0.3546666667 | AF22: 0.475 | AG22: 0.2056666667 | AH22: =AVERAGE(AH21,AH19,AH17,AH15,AH13,AH11) -> 0.5136666667 | AI22: 0.2185 | AJ22: 0.3448333333 | AK22: 0.202 | AL22: 0.3576 | AM22: 0.183 | AN22: 0.4901666667 | AO22: 0.2081666667 | AP22: 0.4953333333 | AQ22: 0.6611666667 | AR22: 0.2583333333 | AS22: 0.2883333333 | AT22: 0.4096 | AU22: 0.1973333333 | AV22: 0.2966 | AW22: 0.5503333333 | AX22: 0.2465 | AY22: 0.3223333333 | AZ22: 0.2964 | BA22: 0.4568333333 | BB22: 0.2968333333 | BC22: 0.5196666667 | BD22: 0.1308333333 | BE22: 0.46 | BF22: 0.279 | BG22: 0.5466 | BH22: 0.5931666667 | BI22: 0.567 | BJ22: 0.5706666667 | BK22: 0.5276666667 | BL22: 0.3626666667 | BM22: 0.1954 | BN22: =AVERAGE(BN21,BN19,BN17,BN15,BN13,BN11) -> 0.7496666667 | BO22: 0.4156666667 | BP22: 0.3372 | BQ22: 0.5228333333 | BR22: 0.573 | BS22: 0.565 | BT22: 0.1973333333 | BU22: 0.7013333333 | BV22: 0.6546666667 | BW22: 0.4705 | BX22: 0.4413333333 | BY22: 0.332 | BZ22: 0.2332 | CA22: 0.4495 | CB22: 0.293 | CC22: 0.4244 | CD22: 0.2366 | CE22: 0.7828333333 | CF22: 0.0296 | CG22: 0.396 | CH22: 0.2696 | CI22: 0.3757235294 | CJ22: =AVERAGE(CJ21,CJ19,CJ17,CJ15,CJ13,CJ11) -> 0.6113333333 | CK22: 0.3145 | CL22: 0.4498333333 | CM22: 0.3055 | CN22: 0.4903333333 | CO22: 0.2444 | CP22: 0.7666666667 | CQ22: 0.5935 | CR22: 0.3845 | CS22: 0.7218 | CT22: 0.6813333333 | CU22: 0.2686666667 | CV22: 0.3681666667 | CW22: 0.5051666667 | CX22: 0.3783333333 | CY22: 0.7283333333 | CZ22: 0.4151666667 | DA22: 0.7993333333 | DB22: 0.435 | DC22: 0.3018333333 | DD22: 0.4796 | DE22: 0.3756 | DF22: 0.4256666667 | DG22: 0.4882 | DH22: 0.6241666667 | DI22: 0.2252 | DJ22: 0.5431666667 | DK22: 0.335 | DL22: 0.4348 | DM22: 0.6601666667 | DN22: 0.321 | DO22: 0.3255 | DP22: =AVERAGE(DP21,DP19,DP17,DP15,DP13,DP11) -> 0.2701666667 | DQ22: 0.2188 | DR22: 0.5891666667 | DS22: 0.369 | DT22: 0.3081666667 | DU22: 0.3973333333 | DV22: 0.6568333333 | DW22: 0.3376666667 | DX22: 0.4208333333 | DY22: 0.5546666667 | DZ22: 0.437 | EA22: 0.5988333333 | EB22: 0.6895 | EC22: 0.2773333333 | ED22: 0.3731666667 | EE22: 0.3656666667 | EF22: 0.3335 | EG22: 0.5626666667 | EH22: 0.5476 | EI22: 0.7401666667 | EJ22: 0.5846666667 | EK22: 0.7558333333 | EL22: 0.7698333333 | EM22: 0.515 | EN22: 0.3136666667 | EO22: 0.565 | EP22: 0.3411666667 | EQ22: 0.6605 | ER22: 0.5326666667 | ES22: 0.3598333333 | ET22: 0.2782 | EU22: 0.3306 | EV22: =AVERAGE(EV21,EV19,EV17,EV15,EV13,EV11) -> 0.572 | EW22: 0.4503333333 | EX22: 0.5042 | EY22: 0.2205 | EZ22: 0.2975 | FA22: 0.7205 | FB22: 0.5015 | FC22: 0.415 | FD22: 0.61 | FE22: 0.4873333333 | FF22: 0.4866 | FG22: 0.7383333333 | FH22: 0.5498333333 | FI22: 0.6324 | FJ22: 0.2863333333 | FK22: 0.3945 | FL22: 0.3751666667 | FM22: 0.2924 | FN22: 0.5356666667 | FO22: 0.3861666667 | FP22: 0.4703936508 | FQ22: =AVERAGE(FQ21,FQ19,FQ17,FQ15,FQ13,FQ11) -> 0.6395 | FR22: 0.3556 | FS22: 0.236 | FT22: 0.3945 | FU22: 0.4401666667 | FV22: 0.3961666667 | FW22: 0.2691666667 | FX22: 0.3608333333 | FY22: 0.3925 | FZ22: 0.539 | GA22: 0.5471666667 | GB22: 0.5248 | GC22: 0.8588333333 | GD22: 0.7698333333 | GE22: 0.6656666667 | GF22: 0.5653333333 | GG22: 0.7325 | GH22: 0.1441666667 | GI22: 0.6082 | GJ22: 0.4183333333 | GK22: 0.6358333333 | GL22: 0.482 | GM22: 0.3721666667 | GN22: 0.3603333333 | GO22: 0.2881666667 | GP22: 0.7463333333 | GQ22: 0.289 | GR22: 0.5768333333 | GS22: 0.8 | GT22: 0.32 | GU22: 0.4648333333 | GV22: 0.4955 | GW22: =AVERAGE(GW21,GW19,GW17,GW15,GW13,GW11) -> 0.4098333333 | GX22: 0.6751666667 | GY22: 0.585 | GZ22: 0.5882 | HA22: 0.3244 | HB22: 0.401 | HC22: 0.5581666667 | HD22: 0.3961666667 | HE22: 0.6793333333 | HF22: 0.4168333333 | HG22: 0.5666666667 | HH22: 0.5895 | HI22: 0.5643333333 | HJ22: 0.4936666667 | HK22: 0.5311666667 | HL22: 0.6795 | HM22: 0.5036666667 | HN22: 0.5984 | HO22: 0.2018333333 | HP22: 0.8486666667 | HQ22: 0.6468333333 | HR22: 0.4836666667 | HS22: 0.3243333333 | HT22: 0.507 | HU22: 0.2676666667 | HV22: 0.4588333333 | HW22: 0.3305 | HX22: 0.3743333333 | HY22: 0.3685 | HZ22: 0.1608333333 | IA22: 0.6453333333 | IB22: 0.5135 | IC22: =AVERAGE(IC21,IC19,IC17,IC15,IC13,IC11) -> 0.4836666667 | ID22: 0.6303333333 | IE22: 0.4331666667 | IF22: 0.6745 | IG22: 0.3271666667 | IH22: 0.679 | II22: 0.5151666667 | IJ22: 0.5508333333 | IK22: 0.5796666667 | IL22: 0.6598333333 | IM22: 0.906 | IN22: 0.6081666667 | IO22: 0.6893333333 | IP22: 0.5838333333 | IQ22: 0.748 | IR22: 0.6618333333 | IS22: 0.7053333333 | IT22: 0.7581666667 | IU22: 0.3995 | IV22: 0.648 | IW22: 0.5193285714 | IX22: =AVERAGE(IX21,IX19,IX17,IX15,IX13,IX11) -> 0.6535 | IY22: 0.734 | IZ22: 0.6956 | JA22: 0.2354 | JB22: 0.6226666667 | JC22: 0.647 | JD22: 0.401 | JE22: 0.6246666667 | JF22: 0.3541666667 | JG22: 0.4838333333 | JH22: 0.7531666667 | JI22: 0.4681666667 | JJ22: 0.4796666667 | JK22: 0.7143333333 | JL22: 0.7218 | JM22: 0.35 | JN22: 0.6021666667 | JO22: 0.3003333333 | JP22: 0.5315 | JQ22: 0.2343333333 | JR22: 0.549 | JS22: 0.6216666667 | JT22: 0.479 | JU22: 0.3106666667 | JV22: 0.644 | JW22: 0.3215 | JX22: 0.8225 | JY22: 0.7156666667 | JZ22: 0.7356666667 | KA22: 0.5386666667 | KB22: 0.5501666667 | KC22: 0.6366666667 | KD22: =AVERAGE(KD21,KD19,KD17,KD15,KD13,KD11) -> 0.6721666667 | KE22: 0.4701666667 | KF22: 0.658 | KG22: 0.4921666667 | KH22: 0.718 | KI22: 0.5308333333 | KJ22: 0.6878 | KK22: 0.4194 | KL22: 0.528 | KM22: 0.5081666667 | KN22: 0.6011666667 | KO22: 0.7451666667 | KP22: 0.4796666667 | KQ22: 0.4586666667 | KR22: 0.8181666667 | KS22: 0.4195 | KT22: 0.5133333333 | KU22: 0.7412 | KV22: 0.5548333333 | KW22: 0.7768333333 | KX22: 0.6295 | KY22: 0.6848333333 | KZ22: 0.6323333333 | LA22: 0.449 | LB22: 0.811 | LC22: 0.482 | LD22: 0.706 | LE22: 0.5353333333 | LF22: 0.523 | LG22: 0.8348333333 | LH22: 0.7256666667 | LI22: 0.736 | LJ22: =AVERAGE(LJ21,LJ19,LJ17,LJ15,LJ13,LJ11) -> 0.5305 | LK22: 0.3858333333 | LL22: 0.723 | LM22: 0.738 | LN22: 0.8193333333 | LO22: 0.8063333333 | LP22: 0.482 | LQ22: 0.7645 | LR22: 0.4655 | LS22: 0.5968333333 | LT22: 0.7496666667 | LU22: 0.7861666667 | LV22: 0.6808 | LW22: 0.8698333333 | LX22: 0.704 | LY22: 0.719 | LZ22: 0.6135 | MA22: 0.702 | MB22: 0.6553333333 | MC22: 0.711 | MD22: 0.6266666667 | ME22: 0.6024117647 | MI22: 0.3510666667 | MJ22: 0.4886666667 | MK22: 0.6311666667
A23: Overall Offensive Skill Set % Tile Ranking | B23: =PERCENTRANK($B22:$MD22,B22) -> 0.161 | C23: 0.132 | D23: 0.114 | E23: 0.085 | F23: 0.452 | G23: 0.038 | H23: 0.679 | I23: 0.223 | J23: 0.044 | K23: 0.364 | L23: 0.088 | M23: 0.117 | N23: 0.15 | O23: 0.064 | P23: 0.311 | Q23: 0.058 | R23: 0.008 | S23: 0.458 | T23: 0.111 | U23: 0.17 | V23: 0.4 | W23: 0.42 | X23: 0.532 | Y23: 0.032 | Z23: 0.267 | AA23: 0.102 | AB23: 0.491 | AC23: 0.629 | AD23: 0.176 | AE23: 0.252 | AF23: 0.455 | AG23: 0.035 | AH23: =PERCENTRANK($B22:$MD22,AH22) -> 0.547 | AI23: 0.047 | AJ23: 0.244 | AK23: 0.029 | AL23: 0.258 | AM23: 0.014 | AN23: 0.502 | AO23: 0.041 | AP23: 0.514 | AQ23: 0.805 | AR23: 0.091 | AS23: 0.138 | AT23: 0.35 | AU23: 0.023 | AV23: 0.155 | AW23: 0.623 | AX23: 0.082 | AY23: 0.202 | AZ23: 0.152 | BA23: 0.423 | BB23: 0.158 | BC23: 0.558 | BD23: 0.002 | BE23: 0.432 | BF23: 0.126 | BG23: 0.605 | BH23: 0.697 | BI23: 0.658 | BJ23: 0.661 | BK23: 0.57 | BL23: 0.273 | BM23: 0.017 | BN23: =PERCENTRANK($B22:$MD22,BN22) -> 0.935 | BO23: 0.361 | BP23: 0.235 | BQ23: 0.561 | BR23: 0.667 | BS23: 0.647 | BT23: 0.02 | BU23: 0.852 | BV23: 0.785 | BW23: 0.45 | BX23: 0.405 | BY23: 0.226 | BZ23: 0.061 | CA23: 0.411 | CB23: 0.147 | CC23: 0.382 | CD23: 0.076 | CE23: 0.961 | CF23: 0 | CG23: 0.329 | CH23: 0.105 | CI23: 0.3086 | CJ23: =PERCENTRANK($B22:$MD22,CJ22) -> 0.726 | CK23: 0.191 | CL23: 0.414 | CM23: 0.179 | CN23: 0.505 | CO23: 0.079 | CP23: 0.95 | CQ23: 0.7 | CR23: 0.308 | CS23: 0.888 | CT23: 0.835 | CU23: 0.097 | CV23: 0.279 | CW23: 0.529 | CX23: 0.305 | CY23: 0.897 | CZ23: 0.358 | DA23: 0.967 | DB23: 0.394 | DC23: 0.173 | DD23: 0.464 | DE23: 0.3 | DF23: 0.385 | DG23: 0.5 | DH23: 0.738 | DI23: 0.055 | DJ23: 0.602 | DK23: 0.232 | DL23: 0.391 | DM23: 0.8 | DN23: 0.197 | DO23: 0.211 | DP23: =PERCENTRANK($B22:$MD22,DP22) -> 0.108 | DQ23: 0.05 | DR23: 0.691 | DS23: 0.285 | DT23: 0.182 | DU23: 0.338 | DV23: 0.791 | DW23: 0.238 | DX23: 0.379 | DY23: 0.632 | DZ23: 0.397 | EA23: 0.708 | EB23: 0.847 | EC23: 0.12 | ED23: 0.291 | EE23: 0.276 | EF23: 0.229 | EG23: 0.641 | EH23: 0.611 | EI23: 0.917 | EJ23: 0.682 | EK23: 0.941 | EL23: 0.952 | EM23: 0.55 | EN23: 0.188 | EO23: 0.647 | EP23: 0.241 | EQ23: 0.802 | ER23: 0.588 | ES23: 0.261 | ET23: 0.123 | EU23: 0.22 | EV23: =PERCENTRANK($B22:$MD22,EV22) -> 0.664 | EW23: 0.417 | EX23: 0.526 | EY23: 0.052 | EZ23: 0.164 | FA23: 0.882 | FB23: 0.52 | FC23: 0.355 | FD23: 0.723 | FE23: 0.497 | FF23: 0.494 | FG23: 0.914 | FH23: 0.617 | FI23: 0.755 | FJ23: 0.129 | FK23: 0.323 | FL23: 0.297 | FM23: 0.144 | FN23: 0.594 | FO23: 0.317 | FP23: 0.463797619 | FQ23: =PERCENTRANK($B22:$MD22,FQ22) -> 0.764 | FR23: 0.255 | FS23: 0.073 | FT23: 0.323 | FU23: 0.402 | FV23: 0.332 | FW23: 0.1 | FX23: 0.267 | FY23: 0.32 | FZ23: 0.6 | GA23: 0.608 | GB23: 0.567 | GC23: 0.994 | GD23: 0.952 | GE23: 0.811 | GF23: 0.652 | GG23: 0.9 | GH23: 0.005 | GI23: 0.72 | GJ23: 0.37 | GK23: 0.758 | GL23: 0.473 | GM23: 0.288 | GN23: 0.264 | GO23: 0.135 | GP23: 0.926 | GQ23: 0.141 | GR23: 0.67 | GS23: 0.97 | GT23: 0.194 | GU23: 0.435 | GV23: 0.517 | GW23: =PERCENTRANK($B22:$MD22,GW22) -> 0.352 | GX23: 0.82 | GY23: 0.685 | GZ23: 0.688 | HA23: 0.208 | HB23: 0.344 | HC23: 0.638 | HD23: 0.332 | HE23: 0.826 | HF23: 0.367 | HG23: 0.655 | HH23: 0.694 | HI23: 0.644 | HJ23: 0.511 | HK23: 0.582 | HL23: 0.829 | HM23: 0.523 | HN23: 0.705 | HO23: 0.026 | HP23: 0.991 | HQ23: 0.773 | HR23: 0.482 | HS23: 0.205 | HT23: 0.535 | HU23: 0.094 | HV23: 0.429 | HW23: 0.217 | HX23: 0.294 | HY23: 0.282 | HZ23: 0.011 | IA23: 0.77 | IB23: 0.544 | IC23: =PERCENTRANK($B22:$MD22,IC22) -> 0.485 | ID23: 0.75 | IE23: 0.388 | IF23: 0.817 | IG23: 0.214 | IH23: 0.823 | II23: 0.552 | IJ23: 0.626 | IK23: 0.673 | IL23: 0.797 | IM23: 1 | IN23: 0.717 | IO23: 0.844 | IP23: 0.676 | IQ23: 0.929 | IR23: 0.808 | IS23: 0.861 | IT23: 0.944 | IU23: 0.341 | IV23: 0.779 | IW23: 0.5460238095 | IX23: =PERCENTRANK($B22:$MD22,IX22) -> 0.782 | IY23: 0.902 | IZ23: 0.85 | JA23: 0.07 | JB23: 0.735 | JC23: 0.776 | JD23: 0.344 | JE23: 0.741 | JF23: 0.25 | JG23: 0.488 | JH23: 0.938 | JI23: 0.441 | JJ23: 0.467 | JK23: 0.87 | JL23: 0.885 | JM23: 0.247 | JN23: 0.714 | JO23: 0.167 | JP23: 0.585 | JQ23: 0.067 | JR23: 0.614 | JS23: 0.732 | JT23: 0.461 | JU23: 0.185 | JV23: 0.767 | JW23: 0.2 | JX23: 0.985 | JY23: 0.873 | JZ23: 0.905 | KA23: 0.597 | KB23: 0.62 | KC23: 0.761 | KD23: =PERCENTRANK($B22:$MD22,KD22) -> 0.814 | KE23: 0.444 | KF23: 0.794 | KG23: 0.508 | KH23: 0.876 | KI23: 0.579 | KJ23: 0.841 | KK23: 0.373 | KL23: 0.573 | KM23: 0.538 | KN23: 0.711 | KO23: 0.923 | KP23: 0.47 | KQ23: 0.426 | KR23: 0.979 | KS23: 0.376 | KT23: 0.541 | KU23: 0.92 | KV23: 0.635 | KW23: 0.958 | KX23: 0.747 | KY23: 0.838 | KZ23: 0.752 | LA23: 0.408 | LB23: 0.976 | LC23: 0.473 | LD23: 0.864 | LE23: 0.591 | LF23: 0.564 | LG23: 0.988 | LH23: 0.894 | LI23: 0.908 | LJ23: =PERCENTRANK($B22:$MD22,LJ22) -> 0.576 | LK23: 0.314 | LL23: 0.891 | LM23: 0.911 | LN23: 0.982 | LO23: 0.973 | LP23: 0.473 | LQ23: 0.947 | LR23: 0.438 | LS23: 0.702 | LT23: 0.932 | LU23: 0.964 | LV23: 0.832 | LW23: 0.997 | LX23: 0.858 | LY23: 0.879 | LZ23: 0.729 | MA23: 0.855 | MB23: 0.788 | MC23: 0.867 | MD23: 0.744 | ME23: 0.6818 | MF23: Overall Offensive Skill Set % Tile Ranking | MI23: 0.24975 | MJ23: 0.4995 | MK23: 0.74925
A24: Defensive Rebounds Per Game | B24: 30.3 | C24: 37.7 | D24: 32.9 | E24: 34.4 | F24: 31.4 | G24: 35.6 | H24: 34.2 | I24: 30.3 | J24: 34.6 | K24: 32.7 | L24: 35.3 | M24: 29.4 | N24: 33.4 | O24: 36.3 | P24: 35 | Q24: 30.5 | R24: 32.7 | S24: 31.8 | T24: 36.5 | U24: 32.3 | V24: 32.9 | W24: 34.9 | X24: 36 | Y24: 34 | Z24: 33.6 | AA24: 31.1 | AB24: 37.9 | AC24: 33.3 | AD24: 33.1 | AE24: 32.1 | AF24: 28.1 | AG24: 37 | AH24: 34.5 | AI24: 36.6 | AJ24: 28.7 | AK24: 35.4 | AL24: 30.9 | AM24: 35 | AN24: 39.1 | AO24: 39.6 | AP24: 32.4 | AQ24: 31.8 | AR24: 34.7 | AS24: 30.2 | AT24: 34.6 | AU24: 33.4 | AV24: 33.2 | AW24: 30.4 | AX24: 31.1 | AY24: 36.4 | AZ24: 35 | BA24: 33.4 | BB24: 32.8 | BC24: 32 | BD24: 32.8 | BE24: 30.8 | BF24: 32.4 | BG24: 34.5 | BH24: 35.3 | BI24: 33.2 | BJ24: 34.4 | BK24: 36.8 | BL24: 30.4 | BM24: 33.6 | BN24: 36.2 | BO24: 33.7 | BP24: 35.3 | BQ24: 34.3 | BR24: 34.1 | BS24: 37.3 | BT24: 29 | BU24: 36.5 | BV24: 34.5 | BW24: 28.2 | BX24: 34.7 | BY24: 34.3 | BZ24: 36.5 | CA24: 32.3 | CB24: 31.3 | CC24: 33.7 | CD24: 32.9 | CE24: 34.3 | CF24: 27.1 | CG24: 35.6 | CH24: 32.6 | CI24: 33.54235294 | CJ24: 34.9 | CK24: 33.9 | CL24: 31.7 | CM24: 37.4 | CN24: 31.7 | CO24: 33.9 | CP24: 32.3 | CQ24: 34.2 | CR24: 34.2 | CS24: 32.3 | CT24: 33.7 | CU24: 34.6 | CV24: 35.5 | CW24: 37.2 | CX24: 32.4 | CY24: 35.1 | CZ24: 35.7 | DA24: 33.9 | DB24: 29.8 | DC24: 29.6 | DD24: 30.6 | DE24: 36.4 | DF24: 31.3 | DG24: 33.3 | DH24: 33.6 | DI24: 31.1 | DJ24: 34.4 | DK24: 33.2 | DL24: 35.2 | DM24: 35.8 | DN24: 35.4 | DO24: 36.8 | DP24: 28.4 | DQ24: 38.3 | DR24: 34.7 | DS24: 36.9 | DT24: 28.5 | DU24: 29.3 | DV24: 31.3 | DW24: 34.4 | DX24: 39.3 | DY24: 33.2 | DZ24: 34.2 | EA24: 29.6 | EB24: 35.9 | EC24: 31.5 | ED24: 34.7 | EE24: 30.8 | EF24: 32.9 | EG24: 36.2 | EH24: 39.8 | EI24: 32.5 | EJ24: 33.1 | EK24: 35.5 | EL24: 33.6 | EM24: 31 | EN24: 33.5 | EO24: 31.7 | EP24: 36 | EQ24: 37.8 | ER24: 34.6 | ES24: 35.6 | ET24: 35.9 | EU24: 34.6 | EV24: 38.2 | EW24: 29.6 | EX24: 33.7 | EY24: 31.2 | EZ24: 34.6 | FA24: 33 | FB24: 34.5 | FC24: 38.5 | FD24: 35 | FE24: 31.9 | FF24: 39.7 | FG24: 33.2 | FH24: 31.1 | FI24: 38.3 | FJ24: 35.4 | FK24: 32.4 | FL24: 32.7 | FM24: 33.4 | FN24: 34.3 | FO24: 33.7 | FP24: 33.93809524 | FQ24: 35.9 | FR24: 43.4 | FS24: 33.2 | FT24: 34.1 | FU24: 34.8 | FV24: 29.1 | FW24: 34.3 | FX24: 36 | FY24: 32.6 | FZ24: 36.1 | GA24: 35.1 | GB24: 37.1 | GC24: 37.1 | GD24: 33.9 | GE24: 34.3 | GF24: 33 | GG24: 34.7 | GH24: 34.7 | GI24: 34.4 | GJ24: 37.7 | GK24: 33.3 | GL24: 32.3 | GM24: 37.2 | GN24: 37.8 | GO24: 34.5 | GP24: 35.9 | GQ24: 36.1 | GR24: 33.6 | GS24: 29.3 | GT24: 32.7 | GU24: 35.4 | GV24: 34.4 | GW24: 36.4 | GX24: 33.8 | GY24: 31.1 | GZ24: 39.6 | HA24: 34.4 | HB24: 32.5 | HC24: 34.4 | HD24: 33 | HE24: 34.8 | HF24: 30.3 | HG24: 36.4 | HH24: 34.7 | HI24: 33.5 | HJ24: 30.1 | HK24: 34.5 | HL24: 34 | HM24: 35.1 | HN24: 37.5 | HO24: 35.5 | HP24: 34.8 | HQ24: 38.4 | HR24: 39.7 | HS24: 34.8 | HT24: 35.1 | HU24: 40 | HV24: 34.8 | HW24: 33 | HX24: 36 | HY24: 34.9 | HZ24: 33.3 | IA24: 34.4 | IB24: 37.3 | IC24: 31.2 | ID24: 36 | IE24: 34 | IF24: 32.7 | IG24: 36.4 | IH24: 35 | II24: 33.2 | IJ24: 36.2 | IK24: 37.2 | IL24: 37.8 | IM24: 38.9 | IN24: 30.2 | IO24: 40.8 | IP24: 36.3 | IQ24: 26.4 | IR24: 32.9 | IS24: 32.8 | IT24: 33.7 | IU24: 35.6 | IV24: 34.7 | IW24: 34.81071429 | IX24: 34.5 | IY24: 39.3 | IZ24: 36.2 | JA24: 33.3 | JB24: 39.4 | JC24: 35.9 | JD24: 29.1 | JE24: 31.9 | JF24: 36.6 | JG24: 37 | JH24: 35.2 | JI24: 32.8 | JJ24: 35 | JK24: 37.3 | JL24: 39.9 | JM24: 38.1 | JN24: 35.9 | JO24: 37.2 | JP24: 35.2 | JQ24: 37.3 | JR24: 36.4 | JS24: 38.9 | JT24: 31.4 | JU24: 39.8 | JV24: 36.1 | JW24: 34.4 | JX24: 36 | JY24: 35.8 | JZ24: 34.7 | KA24: 36.7 | KB24: 36.2 | KC24: 37.1 | KD24: 34 | KE24: 40.1 | KF24: 36.8 | KG24: 37.9 | KH24: 39 | KI24: 34.9 | KJ24: 35.1 | KK24: 34 | KL24: 38.1 | KM24: 35.6 | KN24: 29.8 | KO24: 31.9 | KP24: 34.4 | KQ24: 33.3 | KR24: 35.2 | KS24: 32.7 | KT24: 32.8 | KU24: 34.8 | KV24: 32.9 | KW24: 38.4 | KX24: 35.1 | KY24: 36.7 | KZ24: 36.4 | LA24: 38 | LB24: 33.6 | LC24: 37.3 | LD24: 31.3 | LE24: 37.6 | LF24: 35.1 | LG24: 35.7 | LH24: 34.8 | LI24: 34.5 | LJ24: 38.8 | LK24: 34.4 | LL24: 36.2 | LM24: 37.1 | LN24: 34.8 | LO24: 32.4 | LP24: 31.1 | LQ24: 34.6 | LR24: 36.8 | LS24: 36.1 | LT24: 38.7 | LU24: 37.7 | LV24: 36.4 | LW24: 36.5 | LX24: 35.2 | LY24: 37.3 | LZ24: 45.9 | MA24: 39.1 | MB24: 37 | MC24: 39.2 | MD24: 35.5 | ME24: 35.87294118 | MF24: Defensive Rebounds Per Game | MI24: 32.9 | MJ24: 34.6 | MK24: 36.2
B25: =PERCENTRANK($B24:$MD24,B24) -> 0.061 | C25: 0.885 | D25: 0.241 | E25: 0.438 | F25: 0.129 | G25: 0.667 | H25: 0.408 | I25: 0.061 | J25: 0.497 | K25: 0.208 | L25: 0.635 | M25: 0.035 | N25: 0.314 | O25: 0.758 | P25: 0.582 | Q25: 0.076 | R25: 0.208 | S25: 0.147 | T25: 0.788 | U25: 0.167 | V25: 0.241 | W25: 0.57 | X25: 0.711 | Y25: 0.388 | Z25: 0.335 | AA25: 0.094 | AB25: 0.902 | AC25: 0.297 | AD25: 0.27 | AE25: 0.164 | AF25: 0.005 | AG25: 0.826 | AH25: =PERCENTRANK($B24:$MD24,AH24) -> 0.473 | AI25: 0.8 | AJ25: 0.017 | AK25: 0.644 | AL25: 0.088 | AM25: 0.582 | AN25: 0.95 | AO25: 0.967 | AP25: 0.182 | AQ25: 0.147 | AR25: 0.517 | AS25: 0.055 | AT25: 0.497 | AU25: 0.314 | AV25: 0.276 | AW25: 0.07 | AX25: 0.094 | AY25: 0.764 | AZ25: 0.582 | BA25: 0.314 | BB25: 0.226 | BC25: 0.161 | BD25: 0.226 | BE25: 0.082 | BF25: 0.182 | BG25: 0.473 | BH25: 0.635 | BI25: 0.276 | BJ25: 0.438 | BK25: 0.811 | BL25: 0.07 | BM25: 0.335 | BN25: =PERCENTRANK($B24:$MD24,BN24) -> 0.741 | BO25: 0.352 | BP25: 0.635 | BQ25: 0.42 | BR25: 0.402 | BS25: 0.858 | BT25: 0.02 | BU25: 0.788 | BV25: 0.473 | BW25: 0.008 | BX25: 0.517 | BY25: 0.42 | BZ25: 0.788 | CA25: 0.167 | CB25: 0.117 | CC25: 0.352 | CD25: 0.241 | CE25: 0.42 | CF25: 0.002 | CG25: 0.667 | CH25: 0.202 | CI25: 0.3876 | CJ25: =PERCENTRANK($B24:$MD24,CJ24) -> 0.57 | CK25: 0.373 | CL25: 0.138 | CM25: 0.876 | CN25: 0.138 | CO25: 0.373 | CP25: 0.167 | CQ25: 0.408 | CR25: 0.408 | CS25: 0.167 | CT25: 0.352 | CU25: 0.497 | CV25: 0.655 | CW25: 0.847 | CX25: 0.182 | CY25: 0.6 | CZ25: 0.682 | DA25: 0.373 | DB25: 0.047 | DC25: 0.038 | DD25: 0.079 | DE25: 0.764 | DF25: 0.117 | DG25: 0.297 | DH25: 0.335 | DI25: 0.094 | DJ25: 0.438 | DK25: 0.276 | DL25: 0.62 | DM25: 0.688 | DN25: 0.644 | DO25: 0.811 | DP25: =PERCENTRANK($B24:$MD24,DP24) -> 0.011 | DQ25: 0.92 | DR25: 0.517 | DS25: 0.823 | DT25: 0.014 | DU25: 0.029 | DV25: 0.117 | DW25: 0.438 | DX25: 0.958 | DY25: 0.276 | DZ25: 0.408 | EA25: 0.038 | EB25: 0.694 | EC25: 0.135 | ED25: 0.517 | EE25: 0.082 | EF25: 0.241 | EG25: 0.741 | EH25: 0.979 | EI25: 0.197 | EJ25: 0.27 | EK25: 0.655 | EL25: 0.335 | EM25: 0.091 | EN25: 0.326 | EO25: 0.138 | EP25: 0.711 | EQ25: 0.894 | ER25: 0.497 | ES25: 0.667 | ET25: 0.694 | EU25: 0.497 | EV25: =PERCENTRANK($B24:$MD24,EV24) -> 0.917 | EW25: 0.038 | EX25: 0.352 | EY25: 0.111 | EZ25: 0.497 | FA25: 0.258 | FB25: 0.473 | FC25: 0.932 | FD25: 0.582 | FE25: 0.152 | FF25: 0.973 | FG25: 0.276 | FH25: 0.094 | FI25: 0.92 | FJ25: 0.644 | FK25: 0.182 | FL25: 0.208 | FM25: 0.314 | FN25: 0.42 | FO25: 0.352 | FP25: 0.4245119048 | FQ25: =PERCENTRANK($B24:$MD24,FQ24) -> 0.694 | FR25: 0.997 | FS25: 0.276 | FT25: 0.402 | FU25: 0.544 | FV25: 0.023 | FW25: 0.42 | FX25: 0.711 | FY25: 0.202 | FZ25: 0.729 | GA25: 0.6 | GB25: 0.835 | GC25: 0.835 | GD25: 0.373 | GE25: 0.42 | GF25: 0.258 | GG25: 0.517 | GH25: 0.517 | GI25: 0.438 | GJ25: 0.885 | GK25: 0.297 | GL25: 0.167 | GM25: 0.847 | GN25: 0.894 | GO25: 0.473 | GP25: 0.694 | GQ25: 0.729 | GR25: 0.335 | GS25: 0.029 | GT25: 0.208 | GU25: 0.644 | GV25: 0.438 | GW25: =PERCENTRANK($B24:$MD24,GW24) -> 0.764 | GX25: 0.37 | GY25: 0.094 | GZ25: 0.967 | HA25: 0.438 | HB25: 0.197 | HC25: 0.438 | HD25: 0.258 | HE25: 0.544 | HF25: 0.061 | HG25: 0.764 | HH25: 0.517 | HI25: 0.326 | HJ25: 0.052 | HK25: 0.473 | HL25: 0.388 | HM25: 0.6 | HN25: 0.879 | HO25: 0.655 | HP25: 0.544 | HQ25: 0.926 | HR25: 0.973 | HS25: 0.544 | HT25: 0.6 | HU25: 0.988 | HV25: 0.544 | HW25: 0.258 | HX25: 0.711 | HY25: 0.57 | HZ25: 0.297 | IA25: 0.438 | IB25: 0.858 | IC25: =PERCENTRANK($B24:$MD24,IC24) -> 0.111 | ID25: 0.711 | IE25: 0.388 | IF25: 0.208 | IG25: 0.764 | IH25: 0.582 | II25: 0.276 | IJ25: 0.741 | IK25: 0.847 | IL25: 0.894 | IM25: 0.941 | IN25: 0.055 | IO25: 0.994 | IP25: 0.758 | IQ25: 0 | IR25: 0.241 | IS25: 0.226 | IT25: 0.352 | IU25: 0.667 | IV25: 0.517 | IW25: 0.5207142857 | IX25: =PERCENTRANK($B24:$MD24,IX24) -> 0.473 | IY25: 0.958 | IZ25: 0.741 | JA25: 0.297 | JB25: 0.964 | JC25: 0.694 | JD25: 0.023 | JE25: 0.152 | JF25: 0.8 | JG25: 0.826 | JH25: 0.62 | JI25: 0.226 | JJ25: 0.582 | JK25: 0.858 | JL25: 0.985 | JM25: 0.911 | JN25: 0.694 | JO25: 0.847 | JP25: 0.62 | JQ25: 0.858 | JR25: 0.764 | JS25: 0.941 | JT25: 0.129 | JU25: 0.979 | JV25: 0.729 | JW25: 0.438 | JX25: 0.711 | JY25: 0.688 | JZ25: 0.517 | KA25: 0.805 | KB25: 0.741 | KC25: 0.835 | KD25: =PERCENTRANK($B24:$MD24,KD24) -> 0.388 | KE25: 0.991 | KF25: 0.811 | KG25: 0.902 | KH25: 0.947 | KI25: 0.57 | KJ25: 0.6 | KK25: 0.388 | KL25: 0.911 | KM25: 0.667 | KN25: 0.047 | KO25: 0.152 | KP25: 0.438 | KQ25: 0.297 | KR25: 0.62 | KS25: 0.208 | KT25: 0.226 | KU25: 0.544 | KV25: 0.241 | KW25: 0.926 | KX25: 0.6 | KY25: 0.805 | KZ25: 0.764 | LA25: 0.908 | LB25: 0.335 | LC25: 0.858 | LD25: 0.117 | LE25: 0.882 | LF25: 0.6 | LG25: 0.682 | LH25: 0.544 | LI25: 0.473 | LJ25: =PERCENTRANK($B24:$MD24,LJ24) -> 0.938 | LK25: 0.438 | LL25: 0.741 | LM25: 0.835 | LN25: 0.544 | LO25: 0.182 | LP25: 0.094 | LQ25: 0.497 | LR25: 0.811 | LS25: 0.729 | LT25: 0.935 | LU25: 0.885 | LV25: 0.764 | LW25: 0.788 | LX25: 0.62 | LY25: 0.858 | LZ25: 1 | MA25: 0.95 | MB25: 0.826 | MC25: 0.955 | MD25: 0.655 | ME25: 0.6458 | MI25: 0.243 | MJ25: 0.495 | MK25: 0.738
A26: Steals Per Game | B26: 6.2 | C26: 5.9 | D26: 4.7 | E26: 6.4 | F26: 5.1 | G26: 5.1 | H26: 5 | I26: 6.1 | J26: 5.8 | K26: 6.5 | L26: 7.3 | M26: 6.2 | N26: 5.8 | O26: 6.3 | P26: 6.4 | Q26: 7.4 | R26: 7.4 | S26: 6 | T26: 8.6 | U26: 5.5 | V26: 6.1 | W26: 6.5 | X26: 7.7 | Y26: 5.7 | Z26: 6.6 | AA26: 5.4 | AB26: 8 | AC26: 4.6 | AD26: 7.4 | AE26: 5.3 | AF26: 6.5 | AG26: 6.9 | AH26: 6.9 | AI26: 6.1 | AJ26: 6.5 | AK26: 5.5 | AL26: 4.5 | AM26: 7.7 | AN26: 6.5 | AO26: 7.6 | AP26: 3.7 | AQ26: 6.2 | AR26: 4.8 | AS26: 7.7 | AT26: 6.9 | AU26: 5.4 | AV26: 5.9 | AW26: 4.9 | AX26: 4.8 | AY26: 6.9 | AZ26: 6.1 | BA26: 5 | BB26: 6.1 | BC26: 5.7 | BD26: 6.9 | BE26: 5.1 | BF26: 5.4 | BG26: 5.2 | BH26: 6.2 | BI26: 8.2 | BJ26: 6.2 | BK26: 7.6 | BL26: 6.9 | BM26: 6.9 | BN26: 8.3 | BO26: 4.9 | BP26: 5.7 | BQ26: 6.8 | BR26: 5.8 | BS26: 5 | BT26: 5.2 | BU26: 6.5 | BV26: 5.7 | BW26: 6.1 | BX26: 6.1 | BY26: 7.5 | BZ26: 4.7 | CA26: 5.2 | CB26: 6.9 | CC26: 7.8 | CD26: 6.4 | CE26: 5.4 | CF26: 5.9 | CG26: 6.9 | CH26: 7.5 | CI26: 6.196470588 | CJ26: 5.1 | CK26: 6.2 | CL26: 6.5 | CM26: 6.6 | CN26: 5.3 | CO26: 4.8 | CP26: 8.3 | CQ26: 8.6 | CR26: 5.2 | CS26: 5.4 | CT26: 7.1 | CU26: 8.6 | CV26: 8.3 | CW26: 5 | CX26: 7.6 | CY26: 8.2 | CZ26: 7.5 | DA26: 6.7 | DB26: 5.3 | DC26: 4.9 | DD26: 5.1 | DE26: 5.8 | DF26: 7.9 | DG26: 4.8 | DH26: 8.2 | DI26: 7.1 | DJ26: 5.8 | DK26: 7.5 | DL26: 7.4 | DM26: 7.2 | DN26: 6 | DO26: 5.7 | DP26: 6.9 | DQ26: 6.5 | DR26: 5.6 | DS26: 9 | DT26: 6.5 | DU26: 7.5 | DV26: 7.9 | DW26: 6.1 | DX26: 6.6 | DY26: 6.8 | DZ26: 7.1 | EA26: 5.4 | EB26: 5.1 | EC26: 7.1 | ED26: 7.4 | EE26: 7.9 | EF26: 8.3 | EG26: 6.9 | EH26: 6.7 | EI26: 8.4 | EJ26: 7.9 | EK26: 6.2 | EL26: 5.9 | EM26: 6.6 | EN26: 6.8 | EO26: 7.5 | EP26: 6.9 | EQ26: 5.6 | ER26: 8 | ES26: 7 | ET26: 7 | EU26: 10.4 | EV26: 4.4 | EW26: 6 | EX26: 7.3 | EY26: 7 | EZ26: 5.8 | FA26: 5.1 | FB26: 6.1 | FC26: 5.6 | FD26: 5.4 | FE26: 8.1 | FF26: 5.2 | FG26: 6.1 | FH26: 8.5 | FI26: 6.5 | FJ26: 5.3 | FK26: 6.3 | FL26: 7.8 | FM26: 6.8 | FN26: 5.8 | FO26: 5.4 | FP26: 6.663095238 | FQ26: 8.2 | FR26: 5.6 | FS26: 6.4 | FT26: 6.3 | FU26: 5.5 | FV26: 7 | FW26: 5.6 | FX26: 8.4 | FY26: 5.4 | FZ26: 7.6 | GA26: 6.3 | GB26: 5.4 | GC26: 6 | GD26: 6.8 | GE26: 4.8 | GF26: 3.9 | GG26: 9.3 | GH26: 6.7 | GI26: 7.3 | GJ26: 8.6 | GK26: 8.5 | GL26: 4.5 | GM26: 5.5 | GN26: 4.6 | GO26: 6.5 | GP26: 8.1 | GQ26: 9.4 | GR26: 8.1 | GS26: 7.9 | GT26: 7.3 | GU26: 6.1 | GV26: 8.3 | GW26: 7.4 | GX26: 6.5 | GY26: 4.8 | GZ26: 8.6 | HA26: 7.9 | HB26: 7 | HC26: 7.7 | HD26: 5.8 | HE26: 7.8 | HF26: 6.5 | HG26: 8.3 | HH26: 5 | HI26: 8.3 | HJ26: 6.2 | HK26: 7.4 | HL26: 7 | HM26: 8.5 | HN26: 6.4 | HO26: 6.5 | HP26: 8.4 | HQ26: 5.5 | HR26: 5.5 | HS26: 5.9 | HT26: 7.5 | HU26: 9.1 | HV26: 4.6 | HW26: 6.4 | HX26: 7.4 | HY26: 4.3 | HZ26: 6.4 | IA26: 8.5 | IB26: 6 | IC26: 7.8 | ID26: 7.6 | IE26: 5.8 | IF26: 7.4 | IG26: 4.1 | IH26: 6.1 | II26: 6.1 | IJ26: 4.8 | IK26: 4.9 | IL26: 5.4 | IM26: 6.2 | IN26: 7.5 | IO26: 5.7 | IP26: 5.6 | IQ26: 7.2 | IR26: 7.1 | IS26: 6.2 | IT26: 8.1 | IU26: 8.1 | IV26: 7.8 | IW26: 6.720238095 | IX26: 7.4 | IY26: 7.9 | IZ26: 7 | JA26: 6.9 | JB26: 8.9 | JC26: 4.1 | JD26: 7 | JE26: 8.5 | JF26: 7.8 | JG26: 5.5 | JH26: 5.5 | JI26: 5.3 | JJ26: 9.3 | JK26: 7 | JL26: 6.9 | JM26: 6.6 | JN26: 5.5 | JO26: 7.2 | JP26: 4.8 | JQ26: 6.8 | JR26: 6.1 | JS26: 5.6 | JT26: 6.1 | JU26: 6.3 | JV26: 5.4 | JW26: 10.6 | JX26: 7.7 | JY26: 7.4 | JZ26: 6.6 | KA26: 6 | KB26: 6.9 | KC26: 6.4 | KD26: 5.8 | KE26: 6.8 | KF26: 5 | KG26: 6.4 | KH26: 8.5 | KI26: 6.4 | KJ26: 7.1 | KK26: 5.7 | KL26: 6.1 | KM26: 8.7 | KN26: 6.2 | KO26: 6.5 | KP26: 5.1 | KQ26: 6.8 | KR26: 7.2 | KS26: 6.5 | KT26: 6 | KU26: 4.9 | KV26: 7.3 | KW26: 7.4 | KX26: 7.3 | KY26: 7.2 | KZ26: 5.9 | LA26: 6.1 | LB26: 8.4 | LC26: 5.8 | LD26: 5.3 | LE26: 8 | LF26: 7.7 | LG26: 5 | LH26: 6 | LI26: 7.9 | LJ26: 9.3 | LK26: 5.3 | LL26: 6.7 | LM26: 6.7 | LN26: 6.6 | LO26: 8.5 | LP26: 4.9 | LQ26: 6.8 | LR26: 5.7 | LS26: 6.4 | LT26: 8.6 | LU26: 6.3 | LV26: 7.4 | LW26: 8 | LX26: 8.9 | LY26: 7.4 | LZ26: 7 | MA26: 7.6 | MB26: 6.2 | MC26: 6.5 | MD26: 9.9 | ME26: 6.808235294 | MF26: Steals Per Game | MI26: 5.7 | MJ26: 6.5 | MK26: 7.4
B27: =PERCENTRANK($B26:$MD26,B26) -> 0.391 | C27: 0.297 | D27: 0.032 | E27: 0.444 | F27: 0.1 | G27: 0.1 | H27: 0.079 | I27: 0.338 | J27: 0.264 | K27: 0.476 | L27: 0.7 | M27: 0.391 | N27: 0.264 | O27: 0.426 | P27: 0.444 | Q27: 0.717 | R27: 0.717 | S27: 0.314 | T27: 0.95 | U27: 0.194 | V27: 0.338 | W27: 0.476 | X27: 0.8 | Y27: 0.241 | Z27: 0.526 | AA27: 0.158 | AB27: 0.858 | AC27: 0.023 | AD27: 0.717 | AE27: 0.138 | AF27: 0.476 | AG27: 0.594 | AH27: =PERCENTRANK($B26:$MD26,AH26) -> 0.594 | AI27: 0.338 | AJ27: 0.476 | AK27: 0.194 | AL27: 0.017 | AM27: 0.8 | AN27: 0.476 | AO27: 0.782 | AP27: 0 | AQ27: 0.391 | AR27: 0.038 | AS27: 0.8 | AT27: 0.594 | AU27: 0.158 | AV27: 0.297 | AW27: 0.061 | AX27: 0.038 | AY27: 0.594 | AZ27: 0.338 | BA27: 0.079 | BB27: 0.338 | BC27: 0.241 | BD27: 0.594 | BE27: 0.1 | BF27: 0.158 | BG27: 0.123 | BH27: 0.391 | BI27: 0.885 | BJ27: 0.391 | BK27: 0.782 | BL27: 0.594 | BM27: 0.594 | BN27: =PERCENTRANK($B26:$MD26,BN26) -> 0.897 | BO27: 0.061 | BP27: 0.241 | BQ27: 0.567 | BR27: 0.264 | BS27: 0.079 | BT27: 0.123 | BU27: 0.476 | BV27: 0.241 | BW27: 0.338 | BX27: 0.338 | BY27: 0.758 | BZ27: 0.032 | CA27: 0.123 | CB27: 0.594 | CC27: 0.817 | CD27: 0.444 | CE27: 0.158 | CF27: 0.297 | CG27: 0.594 | CH27: 0.758 | CI27: 0.3934 | CJ27: =PERCENTRANK($B26:$MD26,CJ26) -> 0.1 | CK27: 0.391 | CL27: 0.476 | CM27: 0.526 | CN27: 0.138 | CO27: 0.038 | CP27: 0.897 | CQ27: 0.95 | CR27: 0.123 | CS27: 0.158 | CT27: 0.667 | CU27: 0.95 | CV27: 0.897 | CW27: 0.079 | CX27: 0.782 | CY27: 0.885 | CZ27: 0.758 | DA27: 0.55 | DB27: 0.138 | DC27: 0.061 | DD27: 0.1 | DE27: 0.264 | DF27: 0.835 | DG27: 0.038 | DH27: 0.885 | DI27: 0.667 | DJ27: 0.264 | DK27: 0.758 | DL27: 0.717 | DM27: 0.685 | DN27: 0.314 | DO27: 0.241 | DP27: =PERCENTRANK($B26:$MD26,DP26) -> 0.594 | DQ27: 0.476 | DR27: 0.22 | DS27: 0.976 | DT27: 0.476 | DU27: 0.758 | DV27: 0.835 | DW27: 0.338 | DX27: 0.526 | DY27: 0.567 | DZ27: 0.667 | EA27: 0.158 | EB27: 0.1 | EC27: 0.667 | ED27: 0.717 | EE27: 0.835 | EF27: 0.897 | EG27: 0.594 | EH27: 0.55 | EI27: 0.917 | EJ27: 0.835 | EK27: 0.391 | EL27: 0.297 | EM27: 0.526 | EN27: 0.567 | EO27: 0.758 | EP27: 0.594 | EQ27: 0.22 | ER27: 0.858 | ES27: 0.638 | ET27: 0.638 | EU27: 0.997 | EV27: =PERCENTRANK($B26:$MD26,EV26) -> 0.014 | EW27: 0.314 | EX27: 0.7 | EY27: 0.638 | EZ27: 0.264 | FA27: 0.1 | FB27: 0.338 | FC27: 0.22 | FD27: 0.158 | FE27: 0.87 | FF27: 0.123 | FG27: 0.338 | FH27: 0.929 | FI27: 0.476 | FJ27: 0.138 | FK27: 0.426 | FL27: 0.817 | FM27: 0.567 | FN27: 0.264 | FO27: 0.158 | FP27: 0.5044166667 | FQ27: =PERCENTRANK($B26:$MD26,FQ26) -> 0.885 | FR27: 0.22 | FS27: 0.444 | FT27: 0.426 | FU27: 0.194 | FV27: 0.638 | FW27: 0.22 | FX27: 0.917 | FY27: 0.158 | FZ27: 0.782 | GA27: 0.426 | GB27: 0.158 | GC27: 0.314 | GD27: 0.567 | GE27: 0.038 | GF27: 0.002 | GG27: 0.982 | GH27: 0.55 | GI27: 0.7 | GJ27: 0.95 | GK27: 0.929 | GL27: 0.017 | GM27: 0.194 | GN27: 0.023 | GO27: 0.476 | GP27: 0.87 | GQ27: 0.991 | GR27: 0.87 | GS27: 0.835 | GT27: 0.7 | GU27: 0.338 | GV27: 0.897 | GW27: =PERCENTRANK($B26:$MD26,GW26) -> 0.717 | GX27: 0.476 | GY27: 0.038 | GZ27: 0.95 | HA27: 0.835 | HB27: 0.638 | HC27: 0.8 | HD27: 0.264 | HE27: 0.817 | HF27: 0.476 | HG27: 0.897 | HH27: 0.079 | HI27: 0.897 | HJ27: 0.391 | HK27: 0.717 | HL27: 0.638 | HM27: 0.929 | HN27: 0.444 | HO27: 0.476 | HP27: 0.917 | HQ27: 0.194 | HR27: 0.194 | HS27: 0.297 | HT27: 0.758 | HU27: 0.979 | HV27: 0.023 | HW27: 0.444 | HX27: 0.717 | HY27: 0.011 | HZ27: 0.444 | IA27: 0.929 | IB27: 0.314 | IC27: =PERCENTRANK($B26:$MD26,IC26) -> 0.817 | ID27: 0.782 | IE27: 0.264 | IF27: 0.717 | IG27: 0.005 | IH27: 0.338 | II27: 0.338 | IJ27: 0.038 | IK27: 0.061 | IL27: 0.158 | IM27: 0.391 | IN27: 0.758 | IO27: 0.241 | IP27: 0.22 | IQ27: 0.685 | IR27: 0.667 | IS27: 0.391 | IT27: 0.87 | IU27: 0.87 | IV27: 0.817 | IW27: 0.5218928571 | IX27: =PERCENTRANK($B26:$MD26,IX26) -> 0.717 | IY27: 0.835 | IZ27: 0.638 | JA27: 0.594 | JB27: 0.97 | JC27: 0.005 | JD27: 0.638 | JE27: 0.929 | JF27: 0.817 | JG27: 0.194 | JH27: 0.194 | JI27: 0.138 | JJ27: 0.982 | JK27: 0.638 | JL27: 0.594 | JM27: 0.526 | JN27: 0.194 | JO27: 0.685 | JP27: 0.038 | JQ27: 0.567 | JR27: 0.338 | JS27: 0.22 | JT27: 0.338 | JU27: 0.426 | JV27: 0.158 | JW27: 1 | JX27: 0.8 | JY27: 0.717 | JZ27: 0.526 | KA27: 0.314 | KB27: 0.594 | KC27: 0.444 | KD27: =PERCENTRANK($B26:$MD26,KD26) -> 0.264 | KE27: 0.567 | KF27: 0.079 | KG27: 0.444 | KH27: 0.929 | KI27: 0.444 | KJ27: 0.667 | KK27: 0.241 | KL27: 0.338 | KM27: 0.967 | KN27: 0.391 | KO27: 0.476 | KP27: 0.1 | KQ27: 0.567 | KR27: 0.685 | KS27: 0.476 | KT27: 0.314 | KU27: 0.061 | KV27: 0.7 | KW27: 0.717 | KX27: 0.7 | KY27: 0.685 | KZ27: 0.297 | LA27: 0.338 | LB27: 0.917 | LC27: 0.264 | LD27: 0.138 | LE27: 0.858 | LF27: 0.8 | LG27: 0.079 | LH27: 0.314 | LI27: 0.835 | LJ27: =PERCENTRANK($B26:$MD26,LJ26) -> 0.982 | LK27: 0.138 | LL27: 0.55 | LM27: 0.55 | LN27: 0.526 | LO27: 0.929 | LP27: 0.061 | LQ27: 0.567 | LR27: 0.241 | LS27: 0.444 | LT27: 0.95 | LU27: 0.426 | LV27: 0.717 | LW27: 0.858 | LX27: 0.97 | LY27: 0.717 | LZ27: 0.638 | MA27: 0.782 | MB27: 0.391 | MC27: 0.476 | MD27: 0.994 | ME27: 0.5332588235 | MI27: 0.243 | MJ27: 0.477 | MK27: 0.715
A28: Blocks Per Game | B28: 2 | C28: 4.4 | D28: 3.8 | E28: 4.3 | F28: 2 | G28: 2.4 | H28: 2.3 | I28: 3.3 | J28: 1.8 | K28: 2.1 | L28: 3.2 | M28: 1.8 | N28: 3.8 | O28: 3.5 | P28: 2.6 | Q28: 1.9 | R28: 2.5 | S28: 2.4 | T28: 4.5 | U28: 2.4 | V28: 1.7 | W28: 2.4 | X28: 1.8 | Y28: 3.8 | Z28: 2.4 | AA28: 2.3 | AB28: 3.3 | AC28: 2.3 | AD28: 3.5 | AE28: 2.6 | AF28: 2.8 | AG28: 4.7 | AH28: 2.9 | AI28: 2.7 | AJ28: 2 | AK28: 4.3 | AL28: 1.4 | AM28: 2.9 | AN28: 1.2 | AO28: 3.4 | AP28: 2.2 | AQ28: 1.8 | AR28: 2.9 | AS28: 3.5 | AT28: 4.6 | AU28: 2.5 | AV28: 3.5 | AW28: 1.9 | AX28: 2.1 | AY28: 2.6 | AZ28: 3 | BA28: 3.3 | BB28: 3.4 | BC28: 2.3 | BD28: 3.3 | BE28: 1.9 | BF28: 1.9 | BG28: 2.4 | BH28: 4.3 | BI28: 3.8 | BJ28: 2.4 | BK28: 3.3 | BL28: 2.2 | BM28: 3.3 | BN28: 3.3 | BO28: 1.3 | BP28: 2.4 | BQ28: 3.9 | BR28: 2.8 | BS28: 4.3 | BT28: 2.4 | BU28: 2.9 | BV28: 1.7 | BW28: 2.4 | BX28: 4.1 | BY28: 3.4 | BZ28: 3 | CA28: 2.2 | CB28: 3 | CC28: 2.7 | CD28: 3.1 | CE28: 2.3 | CF28: 2.1 | CG28: 3.7 | CH28: 3.4 | CI28: 2.825882353 | CJ28: 3.5 | CK28: 2.8 | CL28: 2.6 | CM28: 3.9 | CN28: 3.8 | CO28: 4 | CP28: 3.9 | CQ28: 5.1 | CR28: 3.3 | CS28: 2.3 | CT28: 2.2 | CU28: 4.3 | CV28: 3.2 | CW28: 2.6 | CX28: 3.8 | CY28: 3.8 | CZ28: 2.6 | DA28: 3.2 | DB28: 2.4 | DC28: 3 | DD28: 3.1 | DE28: 3.4 | DF28: 1.6 | DG28: 2.7 | DH28: 3.5 | DI28: 3.2 | DJ28: 4.5 | DK28: 3.7 | DL28: 2.8 | DM28: 2.7 | DN28: 3.9 | DO28: 4.1 | DP28: 2.2 | DQ28: 5.6 | DR28: 2.7 | DS28: 6.7 | DT28: 1.6 | DU28: 1.8 | DV28: 3.4 | DW28: 1.6 | DX28: 3.6 | DY28: 3.1 | DZ28: 3.5 | EA28: 2.7 | EB28: 5 | EC28: 3 | ED28: 3.6 | EE28: 6.8 | EF28: 2.8 | EG28: 2.4 | EH28: 3.9 | EI28: 2.9 | EJ28: 4.1 | EK28: 5.3 | EL28: 4 | EM28: 3.3 | EN28: 4.2 | EO28: 2.3 | EP28: 3.8 | EQ28: 3.5 | ER28: 4.1 | ES28: 3.6 | ET28: 3.9 | EU28: 3.1 | EV28: 3 | EW28: 2.8 | EX28: 3.6 | EY28: 5 | EZ28: 3.1 | FA28: 2.6 | FB28: 2.3 | FC28: 4.8 | FD28: 2.9 | FE28: 3.9 | FF28: 4.9 | FG28: 3.7 | FH28: 1.3 | FI28: 3.9 | FJ28: 5.1 | FK28: 5.4 | FL28: 3 | FM28: 3.8 | FN28: 3.2 | FO28: 2.4 | FP28: 3.455952381 | FQ28: 2.6 | FR28: 3.2 | FS28: 3 | FT28: 2 | FU28: 4.5 | FV28: 3.2 | FW28: 2.3 | FX28: 2.9 | FY28: 4.8 | FZ28: 4.4 | GA28: 2.5 | GB28: 5.4 | GC28: 2.9 | GD28: 2.4 | GE28: 4.3 | GF28: 3.2 | GG28: 4.4 | GH28: 2.3 | GI28: 4.7 | GJ28: 2.4 | GK28: 1.8 | GL28: 2.8 | GM28: 1.5 | GN28: 4.9 | GO28: 4.9 | GP28: 4.9 | GQ28: 5.4 | GR28: 3.3 | GS28: 1.6 | GT28: 4 | GU28: 4.9 | GV28: 4 | GW28: 4.9 | GX28: 2.2 | GY28: 2.8 | GZ28: 4.1 | HA28: 3.8 | HB28: 3.1 | HC28: 4.4 | HD28: 3.1 | HE28: 3.5 | HF28: 2.7 | HG28: 4.2 | HH28: 3.1 | HI28: 4.1 | HJ28: 5.1 | HK28: 3.3 | HL28: 4.9 | HM28: 2.5 | HN28: 3.2 | HO28: 3.4 | HP28: 2.7 | HQ28: 5.4 | HR28: 3.1 | HS28: 2.6 | HT28: 3 | HU28: 4.5 | HV28: 2 | HW28: 4.6 | HX28: 3.8 | HY28: 3.9 | HZ28: 3.6 | IA28: 4 | IB28: 3.2 | IC28: 3.8 | ID28: 3 | IE28: 3.5 | IF28: 3.6 | IG28: 4.3 | IH28: 4.3 | II28: 3.7 | IJ28: 5.1 | IK28: 3 | IL28: 4.2 | IM28: 3.3 | IN28: 2.4 | IO28: 5.5 | IP28: 4.3 | IQ28: 4.6 | IR28: 2.6 | IS28: 3 | IT28: 3.4 | IU28: 4.3 | IV28: 4 | IW28: 3.596428571 | IX28: 5 | IY28: 3.8 | IZ28: 4.8 | JA28: 3.9 | JB28: 5 | JC28: 3.2 | JD28: 3.1 | JE28: 3.5 | JF28: 4.6 | JG28: 3.3 | JH28: 2.2 | JI28: 4.2 | JJ28: 3 | JK28: 4.3 | JL28: 4.1 | JM28: 5.1 | JN28: 3.4 | JO28: 3.8 | JP28: 3.3 | JQ28: 4.5 | JR28: 3.6 | JS28: 3.3 | JT28: 1.8 | JU28: 3.9 | JV28: 3 | JW28: 3.7 | JX28: 2.1 | JY28: 4.2 | JZ28: 1.9 | KA28: 4.7 | KB28: 3.9 | KC28: 3.7 | KD28: 3.5 | KE28: 4.1 | KF28: 7.2 | KG28: 2.5 | KH28: 4.3 | KI28: 3.9 | KJ28: 4.6 | KK28: 3.8 | KL28: 4.8 | KM28: 3.1 | KN28: 3.9 | KO28: 2.5 | KP28: 3.6 | KQ28: 3.6 | KR28: 2.2 | KS28: 2.9 | KT28: 4.8 | KU28: 3.1 | KV28: 3 | KW28: 3.4 | KX28: 2.6 | KY28: 3.3 | KZ28: 2.8 | LA28: 6.5 | LB28: 4.2 | LC28: 2.5 | LD28: 1.9 | LE28: 6.1 | LF28: 4.5 | LG28: 2.3 | LH28: 4.4 | LI28: 5.8 | LJ28: 4.9 | LK28: 3.7 | LL28: 3.4 | LM28: 3.4 | LN28: 3.5 | LO28: 2.8 | LP28: 2.1 | LQ28: 4.2 | LR28: 3.2 | LS28: 4.9 | LT28: 4.8 | LU28: 3.9 | LV28: 2.8 | LW28: 5 | LX28: 3.6 | LY28: 5.8 | LZ28: 6.1 | MA28: 4.2 | MB28: 4 | MC28: 9.1 | MD28: 7.2 | ME28: 3.908235294 | MF28: Blocks Per Game | MI28: 2.6 | MJ28: 3.3 | MK28: 4.1
B29: =PERCENTRANK($B28:$MD28,B28) -> 0.07 | C29: 0.823 | D29: 0.632 | E29: 0.788 | F29: 0.07 | G29: 0.155 | H29: 0.123 | I29: 0.455 | J29: 0.032 | K29: 0.085 | L29: 0.42 | M29: 0.032 | N29: 0.632 | O29: 0.541 | P29: 0.223 | Q29: 0.052 | R29: 0.202 | S29: 0.155 | T29: 0.838 | U29: 0.155 | V29: 0.026 | W29: 0.155 | X29: 0.032 | Y29: 0.632 | Z29: 0.155 | AA29: 0.123 | AB29: 0.455 | AC29: 0.123 | AD29: 0.541 | AE29: 0.223 | AF29: 0.279 | AG29: 0.87 | AH29: =PERCENTRANK($B28:$MD28,AH28) -> 0.314 | AI29: 0.255 | AJ29: 0.07 | AK29: 0.788 | AL29: 0.008 | AM29: 0.314 | AN29: 0 | AO29: 0.502 | AP29: 0.1 | AQ29: 0.032 | AR29: 0.314 | AS29: 0.541 | AT29: 0.855 | AU29: 0.202 | AV29: 0.541 | AW29: 0.052 | AX29: 0.085 | AY29: 0.223 | AZ29: 0.341 | BA29: 0.455 | BB29: 0.502 | BC29: 0.123 | BD29: 0.455 | BE29: 0.052 | BF29: 0.052 | BG29: 0.155 | BH29: 0.788 | BI29: 0.632 | BJ29: 0.155 | BK29: 0.455 | BL29: 0.1 | BM29: 0.455 | BN29: =PERCENTRANK($B28:$MD28,BN28) -> 0.455 | BO29: 0.002 | BP29: 0.155 | BQ29: 0.676 | BR29: 0.279 | BS29: 0.788 | BT29: 0.155 | BU29: 0.314 | BV29: 0.026 | BW29: 0.155 | BX29: 0.741 | BY29: 0.502 | BZ29: 0.341 | CA29: 0.1 | CB29: 0.341 | CC29: 0.255 | CD29: 0.385 | CE29: 0.123 | CF29: 0.085 | CG29: 0.611 | CH29: 0.502 | CI29: 0.3176941176 | CJ29: =PERCENTRANK($B28:$MD28,CJ28) -> 0.541 | CK29: 0.279 | CL29: 0.223 | CM29: 0.676 | CN29: 0.632 | CO29: 0.72 | CP29: 0.676 | CQ29: 0.938 | CR29: 0.455 | CS29: 0.123 | CT29: 0.1 | CU29: 0.788 | CV29: 0.42 | CW29: 0.223 | CX29: 0.632 | CY29: 0.632 | CZ29: 0.223 | DA29: 0.42 | DB29: 0.155 | DC29: 0.341 | DD29: 0.385 | DE29: 0.502 | DF29: 0.014 | DG29: 0.255 | DH29: 0.541 | DI29: 0.42 | DJ29: 0.838 | DK29: 0.611 | DL29: 0.279 | DM29: 0.255 | DN29: 0.676 | DO29: 0.741 | DP29: =PERCENTRANK($B28:$MD28,DP28) -> 0.1 | DQ29: 0.97 | DR29: 0.255 | DS29: 0.988 | DT29: 0.014 | DU29: 0.032 | DV29: 0.502 | DW29: 0.014 | DX29: 0.582 | DY29: 0.385 | DZ29: 0.541 | EA29: 0.255 | EB29: 0.923 | EC29: 0.341 | ED29: 0.582 | EE29: 0.991 | EF29: 0.279 | EG29: 0.155 | EH29: 0.676 | EI29: 0.314 | EJ29: 0.741 | EK29: 0.952 | EL29: 0.72 | EM29: 0.455 | EN29: 0.764 | EO29: 0.123 | EP29: 0.632 | EQ29: 0.541 | ER29: 0.741 | ES29: 0.582 | ET29: 0.676 | EU29: 0.385 | EV29: =PERCENTRANK($B28:$MD28,EV28) -> 0.341 | EW29: 0.279 | EX29: 0.582 | EY29: 0.923 | EZ29: 0.385 | FA29: 0.223 | FB29: 0.123 | FC29: 0.879 | FD29: 0.314 | FE29: 0.676 | FF29: 0.897 | FG29: 0.611 | FH29: 0.002 | FI29: 0.676 | FJ29: 0.938 | FK29: 0.955 | FL29: 0.341 | FM29: 0.632 | FN29: 0.42 | FO29: 0.155 | FP29: 0.4913928571 | FQ29: =PERCENTRANK($B28:$MD28,FQ28) -> 0.223 | FR29: 0.42 | FS29: 0.341 | FT29: 0.07 | FU29: 0.838 | FV29: 0.42 | FW29: 0.123 | FX29: 0.314 | FY29: 0.879 | FZ29: 0.823 | GA29: 0.202 | GB29: 0.955 | GC29: 0.314 | GD29: 0.155 | GE29: 0.788 | GF29: 0.42 | GG29: 0.823 | GH29: 0.123 | GI29: 0.87 | GJ29: 0.155 | GK29: 0.032 | GL29: 0.279 | GM29: 0.011 | GN29: 0.897 | GO29: 0.897 | GP29: 0.897 | GQ29: 0.955 | GR29: 0.455 | GS29: 0.014 | GT29: 0.72 | GU29: 0.897 | GV29: 0.72 | GW29: =PERCENTRANK($B28:$MD28,GW28) -> 0.897 | GX29: 0.1 | GY29: 0.279 | GZ29: 0.741 | HA29: 0.632 | HB29: 0.385 | HC29: 0.823 | HD29: 0.385 | HE29: 0.541 | HF29: 0.255 | HG29: 0.764 | HH29: 0.385 | HI29: 0.741 | HJ29: 0.938 | HK29: 0.455 | HL29: 0.897 | HM29: 0.202 | HN29: 0.42 | HO29: 0.502 | HP29: 0.255 | HQ29: 0.955 | HR29: 0.385 | HS29: 0.223 | HT29: 0.341 | HU29: 0.838 | HV29: 0.07 | HW29: 0.855 | HX29: 0.632 | HY29: 0.676 | HZ29: 0.582 | IA29: 0.72 | IB29: 0.42 | IC29: =PERCENTRANK($B28:$MD28,IC28) -> 0.632 | ID29: 0.341 | IE29: 0.541 | IF29: 0.582 | IG29: 0.788 | IH29: 0.788 | II29: 0.611 | IJ29: 0.938 | IK29: 0.341 | IL29: 0.764 | IM29: 0.455 | IN29: 0.155 | IO29: 0.967 | IP29: 0.788 | IQ29: 0.855 | IR29: 0.223 | IS29: 0.341 | IT29: 0.502 | IU29: 0.788 | IV29: 0.72 | IW29: 0.541 | IX29: =PERCENTRANK($B28:$MD28,IX28) -> 0.923 | IY29: 0.632 | IZ29: 0.879 | JA29: 0.676 | JB29: 0.923 | JC29: 0.42 | JD29: 0.385 | JE29: 0.541 | JF29: 0.855 | JG29: 0.455 | JH29: 0.1 | JI29: 0.764 | JJ29: 0.341 | JK29: 0.788 | JL29: 0.741 | JM29: 0.938 | JN29: 0.502 | JO29: 0.632 | JP29: 0.455 | JQ29: 0.838 | JR29: 0.582 | JS29: 0.455 | JT29: 0.032 | JU29: 0.676 | JV29: 0.341 | JW29: 0.611 | JX29: 0.085 | JY29: 0.764 | JZ29: 0.052 | KA29: 0.87 | KB29: 0.676 | KC29: 0.611 | KD29: =PERCENTRANK($B28:$MD28,KD28) -> 0.541 | KE29: 0.741 | KF29: 0.994 | KG29: 0.202 | KH29: 0.788 | KI29: 0.676 | KJ29: 0.855 | KK29: 0.632 | KL29: 0.879 | KM29: 0.385 | KN29: 0.676 | KO29: 0.202 | KP29: 0.582 | KQ29: 0.582 | KR29: 0.1 | KS29: 0.314 | KT29: 0.879 | KU29: 0.385 | KV29: 0.341 | KW29: 0.502 | KX29: 0.223 | KY29: 0.455 | KZ29: 0.279 | LA29: 0.985 | LB29: 0.764 | LC29: 0.202 | LD29: 0.052 | LE29: 0.979 | LF29: 0.838 | LG29: 0.123 | LH29: 0.823 | LI29: 0.973 | LJ29: =PERCENTRANK($B28:$MD28,LJ28) -> 0.897 | LK29: 0.611 | LL29: 0.502 | LM29: 0.502 | LN29: 0.541 | LO29: 0.279 | LP29: 0.085 | LQ29: 0.764 | LR29: 0.42 | LS29: 0.897 | LT29: 0.879 | LU29: 0.676 | LV29: 0.279 | LW29: 0.923 | LX29: 0.582 | LY29: 0.973 | LZ29: 0.979 | MA29: 0.764 | MB29: 0.72 | MC29: 1 | MD29: 0.994 | ME29: 0.5972 | MI29: 0.225 | MJ29: 0.456 | MK29: 0.738
A30: Opponents Points Per Game | B30: 70.6 | C30: 78.7 | D30: 71.9 | E30: 70.5 | F30: 73.9 | G30: 68.5 | H30: 83.2 | I30: 68.9 | J30: 77.2 | K30: 71 | L30: 77.6 | M30: 75.2 | N30: 72.7 | O30: 62.2 | P30: 75.6 | Q30: 65.5 | R30: 69 | S30: 75.1 | T30: 74.2 | U30: 63.3 | V30: 72.1 | W30: 74.6 | X30: 79.3 | Y30: 67.4 | Z30: 66 | AA30: 71.7 | AB30: 82.6 | AC30: 69.1 | AD30: 65.9 | AE30: 69.6 | AF30: 69.6 | AG30: 67.1 | AH30: 68.1 | AI30: 70.8 | AJ30: 67.5 | AK30: 69.6 | AL30: 62.3 | AM30: 65.4 | AN30: 68.6 | AO30: 64.8 | AP30: 73.8 | AQ30: 70.1 | AR30: 67.8 | AS30: 69.1 | AT30: 69.5 | AU30: 62.8 | AV30: 64.3 | AW30: 68.3 | AX30: 69.8 | AY30: 66.8 | AZ30: 70.8 | BA30: 74.9 | BB30: 67.1 | BC30: 68.4 | BD30: 66.6 | BE30: 77.1 | BF30: 66.9 | BG30: 70.8 | BH30: 69 | BI30: 82.9 | BJ30: 74.9 | BK30: 73.8 | BL30: 72.6 | BM30: 66.1 | BN30: 75 | BO30: 73.8 | BP30: 60.5 | BQ30: 72.3 | BR30: 70.1 | BS30: 72.6 | BT30: 69.2 | BU30: 78.4 | BV30: 75.4 | BW30: 71.1 | BX30: 70 | BY30: 72.3 | BZ30: 65.5 | CA30: 69.6 | CB30: 66.1 | CC30: 66.6 | CD30: 70.7 | CE30: 75.4 | CF30: 59.7 | CG30: 75.4 | CH30: 69.3 | CI30: 70.58941176 | CJ30: 69.9 | CK30: 61.1 | CL30: 69.8 | CM30: 75.6 | CN30: 65.2 | CO30: 62.7 | CP30: 64.8 | CQ30: 69.1 | CR30: 64.9 | CS30: 67.6 | CT30: 67.1 | CU30: 63.7 | CV30: 70.1 | CW30: 71.9 | CX30: 67.3 | CY30: 72.6 | CZ30: 77.3 | DA30: 72.2 | DB30: 64.7 | DC30: 68.5 | DD30: 67.1 | DE30: 65.8 | DF30: 75.3 | DG30: 75.9 | DH30: 69.7 | DI30: 58.4 | DJ30: 73 | DK30: 63.5 | DL30: 55 | DM30: 74.7 | DN30: 68.4 | DO30: 71.4 | DP30: 59.8 | DQ30: 71 | DR30: 69.7 | DS30: 70.3 | DT30: 61.2 | DU30: 65.9 | DV30: 69.3 | DW30: 61.6 | DX30: 65.8 | DY30: 72.6 | DZ30: 71.4 | EA30: 72.6 | EB30: 72.3 | EC30: 65.3 | ED30: 60.4 | EE30: 63.8 | EF30: 73.9 | EG30: 68.3 | EH30: 64.6 | EI30: 67 | EJ30: 76.7 | EK30: 73.9 | EL30: 74.9 | EM30: 70.8 | EN30: 68.1 | EO30: 67.8 | EP30: 68.3 | EQ30: 74.4 | ER30: 65 | ES30: 59.3 | ET30: 64.9 | EU30: 64.9 | EV30: 70.8 | EW30: 60.6 | EX30: 72.5 | EY30: 64.9 | EZ30: 63.9 | FA30: 66.8 | FB30: 61.8 | FC30: 67.4 | FD30: 73.4 | FE30: 65.7 | FF30: 66.9 | FG30: 68.4 | FH30: 61.5 | FI30: 65.1 | FJ30: 63.1 | FK30: 65.3 | FL30: 68.2 | FM30: 66.7 | FN30: 70.9 | FO30: 62.1 | FP30: 67.69166667 | FQ30: 71.6 | FR30: 66.4 | FS30: 64.1 | FT30: 66 | FU30: 66.2 | FV30: 59.9 | FW30: 60.4 | FX30: 67.6 | FY30: 69.7 | FZ30: 65.8 | GA30: 61.3 | GB30: 68.7 | GC30: 70.4 | GD30: 71.1 | GE30: 67.2 | GF30: 64.2 | GG30: 73.2 | GH30: 64.8 | GI30: 68.1 | GJ30: 69.5 | GK30: 70.6 | GL30: 61.7 | GM30: 59.1 | GN30: 67.6 | GO30: 64.6 | GP30: 64.5 | GQ30: 59.5 | GR30: 63.8 | GS30: 71.3 | GT30: 60 | GU30: 65.7 | GV30: 65.6 | GW30: 66.8 | GX30: 78.3 | GY30: 63.1 | GZ30: 66.6 | HA30: 70.5 | HB30: 67.2 | HC30: 63.5 | HD30: 65 | HE30: 71.7 | HF30: 64.7 | HG30: 68.6 | HH30: 64.5 | HI30: 61.2 | HJ30: 66.6 | HK30: 67.5 | HL30: 63.1 | HM30: 62.8 | HN30: 68.8 | HO30: 61.3 | HP30: 72.2 | HQ30: 67.5 | HR30: 71.8 | HS30: 61.8 | HT30: 66.7 | HU30: 61 | HV30: 62.7 | HW30: 67.3 | HX30: 67.5 | HY30: 60.9 | HZ30: 62.8 | IA30: 65.5 | IB30: 62.1 | IC30: 71 | ID30: 64.9 | IE30: 62.3 | IF30: 61.8 | IG30: 69.8 | IH30: 63.3 | II30: 62 | IJ30: 62.5 | IK30: 66.1 | IL30: 64.5 | IM30: 77.9 | IN30: 65.3 | IO30: 66.7 | IP30: 65.1 | IQ30: 60.7 | IR30: 69.8 | IS30: 65.8 | IT30: 65.9 | IU30: 64.3 | IV30: 63.6 | IW30: 65.89404762 | IX30: 64.3 | IY30: 66 | IZ30: 64.8 | JA30: 70.5 | JB30: 70.1 | JC30: 60.7 | JD30: 54.6 | JE30: 59.5 | JF30: 60.8 | JG30: 62.1 | JH30: 68.3 | JI30: 63.8 | JJ30: 62.3 | JK30: 68.7 | JL30: 68.3 | JM30: 65.6 | JN30: 62.4 | JO30: 63.1 | JP30: 55.7 | JQ30: 61.8 | JR30: 66.8 | JS30: 67.5 | JT30: 62 | JU30: 66.1 | JV30: 67.4 | JW30: 59.6 | JX30: 67.6 | JY30: 65.4 | JZ30: 68 | KA30: 64.8 | KB30: 66.3 | KC30: 67.6 | KD30: 67.4 | KE30: 69.8 | KF30: 67 | KG30: 66.4 | KH30: 66.2 | KI30: 66.7 | KJ30: 61.5 | KK30: 57.7 | KL30: 63 | KM30: 63.4 | KN30: 67.4 | KO30: 66.1 | KP30: 61.5 | KQ30: 65.1 | KR30: 72.5 | KS30: 52.2 | KT30: 54 | KU30: 60.8 | KV30: 56.4 | KW30: 58.6 | KX30: 64.5 | KY30: 61.5 | KZ30: 66 | LA30: 63.8 | LB30: 61.7 | LC30: 62.3 | LD30: 68.7 | LE30: 61.9 | LF30: 58.1 | LG30: 69.5 | LH30: 66.1 | LI30: 64.5 | LJ30: 62.2 | LK30: 52 | LL30: 65.2 | LM30: 63 | LN30: 65.4 | LO30: 65.2 | LP30: 60.4 | LQ30: 69.4 | LR30: 63.9 | LS30: 58.7 | LT30: 66.3 | LU30: 62.8 | LV30: 57.6 | LW30: 63.6 | LX30: 65.3 | LY30: 61.2 | LZ30: 66.1 | MA30: 57.8 | MB30: 68.3 | MC30: 58.8 | MD30: 60.6 | ME30: 63.63058824 | MF30: Opponents Points Per Game | MI30: 63.6 | MJ30: 66.7 | MK30: 70.075
B31: =1-(PERCENTRANK($B30:$MD30,B30)) -> 0.221 | C31: 0.012 | D31: 0.159 | E31: 0.233 | F31: 0.095 | G31: 0.353 | H31: 0 | I31: 0.33 | J31: 0.03 | K31: 0.195 | L31: 0.024 | M31: 0.059 | N31: 0.115 | O31: 0.827 | P31: 0.045 | Q31: 0.612 | R31: 0.327 | S31: 0.062 | T31: 0.086 | U31: 0.768 | V31: 0.153 | W31: 0.08 | X31: 0.009 | Y31: 0.448 | Z31: 0.568 | AA31: 0.168 | AB31: 0.006 | AC31: 0.321 | AD31: 0.577 | AE31: 0.292 | AF31: 0.292 | AG31: 0.471 | AH31: =1-(PERCENTRANK($B30:$MD30,AH30)) -> 0.392 | AI31: 0.212 | AJ31: 0.433 | AK31: 0.292 | AL31: 0.821 | AM31: 0.621 | AN31: 0.348 | AO31: 0.686 | AP31: 0.103 | AQ31: 0.25 | AR31: 0.4 | AS31: 0.321 | AT31: 0.3 | AU31: 0.798 | AV31: 0.721 | AW31: 0.38 | AX31: 0.271 | AY31: 0.495 | AZ31: 0.212 | BA31: 0.074 | BB31: 0.471 | BC31: 0.362 | BD31: 0.518 | BE31: 0.033 | BF31: 0.483 | BG31: 0.212 | BH31: 0.327 | BI31: 0.003 | BJ31: 0.074 | BK31: 0.103 | BL31: 0.13 | BM31: 0.556 | BN31: =1-(PERCENTRANK($B30:$MD30,BN30)) -> 0.065 | BO31: 0.103 | BP31: 0.921 | BQ31: 0.145 | BR31: 0.25 | BS31: 0.13 | BT31: 0.312 | BU31: 0.015 | BV31: 0.053 | BW31: 0.186 | BX31: 0.253 | BY31: 0.145 | BZ31: 0.612 | CA31: 0.292 | CB31: 0.556 | CC31: 0.518 | CD31: 0.215 | CE31: 0.053 | CF31: 0.942 | CG31: 0.053 | CH31: 0.309 | CI31: 0.2996235294 | CJ31: =1-(PERCENTRANK($B30:$MD30,CJ30)) -> 0.256 | CK31: 0.895 | CL31: 0.271 | CM31: 0.045 | CN31: 0.642 | CO31: 0.803 | CP31: 0.686 | CQ31: 0.321 | CR31: 0.671 | CS31: 0.418 | CT31: 0.471 | CU31: 0.748 | CV31: 0.25 | CW31: 0.159 | CX31: 0.453 | CY31: 0.13 | CZ31: 0.027 | DA31: 0.15 | DB31: 0.692 | DC31: 0.353 | DD31: 0.471 | DE31: 0.592 | DF31: 0.056 | DG31: 0.039 | DH31: 0.28 | DI31: 0.968 | DJ31: 0.112 | DK31: 0.759 | DL31: 0.989 | DM31: 0.077 | DN31: 0.362 | DO31: 0.177 | DP31: =1-(PERCENTRANK($B30:$MD30,DP30)) -> 0.939 | DQ31: 0.195 | DR31: 0.28 | DS31: 0.239 | DT31: 0.892 | DU31: 0.577 | DV31: 0.309 | DW31: 0.865 | DX31: 0.592 | DY31: 0.13 | DZ31: 0.177 | EA31: 0.13 | EB31: 0.145 | EC31: 0.633 | ED31: 0.93 | EE31: 0.745 | EF31: 0.095 | EG31: 0.38 | EH31: 0.698 | EI31: 0.477 | EJ31: 0.036 | EK31: 0.095 | EL31: 0.074 | EM31: 0.212 | EN31: 0.392 | EO31: 0.4 | EP31: 0.38 | EQ31: 0.083 | ER31: 0.656 | ES31: 0.953 | ET31: 0.671 | EU31: 0.671 | EV31: =1-(PERCENTRANK($B30:$MD30,EV30)) -> 0.212 | EW31: 0.918 | EX31: 0.136 | EY31: 0.671 | EZ31: 0.733 | FA31: 0.495 | FB31: 0.856 | FC31: 0.448 | FD31: 0.106 | FE31: 0.598 | FF31: 0.483 | FG31: 0.362 | FH31: 0.877 | FI31: 0.65 | FJ31: 0.78 | FK31: 0.633 | FL31: 0.383 | FM31: 0.506 | FN31: 0.198 | FO31: 0.836 | FP31: 0.4554166667 | FQ31: =1-(PERCENTRANK($B30:$MD30,FQ30)) -> 0.171 | FR31: 0.524 | FS31: 0.727 | FT31: 0.568 | FU31: 0.536 | FV31: 0.936 | FW31: 0.93 | FX31: 0.418 | FY31: 0.28 | FZ31: 0.592 | GA31: 0.883 | GB31: 0.342 | GC31: 0.236 | GD31: 0.186 | GE31: 0.459 | GF31: 0.724 | GG31: 0.109 | GH31: 0.686 | GI31: 0.392 | GJ31: 0.3 | GK31: 0.221 | GL31: 0.862 | GM31: 0.956 | GN31: 0.418 | GO31: 0.698 | GP31: 0.712 | GQ31: 0.95 | GR31: 0.745 | GS31: 0.18 | GT31: 0.933 | GU31: 0.598 | GV31: 0.603 | GW31: =1-(PERCENTRANK($B30:$MD30,GW30)) -> 0.495 | GX31: 0.018 | GY31: 0.78 | GZ31: 0.518 | HA31: 0.233 | HB31: 0.459 | HC31: 0.759 | HD31: 0.656 | HE31: 0.168 | HF31: 0.692 | HG31: 0.348 | HH31: 0.712 | HI31: 0.892 | HJ31: 0.518 | HK31: 0.433 | HL31: 0.78 | HM31: 0.798 | HN31: 0.333 | HO31: 0.883 | HP31: 0.15 | HQ31: 0.433 | HR31: 0.162 | HS31: 0.856 | HT31: 0.506 | HU31: 0.898 | HV31: 0.803 | HW31: 0.453 | HX31: 0.433 | HY31: 0.9 | HZ31: 0.798 | IA31: 0.612 | IB31: 0.836 | IC31: =1-(PERCENTRANK($B30:$MD30,IC30)) -> 0.195 | ID31: 0.671 | IE31: 0.821 | IF31: 0.856 | IG31: 0.271 | IH31: 0.768 | II31: 0.842 | IJ31: 0.806 | IK31: 0.556 | IL31: 0.712 | IM31: 0.021 | IN31: 0.633 | IO31: 0.506 | IP31: 0.65 | IQ31: 0.912 | IR31: 0.271 | IS31: 0.592 | IT31: 0.577 | IU31: 0.721 | IV31: 0.753 | IW31: 0.5752857143 | IX31: =1-(PERCENTRANK($B30:$MD30,IX30)) -> 0.721 | IY31: 0.568 | IZ31: 0.686 | JA31: 0.233 | JB31: 0.25 | JC31: 0.912 | JD31: 0.992 | JE31: 0.95 | JF31: 0.906 | JG31: 0.836 | JH31: 0.38 | JI31: 0.745 | JJ31: 0.821 | JK31: 0.342 | JL31: 0.38 | JM31: 0.603 | JN31: 0.809 | JO31: 0.78 | JP31: 0.986 | JQ31: 0.856 | JR31: 0.495 | JS31: 0.433 | JT31: 0.842 | JU31: 0.556 | JV31: 0.448 | JW31: 0.945 | JX31: 0.418 | JY31: 0.621 | JZ31: 0.395 | KA31: 0.686 | KB31: 0.53 | KC31: 0.418 | KD31: =1-(PERCENTRANK($B30:$MD30,KD30)) -> 0.448 | KE31: 0.271 | KF31: 0.477 | KG31: 0.524 | KH31: 0.536 | KI31: 0.506 | KJ31: 0.877 | KK31: 0.977 | KL31: 0.786 | KM31: 0.762 | KN31: 0.448 | KO31: 0.556 | KP31: 0.877 | KQ31: 0.65 | KR31: 0.136 | KS31: 0.998 | KT31: 0.995 | KU31: 0.906 | KV31: 0.983 | KW31: 0.965 | KX31: 0.712 | KY31: 0.877 | KZ31: 0.568 | LA31: 0.745 | LB31: 0.862 | LC31: 0.821 | LD31: 0.342 | LE31: 0.845 | LF31: 0.971 | LG31: 0.3 | LH31: 0.556 | LI31: 0.712 | LJ31: =1-(PERCENTRANK($B30:$MD30,LJ30)) -> 0.827 | LK31: 1 | LL31: 0.642 | LM31: 0.786 | LN31: 0.621 | LO31: 0.642 | LP31: 0.93 | LQ31: 0.303 | LR31: 0.733 | LS31: 0.962 | LT31: 0.53 | LU31: 0.798 | LV31: 0.98 | LW31: 0.753 | LX31: 0.633 | LY31: 0.892 | LZ31: 0.556 | MA31: 0.974 | MB31: 0.38 | MC31: 0.959 | MD31: 0.918 | ME31: 0.6864823529 | MI31: 0.25075 | MJ31: 0.505 | MK31: 0.751
A32: Opponent Field Goal Percentage | B32: 47.7 | C32: 47.5 | D32: 45.1 | E32: 44.7 | F32: 46.2 | G32: 44.4 | H32: 48.2 | I32: 43.8 | J32: 47.1 | K32: 49.3 | L32: 45.6 | M32: 50 | N32: 43.4 | O32: 41.6 | P32: 45.5 | Q32: 46.6 | R32: 45.1 | S32: 50.5 | T32: 44.9 | U32: 42.3 | V32: 47.2 | W32: 46.2 | X32: 47.6 | Y32: 43.6 | Z32: 45.4 | AA32: 45.7 | AB32: 49.5 | AC32: 44.9 | AD32: 44.2 | AE32: 45.1 | AF32: 46.3 | AG32: 39.5 | AH32: 41.9 | AI32: 44.3 | AJ32: 45.3 | AK32: 44.3 | AL32: 44.6 | AM32: 44.4 | AN32: 40.6 | AO32: 40.8 | AP32: 45.7 | AQ32: 44.6 | AR32: 45.4 | AS32: 44.4 | AT32: 42.6 | AU32: 42 | AV32: 38.7 | AW32: 44.2 | AX32: 45.6 | AY32: 43.9 | AZ32: 43.7 | BA32: 46 | BB32: 44.2 | BC32: 45.4 | BD32: 42.9 | BE32: 46.7 | BF32: 42.7 | BG32: 45.5 | BH32: 41.7 | BI32: 49 | BJ32: 46.7 | BK32: 41.6 | BL32: 47.7 | BM32: 44.3 | BN32: 44.8 | BO32: 44.6 | BP32: 40.4 | BQ32: 45.6 | BR32: 43.8 | BS32: 41.6 | BT32: 46.8 | BU32: 46.3 | BV32: 45.3 | BW32: 47.8 | BX32: 43.8 | BY32: 47 | BZ32: 42.3 | CA32: 43.1 | CB32: 46.5 | CC32: 45.3 | CD32: 45.4 | CE32: 45.4 | CF32: 43.7 | CG32: 46.7 | CH32: 46.7 | CI32: 44.92941176 | CJ32: 43.5 | CK32: 41.1 | CL32: 43.8 | CM32: 48.5 | CN32: 42.8 | CO32: 39.3 | CP32: 42.3 | CQ32: 43 | CR32: 43.1 | CS32: 45.2 | CT32: 43.2 | CU32: 40.4 | CV32: 45.2 | CW32: 42.3 | CX32: 44 | CY32: 43.6 | CZ32: 46.5 | DA32: 44.1 | DB32: 45.4 | DC32: 43.6 | DD32: 41.2 | DE32: 40.2 | DF32: 47.8 | DG32: 46.4 | DH32: 45.2 | DI32: 40.7 | DJ32: 45.8 | DK32: 42.7 | DL32: 40.8 | DM32: 45.2 | DN32: 43.2 | DO32: 43.9 | DP32: 42.4 | DQ32: 42.2 | DR32: 46.3 | DS32: 43 | DT32: 45.1 | DU32: 45.7 | DV32: 46.5 | DW32: 44.1 | DX32: 40.9 | DY32: 47 | DZ32: 45 | EA32: 46.8 | EB32: 43.9 | EC32: 44.9 | ED32: 41.3 | EE32: 42.3 | EF32: 45 | EG32: 44 | EH32: 40.3 | EI32: 42.1 | EJ32: 48 | EK32: 43.1 | EL32: 43.7 | EM32: 45.1 | EN32: 44.4 | EO32: 45.6 | EP32: 43.9 | EQ32: 42.2 | ER32: 43.2 | ES32: 43 | ET32: 42.3 | EU32: 43.7 | EV32: 42.6 | EW32: 44.2 | EX32: 46.5 | EY32: 44.8 | EZ32: 41.6 | FA32: 42.8 | FB32: 41.2 | FC32: 40.1 | FD32: 45.3 | FE32: 44.2 | FF32: 41.4 | FG32: 43.1 | FH32: 44.3 | FI32: 39.8 | FJ32: 40.4 | FK32: 42.4 | FL32: 41.9 | FM32: 44.4 | FN32: 45 | FO32: 42.8 | FP32: 43.56904762 | FQ32: 46.6 | FR32: 40.8 | FS32: 42.1 | FT32: 44.8 | FU32: 41.6 | FV32: 40 | FW32: 39.9 | FX32: 41.6 | FY32: 43.7 | FZ32: 41 | GA32: 41.4 | GB32: 41.7 | GC32: 43.8 | GD32: 44.7 | GE32: 42.6 | GF32: 41.6 | GG32: 45.3 | GH32: 42.7 | GI32: 43.9 | GJ32: 43.3 | GK32: 46.1 | GL32: 40.7 | GM32: 41.5 | GN32: 39.1 | GO32: 41.3 | GP32: 40.1 | GQ32: 38.2 | GR32: 44.1 | GS32: 47.9 | GT32: 43 | GU32: 42.5 | GV32: 41.8 | GW32: 40.8 | GX32: 48.3 | GY32: 42.6 | GZ32: 42.8 | HA32: 43.6 | HB32: 42.8 | HC32: 42.5 | HD32: 42.9 | HE32: 45.5 | HF32: 44.7 | HG32: 45.6 | HH32: 41.2 | HI32: 41 | HJ32: 43.8 | HK32: 44.7 | HL32: 38.8 | HM32: 42.7 | HN32: 43 | HO32: 41.2 | HP32: 44.8 | HQ32: 40.1 | HR32: 41.9 | HS32: 41.7 | HT32: 41.9 | HU32: 39.8 | HV32: 40.5 | HW32: 41.5 | HX32: 41.6 | HY32: 41 | HZ32: 41.9 | IA32: 42.4 | IB32: 41.6 | IC32: 45.4 | ID32: 41.5 | IE32: 41.4 | IF32: 40.2 | IG32: 42.6 | IH32: 41 | II32: 42.2 | IJ32: 40.9 | IK32: 44.2 | IL32: 40.9 | IM32: 44.6 | IN32: 43.3 | IO32: 38.7 | IP32: 41.4 | IQ32: 43.6 | IR32: 46.9 | IS32: 42.4 | IT32: 41 | IU32: 43.3 | IV32: 41.2 | IW32: 42.44404762 | IX32: 41.5 | IY32: 40.1 | IZ32: 39.2 | JA32: 45.6 | JB32: 40.3 | JC32: 39 | JD32: 40.5 | JE32: 41.2 | JF32: 41.3 | JG32: 39.9 | JH32: 41.9 | JI32: 42.8 | JJ32: 40.9 | JK32: 42.2 | JL32: 42.6 | JM32: 40.6 | JN32: 40.3 | JO32: 41.2 | JP32: 38.7 | JQ32: 41.7 | JR32: 43.4 | JS32: 43.1 | JT32: 44 | JU32: 45.2 | JV32: 44.6 | JW32: 42.3 | JX32: 42.5 | JY32: 41.3 | JZ32: 45.2 | KA32: 41.1 | KB32: 40.6 | KC32: 39.9 | KD32: 43.4 | KE32: 41.7 | KF32: 39.4 | KG32: 44.6 | KH32: 40.6 | KI32: 41.6 | KJ32: 39.1 | KK32: 39.4 | KL32: 39.6 | KM32: 41.4 | KN32: 44.8 | KO32: 47 | KP32: 40.6 | KQ32: 43.8 | KR32: 44.6 | KS32: 38.7 | KT32: 40.2 | KU32: 40.8 | KV32: 40.5 | KW32: 37.8 | KX32: 42.4 | KY32: 42.3 | KZ32: 43.5 | LA32: 38.5 | LB32: 42.1 | LC32: 39.7 | LD32: 43.6 | LE32: 37.6 | LF32: 38.4 | LG32: 44.1 | LH32: 42.2 | LI32: 38.7 | LJ32: 37.6 | LK32: 38 | LL32: 42.4 | LM32: 41.4 | LN32: 42.2 | LO32: 44.2 | LP32: 42.4 | LQ32: 43.4 | LR32: 43.6 | LS32: 38.6 | LT32: 40.8 | LU32: 39.7 | LV32: 40.3 | LW32: 40.7 | LX32: 40.8 | LY32: 38.1 | LZ32: 38.6 | MA32: 37.1 | MB32: 43.3 | MC32: 36.5 | MD32: 38.6 | ME32: 41.24352941 | MF32: Opponent Field Goal Percentage | MI32: 41.2 | MJ32: 43 | MK32: 44.8
B33: =1-(PERCENTRANK($B32:$MD32,B32)) -> 0.039 | C33: 0.045 | D33: 0.227 | E33: 0.274 | F33: 0.115 | G33: 0.309 | H33: 0.021 | I33: 0.398 | J33: 0.05 | K33: 0.009 | L33: 0.15 | M33: 0.003 | N33: 0.453 | O33: 0.706 | P33: 0.159 | Q33: 0.086 | R33: 0.227 | S33: 0 | T33: 0.248 | U33: 0.612 | V33: 0.048 | W33: 0.115 | X33: 0.042 | Y33: 0.433 | Z33: 0.18 | AA33: 0.133 | AB33: 0.006 | AC33: 0.248 | AD33: 0.342 | AE33: 0.227 | AF33: 0.109 | AG33: 0.924 | AH33: =1-(PERCENTRANK($B32:$MD32,AH32)) -> 0.659 | AI33: 0.321 | AJ33: 0.195 | AK33: 0.321 | AL33: 0.295 | AM33: 0.309 | AN33: 0.845 | AO33: 0.821 | AP33: 0.133 | AQ33: 0.295 | AR33: 0.18 | AS33: 0.309 | AT33: 0.556 | AU33: 0.642 | AV33: 0.962 | AW33: 0.342 | AX33: 0.15 | AY33: 0.377 | AZ33: 0.412 | BA33: 0.121 | BB33: 0.342 | BC33: 0.18 | BD33: 0.509 | BE33: 0.08 | BF33: 0.539 | BG33: 0.159 | BH33: 0.677 | BI33: 0.012 | BJ33: 0.08 | BK33: 0.706 | BL33: 0.039 | BM33: 0.321 | BN33: =1-(PERCENTRANK($B32:$MD32,BN32)) -> 0.262 | BO33: 0.295 | BP33: 0.862 | BQ33: 0.15 | BR33: 0.398 | BS33: 0.706 | BT33: 0.068 | BU33: 0.109 | BV33: 0.195 | BW33: 0.033 | BX33: 0.398 | BY33: 0.059 | BZ33: 0.612 | CA33: 0.489 | CB33: 0.098 | CC33: 0.195 | CD33: 0.18 | CE33: 0.18 | CF33: 0.412 | CG33: 0.08 | CH33: 0.08 | CI33: 0.2904470588 | CJ33: =1-(PERCENTRANK($B32:$MD32,CJ32)) -> 0.442 | CK33: 0.774 | CL33: 0.398 | CM33: 0.015 | CN33: 0.527 | CO33: 0.933 | CP33: 0.612 | CQ33: 0.503 | CR33: 0.489 | CS33: 0.212 | CT33: 0.474 | CU33: 0.862 | CV33: 0.212 | CW33: 0.612 | CX33: 0.362 | CY33: 0.433 | CZ33: 0.098 | DA33: 0.353 | DB33: 0.18 | DC33: 0.433 | DD33: 0.768 | DE33: 0.883 | DF33: 0.033 | DG33: 0.1 | DH33: 0.212 | DI33: 0.83 | DJ33: 0.124 | DK33: 0.539 | DL33: 0.821 | DM33: 0.212 | DN33: 0.474 | DO33: 0.377 | DP33: =1-(PERCENTRANK($B32:$MD32,DP32)) -> 0.589 | DQ33: 0.63 | DR33: 0.109 | DS33: 0.503 | DT33: 0.227 | DU33: 0.133 | DV33: 0.098 | DW33: 0.353 | DX33: 0.8 | DY33: 0.059 | DZ33: 0.236 | EA33: 0.068 | EB33: 0.377 | EC33: 0.248 | ED33: 0.748 | EE33: 0.612 | EF33: 0.236 | EG33: 0.362 | EH33: 0.874 | EI33: 0.639 | EJ33: 0.024 | EK33: 0.489 | EL33: 0.412 | EM33: 0.227 | EN33: 0.309 | EO33: 0.15 | EP33: 0.377 | EQ33: 0.63 | ER33: 0.474 | ES33: 0.503 | ET33: 0.612 | EU33: 0.412 | EV33: =1-(PERCENTRANK($B32:$MD32,EV32)) -> 0.556 | EW33: 0.342 | EX33: 0.098 | EY33: 0.262 | EZ33: 0.706 | FA33: 0.527 | FB33: 0.768 | FC33: 0.895 | FD33: 0.195 | FE33: 0.342 | FF33: 0.736 | FG33: 0.489 | FH33: 0.321 | FI33: 0.912 | FJ33: 0.862 | FK33: 0.589 | FL33: 0.659 | FM33: 0.309 | FN33: 0.236 | FO33: 0.527 | FP33: 0.4422380952 | FQ33: =1-(PERCENTRANK($B32:$MD32,FQ32)) -> 0.086 | FR33: 0.821 | FS33: 0.639 | FT33: 0.262 | FU33: 0.706 | FV33: 0.898 | FW33: 0.906 | FX33: 0.706 | FY33: 0.412 | FZ33: 0.789 | GA33: 0.736 | GB33: 0.677 | GC33: 0.398 | GD33: 0.274 | GE33: 0.556 | GF33: 0.706 | GG33: 0.195 | GH33: 0.539 | GI33: 0.377 | GJ33: 0.465 | GK33: 0.118 | GL33: 0.83 | GM33: 0.718 | GN33: 0.942 | GO33: 0.748 | GP33: 0.895 | GQ33: 0.98 | GR33: 0.353 | GS33: 0.027 | GT33: 0.503 | GU33: 0.565 | GV33: 0.662 | GW33: =1-(PERCENTRANK($B32:$MD32,GW32)) -> 0.821 | GX33: 0.018 | GY33: 0.556 | GZ33: 0.527 | HA33: 0.433 | HB33: 0.527 | HC33: 0.565 | HD33: 0.509 | HE33: 0.159 | HF33: 0.274 | HG33: 0.15 | HH33: 0.768 | HI33: 0.789 | HJ33: 0.398 | HK33: 0.274 | HL33: 0.948 | HM33: 0.539 | HN33: 0.503 | HO33: 0.768 | HP33: 0.262 | HQ33: 0.895 | HR33: 0.659 | HS33: 0.677 | HT33: 0.659 | HU33: 0.912 | HV33: 0.853 | HW33: 0.718 | HX33: 0.706 | HY33: 0.789 | HZ33: 0.659 | IA33: 0.589 | IB33: 0.706 | IC33: =1-(PERCENTRANK($B32:$MD32,IC32)) -> 0.18 | ID33: 0.718 | IE33: 0.736 | IF33: 0.883 | IG33: 0.556 | IH33: 0.789 | II33: 0.63 | IJ33: 0.8 | IK33: 0.342 | IL33: 0.8 | IM33: 0.295 | IN33: 0.465 | IO33: 0.962 | IP33: 0.736 | IQ33: 0.433 | IR33: 0.062 | IS33: 0.589 | IT33: 0.789 | IU33: 0.465 | IV33: 0.768 | IW33: 0.5844880952 | IX33: =1-(PERCENTRANK($B32:$MD32,IX32)) -> 0.718 | IY33: 0.895 | IZ33: 0.936 | JA33: 0.15 | JB33: 0.874 | JC33: 0.945 | JD33: 0.853 | JE33: 0.768 | JF33: 0.748 | JG33: 0.906 | JH33: 0.659 | JI33: 0.527 | JJ33: 0.8 | JK33: 0.63 | JL33: 0.556 | JM33: 0.845 | JN33: 0.874 | JO33: 0.768 | JP33: 0.962 | JQ33: 0.677 | JR33: 0.453 | JS33: 0.489 | JT33: 0.362 | JU33: 0.212 | JV33: 0.295 | JW33: 0.612 | JX33: 0.565 | JY33: 0.748 | JZ33: 0.212 | KA33: 0.774 | KB33: 0.845 | KC33: 0.906 | KD33: =1-(PERCENTRANK($B32:$MD32,KD32)) -> 0.453 | KE33: 0.677 | KF33: 0.93 | KG33: 0.295 | KH33: 0.845 | KI33: 0.706 | KJ33: 0.942 | KK33: 0.93 | KL33: 0.921 | KM33: 0.736 | KN33: 0.262 | KO33: 0.059 | KP33: 0.845 | KQ33: 0.398 | KR33: 0.295 | KS33: 0.962 | KT33: 0.883 | KU33: 0.821 | KV33: 0.853 | KW33: 0.989 | KX33: 0.589 | KY33: 0.612 | KZ33: 0.442 | LA33: 0.974 | LB33: 0.639 | LC33: 0.918 | LD33: 0.433 | LE33: 0.995 | LF33: 0.977 | LG33: 0.353 | LH33: 0.63 | LI33: 0.962 | LJ33: =1-(PERCENTRANK($B32:$MD32,LJ32)) -> 0.995 | LK33: 0.986 | LL33: 0.589 | LM33: 0.736 | LN33: 0.63 | LO33: 0.342 | LP33: 0.589 | LQ33: 0.453 | LR33: 0.433 | LS33: 0.971 | LT33: 0.821 | LU33: 0.918 | LV33: 0.874 | LW33: 0.83 | LX33: 0.821 | LY33: 0.983 | LZ33: 0.971 | MA33: 0.998 | MB33: 0.465 | MC33: 1 | MD33: 0.971 | ME33: 0.7090117647 | MI33: 0.262 | MJ33: 0.502 | MK33: 0.766
A34: Opponent 3 Point Percentage | B34: 37.7 | C34: 38.9 | D34: 31.4 | E34: 35.9 | F34: 34.6 | G34: 39.1 | H34: 39.3 | I34: 33.8 | J34: 35.6 | K34: 39.3 | L34: 35.8 | M34: 36.9 | N34: 37 | O34: 29.1 | P34: 34.4 | Q34: 37 | R34: 36.5 | S34: 36.3 | T34: 34.9 | U34: 35.9 | V34: 33.3 | W34: 36.7 | X34: 37.1 | Y34: 36 | Z34: 38.7 | AA34: 38.5 | AB34: 35.5 | AC34: 35.9 | AD34: 33.6 | AE34: 39.1 | AF34: 36.6 | AG34: 35.6 | AH34: 32.3 | AI34: 32.4 | AJ34: 37.4 | AK34: 37.3 | AL34: 35.2 | AM34: 29 | AN34: 32.3 | AO34: 30.8 | AP34: 38.1 | AQ34: 33.9 | AR34: 36.1 | AS34: 36.3 | AT34: 34.2 | AU34: 29.1 | AV34: 32.5 | AW34: 33.5 | AX34: 35 | AY34: 32 | AZ34: 32.5 | BA34: 36.2 | BB34: 32.8 | BC34: 37.2 | BD34: 37.3 | BE34: 37.2 | BF34: 34.9 | BG34: 34.8 | BH34: 35.4 | BI34: 34.9 | BJ34: 38.2 | BK34: 32.6 | BL34: 39.3 | BM34: 37.7 | BN34: 35 | BO34: 35 | BP34: 32.3 | BQ34: 37.5 | BR34: 34.6 | BS34: 38.5 | BT34: 39.3 | BU34: 36.1 | BV34: 33.8 | BW34: 35.8 | BX34: 31.5 | BY34: 35.6 | BZ34: 33.8 | CA34: 36.2 | CB34: 36.4 | CC34: 35 | CD34: 36.2 | CE34: 39.4 | CF34: 34.4 | CG34: 38.8 | CH34: 39.8 | CI34: 35.52235294 | CJ34: 38.2 | CK34: 35.5 | CL34: 36.7 | CM34: 35.6 | CN34: 35.8 | CO34: 31.9 | CP34: 30.5 | CQ34: 31.8 | CR34: 31.1 | CS34: 33.6 | CT34: 33.4 | CU34: 33.8 | CV34: 37.2 | CW34: 33.5 | CX34: 32.5 | CY34: 36.5 | CZ34: 37.5 | DA34: 35.6 | DB34: 34.5 | DC34: 34.8 | DD34: 31.9 | DE34: 36.2 | DF34: 36.8 | DG34: 35.9 | DH34: 35.3 | DI34: 30.8 | DJ34: 37.5 | DK34: 31.9 | DL34: 33.6 | DM34: 33.2 | DN34: 33.3 | DO34: 31.4 | DP34: 31.2 | DQ34: 36 | DR34: 38.2 | DS34: 33.3 | DT34: 33.8 | DU34: 31.8 | DV34: 34.5 | DW34: 34.9 | DX34: 29 | DY34: 35.2 | DZ34: 36.6 | EA34: 38.2 | EB34: 36.3 | EC34: 33.2 | ED34: 32.9 | EE34: 32 | EF34: 35.7 | EG34: 29.7 | EH34: 31.4 | EI34: 33.3 | EJ34: 34.4 | EK34: 32.1 | EL34: 36 | EM34: 36.5 | EN34: 36.5 | EO34: 31.4 | EP34: 31.6 | EQ34: 33.9 | ER34: 32 | ES34: 29.9 | ET34: 31.1 | EU34: 35.4 | EV34: 33.1 | EW34: 35.6 | EX34: 37.7 | EY34: 38.9 | EZ34: 33.1 | FA34: 35.5 | FB34: 36.4 | FC34: 33.6 | FD34: 34.2 | FE34: 32.8 | FF34: 34.5 | FG34: 37.5 | FH34: 35 | FI34: 34.4 | FJ34: 34.9 | FK34: 35.7 | FL34: 30.2 | FM34: 37.4 | FN34: 34.8 | FO34: 33.3 | FP34: 34.21904762 | FQ34: 36.3 | FR34: 34.4 | FS34: 33.4 | FT34: 37.3 | FU34: 29.2 | FV34: 30.7 | FW34: 29.3 | FX34: 33.2 | FY34: 34.7 | FZ34: 35.3 | GA34: 33 | GB34: 33.3 | GC34: 37.5 | GD34: 36.9 | GE34: 34.5 | GF34: 32.7 | GG34: 38.5 | GH34: 37.4 | GI34: 37.9 | GJ34: 38.1 | GK34: 36.9 | GL34: 30.8 | GM34: 33.4 | GN34: 31.6 | GO34: 34.4 | GP34: 32.2 | GQ34: 32.6 | GR34: 33.4 | GS34: 37.8 | GT34: 34.8 | GU34: 37 | GV34: 33.5 | GW34: 28.7 | GX34: 39.3 | GY34: 34.4 | GZ34: 35.4 | HA34: 33.5 | HB34: 31.2 | HC34: 37.6 | HD34: 36.8 | HE34: 35.3 | HF34: 35.3 | HG34: 34.5 | HH34: 35.2 | HI34: 34.5 | HJ34: 31.4 | HK34: 35.9 | HL34: 30.7 | HM34: 36.5 | HN34: 34.4 | HO34: 31.4 | HP34: 35.8 | HQ34: 33.6 | HR34: 34.4 | HS34: 28.6 | HT34: 29.9 | HU34: 31.9 | HV34: 35.1 | HW34: 31.4 | HX34: 31.5 | HY34: 35.4 | HZ34: 32.5 | IA34: 34.4 | IB34: 33.2 | IC34: 35.4 | ID34: 32.5 | IE34: 28.7 | IF34: 34 | IG34: 33.1 | IH34: 31.9 | II34: 33.2 | IJ34: 35.5 | IK34: 33.6 | IL34: 33 | IM34: 33 | IN34: 35.2 | IO34: 32.7 | IP34: 34.4 | IQ34: 36.3 | IR34: 38 | IS34: 32.6 | IT34: 32 | IU34: 36.3 | IV34: 30.6 | IW34: 33.97261905 | IX34: 34.2 | IY34: 32.4 | IZ34: 31.6 | JA34: 38.9 | JB34: 30.3 | JC34: 33.9 | JD34: 30.3 | JE34: 32 | JF34: 30.7 | JG34: 32.4 | JH34: 34.2 | JI34: 37.8 | JJ34: 28.8 | JK34: 35.3 | JL34: 32.5 | JM34: 34.4 | JN34: 27.1 | JO34: 31.5 | JP34: 28.2 | JQ34: 30.4 | JR34: 34.6 | JS34: 34.1 | JT34: 36.3 | JU34: 30.5 | JV34: 33.2 | JW34: 31.3 | JX34: 34.2 | JY34: 29 | JZ34: 31.9 | KA34: 32.8 | KB34: 34.8 | KC34: 31.1 | KD34: 34.2 | KE34: 33.1 | KF34: 35.7 | KG34: 31.7 | KH34: 30.9 | KI34: 32.4 | KJ34: 31.1 | KK34: 30 | KL34: 31.2 | KM34: 30.7 | KN34: 35.7 | KO34: 36.1 | KP34: 30.7 | KQ34: 36 | KR34: 35.3 | KS34: 28.2 | KT34: 32.8 | KU34: 32.4 | KV34: 30.4 | KW34: 30.3 | KX34: 33.1 | KY34: 36.6 | KZ34: 30.2 | LA34: 34.8 | LB34: 29.7 | LC34: 33.4 | LD34: 35.3 | LE34: 30.4 | LF34: 28.4 | LG34: 36.2 | LH34: 31.9 | LI34: 32.6 | LJ34: 32.1 | LK34: 28.1 | LL34: 34.9 | LM34: 31.5 | LN34: 33.5 | LO34: 36 | LP34: 34.1 | LQ34: 32.2 | LR34: 33.6 | LS34: 28.5 | LT34: 33.8 | LU34: 31.2 | LV34: 30.9 | LW34: 33.2 | LX34: 33.1 | LY34: 34.6 | LZ34: 31.6 | MA34: 28.2 | MB34: 31.1 | MC34: 32.4 | MD34: 31.1 | ME34: 32.44588235 | MF34: Opponent 3 Point Percentage | MI34: 32.025 | MJ34: 34.2 | MK34: 36
B35: =1-(PERCENTRANK($B34:$MD34,B34)) -> 0.086 | C35: 0.033 | D35: 0.839 | E35: 0.265 | F35: 0.436 | G35: 0.024 | H35: 0.018 | I35: 0.548 | J35: 0.306 | K35: 0.018 | L35: 0.277 | M35: 0.15 | N35: 0.142 | O35: 0.959 | P35: 0.489 | Q35: 0.142 | R35: 0.186 | S35: 0.212 | T35: 0.403 | U35: 0.265 | V35: 0.615 | W35: 0.162 | X35: 0.133 | Y35: 0.25 | Z35: 0.039 | AA35: 0.048 | AB35: 0.321 | AC35: 0.265 | AD35: 0.568 | AE35: 0.024 | AF35: 0.171 | AG35: 0.306 | AH35: =1-(PERCENTRANK($B34:$MD34,AH34)) -> 0.739 | AI35: 0.73 | AJ35: 0.112 | AK35: 0.121 | AL35: 0.368 | AM35: 0.968 | AN35: 0.739 | AO35: 0.886 | AP35: 0.065 | AQ35: 0.53 | AR35: 0.236 | AS35: 0.212 | AT35: 0.509 | AU35: 0.959 | AV35: 0.712 | AW35: 0.583 | AX35: 0.386 | AY35: 0.765 | AZ35: 0.712 | BA35: 0.227 | BB35: 0.677 | BC35: 0.13 | BD35: 0.121 | BE35: 0.13 | BF35: 0.403 | BG35: 0.421 | BH35: 0.336 | BI35: 0.403 | BJ35: 0.059 | BK35: 0.695 | BL35: 0.018 | BM35: 0.086 | BN35: =1-(PERCENTRANK($B34:$MD34,BN34)) -> 0.386 | BO35: 0.386 | BP35: 0.739 | BQ35: 0.103 | BR35: 0.436 | BS35: 0.048 | BT35: 0.018 | BU35: 0.236 | BV35: 0.548 | BW35: 0.277 | BX35: 0.818 | BY35: 0.306 | BZ35: 0.548 | CA35: 0.227 | CB35: 0.192 | CC35: 0.386 | CD35: 0.227 | CE35: 0.003 | CF35: 0.489 | CG35: 0.036 | CH35: 0 | CI35: 0.3429058824 | CJ35: =1-(PERCENTRANK($B34:$MD34,CJ34)) -> 0.059 | CK35: 0.321 | CL35: 0.162 | CM35: 0.306 | CN35: 0.277 | CO35: 0.786 | CP35: 0.909 | CQ35: 0.792 | CR35: 0.871 | CS35: 0.568 | CT35: 0.598 | CU35: 0.548 | CV35: 0.13 | CW35: 0.583 | CX35: 0.712 | CY35: 0.186 | CZ35: 0.103 | DA35: 0.306 | DB35: 0.453 | DC35: 0.421 | DD35: 0.786 | DE35: 0.227 | DF35: 0.156 | DG35: 0.265 | DH35: 0.356 | DI35: 0.886 | DJ35: 0.103 | DK35: 0.786 | DL35: 0.568 | DM35: 0.636 | DN35: 0.615 | DO35: 0.839 | DP35: =1-(PERCENTRANK($B34:$MD34,DP34)) -> 0.853 | DQ35: 0.25 | DR35: 0.059 | DS35: 0.615 | DT35: 0.548 | DU35: 0.792 | DV35: 0.453 | DW35: 0.403 | DX35: 0.968 | DY35: 0.368 | DZ35: 0.171 | EA35: 0.059 | EB35: 0.212 | EC35: 0.636 | ED35: 0.665 | EE35: 0.765 | EF35: 0.289 | EG35: 0.948 | EH35: 0.839 | EI35: 0.615 | EJ35: 0.489 | EK35: 0.75 | EL35: 0.25 | EM35: 0.186 | EN35: 0.186 | EO35: 0.839 | EP35: 0.806 | EQ35: 0.53 | ER35: 0.765 | ES35: 0.942 | ET35: 0.871 | EU35: 0.336 | EV35: =1-(PERCENTRANK($B34:$MD34,EV34)) -> 0.653 | EW35: 0.306 | EX35: 0.086 | EY35: 0.033 | EZ35: 0.653 | FA35: 0.321 | FB35: 0.192 | FC35: 0.568 | FD35: 0.509 | FE35: 0.677 | FF35: 0.453 | FG35: 0.103 | FH35: 0.386 | FI35: 0.489 | FJ35: 0.403 | FK35: 0.289 | FL35: 0.933 | FM35: 0.112 | FN35: 0.421 | FO35: 0.615 | FP35: 0.4877857143 | FQ35: =1-(PERCENTRANK($B34:$MD34,FQ34)) -> 0.212 | FR35: 0.489 | FS35: 0.598 | FT35: 0.121 | FU35: 0.953 | FV35: 0.9 | FW35: 0.95 | FX35: 0.636 | FY35: 0.424 | FZ35: 0.356 | GA35: 0.662 | GB35: 0.615 | GC35: 0.103 | GD35: 0.15 | GE35: 0.453 | GF35: 0.683 | GG35: 0.048 | GH35: 0.112 | GI35: 0.071 | GJ35: 0.065 | GK35: 0.15 | GL35: 0.886 | GM35: 0.598 | GN35: 0.806 | GO35: 0.489 | GP35: 0.745 | GQ35: 0.695 | GR35: 0.598 | GS35: 0.077 | GT35: 0.421 | GU35: 0.142 | GV35: 0.583 | GW35: =1-(PERCENTRANK($B34:$MD34,GW34)) -> 0.977 | GX35: 0.018 | GY35: 0.489 | GZ35: 0.336 | HA35: 0.583 | HB35: 0.853 | HC35: 0.089 | HD35: 0.156 | HE35: 0.356 | HF35: 0.356 | HG35: 0.453 | HH35: 0.368 | HI35: 0.453 | HJ35: 0.839 | HK35: 0.265 | HL35: 0.9 | HM35: 0.186 | HN35: 0.489 | HO35: 0.839 | HP35: 0.277 | HQ35: 0.568 | HR35: 0.489 | HS35: 0.98 | HT35: 0.942 | HU35: 0.786 | HV35: 0.371 | HW35: 0.839 | HX35: 0.818 | HY35: 0.336 | HZ35: 0.712 | IA35: 0.489 | IB35: 0.636 | IC35: =1-(PERCENTRANK($B34:$MD34,IC34)) -> 0.336 | ID35: 0.712 | IE35: 0.977 | IF35: 0.518 | IG35: 0.653 | IH35: 0.786 | II35: 0.636 | IJ35: 0.321 | IK35: 0.568 | IL35: 0.662 | IM35: 0.662 | IN35: 0.368 | IO35: 0.683 | IP35: 0.489 | IQ35: 0.212 | IR35: 0.068 | IS35: 0.695 | IT35: 0.765 | IU35: 0.212 | IV35: 0.903 | IW35: 0.5150595238 | IX35: =1-(PERCENTRANK($B34:$MD34,IX34)) -> 0.509 | IY35: 0.73 | IZ35: 0.806 | JA35: 0.033 | JB35: 0.927 | JC35: 0.53 | JD35: 0.927 | JE35: 0.765 | JF35: 0.9 | JG35: 0.73 | JH35: 0.509 | JI35: 0.077 | JJ35: 0.971 | JK35: 0.356 | JL35: 0.712 | JM35: 0.489 | JN35: 1 | JO35: 0.818 | JP35: 0.995 | JQ35: 0.918 | JR35: 0.436 | JS35: 0.515 | JT35: 0.212 | JU35: 0.909 | JV35: 0.636 | JW35: 0.842 | JX35: 0.509 | JY35: 0.968 | JZ35: 0.786 | KA35: 0.677 | KB35: 0.421 | KC35: 0.871 | KD35: =1-(PERCENTRANK($B34:$MD34,KD34)) -> 0.509 | KE35: 0.653 | KF35: 0.289 | KG35: 0.795 | KH35: 0.877 | KI35: 0.73 | KJ35: 0.871 | KK35: 0.936 | KL35: 0.853 | KM35: 0.9 | KN35: 0.289 | KO35: 0.236 | KP35: 0.9 | KQ35: 0.25 | KR35: 0.356 | KS35: 0.995 | KT35: 0.677 | KU35: 0.73 | KV35: 0.918 | KW35: 0.927 | KX35: 0.653 | KY35: 0.171 | KZ35: 0.933 | LA35: 0.421 | LB35: 0.948 | LC35: 0.598 | LD35: 0.356 | LE35: 0.918 | LF35: 0.986 | LG35: 0.227 | LH35: 0.786 | LI35: 0.695 | LJ35: =1-(PERCENTRANK($B34:$MD34,LJ34)) -> 0.75 | LK35: 0.998 | LL35: 0.403 | LM35: 0.818 | LN35: 0.583 | LO35: 0.25 | LP35: 0.515 | LQ35: 0.745 | LR35: 0.568 | LS35: 0.983 | LT35: 0.548 | LU35: 0.853 | LV35: 0.877 | LW35: 0.636 | LX35: 0.653 | LY35: 0.436 | LZ35: 0.806 | MA35: 0.995 | MB35: 0.871 | MC35: 0.73 | MD35: 0.871 | ME35: 0.6794823529 | MI35: 0.253 | MJ35: 0.508 | MK35: 0.75925
A36: Opponents Rebounds Per Game | B36: 33.8 | C36: 39.2 | D36: 38.6 | E36: 36.8 | F36: 36.4 | G36: 32.2 | H36: 39.1 | I36: 36.4 | J36: 37.3 | K36: 33.8 | L36: 38 | M36: 36.1 | N36: 36.7 | O36: 35 | P36: 37 | Q36: 31.5 | R36: 36.8 | S36: 34.3 | T36: 40.2 | U36: 32.7 | V36: 34.4 | W36: 36.5 | X36: 39.3 | Y36: 37.1 | Z36: 31.7 | AA36: 35.1 | AB36: 41.5 | AC36: 31.8 | AD36: 35.1 | AE36: 37.6 | AF36: 34 | AG36: 38.6 | AH36: 35.9 | AI36: 35.9 | AJ36: 35.8 | AK36: 33.7 | AL36: 30.7 | AM36: 37.5 | AN36: 36.5 | AO36: 37.5 | AP36: 33.8 | AQ36: 35.8 | AR36: 33.6 | AS36: 36.2 | AT36: 37.1 | AU36: 35.2 | AV36: 39.6 | AW36: 35.3 | AX36: 34.5 | AY36: 34 | AZ36: 34.9 | BA36: 36.8 | BB36: 32.7 | BC36: 33.8 | BD36: 36.7 | BE36: 37.2 | BF36: 36.4 | BG36: 33.1 | BH36: 37.4 | BI36: 40.1 | BJ36: 32.6 | BK36: 40 | BL36: 34.3 | BM36: 33.1 | BN36: 38.5 | BO36: 38.5 | BP36: 33.7 | BQ36: 35 | BR36: 35 | BS36: 37.9 | BT36: 34.1 | BU36: 36.2 | BV36: 38.8 | BW36: 34.2 | BX36: 35.2 | BY36: 34 | BZ36: 33.4 | CA36: 35.8 | CB36: 34 | CC36: 33.6 | CD36: 37.3 | CE36: 29.1 | CF36: 35.6 | CG36: 38.2 | CH36: 34 | CI36: 35.69882353 | CJ36: 32.9 | CK36: 32.4 | CL36: 36.9 | CM36: 34.7 | CN36: 29.8 | CO36: 35.4 | CP36: 32.2 | CQ36: 37.3 | CR36: 32.3 | CS36: 29.6 | CT36: 34.5 | CU36: 36.1 | CV36: 35.7 | CW36: 39.7 | CX36: 34.1 | CY36: 34.6 | CZ36: 36.8 | DA36: 33.9 | DB36: 31.6 | DC36: 35.9 | DD36: 32.8 | DE36: 34.4 | DF36: 38.5 | DG36: 33.8 | DH36: 36.4 | DI36: 34.1 | DJ36: 35.4 | DK36: 33.7 | DL36: 28.1 | DM36: 38.8 | DN36: 36.8 | DO36: 36.5 | DP36: 33.1 | DQ36: 38.2 | DR36: 32.1 | DS36: 40.7 | DT36: 32.5 | DU36: 33.2 | DV36: 30.8 | DW36: 29.6 | DX36: 35.1 | DY36: 33.9 | DZ36: 36.8 | EA36: 35.2 | EB36: 34.4 | EC36: 35.2 | ED36: 32.8 | EE36: 37.1 | EF36: 36.9 | EG36: 33.5 | EH36: 34.9 | EI36: 35.3 | EJ36: 39.9 | EK36: 34.2 | EL36: 36.5 | EM36: 34.9 | EN36: 35.3 | EO36: 32.8 | EP36: 36.6 | EQ36: 34.5 | ER36: 34.9 | ES36: 31.2 | ET36: 34.6 | EU36: 34 | EV36: 33.1 | EW36: 30.5 | EX36: 35.4 | EY36: 33.1 | EZ36: 34.4 | FA36: 31.5 | FB36: 32.3 | FC36: 35.3 | FD36: 31.7 | FE36: 32.8 | FF36: 32.2 | FG36: 31.6 | FH36: 28.5 | FI36: 32 | FJ36: 31.7 | FK36: 36.7 | FL36: 38.4 | FM36: 34 | FN36: 34.7 | FO36: 31.1 | FP36: 34.2547619 | FQ36: 34.2 | FR36: 32.7 | FS36: 35.4 | FT36: 31.2 | FU36: 34.6 | FV36: 34.3 | FW36: 32.8 | FX36: 37.1 | FY36: 36.4 | FZ36: 34.9 | GA36: 31.5 | GB36: 35.7 | GC36: 31.1 | GD36: 31.4 | GE36: 31.9 | GF36: 33 | GG36: 35.1 | GH36: 31.9 | GI36: 32.3 | GJ36: 37.3 | GK36: 32.1 | GL36: 33.4 | GM36: 29.6 | GN36: 38.1 | GO36: 34.8 | GP36: 32.9 | GQ36: 35.3 | GR36: 32.6 | GS36: 34.6 | GT36: 32 | GU36: 34.2 | GV36: 33.2 | GW36: 34.7 | GX36: 34.2 | GY36: 31.6 | GZ36: 34.1 | HA36: 38 | HB36: 34.5 | HC36: 31.3 | HD36: 33 | HE36: 34.4 | HF36: 30.9 | HG36: 31.7 | HH36: 32 | HI36: 32.8 | HJ36: 36.2 | HK36: 31.9 | HL36: 32.9 | HM36: 30.6 | HN36: 33.5 | HO36: 32.1 | HP36: 33.5 | HQ36: 34.5 | HR36: 35.3 | HS36: 33.4 | HT36: 35.3 | HU36: 34 | HV36: 33.6 | HW36: 37.9 | HX36: 39.3 | HY36: 31.5 | HZ36: 34.8 | IA36: 35.1 | IB36: 31.3 | IC36: 38.6 | ID36: 33.9 | IE36: 33.9 | IF36: 33.6 | IG36: 34.6 | IH36: 30 | II36: 33.1 | IJ36: 30.1 | IK36: 29.5 | IL36: 32.8 | IM36: 36 | IN36: 33.1 | IO36: 33.3 | IP36: 32.9 | IQ36: 30.6 | IR36: 33.5 | IS36: 31.8 | IT36: 36.9 | IU36: 31.8 | IV36: 33.6 | IW36: 33.58452381 | IX36: 31.5 | IY36: 35 | IZ36: 34.5 | JA36: 36.3 | JB36: 38.4 | JC36: 29.3 | JD36: 29.9 | JE36: 31.8 | JF36: 35.6 | JG36: 32.4 | JH36: 33.1 | JI36: 31 | JJ36: 34.9 | JK36: 32.6 | JL36: 31.8 | JM36: 35.1 | JN36: 33.7 | JO36: 36.3 | JP36: 29.4 | JQ36: 32.9 | JR36: 33.2 | JS36: 31.9 | JT36: 32.1 | JU36: 32.4 | JV36: 32.3 | JW36: 34.9 | JX36: 33.4 | JY36: 33.6 | JZ36: 32.5 | KA36: 33.5 | KB36: 32.9 | KC36: 34.3 | KD36: 32.8 | KE36: 35.2 | KF36: 34.4 | KG36: 31.8 | KH36: 34.3 | KI36: 35.1 | KJ36: 32.3 | KK36: 30.7 | KL36: 32.8 | KM36: 33.8 | KN36: 34.9 | KO36: 28 | KP36: 34.6 | KQ36: 34.2 | KR36: 34.1 | KS36: 29 | KT36: 28.3 | KU36: 30.5 | KV36: 31.4 | KW36: 31.7 | KX36: 32.5 | KY36: 29.5 | KZ36: 31.9 | LA36: 33.9 | LB36: 31.4 | LC36: 32.4 | LD36: 30.3 | LE36: 33.3 | LF36: 32.9 | LG36: 30.2 | LH36: 33.2 | LI36: 33.3 | LJ36: 36.3 | LK36: 31.5 | LL36: 33 | LM36: 30.3 | LN36: 30.7 | LO36: 31.4 | LP36: 31.7 | LQ36: 34 | LR36: 32.2 | LS36: 30.5 | LT36: 34.5 | LU36: 31.2 | LV36: 29.6 | LW36: 31.6 | LX36: 35.6 | LY36: 31.2 | LZ36: 34.4 | MA36: 29.5 | MB36: 33.8 | MC36: 31.9 | MD36: 36.3 | ME36: 32.68705882 | MF36: Opponents Rebounds Per Game | MI36: 32.3 | MJ36: 34 | MK36: 35.6
A37: Overall Defensive Skill Set % Tile Ranking | B37: =AVERAGE(B35,B33,B31,B29,B27,B25) -> 0.1446666667 | C37: 0.3491666667 | D37: 0.355 | E37: 0.407 | F37: 0.1575 | G37: 0.268 | H37: 0.1081666667 | I37: 0.355 | J37: 0.1965 | K37: 0.1651666667 | L37: 0.3676666667 | M37: 0.1116666667 | N37: 0.32 | O37: 0.7028333333 | P37: 0.3236666667 | Q37: 0.2808333333 | R37: 0.3111666667 | S37: 0.1483333333 | T37: 0.5521666667 | U37: 0.3601666667 | V37: 0.2368333333 | W37: 0.2596666667 | X37: 0.2878333333 | Y37: 0.3986666667 | Z37: 0.3005 | AA37: 0.1206666667 | AB37: 0.4246666667 | AC37: 0.2128333333 | AD37: 0.5025 | AE37: 0.178 | AF37: 0.222 | AG37: 0.6651666667 | AH37: =AVERAGE(AH35,AH33,AH31,AH29,AH27,AH25) -> 0.5285 | AI37: 0.4426666667 | AJ37: 0.2171666667 | AK37: 0.3933333333 | AL37: 0.2661666667 | AM37: 0.599 | AN37: 0.5596666667 | AO37: 0.774 | AP37: 0.09716666667 | AQ37: 0.2741666667 | AR37: 0.2808333333 | AS37: 0.373 | AT37: 0.5518333333 | AU37: 0.5121666667 | AV37: 0.5848333333 | AW37: 0.248 | AX37: 0.1706666667 | AY37: 0.5363333333 | AZ37: 0.4328333333 | BA37: 0.2116666667 | BB37: 0.426 | BC37: 0.1995 | BD37: 0.4038333333 | BE37: 0.0795 | BF37: 0.3028333333 | BG37: 0.2571666667 | BH37: 0.5256666667 | BI37: 0.3685 | BJ37: 0.1995 | BK37: 0.592 | BL37: 0.1585 | BM37: 0.3911666667 | BN37: =AVERAGE(BN35,BN33,BN31,BN29,BN27,BN25) -> 0.4676666667 | BO37: 0.1998333333 | BP37: 0.5921666667 | BQ37: 0.3435 | BR37: 0.3381666667 | BS37: 0.4348333333 | BT37: 0.116 | BU37: 0.323 | BV37: 0.256 | BW37: 0.1661666667 | BX37: 0.5108333333 | BY37: 0.365 | BZ37: 0.4888333333 | CA37: 0.233 | CB37: 0.3163333333 | CC37: 0.4205 | CD37: 0.282 | CE37: 0.1561666667 | CF37: 0.3711666667 | CG37: 0.3401666667 | CH37: 0.3085 | CI37: 0.3386117647 | CJ37: =AVERAGE(CJ35,CJ33,CJ31,CJ29,CJ27,CJ25) -> 0.328 | CK37: 0.5055 | CL37: 0.278 | CM37: 0.4073333333 | CN37: 0.3923333333 | CO37: 0.6088333333 | CP37: 0.6578333333 | CQ37: 0.652 | CR37: 0.5028333333 | CS37: 0.2743333333 | CT37: 0.4436666667 | CU37: 0.7321666667 | CV37: 0.4273333333 | CW37: 0.4171666667 | CX37: 0.5205 | CY37: 0.4776666667 | CZ37: 0.3151666667 | DA37: 0.3586666667 | DB37: 0.2775 | DC37: 0.2745 | DD37: 0.4315 | DE37: 0.5386666667 | DF37: 0.2018333333 | DG37: 0.1656666667 | DH37: 0.4348333333 | DI37: 0.6441666667 | DJ37: 0.3131666667 | DK37: 0.6215 | DL37: 0.6656666667 | DM37: 0.4255 | DN37: 0.5141666667 | DO37: 0.531 | DP37: =AVERAGE(DP35,DP33,DP31,DP29,DP27,DP25) -> 0.5143333333 | DQ37: 0.5735 | DR37: 0.24 | DS37: 0.6906666667 | DT37: 0.3618333333 | DU37: 0.3868333333 | DV37: 0.3856666667 | DW37: 0.4018333333 | DX37: 0.7376666667 | DY37: 0.2975 | DZ37: 0.3666666667 | EA37: 0.118 | EB37: 0.4085 | EC37: 0.4433333333 | ED37: 0.6931666667 | EE37: 0.6716666667 | EF37: 0.3395 | EG37: 0.53 | EH37: 0.7693333333 | EI37: 0.5265 | EJ37: 0.3991666667 | EK37: 0.5553333333 | EL37: 0.348 | EM37: 0.2828333333 | EN37: 0.424 | EO37: 0.4013333333 | EP37: 0.5833333333 | EQ37: 0.483 | ER37: 0.6651666667 | ES37: 0.7141666667 | ET37: 0.6936666667 | EU37: 0.5496666667 | EV37: =AVERAGE(EV35,EV33,EV31,EV29,EV27,EV25) -> 0.4488333333 | EW37: 0.3661666667 | EX37: 0.3256666667 | EY37: 0.4396666667 | EZ37: 0.5396666667 | FA37: 0.3206666667 | FB37: 0.4583333333 | FC37: 0.657 | FD37: 0.3106666667 | FE37: 0.5525 | FF37: 0.6108333333 | FG37: 0.3631666667 | FH37: 0.4348333333 | FI37: 0.6871666667 | FJ37: 0.6275 | FK37: 0.5123333333 | FL37: 0.5568333333 | FM37: 0.4066666667 | FN37: 0.3265 | FO37: 0.4405 | FP37: 0.4676269841 | FQ37: =AVERAGE(FQ35,FQ33,FQ31,FQ29,FQ27,FQ25) -> 0.3785 | FR37: 0.5785 | FS37: 0.5041666667 | FT37: 0.3081666667 | FU37: 0.6285 | FV37: 0.6358333333 | FW37: 0.5915 | FX37: 0.617 | FY37: 0.3925 | FZ37: 0.6785 | GA37: 0.5848333333 | GB37: 0.597 | GC37: 0.3666666667 | GD37: 0.2841666667 | GE37: 0.4523333333 | GF37: 0.4655 | GG37: 0.4456666667 | GH37: 0.4211666667 | GI37: 0.4746666667 | GJ37: 0.47 | GK37: 0.2911666667 | GL37: 0.5068333333 | GM37: 0.554 | GN37: 0.6633333333 | GO37: 0.6301666667 | GP37: 0.8021666667 | GQ37: 0.8833333333 | GR37: 0.5593333333 | GS37: 0.1936666667 | GT37: 0.5808333333 | GU37: 0.5306666667 | GV37: 0.6505 | GW37: =AVERAGE(GW35,GW33,GW31,GW29,GW27,GW25) -> 0.7785 | GX37: 0.1666666667 | GY37: 0.3726666667 | GZ37: 0.6731666667 | HA37: 0.5256666667 | HB37: 0.5098333333 | HC37: 0.579 | HD37: 0.3713333333 | HE37: 0.4308333333 | HF37: 0.3523333333 | HG37: 0.5626666667 | HH37: 0.4715 | HI37: 0.683 | HJ37: 0.5226666667 | HK37: 0.4361666667 | HL37: 0.7585 | HM37: 0.5423333333 | HN37: 0.5113333333 | HO37: 0.6871666667 | HP37: 0.4008333333 | HQ37: 0.6618333333 | HR37: 0.477 | HS37: 0.5961666667 | HT37: 0.6343333333 | HU37: 0.9001666667 | HV37: 0.444 | HW37: 0.5945 | HX37: 0.6695 | HY37: 0.547 | HZ37: 0.582 | IA37: 0.6295 | IB37: 0.6283333333 | IC37: =AVERAGE(IC35,IC33,IC31,IC29,IC27,IC25) -> 0.3785 | ID37: 0.6558333333 | IE37: 0.6211666667 | IF37: 0.6273333333 | IG37: 0.5061666667 | IH37: 0.6751666667 | II37: 0.5555 | IJ37: 0.6073333333 | IK37: 0.4525 | IL37: 0.665 | IM37: 0.4608333333 | IN37: 0.4056666667 | IO37: 0.7255 | IP37: 0.6068333333 | IQ37: 0.5161666667 | IR37: 0.2553333333 | IS37: 0.4723333333 | IT37: 0.6425 | IU37: 0.6205 | IV37: 0.7463333333 | IW37: 0.5430734127 | IX37: =AVERAGE(IX35,IX33,IX31,IX29,IX27,IX25) -> 0.6768333333 | IY37: 0.7696666667 | IZ37: 0.781 | JA37: 0.3305 | JB37: 0.818 | JC37: 0.5843333333 | JD37: 0.6363333333 | JE37: 0.6841666667 | JF37: 0.8376666667 | JG37: 0.6578333333 | JH37: 0.4103333333 | JI37: 0.4128333333 | JJ37: 0.7495 | JK37: 0.602 | JL37: 0.6613333333 | JM37: 0.7186666667 | JN37: 0.6788333333 | JO37: 0.755 | JP37: 0.676 | JQ37: 0.7856666667 | JR37: 0.5113333333 | JS37: 0.5088333333 | JT37: 0.3191666667 | JU37: 0.6263333333 | JV37: 0.4345 | JW37: 0.7413333333 | JX37: 0.5146666667 | JY37: 0.751 | JZ37: 0.4146666667 | KA37: 0.6876666667 | KB37: 0.6345 | KC37: 0.6808333333 | KD37: =AVERAGE(KD35,KD33,KD31,KD29,KD27,KD25) -> 0.4338333333 | KE37: 0.65 | KF37: 0.5966666667 | KG37: 0.527 | KH37: 0.8203333333 | KI37: 0.6053333333 | KJ37: 0.802 | KK37: 0.684 | KL37: 0.7813333333 | KM37: 0.7361666667 | KN37: 0.3521666667 | KO37: 0.2801666667 | KP37: 0.6236666667 | KQ37: 0.4573333333 | KR37: 0.3653333333 | KS37: 0.6588333333 | KT37: 0.6623333333 | KU37: 0.5745 | KV37: 0.6726666667 | KW37: 0.8376666667 | KX37: 0.5795 | KY37: 0.6008333333 | KZ37: 0.5471666667 | LA37: 0.7285 | LB37: 0.7441666667 | LC37: 0.6101666667 | LD37: 0.2396666667 | LE37: 0.9128333333 | LF37: 0.862 | LG37: 0.294 | LH37: 0.6088333333 | LI37: 0.775 | LJ37: =AVERAGE(LJ35,LJ33,LJ31,LJ29,LJ27,LJ25) -> 0.8981666667 | LK37: 0.6951666667 | LL37: 0.5711666667 | LM37: 0.7045 | LN37: 0.5741666667 | LO37: 0.4373333333 | LP37: 0.379 | LQ37: 0.5548333333 | LR37: 0.5343333333 | LS37: 0.831 | LT37: 0.7771666667 | LU37: 0.7593333333 | LV37: 0.7485 | LW37: 0.798 | LX37: 0.7131666667 | LY37: 0.8098333333 | LZ37: 0.825 | MA37: 0.9105 | MB37: 0.6088333333 | MC37: 0.8533333333 | MD37: 0.9005 | ME37: 0.641872549 | MF37: Overall Defensive Skill Set % Tile Ranking | MI37: 0.362 | MJ37: 0.5096666667 | MK37: 0.6354166667

Sheet NCAA Tournament Teams Eye Chart
A1: 2012 NCAA March Madness "Eye Chart"
A2: Performance Management "Eye Chart"™ NCAA March Madness 2012 68 Teams | B2: Western Ky. | C2: Mississippi Val. | D2: Vermont | E2: Norfolk St. | F2: Detroit | G2: Lamar | H2: UNC Asheville | I2: Lehigh | J2: LIU Brooklyn | K2: St. Bonaventure | L2: Loyola Maryland | M2: Montana | N2: Davidson | O2: Colorado | P2: New Mexico St. | Q2: Belmont | R2: West Virginia | S2: Avg. Bottom Quartile Team | T2: South Fla. | U2: Virginia | V2: Texas | W2: Kansas St. | X2: North Carolina St. | Y2: Ohio | Z2: BYU | AA2: Purdue | AB2: South Dakota St. | AC2: Cincinnati | AD2: Iona | AE2: Notre Dame | AF2: VCU | AG2: California | AH2: Xavier | AI2: Alabama | AJ2: Harvard | AK2: Avg. Lower-Middle Quartile Team | AL2: Long Beach St. | AM2: Iowa St. | AN2: Connecticut | AO2: Saint Louis | AP2: Colorado St. | AQ2: St. Mary's (CA) | AR2: Florida | AS2: New Mexico | AT2: San Diego St. | AU2: Vanderbilt | AV2: Gonzaga | AW2: Creighton | AX2: Wisconsin | AY2: Murray St. | AZ2: Southern Miss. | BA2: Temple | BB2: UNLV | BC2: Avg. Upper-Middle Quartile Team | BD2: Florida St. | BE2: Indiana | BF2: Memphis | BG2: Georgetown | BH2: Louisville | BI2: Wichita St. | BJ2: Michigan | BK2: Missouri | BL2: Marquette | BM2: Baylor | BN2: Ohio St. | BO2: Kansas | BP2: Duke | BQ2: Michigan St. | BR2: North Carolina | BS2: Syracuse | BT2: Kentucky | BU2: Avg. Top Quartile Team | BV2: Performance Management "Eye Chart"™ NCAA March Madness 2012 68 Teams
A3: Games Played | B3: 33 | C3: 33 | D3: 34 | E3: 34 | F3: 35 | G3: 34 | H3: 33 | I3: 33 | J3: 33 | K3: 31 | L3: 32 | M3: 31 | N3: 32 | O3: 34 | P3: 35 | Q3: 34 | R3: 32 | S3: =SUM(B3:R3) -> 563 | T3: 33 | U3: 31 | V3: 33 | W3: 31 | X3: 34 | Y3: 34 | Z3: 33 | AA3: 33 | AB3: 34 | AC3: 34 | AD3: 32 | AE3: 33 | AF3: 34 | AG3: 33 | AH3: 33 | AI3: 32 | AJ3: 30 | AK3: =SUM(T3:AJ3) -> 557 | AL3: 33 | AM3: 32 | AN3: 33 | AO3: 32 | AP3: 31 | AQ3: 32 | AR3: 33 | AS3: 33 | AT3: 33 | AU3: 34 | AV3: 31 | AW3: 33 | AX3: 33 | AY3: 31 | AZ3: 33 | BA3: 31 | BB3: 34 | BC3: =SUM(AL3:BB3) -> 552 | BD3: 33 | BE3: 33 | BF3: 34 | BG3: 31 | BH3: 35 | BI3: 32 | BJ3: 33 | BK3: 34 | BL3: 32 | BM3: 34 | BN3: 34 | BO3: 33 | BP3: 33 | BQ3: 34 | BR3: 34 | BS3: 33 | BT3: 34 | BU3: =SUM(BD3:BT3) -> 566 | BV3: Games Played
A4: Winning % | B4: =(15/33)*100 -> 45.45454545 | C4: =(21/33)*100 -> 63.63636364 | D4: =(23/34)*100 -> 67.64705882 | E4: =(25/34)*100 -> 73.52941176 | F4: =(22/35)*100 -> 62.85714286 | G4: =(23/34)*100 -> 67.64705882 | H4: =(24/33)*100 -> 72.72727273 | I4: =(27/33)*100 -> 81.81818182 | J4: =(25/33)*100 -> 75.75757576 | K4: =(20/31)*100 -> 64.51612903 | L4: =(24/32)*100 -> 75 | M4: =(25/31)*100 -> 80.64516129 | N4: =(25/32)*100 -> 78.125 | O4: =(23/34)*100 -> 67.64705882 | P4: =(26/35)*100 -> 74.28571429 | Q4: =(27/34)*100 -> 79.41176471 | R4: =(19/32)*100 -> 59.375 | S4: =AVERAGE(B4:R4) -> 70.00473175 | T4: =(20/33)*100 -> 60.60606061 | U4: =(22/31)*100 -> 70.96774194 | V4: =(20/33)*100 -> 60.60606061 | W4: =(21/31)*100 -> 67.74193548 | X4: =(22/34)*100 -> 64.70588235 | Y4: =(27/34)*100 -> 79.41176471 | Z4: =(25/33)*100 -> 75.75757576 | AA4: =(21/33)*100 -> 63.63636364 | AB4: =(27/34)*100 -> 79.41176471 | AC4: =(24/34)*100 -> 70.58823529 | AD4: =(25/32)*100 -> 78.125 | AE4: =(22/33)*100 -> 66.66666667 | AF4: =(28/34)*100 -> 82.35294118 | AG4: =(24/33)*100 -> 72.72727273 | AH4: =(21/33)*100 -> 63.63636364 | AI4: =(21/32)*100 -> 65.625 | AJ4: =(26/30)*100 -> 86.66666667 | AK4: =AVERAGE(T4:AJ4) -> 71.13137035 | AL4: =(25/33)*100 -> 75.75757576 | AM4: =(22/32)*100 -> 68.75 | AN4: =(20/33)*100 -> 60.60606061 | AO4: =(25/32)*100 -> 78.125 | AP4: =(20/31)*100 -> 64.51612903 | AQ4: =(27/32)*100 -> 84.375 | AR4: =(23/33)*100 -> 69.6969697 | AS4: =(27/33)*100 -> 81.81818182 | AT4: =(26/33)*100 -> 78.78787879 | AU4: =(24/34)*100 -> 70.58823529 | AV4: =(25/31)*100 -> 80.64516129 | AW4: =(28/33)*100 -> 84.84848485 | AX4: =(24/33)*100 -> 72.72727273 | AY4: =(30/31)*100 -> 96.77419355 | AZ4: =(25/33)*100 -> 75.75757576 | BA4: =(24/31)*100 -> 77.41935484 | BB4: =(26/34)*100 -> 76.47058824 | BC4: =AVERAGE(AL4:BB4) -> 76.3331566 | BD4: =(24/33)*100 -> 72.72727273 | BE4: =(25/33)*100 -> 75.75757576 | BF4: =(26/34)*100 -> 76.47058824 | BG4: =(23/31)*100 -> 74.19354839 | BH4: =(26/35)*100 -> 74.28571429 | BI4: =(27/32)*100 -> 84.375 | BJ4: =(24/33)*100 -> 72.72727273 | BK4: =(30/34)*100 -> 88.23529412 | BL4: =(25/32)*100 -> 78.125 | BM4: =(27/34)*100 -> 79.41176471 | BN4: =(27/34)*100 -> 79.41176471 | BO4: =(27/33)*100 -> 81.81818182 | BP4: =(27/33)*100 -> 81.81818182 | BQ4: =(27/34)*100 -> 79.41176471 | BR4: =(29/34)*100 -> 85.29411765 | BS4: =(31/33)*100 -> 93.93939394 | BT4: =(32/34)*100 -> 94.11764706 | BU4: =AVERAGE(BD4:BT4) -> 80.71294604 | BV4: Winning % | BY4: =_xlfn.QUARTILE.INC($B4:$BT4,1) -> 68.24596774 | BZ4: =_xlfn.QUARTILE.INC($B4:$BT4,2) -> 75.75757576 | CA4: =_xlfn.QUARTILE.INC($B4:$BT4,3) -> 79.41176471
A5: Scoring Margin | B5: -3.9 | C5: -0.8 | D5: 6.7 | E5: 2 | F5: 4.2 | G5: 7.7 | H5: 8.6 | I5: 11 | J5: 3.9 | K5: 6.3 | L5: 3.2 | M5: 8.4 | N5: 10.4 | O5: 6.1 | P5: 10.4 | Q5: 14.4 | R5: 5.4 | S5: =AVERAGE(B5:R5) -> 6.117647059 | T5: 2.5 | U5: 10.5 | V5: 7.4 | W5: 7.9 | X5: 5 | Y5: 9.3 | Z5: 12.8 | AA5: 6.6 | AB5: 10.6 | AC5: 8.1 | AD5: 10.9 | AE5: 6.5 | AF5: 8.7 | AG5: 11.2 | AH5: 4.1 | AI5: 7.8 | AJ5: 11 | AK5: =AVERAGE(T5:AJ5) -> 8.288235294 | AL5: 9.3 | AM5: 7.3 | AN5: 4.8 | AO5: 12.4 | AP5: 2 | AQ5: 13.1 | AR5: 12.5 | AS5: 14 | AT5: 8.6 | AU5: 7.8 | AV5: 10.3 | AW5: 10.2 | AX5: 12 | AY5: 13.1 | AZ5: 7.8 | BA5: 6.2 | BB5: 12 | BC5: =AVERAGE(AL5:BB5) -> 9.611764706 | BD5: 7.8 | BE5: 12.1 | BF5: 10.2 | BG5: 10.9 | BH5: 8.4 | BI5: 15.5 | BJ5: 5.9 | BK5: 14.5 | BL5: 11.1 | BM5: 10.9 | BN5: 17.1 | BO5: 13.8 | BP5: 10.6 | BQ5: 14.7 | BR5: 15.8 | BS5: 15.2 | BT5: 19 | BU5: =AVERAGE(BD5:BT5) -> 12.55882353 | BV5: Scoring Margin | BY5: =_xlfn.QUARTILE.INC($B5:$BT5,1) -> 6.55 | BZ5: =_xlfn.QUARTILE.INC($B5:$BT5,2) -> 9.3 | CA5: =_xlfn.QUARTILE.INC($B5:$BT5,3) -> 11.6
A6: Rebound Margin | B6: -1.4 | C6: 0.5 | D6: 3.6 | E6: 1.8 | F6: 2.1 | G6: 5.6 | H6: 1.3 | I6: 2.1 | J6: 2.9 | K6: 5 | L6: 3.8 | M6: -1 | N6: 7.1 | O6: 4.6 | P6: 8.1 | Q6: 2.6 | R6: 6 | S6: 3.217647059 | T6: 3.3 | U6: 3.6 | V6: 3.3 | W6: 5.4 | X6: 4.7 | Y6: 0.1 | Z6: 4.7 | AA6: -0.8 | AB6: 2.3 | AC6: 0.9 | AD6: 1.1 | AE6: -0.2 | AF6: -0.5 | AG6: 4.3 | AH6: 2.8 | AI6: 2.3 | AJ6: 4.6 | AK6: 2.464705882 | AL6: 2.6 | AM6: 4.5 | AN6: 4 | AO6: 1.5 | AP6: 1 | AQ6: 7.2 | AR6: 3.2 | AS6: 6.7 | AT6: 4.9 | AU6: 1.6 | AV6: 6.9 | AW6: 5.5 | AX6: 2.9 | AY6: 2.1 | AZ6: 4.6 | BA6: 0.7 | BB6: 4.2 | BC6: 3.770588235 | BD6: 4.3 | BE6: 4.1 | BF6: 1.2 | BG6: 5.6 | BH6: 2.5 | BI6: 6.5 | BJ6: -0.6 | BK6: 1 | BL6: -0.4 | BM6: 5 | BN6: 6.9 | BO6: 6.1 | BP6: 3.3 | BQ6: 9.6 | BR6: 11.4 | BS6: -0.8 | BT6: 7.3 | BU6: 4.294117647 | BV6: Rebound Margin | BY6: 1.55 | BZ6: 3.3 | CA6: 4.95
A7: Strength of Schedule | B7: 140 | C7: 311 | D7: 272 | E7: 308 | F7: 171 | G7: 216 | H7: 209 | I7: 290 | J7: 246 | K7: 112 | L7: 116 | M7: 202 | N7: 172 | O7: 71 | P7: 114 | Q7: 193 | R7: 17 | S7: 185.8823529 | T7: 28 | U7: 85 | V7: 18 | W7: 55 | X7: 26 | Y7: 163 | Z7: 101 | AA7: 27 | AB7: 161 | AC7: 65 | AD7: 145 | AE7: 39 | AF7: 154 | AG7: 86 | AH7: 35 | AI7: 30 | AJ7: 182 | AK7: 82.35294118 | AL7: 123 | AM7: 40 | AN7: 3 | AO7: 89 | AP7: 21 | AQ7: 103 | AR7: 24 | AS7: 81 | AT7: 58 | AU7: 6 | AV7: 78 | AW7: 102 | AX7: 14 | AY7: 157 | AZ7: 47 | BA7: 54 | BB7: 38 | BC7: 61.05882353 | BD7: 4 | BE7: 32 | BF7: 19 | BG7: 13 | BH7: 8 | BI7: 56 | BJ7: 11 | BK7: 69 | BL7: 16 | BM7: 9 | BN7: 7 | BO7: 10 | BP7: 2 | BQ7: 1 | BR7: 5 | BS7: 22 | BT7: 25 | BU7: 18.17647059 | BV7: Strength of Schedule | BY7: 21.5 | BZ7: 61.05882353 | CA7: 142.5
A8: Ratings Percentage Index | B8: 189 | C8: 143 | D8: 135 | E8: 128 | F8: 125 | G8: 106 | H8: 103 | I8: 91 | J8: 81 | K8: 79 | L8: 77 | M8: 73 | N8: 65 | O8: 62 | P8: 59 | Q8: 58 | R8: 56 | S8: 95.88235294 | T8: 53 | U8: 52 | V8: 50 | W8: 49 | X8: 48 | Y8: 47 | Z8: 46 | AA8: 45 | AB8: 43 | AC8: 42 | AD8: 41 | AE8: 40 | AF8: 39 | AG8: 38 | AH8: 37 | AI8: 36 | AJ8: 35 | AK8: 43.58823529 | AL8: 34 | AM8: 33 | AN8: 32 | AO8: 31 | AP8: 30 | AQ8: 29 | AR8: 28 | AS8: 27 | AT8: 26 | AU8: 25 | AV8: 24 | AW8: 23 | AX8: 22 | AY8: 21 | AZ8: 20 | BA8: 19 | BB8: 18 | BC8: 26 | BD8: 17 | BE8: 16 | BF8: 15 | BG8: 14 | BH8: 13 | BI8: 12 | BJ8: 11 | BK8: 10 | BL8: 9 | BM8: 8 | BN8: 7 | BO8: 6 | BP8: 5 | BQ8: 4 | BR8: 3 | BS8: 2 | BT8: 1 | BU8: 9 | BV8: Ratings Percentage Index | BY8: 18.5 | BZ8: 35 | CA8: 54.5
A9: Team Quartile Performance | B9: Bottom Quartile Performance | T9: Lower-Middle Quartile Performance | AL9: Upper-Middle Quartile Performance | BD9: Top Quartile Performance | BV9: Player Quartile Performance
A10: Points Per Game | B10: 64.5 | C10: 68.7 | D10: 68 | E10: 68.7 | F10: 72.3 | G10: 74.3 | H10: 80.8 | I10: 75.9 | J10: 81.8 | K10: 69.6 | L10: 67.6 | M10: 70.2 | N10: 77.9 | O10: 68.2 | P10: 78.8 | Q10: 82.1 | R10: 71.8 | S10: 73.01176471 | T10: 60.1 | U10: 62.7 | V10: 73.7 | W10: 71 | X10: 73.7 | Y10: 71.6 | Z10: 79 | AA10: 71.7 | AB10: 78.6 | AC10: 68.9 | AD10: 83.4 | AE10: 68 | AF10: 68.3 | AG10: 72 | AH10: 71.7 | AI10: 65.9 | AJ10: 65 | AK10: 70.9 | AL10: 73.8 | AM10: 73.3 | AN10: 68.6 | AO10: 68.8 | AP10: 70.8 | AQ10: 74.6 | AR10: 77.7 | AS10: 72.6 | AT10: 70.9 | AU10: 73.9 | AV10: 73.2 | AW10: 79.7 | AX10: 64 | AY10: 74.8 | AZ10: 71.6 | BA10: 75.6 | BB10: 78.4 | BC10: 73.07647059 | BD10: 69.6 | BE10: 77.6 | BF10: 74.7 | BG10: 69.6 | BH10: 70.7 | BI10: 78.3 | BJ10: 66.3 | BK10: 79.7 | BL10: 76.4 | BM10: 74.4 | BN10: 74.7 | BO10: 75 | BP10: 79 | BQ10: 72.5 | BR10: 81.9 | BS10: 75.8 | BT10: 77.8 | BU10: 74.94117647 | BV10: Points Per Game | BY10: 69.6 | BZ10: 73.01176471 | CA10: 76.15
B11: =PERCENTRANK($B10:$LZ10, B10) -> 0.04 | C11: =PERCENTRANK($B10:$BT10, C10) -> 0.185 | D11: =PERCENTRANK($B10:$LZ10, D10) -> 0.108 | E11: =PERCENTRANK($B10:$LZ10, E10) -> 0.175 | F11: =PERCENTRANK($B10:$LZ10, F10) -> 0.445 | G11: =PERCENTRANK($B10:$LZ10, G10) -> 0.608 | H11: =PERCENTRANK($B10:$BT10, H10) -> 0.942 | I11: =PERCENTRANK($B10:$LZ10, I10) -> 0.743 | J11: =PERCENTRANK($B10:$BT10, J10) -> 0.957 | K11: =PERCENTRANK($B10:$LZ10, K10) -> 0.229 | L11: =PERCENTRANK($B10:$LZ10, L10) -> 0.094 | M11: =PERCENTRANK($B10:$BT10, M10) -> 0.285 | N11: =PERCENTRANK($B10:$BT10, N10) -> 0.814 | O11: =PERCENTRANK($B10:$LZ10, O10) -> 0.135 | P11: =PERCENTRANK($B10:$LZ10, P10) -> 0.878 | Q11: =PERCENTRANK($B10:$LZ10, Q10) -> 0.986 | R11: =PERCENTRANK($B10:$BT10, R10) -> 0.428 | S11: 0.4736470588 | T11: =PERCENTRANK($B10:$BT10, T10) -> 0 | U11: =PERCENTRANK($B10:$BT10, U10) -> 0.014 | V11: =PERCENTRANK($B10:$BT10, V10) -> 0.557 | W11: =PERCENTRANK($B10:$BT10, W10) -> 0.357 | X11: =PERCENTRANK($B10:$LZ10, X10) -> 0.554 | Y11: =PERCENTRANK($B10:$LZ10, Y10) -> 0.364 | Z11: =PERCENTRANK($B10:$BT10, Z10) -> 0.885 | AA11: =PERCENTRANK($B10:$BT10, AA10) -> 0.4 | AB11: =PERCENTRANK($B10:$LZ10, AB10) -> 0.864 | AC11: =PERCENTRANK($B10:$BT10, AC10) -> 0.228 | AD11: =PERCENTRANK($B10:$BT10, AD10) -> 1 | AE11: =PERCENTRANK($B10:$BT10, AE10) -> 0.114 | AF11: =PERCENTRANK($B10:$LZ10, AF10) -> 0.148 | AG11: =PERCENTRANK($B10:$BT10, AG10) -> 0.442 | AH11: =PERCENTRANK($B10:$BT10, AH10) -> 0.4 | AI11: =PERCENTRANK($B10:$BT10, AI10) -> 0.071 | AJ11: =PERCENTRANK($B10:$BT10, AJ10) -> 0.057 | AK11: 0.3797058824 | AL11: =PERCENTRANK($B10:$BT10, AL10) -> 0.585 | AM11: 0.542 | AN11: 0.171 | AO11: 0.214 | AP11: 0.314 | AQ11: 0.642 | AR11: 0.785 | AS11: 0.485 | AT11: 0.342 | AU11: 0.6 | AV11: 0.528 | AW11: 0.914 | AX11: 0.028 | AY11: 0.685 | AZ11: 0.371 | BA11: 0.714 | BB11: 0.842 | BC11: 0.5154117647 | BD11: =PERCENTRANK($B10:$BT10, BD10) -> 0.242 | BE11: 0.771 | BF11: 0.657 | BG11: 0.242 | BH11: 0.3 | BI11: 0.828 | BJ11: 0.085 | BK11: 0.914 | BL11: 0.757 | BM11: 0.628 | BN11: 0.657 | BO11: 0.7 | BP11: 0.885 | BQ11: 0.471 | BR11: 0.971 | BS11: 0.728 | BT11: 0.8 | BU11: 0.6256470588 | BY11: 0.2355 | BZ11: 0.485 | CA11: 0.75
A12: Field Goal Percentage | B12: 39.4 | C12: 40 | D12: 44.6 | E12: 44 | F12: 45.2 | G12: 43.3 | H12: 48.2 | I12: 44.6 | J12: 47.4 | K12: 45.8 | L12: 42.2 | M12: 46.4 | N12: 44.5 | O12: 44.3 | P12: 47.7 | Q12: 48.7 | R12: 44.7 | S12: 44.76470588 | T12: 44 | U12: 46.1 | V12: 44.2 | W12: 43.7 | X12: 46 | Y12: 43.1 | Z12: 46.8 | AA12: 43.5 | AB12: 46.8 | AC12: 42 | AD12: 50.2 | AE12: 43.7 | AF12: 40.8 | AG12: 48.1 | AH12: 45.6 | AI12: 45.7 | AJ12: 46.3 | AK12: 45.09411765 | AL12: 47.4 | AM12: 45.2 | AN12: 45.2 | AO12: 45.3 | AP12: 47.5 | AQ12: 47.4 | AR12: 46.5 | AS12: 46 | AT12: 45.4 | AU12: 46.4 | AV12: 46.9 | AW12: 50.8 | AX12: 42.6 | AY12: 47.8 | AZ12: 41.6 | BA12: 47.4 | BB12: 46.8 | BC12: 46.24705882 | BD12: 45.1 | BE12: 49 | BF12: 49 | BG12: 46.2 | BH12: 43.2 | BI12: 49 | BJ12: 45.6 | BK12: 49.7 | BL12: 46.4 | BM12: 47.2 | BN12: 48.3 | BO12: 48.3 | BP12: 46.5 | BQ12: 47.6 | BR12: 46.2 | BS12: 47.1 | BT12: 48.8 | BU12: 47.24705882 | BV12: Field Goal Percentage | BY12: 44.55 | BZ12: 46.1 | CA12: 47.4
B13: =PERCENTRANK($B12:$LZ12, B12) -> 0 | C13: =PERCENTRANK($B12:$BT12, C12) -> 0.014 | D13: =PERCENTRANK($B12:$LZ12, D12) -> 0.256 | E13: =PERCENTRANK($B12:$LZ12, E12) -> 0.175 | F13: =PERCENTRANK($B12:$LZ12, F12) -> 0.337 | G13: =PERCENTRANK($B12:$LZ12, G12) -> 0.121 | H13: =PERCENTRANK($B12:$BT12, H12) -> 0.857 | I13: =PERCENTRANK($B12:$LZ12, I12) -> 0.256 | J13: =PERCENTRANK($B12:$BT12, J12) -> 0.728 | K13: =PERCENTRANK($B12:$LZ12, K12) -> 0.445 | L13: =PERCENTRANK($B12:$LZ12, L12) -> 0.067 | M13: =PERCENTRANK($B12:$BT12, M12) -> 0.571 | N13: =PERCENTRANK($B12:$BT12, N12) -> 0.242 | O13: =PERCENTRANK($B12:$LZ12, O12) -> 0.216 | P13: =PERCENTRANK($B12:$LZ12, P12) -> 0.824 | Q13: =PERCENTRANK($B12:$LZ12, Q12) -> 0.905 | R13: =PERCENTRANK($B12:$BT12, R12) -> 0.285 | S13: 0.3705294118 | T13: =PERCENTRANK($B12:$BT12, T12) -> 0.185 | U13: =PERCENTRANK($B12:$BT12, U12) -> 0.5 | V13: =PERCENTRANK($B12:$BT12, V12) -> 0.214 | W13: =PERCENTRANK($B12:$BT12, W12) -> 0.157 | X13: =PERCENTRANK($B12:$LZ12, X12) -> 0.459 | Y13: =PERCENTRANK($B12:$LZ12, Y12) -> 0.094 | Z13: =PERCENTRANK($B12:$BT12, Z12) -> 0.642 | AA13: =PERCENTRANK($B12:$BT12, AA12) -> 0.142 | AB13: =PERCENTRANK($B12:$LZ12, AB12) -> 0.635 | AC13: =PERCENTRANK($B12:$BT12, AC12) -> 0.057 | AD13: =PERCENTRANK($B12:$BT12, AD12) -> 0.985 | AE13: =PERCENTRANK($B12:$BT12, AE12) -> 0.157 | AF13: =PERCENTRANK($B12:$LZ12, AF12) -> 0.027 | AG13: =PERCENTRANK($B12:$BT12, AG12) -> 0.842 | AH13: =PERCENTRANK($B12:$BT12, AH12) -> 0.414 | AI13: =PERCENTRANK($B12:$BT12, AI12) -> 0.442 | AJ13: =PERCENTRANK($B12:$BT12, AJ12) -> 0.557 | AK13: 0.3828823529 | AL13: =PERCENTRANK($B12:$BT12, AL12) -> 0.728 | AM13: 0.342 | AN13: 0.342 | AO13: 0.385 | AP13: 0.785 | AQ13: 0.728 | AR13: 0.614 | AS13: 0.471 | AT13: 0.4 | AU13: 0.571 | AV13: 0.685 | AW13: 1 | AX13: 0.085 | AY13: 0.828 | AZ13: 0.042 | BA13: 0.728 | BB13: 0.642 | BC13: 0.5515294118 | BD13: =PERCENTRANK($B12:$BT12, BD12) -> 0.328 | BE13: 0.928 | BF13: 0.928 | BG13: 0.514 | BH13: 0.114 | BI13: 0.928 | BJ13: 0.414 | BK13: 0.971 | BL13: 0.571 | BM13: 0.714 | BN13: 0.871 | BO13: 0.871 | BP13: 0.614 | BQ13: 0.8 | BR13: 0.514 | BS13: 0.7 | BT13: 0.914 | BU13: 0.6878823529 | BY13: 0.249 | BZ13: 0.5 | CA13: 0.728
A14: 3 Point Percentage | B14: 29.9 | C14: 33.1 | D14: 34.7 | E14: 30.6 | F14: 30.3 | G14: 34 | H14: 36.1 | I14: 35.3 | J14: 37.3 | K14: 33.7 | L14: 33 | M14: 36.9 | N14: 34.1 | O14: 35.1 | P14: 33 | Q14: 37.7 | R14: 30.7 | S14: 33.85294118 | T14: 31.3 | U14: 33.8 | V14: 33.8 | W14: 33 | X14: 35.5 | Y14: 33.8 | Z14: 34.4 | AA14: 36.6 | AB14: 39.5 | AC14: 35.8 | AD14: 39.4 | AE14: 33.2 | AF14: 33.2 | AG14: 37.1 | AH14: 35.9 | AI14: 28.5 | AJ14: 34.7 | AK14: 34.67647059 | AL14: 35.8 | AM14: 38.3 | AN14: 32.7 | AO14: 36.3 | AP14: 41 | AQ14: 34.7 | AR14: 39.4 | AS14: 38.4 | AT14: 33.2 | AU14: 39.8 | AV14: 37.5 | AW14: 42.8 | AX14: 35.8 | AY14: 41.5 | AZ14: 36.3 | BA14: 40.5 | BB14: 37.2 | BC14: 37.71764706 | BD14: 33 | BE14: 42.6 | BF14: 36.8 | BG14: 35.3 | BH14: 32.2 | BI14: 37.2 | BJ14: 34.7 | BK14: 38.4 | BL14: 34.6 | BM14: 39 | BN14: 33.1 | BO14: 35.2 | BP14: 38.7 | BQ14: 35.2 | BR14: 34.8 | BS14: 34.2 | BT14: 37.6 | BU14: 36.03529412 | BV14: 3 Point Percentage | BY14: 33.75 | BZ14: 35.2 | CA14: 37.4
B15: 0.017 | C15: 0.238 | D15: 0.47 | E15: 0.049 | H15: 0.67 | I15: 0.554 | J15: 0.838 | K15: 0.305 | L15: 0.217 | M15: 0.796 | N15: 0.385 | O15: 0.529 | Q15: 0.866 | R15: 0.056 | S15: 0.4278571429 | U15: 0.329 | V15: 0.329 | W15: 0.217 | X15: 0.578 | Y15: 0.329 | Z15: 0.435 | AA15: 0.747 | AB15: 0.95 | AC15: 0.624 | AD15: 0.943 | AE15: 0.249 | AF15: 0.249 | AH15: 0.645 | AJ15: 0.47 | AK15: 0.5067142857 | AL15: 0.624 | AM15: 0.894 | AN15: 0.192 | AO15: 0.684 | AP15: 0.982 | AQ15: 0.47 | AR15: 0.943 | AS15: 0.905 | AT15: 0.249 | AU15: 0.957 | AV15: 0.845 | AW15: 0.996 | AX15: 0.624 | AY15: 0.989 | AZ15: 0.684 | BA15: 0.964 | BB15: 0.824 | BC15: 0.7544705882 | BD15: 0.217 | BE15: 0.992 | BF15: 0.771 | BG15: 0.554 | BH15: 0.147 | BI15: 0.824 | BJ15: 0.47 | BK15: 0.905 | BL15: 0.456 | BM15: 0.933 | BO15: 0.543 | BP15: 0.919 | BQ15: 0.543 | BR15: 0.498 | BS15: 0.407 | BT15: 0.856 | BU15: 0.6271875 | BY15: 0.371 | BZ15: 0.566 | CA15: 0.84775
A16: Free Throw Percentage | B16: 70.1 | C16: 65.4 | D16: 74.1 | E16: 65 | F16: 72.8 | G16: 71.7 | H16: 76 | I16: 78.4 | J16: 73 | K16: 76.9 | L16: 71.1 | M16: 71.3 | N16: 76.6 | O16: 69.6 | P16: 66.3 | Q16: 73.9 | R16: 66.1 | S16: 71.66470588 | T16: 70.5 | U16: 72.4 | V16: 73.1 | W16: 65.7 | X16: 72.5 | Y16: 68.2 | Z16: 71.1 | AA16: 64.8 | AB16: 72.6 | AC16: 64.1 | AD16: 71.8 | AE16: 71.7 | AF16: 70.1 | AG16: 75.1 | AH16: 69 | AI16: 71 | AJ16: 74.2 | AK16: 70.46470588 | AL16: 66.3 | AM16: 67.4 | AN16: 67.1 | AO16: 70.5 | AP16: 76.7 | AQ16: 72.6 | AR16: 70.3 | AS16: 69.5 | AT16: 69.4 | AU16: 70.6 | AV16: 71.7 | AW16: 72.9 | AX16: 73.6 | AY16: 73.3 | AZ16: 74.9 | BA16: 71.2 | BB16: 67.6 | BC16: 70.91764706 | BD16: 69.2 | BE16: 75.5 | BF16: 71.1 | BG16: 70.7 | BH16: 68.1 | BI16: 75.2 | BJ16: 70.8 | BK16: 77 | BL16: 72.2 | BM16: 74.6 | BN16: 69.7 | BO16: 69.3 | BP16: 69.5 | BQ16: 70.1 | BR16: 66.8 | BS16: 69.7 | BT16: 72.4 | BU16: 71.28823529 | BV16: Free Throw Percentage | BY16: 69.45 | BZ16: 71.1 | CA16: 72.95
B17: =PERCENTRANK($B16:$LZ16, B16) -> 0.324 | C17: =PERCENTRANK($B16:$BT16, C16) -> 0.042 | D17: =PERCENTRANK($B16:$LZ16, D16) -> 0.837 | E17: =PERCENTRANK($B16:$LZ16, E16) -> 0.027 | F17: =PERCENTRANK($B16:$LZ16, F16) -> 0.729 | G17: =PERCENTRANK($B16:$LZ16, G16) -> 0.594 | H17: =PERCENTRANK($B16:$BT16, H16) -> 0.928 | I17: =PERCENTRANK($B16:$LZ16, I16) -> 1 | J17: =PERCENTRANK($B16:$BT16, J16) -> 0.757 | K17: =PERCENTRANK($B16:$LZ16, K16) -> 0.972 | L17: =PERCENTRANK($B16:$LZ16, L16) -> 0.486 | M17: =PERCENTRANK($B16:$BT16, M16) -> 0.557 | N17: =PERCENTRANK($B16:$BT16, N16) -> 0.942 | O17: =PERCENTRANK($B16:$LZ16, O16) -> 0.283 | P17: =PERCENTRANK($B16:$LZ16, P16) -> 0.081 | Q17: =PERCENTRANK($B16:$LZ16, Q16) -> 0.824 | R17: =PERCENTRANK($B16:$BT16, R16) -> 0.071 | S17: 0.5561176471 | T17: =PERCENTRANK($B16:$BT16, T16) -> 0.4 | U17: =PERCENTRANK($B16:$BT16, U16) -> 0.657 | V17: =PERCENTRANK($B16:$BT16, V16) -> 0.771 | W17: =PERCENTRANK($B16:$BT16, W16) -> 0.057 | X17: =PERCENTRANK($B16:$LZ16, X16) -> 0.689 | Y17: =PERCENTRANK($B16:$LZ16, Y16) -> 0.175 | Z17: =PERCENTRANK($B16:$BT16, Z16) -> 0.5 | AA17: =PERCENTRANK($B16:$BT16, AA16) -> 0.014 | AB17: =PERCENTRANK($B16:$LZ16, AB16) -> 0.702 | AC17: =PERCENTRANK($B16:$BT16, AC16) -> 0 | AD17: =PERCENTRANK($B16:$BT16, AD16) -> 0.628 | AE17: =PERCENTRANK($B16:$BT16, AE16) -> 0.585 | AF17: =PERCENTRANK($B16:$LZ16, AF16) -> 0.324 | AG17: =PERCENTRANK($B16:$BT16, AG16) -> 0.885 | AH17: =PERCENTRANK($B16:$BT16, AH16) -> 0.2 | AI17: =PERCENTRANK($B16:$BT16, AI16) -> 0.485 | AJ17: =PERCENTRANK($B16:$BT16, AJ16) -> 0.842 | AK17: 0.4655294118 | AL17: =PERCENTRANK($B16:$BT16, AL16) -> 0.085 | AM17: 0.142 | AN17: 0.128 | AO17: 0.4 | AP17: 0.957 | AQ17: 0.7 | AR17: 0.371 | AS17: 0.257 | AT17: 0.242 | AU17: 0.428 | AV17: 0.585 | AW17: 0.742 | AX17: 0.8 | AY17: 0.785 | AZ17: 0.871 | BA17: 0.542 | BB17: 0.157 | BC17: 0.4818823529 | BD17: =PERCENTRANK($B16:$BT16, BD16) -> 0.214 | BE17: 0.914 | BF17: 0.5 | BG17: 0.442 | BH17: 0.171 | BI17: 0.9 | BJ17: 0.457 | BK17: 0.985 | BL17: 0.642 | BM17: 0.857 | BN17: 0.3 | BO17: 0.228 | BP17: 0.257 | BQ17: 0.328 | BR17: 0.114 | BS17: 0.3 | BT17: 0.657 | BU17: 0.4862352941 | BY17: 0.2495 | BZ17: 0.486 | CA17: 0.7495
A18: Assists Per Game | B18: 11.2 | C18: 13.5 | D18: 13.4 | E18: 11.9 | F18: 13 | G18: 13.3 | H18: 16.5 | I18: 13.3 | J18: 14.9 | K18: 13.7 | L18: 11.8 | M18: 14 | N18: 13.6 | O18: 12.3 | P18: 13.8 | Q18: 17.8 | R18: 14.9 | S18: 13.7 | T18: 12.2 | U18: 12.4 | V18: 12.5 | W18: 14.2 | X18: 16.3 | Y18: 13.3 | Z18: 17.3 | AA18: 13.4 | AB18: 14.4 | AC18: 13.1 | AD18: 19.5 | AE18: 14.7 | AF18: 12.4 | AG18: 16.1 | AH18: 14.1 | AI18: 12.7 | AJ18: 12.7 | AK18: 14.19411765 | AL18: 14 | AM18: 14.4 | AN18: 13.4 | AO18: 13.6 | AP18: 12.4 | AQ18: 16 | AR18: 15.2 | AS18: 16.3 | AT18: 12.5 | AU18: 13 | AV18: 13.3 | AW18: 18 | AX18: 11.7 | AY18: 13 | AZ18: 11.3 | BA18: 15.4 | BB18: 18.3 | BC18: 14.22352941 | BD18: 11.8 | BE18: 13.8 | BF18: 14.1 | BG18: 13.8 | BH18: 14.1 | BI18: 15 | BJ18: 13.2 | BK18: 16.1 | BL18: 17.3 | BM18: 15.1 | BN18: 15 | BO18: 15.8 | BP18: 12.8 | BQ18: 15.7 | BR18: 17.6 | BS18: 16.1 | BT18: 13.4 | BU18: 14.74705882 | BV18: Assists Per Game | BY18: 13 | BZ18: 13.8 | CA18: 15.15
B19: =PERCENTRANK($B18:$LZ18, B18) -> 0 | C19: =PERCENTRANK($B18:$BT18, C18) -> 0.414 | D19: =PERCENTRANK($B18:$LZ18, D18) -> 0.351 | E19: =PERCENTRANK($B18:$LZ18, E18) -> 0.067 | F19: =PERCENTRANK($B18:$LZ18, F18) -> 0.216 | G19: =PERCENTRANK($B18:$LZ18, G18) -> 0.297 | H19: =PERCENTRANK($B18:$BT18, H18) -> 0.9 | I19: =PERCENTRANK($B18:$LZ18, I18) -> 0.297 | J19: =PERCENTRANK($B18:$BT18, J18) -> 0.685 | K19: =PERCENTRANK($B18:$LZ18, K18) -> 0.445 | L19: =PERCENTRANK($B18:$LZ18, L18) -> 0.04 | M19: =PERCENTRANK($B18:$BT18, M18) -> 0.528 | N19: =PERCENTRANK($B18:$BT18, N18) -> 0.428 | O19: =PERCENTRANK($B18:$LZ18, O18) -> 0.094 | P19: =PERCENTRANK($B18:$LZ18, P18) -> 0.472 | Q19: =PERCENTRANK($B18:$LZ18, Q18) -> 0.959 | R19: =PERCENTRANK($B18:$BT18, R18) -> 0.685 | S19: 0.4045882353 | T19: =PERCENTRANK($B18:$BT18, T18) -> 0.085 | U19: =PERCENTRANK($B18:$BT18, U18) -> 0.114 | V19: =PERCENTRANK($B18:$BT18, V18) -> 0.157 | W19: =PERCENTRANK($B18:$BT18, W18) -> 0.614 | X19: =PERCENTRANK($B18:$LZ18, X18) -> 0.878 | Y19: =PERCENTRANK($B18:$LZ18, Y18) -> 0.297 | Z19: =PERCENTRANK($B18:$BT18, Z18) -> 0.914 | AA19: =PERCENTRANK($B18:$BT18, AA18) -> 0.357 | AB19: =PERCENTRANK($B18:$LZ18, AB18) -> 0.635 | AC19: =PERCENTRANK($B18:$BT18, AC18) -> 0.271 | AD19: =PERCENTRANK($B18:$BT18, AD18) -> 1 | AE19: =PERCENTRANK($B18:$BT18, AE18) -> 0.671 | AF19: =PERCENTRANK($B18:$LZ18, AF18) -> 0.108 | AG19: =PERCENTRANK($B18:$BT18, AG18) -> 0.828 | AH19: =PERCENTRANK($B18:$BT18, AH18) -> 0.557 | AI19: =PERCENTRANK($B18:$BT18, AI18) -> 0.185 | AJ19: =PERCENTRANK($B18:$BT18, AJ18) -> 0.185 | AK19: 0.4621176471 | AL19: =PERCENTRANK($B18:$BT18, AL18) -> 0.528 | AM19: 0.642 | AN19: 0.357 | AO19: 0.428 | AP19: 0.114 | AQ19: 0.814 | AR19: 0.757 | AS19: 0.871 | AT19: 0.157 | AU19: 0.228 | AV19: 0.3 | AW19: 0.971 | AX19: 0.028 | AY19: 0.228 | AZ19: 0.014 | BA19: 0.771 | BB19: 0.985 | BC19: 0.4819411765 | BD19: =PERCENTRANK($B18:$BT18, BD18) -> 0.042 | BE19: 0.485 | BF19: 0.557 | BG19: 0.485 | BH19: 0.557 | BI19: 0.714 | BJ19: 0.285 | BK19: 0.828 | BL19: 0.914 | BM19: 0.742 | BN19: 0.714 | BO19: 0.8 | BP19: 0.214 | BQ19: 0.785 | BR19: 0.942 | BS19: 0.828 | BT19: 0.357 | BU19: 0.6028823529 | BY19: 0.228 | BZ19: 0.472 | CA19: 0.7495
A20: Turn Overs Per Game | B20: 15.3 | C20: 15.2 | D20: 12.3 | E20: 15.7 | F20: 12.5 | G20: 12.7 | H20: 13.8 | I20: 11.4 | J20: 16.7 | K20: 14.5 | L20: 13.6 | M20: 12.9 | N20: 12 | O20: 13.2 | P20: 14.9 | Q20: 12.6 | R20: 13.2 | S20: 13.67647059 | T20: 13.6 | U20: 11.3 | V20: 12.8 | W20: 14.7 | X20: 12.9 | Y20: 13.3 | Z20: 13.1 | AA20: 8.6 | AB20: 10.5 | AC20: 10.8 | AD20: 12.5 | AE20: 10 | AF20: 11.6 | AG20: 11.8 | AH20: 13.4 | AI20: 13.1 | AJ20: 12.2 | AK20: 12.12941176 | AL20: 13.3 | AM20: 12.5 | AN20: 13.1 | AO20: 11.1 | AP20: 12.9 | AQ20: 11.7 | AR20: 11.4 | AS20: 14.1 | AT20: 12.8 | AU20: 13.7 | AV20: 13.7 | AW20: 12.5 | AX20: 9 | AY20: 14.1 | AZ20: 11.6 | BA20: 12.2 | BB20: 13.7 | BC20: 12.55294118 | BD20: 16.5 | BE20: 13.1 | BF20: 12.9 | BG20: 12.6 | BH20: 14.8 | BI20: 12.1 | BJ20: 10.6 | BK20: 10.5 | BL20: 12.7 | BM20: 14.2 | BN20: 11.8 | BO20: 13.5 | BP20: 12.4 | BQ20: 13.3 | BR20: 12 | BS20: 10.5 | BT20: 11.7 | BU20: 12.65882353 | BV20: Turn Overs Per Game | BY20: 11.9 | BZ20: 12.8 | CA20: 13.6
B21: =1-PERCENTRANK($B20:$LZ20, B20) -> 0.041 | C21: 0.055 | D21: 0.663 | E21: 0.028 | F21: 0.636 | G21: 0.528 | H21: 0.163 | I21: 0.865 | J21: 0 | K21: 0.109 | L21: 0.257 | M21: 0.46 | N21: 0.744 | O21: 0.352 | P21: 0.068 | Q21: 0.568 | R21: 0.352 | S21: 0.3464117647 | T21: =1-PERCENTRANK($B20:$LZ20, T20) -> 0.257 | U21: 0.879 | V21: 0.5 | W21: 0.095 | X21: 0.46 | Y21: 0.325 | Z21: 0.406 | AA21: 1 | AB21: 0.96 | AC21: 0.906 | AD21: 0.636 | AE21: 0.973 | AF21: 0.838 | AG21: 0.784 | AH21: 0.284 | AI21: 0.406 | AJ21: 0.69 | AK21: 0.6117058824 | AL21: =1-PERCENTRANK($B20:$LZ20, AL20) -> 0.325 | AM21: 0.636 | AN21: 0.406 | AO21: 0.892 | AP21: 0.46 | AQ21: 0.811 | AR21: 0.865 | AS21: 0.149 | AT21: 0.5 | AU21: 0.203 | AV21: 0.203 | AW21: 0.636 | AX21: 0.987 | AY21: 0.149 | AZ21: 0.838 | BA21: 0.69 | BB21: 0.203 | BC21: 0.5266470588 | BD21: =1-PERCENTRANK($B20:$LZ20, BD20) -> 0.014 | BE21: 0.406 | BF21: 0.46 | BG21: 0.568 | BH21: 0.082 | BI21: 0.717 | BJ21: 0.919 | BK21: 0.96 | BL21: 0.528 | BM21: 0.122 | BN21: 0.784 | BO21: 0.271 | BP21: 0.649 | BQ21: 0.325 | BR21: 0.744 | BS21: 0.96 | BT21: 0.811 | BU21: 0.5482352941 | BY21: 0.264 | BZ21: 0.5 | CA21: 0.764
B22: =AVERAGE(B24,B21,B19,B17,B15,B13,B11) -> 0.176 | C22: =AVERAGE(C24,C21,C19,C17,C15,C13,C11) -> 0.2608571429 | D22: 0.4414285714 | E22: 0.1574285714 | F22: 0.5041666667 | G22: 0.5155 | H22: 0.695 | I22: 0.5827142857 | J22: 0.661 | K22: 0.4252857143 | L22: 0.2931428571 | M22: 0.4644285714 | N22: 0.6255714286 | O22: 0.2471428571 | P22: 0.5491666667 | Q22: 0.8088571429 | R22: 0.409 | S22: 0.4598053221 | T22: 0.186 | U22: 0.3561428571 | V22: 0.4904285714 | W22: 0.3508571429 | X22: 0.6191428571 | Y22: 0.3458571429 | Z22: 0.5922857143 | AA22: 0.4474285714 | AB22: 0.705 | AC22: 0.4291428571 | AD22: 0.7782857143 | AE22: 0.4138571429 | AF22: 0.3538571429 | AG22: 0.6526666667 | AH22: 0.3937142857 | AI22: 0.3075 | AJ22: 0.404 | AK22: 0.4603627451 | AL22: 0.484 | AM22: 0.4934285714 | AN22: 0.338 | AO22: 0.4501428571 | AP22: 0.5178571429 | AQ22: 0.6682857143 | AR22: 0.6984285714 | AS22: 0.5118571429 | AT22: 0.3027142857 | AU22: 0.4517142857 | AV22: 0.5014285714 | AW22: 0.7628571429 | AX22: 0.38 | AY22: 0.5715714286 | AZ22: 0.536 | BA22: 0.6568571429 | BB22: 0.6048571429 | BC22: 0.5252941176 | BD22: 0.2417142857 | BE22: 0.6788571429 | BF22: 0.5648571429 | BG22: 0.474 | BH22: 0.3192857143 | BI22: 0.7381428571 | BJ22: 0.3795714286 | BK22: 0.8042857143 | BL22: 0.6432857143 | BM22: 0.677 | BN22: 0.6578333333 | BO22: 0.5454285714 | BP22: 0.6 | BQ22: 0.5591428571 | BR22: =AVERAGE(BR24,BR21,BR19,BR17,BR15,BR13,BR11) -> 0.6832857143 | BS22: 0.68 | BT22: 0.7397142857 | BU22: 0.5874355742 | BY22: 0.3988571429 | BZ22: 0.5041666667 | CA22: 0.6479761905
A23: Offensive Rebounds Per Game | B23: 12.5 | C23: 13.2 | D23: 11.1 | E23: 11.6 | F23: 11.9 | G23: 14.1 | H23: 11.1 | I23: 11 | J23: 11.9 | K23: 11.3 | L23: 13.3 | M23: 9.1 | N23: 12.6 | O23: 9.9 | P23: 14.6 | Q23: 11.5 | R23: 15 | S23: 12.1 | T23: 10.5 | U23: 8.1 | V23: 13.4 | W23: 14.2 | X23: 12.1 | Y23: 12.7 | Z23: 11 | AA23: 11.3 | AB23: 10.5 | AC23: 13.5 | AD23: 10.8 | AE23: 10.3 | AF23: 12.4 | AG23: 10 | AH23: 10.8 | AI23: 10.8 | AJ23: 8.5 | AK23: 11.22941176 | AL23: 11.4 | AM23: 10.8 | AN23: 12.3 | AO23: 10.3 | AP23: 8.2 | AQ23: 11.4 | AR23: 11.5 | AS23: 11.2 | AT23: 10.7 | AU23: 10.4 | AV23: 11 | AW23: 9.5 | AX23: 9.7 | AY23: 10.9 | AZ23: 13.9 | BA23: 10.5 | BB23: 11.6 | BC23: 10.9 | BD23: 11.8 | BE23: 10.8 | BF23: 9.5 | BG23: 11.4 | BH23: 13.1 | BI23: 10.8 | BJ23: 8.5 | BK23: 9.2 | BL23: 11.8 | BM23: 12.2 | BN23: 11.7 | BO23: 11.1 | BP23: 11.9 | BQ23: 11.9 | BR23: 16.6 | BS23: 12.7 | BT23: 12.4 | BU23: 11.61176471 | BV23: Offensive Rebounds Per Game | BY23: 10.75 | BZ23: 11.3 | CA23: 12.25
B24: =PERCENTRANK($B23:$LZ23, B23) -> 0.81 | C24: 0.878 | D24: 0.405 | E24: 0.581 | F24: 0.662 | G24: 0.945 | H24: 0.405 | I24: 0.364 | J24: 0.662 | K24: 0.472 | L24: 0.891 | M24: 0.054 | N24: 0.824 | O24: 0.121 | P24: 0.972 | Q24: 0.554 | R24: 0.986 | S24: 0.6227058824 | T24: =PERCENTRANK($B23:$LZ23, T23) -> 0.189 | U24: 0 | V24: 0.905 | W24: 0.959 | X24: 0.716 | Y24: 0.837 | Z24: 0.364 | AA24: 0.472 | AB24: 0.189 | AC24: 0.918 | AD24: 0.256 | AE24: 0.148 | AF24: 0.783 | AG24: 0.135 | AH24: 0.256 | AI24: 0.256 | AJ24: 0.027 | AK24: 0.4358823529 | AL24: =PERCENTRANK($B23:$LZ23, AL23) -> 0.513 | AM24: 0.256 | AN24: 0.77 | AO24: 0.148 | AP24: 0.013 | AQ24: 0.513 | AR24: 0.554 | AS24: 0.445 | AT24: 0.229 | AU24: 0.175 | AV24: 0.364 | AW24: 0.081 | AX24: 0.108 | AY24: 0.337 | AZ24: 0.932 | BA24: 0.189 | BB24: 0.581 | BC24: 0.3651764706 | BD24: =PERCENTRANK($B23:$LZ23, BD23) -> 0.635 | BE24: 0.256 | BF24: 0.081 | BG24: 0.513 | BH24: 0.864 | BI24: 0.256 | BJ24: 0.027 | BK24: 0.067 | BL24: 0.635 | BM24: 0.743 | BN24: 0.621 | BO24: 0.405 | BP24: 0.662 | BQ24: 0.662 | BR24: 1 | BS24: 0.837 | BT24: 0.783 | BU24: 0.5321764706 | BY24: 0.2425 | BZ24: 0.472 | CA24: 0.7565
A25: Overall Offensive Skill Set % Tile Ranking | B25: =PERCENTRANK($B22:$LZ22,B22) -> 0.013 | C25: =PERCENTRANK($B22:$BT22,C22) -> 0.071 | D25: =PERCENTRANK($B22:$LZ22,D22) -> 0.324 | E25: =PERCENTRANK($B22:$LZ22,E22) -> 0 | F25: =PERCENTRANK($B22:$LZ22,F22) -> 0.486 | G25: =PERCENTRANK($B22:$LZ22,G22) -> 0.527 | H25: =PERCENTRANK($B22:$BT22,H22) -> 0.885 | I25: =PERCENTRANK($B22:$LZ22,I22) -> 0.648 | J25: =PERCENTRANK($B22:$BT22,J22) -> 0.8 | K25: =PERCENTRANK($B22:$LZ22,K22) -> 0.297 | L25: =PERCENTRANK($B22:$LZ22,L22) -> 0.081 | M25: =PERCENTRANK($B22:$BT22,M22) -> 0.414 | N25: =PERCENTRANK($B22:$BT22,N22) -> 0.728 | O25: =PERCENTRANK($B22:$LZ22,O22) -> 0.054 | P25: =PERCENTRANK($B22:$LZ22,P22) -> 0.594 | Q25: =PERCENTRANK($B22:$LZ22,Q22) -> 1 | R25: =PERCENTRANK($B22:$BT22,R22) -> 0.271 | S25: 0.4231176471 | T25: =PERCENTRANK($B22:$BT22,T22) -> 0.028 | U25: =PERCENTRANK($B22:$BT22,U22) -> 0.2 | V25: =PERCENTRANK($B22:$BT22,V22) -> 0.457 | W25: =PERCENTRANK($B22:$BT22,W22) -> 0.171 | X25: =PERCENTRANK($B22:$LZ22,X22) -> 0.716 | Y25: =PERCENTRANK($B22:$LZ22,Y22) -> 0.148 | Z25: =PERCENTRANK($B22:$BT22,Z22) -> 0.671 | AA25: =PERCENTRANK($B22:$BT22,AA22) -> 0.342 | AB25: =PERCENTRANK($B22:$LZ22,AB22) -> 0.918 | AC25: =PERCENTRANK($B22:$BT22,AC22) -> 0.314 | AD25: =PERCENTRANK($B22:$BT22,AD22) -> 0.971 | AE25: =PERCENTRANK($B22:$BT22,AE22) -> 0.285 | AF25: =PERCENTRANK($B22:$LZ22,AF22) -> 0.175 | AG25: =PERCENTRANK($B22:$BT22,AG22) -> 0.757 | AH25: =PERCENTRANK($B22:$BT22,AH22) -> 0.242 | AI25: =PERCENTRANK($B22:$BT22,AI22) -> 0.114 | AJ25: =PERCENTRANK($B22:$BT22,AJ22) -> 0.257 | AK25: 0.398 | AL25: =PERCENTRANK($B22:$BT22,AL22) -> 0.442 | AM25: 0.471 | AN25: 0.142 | AO25: 0.357 | AP25: 0.542 | AQ25: 0.814 | AR25: 0.9 | AS25: 0.514 | AT25: 0.1 | AU25: 0.371 | AV25: 0.485 | AW25: 0.957 | AX25: 0.228 | AY25: 0.642 | AZ25: 0.571 | BA25: 0.771 | BB25: 0.7 | BC25: 0.5298235294 | BD25: =PERCENTRANK($B22:$BT22,BD22) -> 0.042 | BE25: 0.842 | BF25: 0.628 | BG25: 0.428 | BH25: 0.128 | BI25: 0.928 | BJ25: 0.214 | BK25: 0.985 | BL25: 0.742 | BM25: 0.828 | BN25: 0.785 | BO25: 0.585 | BP25: 0.685 | BQ25: 0.614 | BR25: 0.871 | BS25: 0.857 | BT25: 0.942 | BU25: 0.6531764706 | BV25: Overall Offensive Skill Set % Tile Ranking | BY25: 0.2495 | BZ25: 0.486 | CA25: 0.7495
A26: Rebounds Per Game | B26: 35.4 | C26: 37.7 | D26: 35.1 | E26: 36.4 | F26: 34.4 | G26: 39.6 | H26: 34.8 | I26: 36 | J26: 38.9 | K26: 35 | L26: 35.6 | M26: 32.7 | N26: 38.9 | O26: 37 | P26: 39.9 | Q26: 36 | R26: 37.9 | S26: 36.54705882 | T26: 34 | U26: 32.7 | V26: 36.2 | W26: 38.1 | X26: 37.3 | Y26: 35 | Z26: 39 | AA26: 33.3 | AB26: 34.7 | AC26: 36.6 | AD26: 35.2 | AE26: 34.4 | AF26: 34.4 | AG26: 34.8 | AH26: 37.1 | AI26: 35.1 | AJ26: 32.8 | AK26: 35.33529412 | AL26: 35.1 | AM26: 36.4 | AN26: 38 | AO26: 32.9 | AP26: 31.3 | AQ26: 36.7 | AR26: 36.2 | AS26: 38.4 | AT26: 37.3 | AU26: 34.8 | AV26: 37.1 | AW26: 35.7 | AX26: 34.4 | AY26: 33.6 | AZ26: 36.8 | BA26: 34.6 | BB26: 38.7 | BC26: 35.76470588 | BD26: 37.6 | BE26: 34.8 | BF26: 34.5 | BG26: 36.1 | BH26: 38.8 | BI26: 37.7 | BJ26: 31.1 | BK26: 32.4 | BL26: 35.2 | BM26: 36.5 | BN26: 36.4 | BO26: 37.3 | BP26: 37 | BQ26: 39.1 | BR26: 45.9 | BS26: 35.5 | BT26: 39.2 | BU26: 36.77058824 | BV26: Defensive Rebounds Per Game | BY26: 34.8 | BZ26: 36 | CA26: 37.3
B27: =PERCENTRANK($B26:$LZ26,B26) -> 0.405 | C27: =PERCENTRANK($B26:$BT26,C26) -> 0.785 | D27: =PERCENTRANK($B26:$LZ26,D26) -> 0.324 | E27: =PERCENTRANK($B26:$LZ26,E26) -> 0.554 | F27: =PERCENTRANK($B26:$LZ26,F26) -> 0.135 | G27: =PERCENTRANK($B26:$LZ26,G26) -> 0.972 | H27: =PERCENTRANK($B26:$BT26,H26) -> 0.242 | I27: =PERCENTRANK($B26:$LZ26,I26) -> 0.472 | J27: =PERCENTRANK($B26:$BT26,J26) -> 0.9 | K27: =PERCENTRANK($B26:$LZ26,K26) -> 0.297 | L27: =PERCENTRANK($B26:$LZ26,L26) -> 0.432 | M27: =PERCENTRANK($B26:$BT26,M26) -> 0.042 | N27: =PERCENTRANK($B26:$BT26,N26) -> 0.9 | O27: =PERCENTRANK($B26:$LZ26,O26) -> 0.675 | P27: =PERCENTRANK($B26:$LZ26,P26) -> 0.986 | Q27: =PERCENTRANK($B26:$LZ26,Q26) -> 0.472 | R27: =PERCENTRANK($B26:$BT26,R26) -> 0.814 | S27: 0.5533529412 | T27: =PERCENTRANK($B26:$BT26,T26) -> 0.128 | U27: =PERCENTRANK($B26:$BT26,U26) -> 0.042 | V27: =PERCENTRANK($B26:$BT26,V26) -> 0.528 | W27: =PERCENTRANK($B26:$BT26,W26) -> 0.842 | X27: =PERCENTRANK($B26:$LZ26,X26) -> 0.729 | Y27: =PERCENTRANK($B26:$LZ26,Y26) -> 0.297 | Z27: =PERCENTRANK($B26:$BT26,Z26) -> 0.928 | AA27: =PERCENTRANK($B26:$BT26,AA26) -> 0.1 | AB27: =PERCENTRANK($B26:$LZ26,AB26) -> 0.216 | AC27: =PERCENTRANK($B26:$BT26,AC26) -> 0.628 | AD27: =PERCENTRANK($B26:$BT26,AD26) -> 0.371 | AE27: =PERCENTRANK($B26:$BT26,AE26) -> 0.142 | AF27: =PERCENTRANK($B26:$LZ26,AF26) -> 0.135 | AG27: =PERCENTRANK($B26:$BT26,AG26) -> 0.242 | AH27: =PERCENTRANK($B26:$BT26,AH26) -> 0.7 | AI27: =PERCENTRANK($B26:$BT26,AI26) -> 0.328 | AJ27: =PERCENTRANK($B26:$BT26,AJ26) -> 0.071 | AK27: 0.3780588235 | AL27: =PERCENTRANK($B26:$BT26,AL26) -> 0.328 | AM27: 0.557 | AN27: 0.828 | AO27: 0.085 | AP27: 0.014 | AQ27: 0.642 | AR27: 0.528 | AS27: 0.857 | AT27: 0.728 | AU27: 0.242 | AV27: 0.7 | AW27: 0.457 | AX27: 0.142 | AY27: 0.114 | AZ27: 0.657 | BA27: 0.214 | BB27: 0.871 | BC27: 0.4684705882 | BD27: =PERCENTRANK($B26:$BT26,BD26) -> 0.771 | BE27: 0.242 | BF27: 0.2 | BG27: 0.514 | BH27: 0.885 | BI27: 0.785 | BJ27: 0 | BK27: 0.028 | BL27: 0.371 | BM27: 0.6 | BN27: 0.557 | BO27: 0.728 | BP27: 0.671 | BQ27: 0.942 | BR27: 1 | BS27: 0.428 | BT27: 0.957 | BU27: 0.5693529412 | BY27: 0.242 | BZ27: 0.472 | CA27: 0.7285
A28: Steals Per Game | B28: 6 | C28: 8.6 | D28: 6.3 | E28: 7.4 | F28: 7.3 | G28: 8.6 | H28: 8.4 | I28: 7.6 | J28: 6.2 | K28: 6.1 | L28: 8.1 | M28: 7.4 | N28: 5.6 | O28: 5.5 | P28: 6.9 | Q28: 7.7 | R28: 6.4 | S28: 7.064705882 | T28: 5.7 | U28: 6.5 | V28: 6.9 | W28: 6.1 | X28: 7 | Y28: 9.3 | Z28: 8.5 | AA28: 6.8 | AB28: 6.6 | AC28: 7.8 | AD28: 7.2 | AE28: 5.1 | AF28: 10.6 | AG28: 4.9 | AH28: 6.4 | AI28: 7.7 | AJ28: 6 | AK28: 7.005882353 | AL28: 7.3 | AM28: 5.9 | AN28: 6.1 | AO28: 7.3 | AP28: 5.3 | AQ28: 7.2 | AR28: 6.7 | AS28: 7.4 | AT28: 5.8 | AU28: 6 | AV28: 6.7 | AW28: 5 | AX28: 5.3 | AY28: 8.4 | AZ28: 5.7 | BA28: 6.8 | BB28: 8.6 | BC28: 6.558823529 | BD28: 8 | BE28: 6.6 | BF28: 7.9 | BG28: 6.4 | BH28: 9.3 | BI28: 6.3 | BJ28: 4.9 | BK28: 8.5 | BL28: 8.9 | BM28: 8 | BN28: 7.4 | BO28: 7.4 | BP28: 6.2 | BQ28: 7.6 | BR28: 7 | BS28: 9.9 | BT28: 6.5 | BU28: 7.458823529 | BV28: Steals Per Game | BY28: 6.15 | BZ28: 6.9 | CA28: 7.7
B29: =PERCENTRANK($B28:$LZ28,B28) -> 0.162 | C29: =PERCENTRANK($B28:$BT28,C28) -> 0.9 | D29: =PERCENTRANK($B28:$LZ28,D28) -> 0.283 | E29: =PERCENTRANK($B28:$LZ28,E28) -> 0.635 | F29: =PERCENTRANK($B28:$LZ28,F28) -> 0.594 | G29: =PERCENTRANK($B28:$LZ28,G28) -> 0.905 | H29: =PERCENTRANK($B28:$BT28,H28) -> 0.842 | I29: =PERCENTRANK($B28:$LZ28,I28) -> 0.716 | J29: =PERCENTRANK($B28:$BT28,J28) -> 0.257 | K29: =PERCENTRANK($B28:$LZ28,K28) -> 0.202 | L29: =PERCENTRANK($B28:$LZ28,L28) -> 0.837 | M29: =PERCENTRANK($B28:$BT28,M28) -> 0.642 | N29: =PERCENTRANK($B28:$BT28,N28) -> 0.1 | O29: =PERCENTRANK($B28:$LZ28,O28) -> 0.081 | P29: =PERCENTRANK($B28:$LZ28,P28) -> 0.472 | Q29: =PERCENTRANK($B28:$LZ28,Q28) -> 0.743 | R29: =PERCENTRANK($B28:$BT28,R28) -> 0.314 | S29: 0.5108823529 | T29: =PERCENTRANK($B28:$BT28,T28) -> 0.114 | U29: =PERCENTRANK($B28:$BT28,U28) -> 0.357 | V29: =PERCENTRANK($B28:$BT28,V28) -> 0.485 | W29: =PERCENTRANK($B28:$BT28,W28) -> 0.214 | X29: =PERCENTRANK($B28:$LZ28,X28) -> 0.513 | Y29: =PERCENTRANK($B28:$LZ28,Y28) -> 0.959 | Z29: =PERCENTRANK($B28:$BT28,Z28) -> 0.871 | AA29: =PERCENTRANK($B28:$BT28,AA28) -> 0.457 | AB29: =PERCENTRANK($B28:$LZ28,AB28) -> 0.391 | AC29: =PERCENTRANK($B28:$BT28,AC28) -> 0.771 | AD29: =PERCENTRANK($B28:$BT28,AD28) -> 0.571 | AE29: =PERCENTRANK($B28:$BT28,AE28) -> 0.042 | AF29: =PERCENTRANK($B28:$LZ28,AF28) -> 1 | AG29: =PERCENTRANK($B28:$BT28,AG28) -> 0 | AH29: =PERCENTRANK($B28:$BT28,AH28) -> 0.314 | AI29: =PERCENTRANK($B28:$BT28,AI28) -> 0.742 | AJ29: =PERCENTRANK($B28:$BT28,AJ28) -> 0.171 | AK29: 0.4689411765 | AL29: =PERCENTRANK($B28:$BT28,AL28) -> 0.6 | AM29: 0.157 | AN29: 0.214 | AO29: 0.6 | AP29: 0.057 | AQ29: 0.571 | AR29: 0.428 | AS29: 0.642 | AT29: 0.142 | AU29: 0.171 | AV29: 0.428 | AW29: 0.028 | AX29: 0.057 | AY29: 0.842 | AZ29: 0.114 | BA29: 0.457 | BB29: 0.9 | BC29: 0.3769411765 | BD29: =PERCENTRANK($B28:$BT28,BD28) -> 0.8 | BE29: 0.4 | BF29: 0.785 | BG29: 0.314 | BH29: 0.957 | BI29: 0.285 | BJ29: 0 | BK29: 0.871 | BL29: 0.942 | BM29: 0.8 | BN29: 0.642 | BO29: 0.642 | BP29: 0.257 | BQ29: 0.714 | BR29: 0.514 | BS29: 0.985 | BT29: 0.357 | BU29: 0.6038235294 | BY29: 0.2355 | BZ29: 0.472 | CA29: 0.7425
A30: Blocks Per Game | B30: 3.9 | C30: 2.4 | D30: 2.5 | E30: 4.9 | F30: 4.7 | G30: 4.1 | H30: 2.7 | I30: 3 | J30: 3.3 | K30: 4.3 | L30: 4.3 | M30: 3.6 | N30: 3.3 | O30: 3.3 | P30: 4.1 | Q30: 2.1 | R30: 2.5 | S30: 3.470588235 | T30: 3.8 | U30: 2.9 | V30: 3.9 | W30: 4.8 | X30: 4.3 | Y30: 3 | Z30: 4.3 | AA30: 3.6 | AB30: 1.9 | AC30: 4.6 | AD30: 2.2 | AE30: 3.6 | AF30: 3.7 | AG30: 3.1 | AH30: 3.7 | AI30: 4.5 | AJ30: 4.8 | AK30: 3.688235294 | AL30: 2.6 | AM30: 2.8 | AN30: 6.5 | AO30: 3 | AP30: 1.9 | AQ30: 3.3 | AR30: 3.4 | AS30: 3.4 | AT30: 2.5 | AU30: 4.4 | AV30: 3.4 | AW30: 2.3 | AX30: 3.7 | AY30: 4.2 | AZ30: 3.2 | BA30: 4.2 | BB30: 4.8 | BC30: 3.505882353 | BD30: 6.1 | BE30: 3.5 | BF30: 5.8 | BG30: 4.9 | BH30: 4.9 | BI30: 3.9 | BJ30: 2.1 | BK30: 2.8 | BL30: 3.6 | BM30: 5 | BN30: 2.8 | BO30: 5.8 | BP30: 4 | BQ30: 4.2 | BR30: 6.1 | BS30: 7.2 | BT30: 9.1 | BU30: 4.811764706 | BV30: Blocks Per Game | BY30: 3 | BZ30: 3.688235294 | CA30: 4.35
B31: =PERCENTRANK($B30:$LZ30,B30) -> 0.567 | C31: =PERCENTRANK($B30:$BT30,C30) -> 0.085 | D31: =PERCENTRANK($B30:$LZ30,D30) -> 0.094 | E31: =PERCENTRANK($B30:$LZ30,E30) -> 0.864 | F31: =PERCENTRANK($B30:$LZ30,F30) -> 0.797 | G31: =PERCENTRANK($B30:$LZ30,G30) -> 0.621 | H31: =PERCENTRANK($B30:$BT30,H30) -> 0.157 | I31: =PERCENTRANK($B30:$LZ30,I30) -> 0.216 | J31: =PERCENTRANK($B30:$BT30,J30) -> 0.3 | K31: =PERCENTRANK($B30:$LZ30,K30) -> 0.689 | L31: =PERCENTRANK($B30:$LZ30,L30) -> 0.689 | M31: =PERCENTRANK($B30:$BT30,M30) -> 0.442 | N31: =PERCENTRANK($B30:$BT30,N30) -> 0.3 | O31: =PERCENTRANK($B30:$LZ30,O30) -> 0.297 | P31: =PERCENTRANK($B30:$LZ30,P30) -> 0.621 | Q31: =PERCENTRANK($B30:$LZ30,Q30) -> 0.027 | R31: =PERCENTRANK($B30:$BT30,R30) -> 0.1 | S31: 0.4038823529 | T31: =PERCENTRANK($B30:$BT30,T30) -> 0.557 | U31: =PERCENTRANK($B30:$BT30,U30) -> 0.214 | V31: =PERCENTRANK($B30:$BT30,V30) -> 0.571 | W31: =PERCENTRANK($B30:$BT30,W30) -> 0.814 | X31: =PERCENTRANK($B30:$LZ30,X30) -> 0.689 | Y31: =PERCENTRANK($B30:$LZ30,Y30) -> 0.216 | Z31: =PERCENTRANK($B30:$BT30,Z30) -> 0.7 | AA31: =PERCENTRANK($B30:$BT30,AA30) -> 0.442 | AB31: =PERCENTRANK($B30:$LZ30,AB30) -> 0 | AC31: =PERCENTRANK($B30:$BT30,AC30) -> 0.785 | AD31: =PERCENTRANK($B30:$BT30,AD30) -> 0.057 | AE31: =PERCENTRANK($B30:$BT30,AE30) -> 0.442 | AF31: =PERCENTRANK($B30:$LZ30,AF30) -> 0.513 | AG31: =PERCENTRANK($B30:$BT30,AG30) -> 0.271 | AH31: =PERCENTRANK($B30:$BT30,AH30) -> 0.514 | AI31: =PERCENTRANK($B30:$BT30,AI30) -> 0.771 | AJ31: =PERCENTRANK($B30:$BT30,AJ30) -> 0.814 | AK31: 0.4923529412 | AL31: =PERCENTRANK($B30:$BT30,AL30) -> 0.142 | AM31: 0.171 | AN31: 0.971 | AO31: 0.228 | AP31: 0 | AQ31: 0.3 | AR31: 0.357 | AS31: 0.357 | AT31: 0.1 | AU31: 0.757 | AV31: 0.357 | AW31: 0.071 | AX31: 0.514 | AY31: 0.657 | AZ31: 0.285 | BA31: 0.657 | BB31: 0.814 | BC31: 0.3963529412 | BD31: =PERCENTRANK($B30:$BT30,BD30) -> 0.942 | BE31: 0.414 | BF31: 0.914 | BG31: 0.857 | BH31: 0.857 | BI31: 0.571 | BJ31: 0.028 | BK31: 0.171 | BL31: 0.442 | BM31: 0.9 | BN31: 0.171 | BO31: 0.914 | BP31: 0.614 | BQ31: 0.657 | BR31: 0.942 | BS31: 0.985 | BT31: 1 | BU31: 0.6693529412 | BY31: 0.222 | BZ31: 0.4923529412 | CA31: 0.7285
A32: Opponents Points Per Game | B32: 68.4 | C32: 69.5 | D32: 61.3 | E32: 66.8 | F32: 68.1 | G32: 66.6 | H32: 72.2 | I32: 64.9 | J32: 77.9 | K32: 63.3 | L32: 64.3 | M32: 61.8 | N32: 67.5 | O32: 62.1 | P32: 68.3 | Q32: 67.6 | R32: 66.4 | S32: 66.88235294 | T32: 57.7 | U32: 52.2 | V32: 66.3 | W32: 63 | X32: 68.7 | Y32: 62.3 | Z32: 66.2 | AA32: 65.1 | AB32: 68 | AC32: 60.8 | AD32: 72.5 | AE32: 61.5 | AF32: 59.6 | AG32: 60.8 | AH32: 67.6 | AI32: 58.1 | AJ32: 54 | AK32: 62.61176471 | AL32: 64.5 | AM32: 66 | AN32: 63.8 | AO32: 56.4 | AP32: 68.7 | AQ32: 61.5 | AR32: 65.2 | AS32: 58.6 | AT32: 62.3 | AU32: 66.1 | AV32: 63 | AW32: 69.5 | AX32: 52 | AY32: 61.7 | AZ32: 63.9 | BA32: 69.4 | BB32: 66.3 | BC32: 63.46470588 | BD32: 61.9 | BE32: 65.4 | BF32: 64.5 | BG32: 58.7 | BH32: 62.2 | BI32: 62.8 | BJ32: 60.4 | BK32: 65.2 | BL32: 65.3 | BM32: 63.6 | BN32: 57.6 | BO32: 61.2 | BP32: 68.3 | BQ32: 57.8 | BR32: 66.1 | BS32: 60.6 | BT32: 58.8 | BU32: 62.37647059 | BV32: Opponents Points Per Game | BY32: 61.4 | BZ32: 63.9 | CA32: 66.7
B33: =1-(PERCENTRANK($B32:$LZ32,B32)) -> 0.109 | C33: =1-(PERCENTRANK($B32:$BT32,C32)) -> 0.058 | D33: =1-(PERCENTRANK($B32:$LZ32,D32)) -> 0.771 | E33: =1-(PERCENTRANK($B32:$LZ32,E32)) -> 0.23 | F33: =1-(PERCENTRANK($B32:$LZ32,F32)) -> 0.149 | G33: =1-(PERCENTRANK($B32:$LZ32,G32)) -> 0.257 | H33: =1-(PERCENTRANK($B32:$BT32,H32)) -> 0.029 | I33: =1-(PERCENTRANK($B32:$LZ32,I32)) -> 0.433 | J33: =1-(PERCENTRANK($B32:$BT32,J32)) -> 0 | K33: =1-(PERCENTRANK($B32:$LZ32,K32)) -> 0.555 | L33: =1-(PERCENTRANK($B32:$LZ32,L32)) -> 0.473 | M33: =1-(PERCENTRANK($B32:$BT32,M32)) -> 0.7 | N33: =1-(PERCENTRANK($B32:$BT32,N32)) -> 0.215 | O33: =1-(PERCENTRANK($B32:$LZ32,O32)) -> 0.676 | P33: =1-(PERCENTRANK($B32:$LZ32,P32)) -> 0.136 | Q33: =1-(PERCENTRANK($B32:$LZ32,Q32)) -> 0.19 | R33: =1-(PERCENTRANK($B32:$BT32,R32)) -> 0.272 | S33: 0.309 | T33: =1-(PERCENTRANK($B32:$BT32,T32)) -> 0.929 | U33: =1-(PERCENTRANK($B32:$BT32,U32)) -> 0.986 | V33: =1-(PERCENTRANK($B32:$BT32,V32)) -> 0.3 | W33: =1-(PERCENTRANK($B32:$BT32,W32)) -> 0.586 | X33: =1-(PERCENTRANK($B32:$LZ32,X32)) -> 0.095 | Y33: =1-(PERCENTRANK($B32:$LZ32,Y32)) -> 0.649 | Z33: =1-(PERCENTRANK($B32:$BT32,Z32)) -> 0.315 | AA33: =1-(PERCENTRANK($B32:$BT32,AA32)) -> 0.429 | AB33: =1-(PERCENTRANK($B32:$LZ32,AB32)) -> 0.163 | AC33: =1-(PERCENTRANK($B32:$BT32,AC32)) -> 0.8 | AD33: =1-(PERCENTRANK($B32:$BT32,AD32)) -> 0.015 | AE33: =1-(PERCENTRANK($B32:$BT32,AE32)) -> 0.743 | AF33: =1-(PERCENTRANK($B32:$LZ32,AF32)) -> 0.852 | AG33: =1-(PERCENTRANK($B32:$BT32,AG32)) -> 0.8 | AH33: =1-(PERCENTRANK($B32:$BT32,AH32)) -> 0.2 | AI33: =1-(PERCENTRANK($B32:$BT32,AI32)) -> 0.9 | AJ33: =1-(PERCENTRANK($B32:$BT32,AJ32)) -> 0.972 | AK33: 0.5725882353 | AL33: =1-(PERCENTRANK($B32:$BT32,AL32)) -> 0.472 | AM33: 0.358 | AN33: 0.515 | AO33: 0.958 | AP33: 0.1 | AQ33: 0.743 | AR33: 0.415 | AS33: 0.886 | AT33: 0.643 | AU33: 0.343 | AV33: 0.586 | AW33: 0.058 | AX33: 1 | AY33: 0.715 | AZ33: 0.5 | BA33: 0.072 | BB33: 0.3 | BC33: 0.5096470588 | BD33: =1-(PERCENTRANK($B32:$BT32,BD32)) -> 0.686 | BE33: 0.372 | BF33: 0.472 | BG33: 0.872 | BH33: 0.658 | BI33: 0.6 | BJ33: 0.829 | BK33: 0.415 | BL33: 0.386 | BM33: 0.529 | BN33: 0.943 | BO33: 0.772 | BP33: 0.143 | BQ33: 0.915 | BR33: 0.343 | BS33: 0.815 | BT33: 0.858 | BU33: 0.624 | BY33: 0.2645 | BZ33: 0.5 | CA33: 0.757
A34: Opponent Field Goal Percentage | B34: 43.2 | C34: 43.3 | D34: 41.4 | E34: 40.8 | F34: 43.9 | G34: 42.8 | H34: 44.8 | I34: 41.5 | J34: 44.6 | K34: 41 | L34: 43.3 | M34: 40.2 | N34: 43.1 | O34: 39.9 | P34: 42.6 | Q34: 42.5 | R34: 44.6 | S34: 42.55882353 | T34: 39.4 | U34: 38.7 | V34: 40.6 | W34: 39.6 | X34: 42.2 | Y34: 40.9 | Z34: 40.6 | AA34: 43.8 | AB34: 45.2 | AC34: 41.3 | AD34: 44.6 | AE34: 40.6 | AF34: 42.3 | AG34: 40.8 | AH34: 39.9 | AI34: 38.4 | AJ34: 40.2 | AK34: 41.12352941 | AL34: 42.4 | AM34: 43.5 | AN34: 38.5 | AO34: 40.5 | AP34: 43.6 | AQ34: 42.3 | AR34: 42.4 | AS34: 37.8 | AT34: 39.7 | AU34: 42.2 | AV34: 41.4 | AW34: 44.1 | AX34: 38 | AY34: 42.1 | AZ34: 43.6 | BA34: 43.4 | BB34: 40.8 | BC34: 41.54705882 | BD34: 37.6 | BE34: 42.2 | BF34: 38.7 | BG34: 38.6 | BH34: 37.6 | BI34: 39.7 | BJ34: 42.4 | BK34: 44.2 | BL34: 40.8 | BM34: 40.7 | BN34: 40.3 | BO34: 38.1 | BP34: 43.3 | BQ34: 37.1 | BR34: 38.6 | BS34: 38.6 | BT34: 36.5 | BU34: 39.70588235 | BV34: Opponent Field Goal Percentage | BY34: 39.8 | BZ34: 41.3 | CA34: 42.95
B35: =1-(PERCENTRANK($B34:$LZ34,B34)) -> 0.217 | C35: =1-(PERCENTRANK($B34:$BT34,C34)) -> 0.215 | D35: =1-(PERCENTRANK($B34:$LZ34,D34)) -> 0.473 | E35: =1-(PERCENTRANK($B34:$LZ34,E34)) -> 0.595 | F35: =1-(PERCENTRANK($B34:$LZ34,F34)) -> 0.095 | G35: =1-(PERCENTRANK($B34:$LZ34,G34)) -> 0.257 | H35: =1-(PERCENTRANK($B34:$BT34,H34)) -> 0.015 | I35: =1-(PERCENTRANK($B34:$LZ34,I34)) -> 0.446 | J35: =1-(PERCENTRANK($B34:$BT34,J34)) -> 0.058 | K35: =1-(PERCENTRANK($B34:$LZ34,K34)) -> 0.528 | L35: =1-(PERCENTRANK($B34:$LZ34,L34)) -> 0.203 | M35: =1-(PERCENTRANK($B34:$BT34,M34)) -> 0.715 | N35: =1-(PERCENTRANK($B34:$BT34,N34)) -> 0.243 | O35: =1-(PERCENTRANK($B34:$LZ34,O34)) -> 0.73 | P35: =1-(PERCENTRANK($B34:$LZ34,P34)) -> 0.271 | Q35: =1-(PERCENTRANK($B34:$LZ34,Q34)) -> 0.298 | R35: =1-(PERCENTRANK($B34:$BT34,R34)) -> 0.058 | S35: 0.3186470588 | T35: =1-(PERCENTRANK($B34:$BT34,T34)) -> 0.8 | U35: =1-(PERCENTRANK($B34:$BT34,U34)) -> 0.829 | V35: =1-(PERCENTRANK($B34:$BT34,V34)) -> 0.658 | W35: =1-(PERCENTRANK($B34:$BT34,W34)) -> 0.786 | X35: =1-(PERCENTRANK($B34:$LZ34,X34)) -> 0.406 | Y35: =1-(PERCENTRANK($B34:$LZ34,Y34)) -> 0.541 | Z35: =1-(PERCENTRANK($B34:$BT34,Z34)) -> 0.658 | AA35: =1-(PERCENTRANK($B34:$BT34,AA34)) -> 0.115 | AB35: =1-(PERCENTRANK($B34:$LZ34,AB34)) -> 0 | AC35: =1-(PERCENTRANK($B34:$BT34,AC34)) -> 0.5 | AD35: =1-(PERCENTRANK($B34:$BT34,AD34)) -> 0.058 | AE35: =1-(PERCENTRANK($B34:$BT34,AE34)) -> 0.658 | AF35: =1-(PERCENTRANK($B34:$LZ34,AF34)) -> 0.365 | AG35: =1-(PERCENTRANK($B34:$BT34,AG34)) -> 0.6 | AH35: =1-(PERCENTRANK($B34:$BT34,AH34)) -> 0.743 | AI35: =1-(PERCENTRANK($B34:$BT34,AI34)) -> 0.9 | AJ35: =1-(PERCENTRANK($B34:$BT34,AJ34)) -> 0.715 | AK35: 0.5489411765 | AL35: =1-(PERCENTRANK($B34:$BT34,AL34)) -> 0.343 | AM35: 0.158 | AN35: 0.886 | AO35: 0.672 | AP35: 0.143 | AQ35: 0.372 | AR35: 0.343 | AS35: 0.943 | AT35: 0.772 | AU35: 0.415 | AV35: 0.486 | AW35: 0.086 | AX35: 0.929 | AY35: 0.429 | AZ35: 0.143 | BA35: 0.172 | BB35: 0.6 | BC35: 0.4642352941 | BD35: =1-(PERCENTRANK($B34:$BT34,BD34)) -> 0.972 | BE35: 0.415 | BF35: 0.829 | BG35: 0.872 | BH35: 0.972 | BI35: 0.772 | BJ35: 0.343 | BK35: 0.072 | BL35: 0.6 | BM35: 0.615 | BN35: 0.686 | BO35: 0.915 | BP35: 0.215 | BQ35: 0.986 | BR35: 0.872 | BS35: 0.872 | BT35: 1 | BU35: 0.7063529412 | BY35: 0.25 | BZ35: 0.5 | CA35: 0.7575
A36: Opponent 3 Point Percentage | B36: 33.3 | C36: 38.1 | D36: 33 | E36: 28.7 | F36: 37.9 | G36: 35.4 | H36: 35.8 | I36: 32.5 | J36: 33 | K36: 31.9 | L36: 36.3 | M36: 34 | N36: 34.1 | O36: 32.4 | P36: 32.5 | Q36: 34.2 | R36: 31.7 | S36: 33.81176471 | T36: 30 | U36: 28.2 | V36: 34.8 | W36: 31.2 | X36: 35.3 | Y36: 28.8 | Z36: 30.9 | AA36: 36 | AB36: 31.9 | AC36: 30.7 | AD36: 35.3 | AE36: 30.7 | AF36: 31.3 | AG36: 32.4 | AH36: 31.1 | AI36: 28.4 | AJ36: 32.8 | AK36: 31.75294118 | AL36: 33.1 | AM36: 30.2 | AN36: 34.8 | AO36: 30.4 | AP36: 35.3 | AQ36: 36.6 | AR36: 34.9 | AS36: 30.3 | AT36: 33.4 | AU36: 31.9 | AV36: 31.5 | AW36: 36.2 | AX36: 28.1 | AY36: 29.7 | AZ36: 33.6 | BA36: 32.2 | BB36: 33.8 | BC36: 32.70588235 | BD36: 30.4 | BE36: 33.5 | BF36: 32.6 | BG36: 28.5 | BH36: 32.1 | BI36: 31.2 | BJ36: 34.1 | BK36: 36 | BL36: 33.1 | BM36: 33.2 | BN36: 30.9 | BO36: 34.6 | BP36: 31.1 | BQ36: 28.2 | BR36: 31.6 | BS36: 31.1 | BT36: 32.4 | BU36: 32.03529412 | BV36: Opponent 3 Point Percentage | BY36: 31.1 | BZ36: 32.5 | CA36: 34.1
B37: =1-(PERCENTRANK($B36:$LZ36,B36)) -> 0.352 | C37: =1-(PERCENTRANK($B36:$BT36,C36)) -> 0 | D37: =1-(PERCENTRANK($B36:$LZ36,D36)) -> 0.419 | E37: =1-(PERCENTRANK($B36:$LZ36,E36)) -> 0.933 | F37: =1-(PERCENTRANK($B36:$LZ36,F36)) -> 0.014 | G37: =1-(PERCENTRANK($B36:$LZ36,G36)) -> 0.109 | H37: =1-(PERCENTRANK($B36:$BT36,H36)) -> 0.1 | I37: =1-(PERCENTRANK($B36:$LZ36,I36)) -> 0.5 | J37: =1-(PERCENTRANK($B36:$BT36,J36)) -> 0.429 | K37: =1-(PERCENTRANK($B36:$LZ36,K36)) -> 0.622 | L37: =1-(PERCENTRANK($B36:$LZ36,L36)) -> 0.041 | M37: =1-(PERCENTRANK($B36:$BT36,M36)) -> 0.272 | N37: =1-(PERCENTRANK($B36:$BT36,N36)) -> 0.258 | O37: =1-(PERCENTRANK($B36:$LZ36,O36)) -> 0.541 | P37: =1-(PERCENTRANK($B36:$LZ36,P36)) -> 0.5 | Q37: =1-(PERCENTRANK($B36:$LZ36,Q36)) -> 0.217 | R37: =1-(PERCENTRANK($B36:$BT36,R36)) -> 0.643 | S37: 0.35 | T37: =1-(PERCENTRANK($B36:$BT36,T36)) -> 0.886 | U37: =1-(PERCENTRANK($B36:$BT36,U36)) -> 0.986 | V37: =1-(PERCENTRANK($B36:$BT36,V36)) -> 0.2 | W37: =1-(PERCENTRANK($B36:$BT36,W36)) -> 0.715 | X37: =1-(PERCENTRANK($B36:$LZ36,X36)) -> 0.149 | Y37: =1-(PERCENTRANK($B36:$LZ36,Y36)) -> 0.919 | Z37: =1-(PERCENTRANK($B36:$BT36,Z36)) -> 0.786 | AA37: =1-(PERCENTRANK($B36:$BT36,AA36)) -> 0.086 | AB37: =1-(PERCENTRANK($B36:$LZ36,AB36)) -> 0.622 | AC37: =1-(PERCENTRANK($B36:$BT36,AC36)) -> 0.815 | AD37: =1-(PERCENTRANK($B36:$BT36,AD36)) -> 0.158 | AE37: =1-(PERCENTRANK($B36:$BT36,AE36)) -> 0.815 | AF37: =1-(PERCENTRANK($B36:$LZ36,AF36)) -> 0.69 | AG37: =1-(PERCENTRANK($B36:$BT36,AG36)) -> 0.543 | AH37: =1-(PERCENTRANK($B36:$BT36,AH36)) -> 0.758 | AI37: =1-(PERCENTRANK($B36:$BT36,AI36)) -> 0.958 | AJ37: =1-(PERCENTRANK($B36:$BT36,AJ36)) -> 0.443 | AK37: 0.6193529412 | AL37: =1-(PERCENTRANK($B36:$BT36,AL36)) -> 0.4 | AM37: 0.872 | AN37: 0.2 | AO37: 0.843 | AP37: 0.158 | AQ37: 0.029 | AR37: 0.172 | AS37: 0.858 | AT37: 0.343 | AU37: 0.615 | AV37: 0.672 | AW37: 0.058 | AX37: 1 | AY37: 0.9 | AZ37: 0.315 | BA37: 0.558 | BB37: 0.3 | BC37: 0.4878235294 | BD37: =1-(PERCENTRANK($B36:$BT36,BD36)) -> 0.843 | BE37: 0.329 | BF37: 0.472 | BG37: 0.943 | BH37: 0.572 | BI37: 0.715 | BJ37: 0.258 | BK37: 0.086 | BL37: 0.4 | BM37: 0.372 | BN37: 0.786 | BO37: 0.215 | BP37: 0.758 | BQ37: 0.986 | BR37: 0.658 | BS37: 0.758 | BT37: 0.543 | BU37: 0.5702352941 | BY37: 0.258 | BZ37: 0.5 | CA37: 0.758
A38: Opponents Rebounds Per Game | B38: 36.8 | C38: 37.3 | D38: 31.5 | E38: 34.7 | F38: 32.3 | G38: 34.1 | H38: 33.5 | I38: 33.9 | J38: 36 | K38: 30 | L38: 31.8 | M38: 33.6 | N38: 31.9 | O38: 32.4 | P38: 31.8 | Q38: 33.4 | R38: 31.8 | S38: 33.34117647 | T38: 30.7 | U38: 29 | V38: 32.9 | W38: 32.8 | X38: 32.6 | Y38: 34.9 | Z38: 34.3 | AA38: 34.2 | AB38: 32.5 | AC38: 35.6 | AD38: 34.1 | AE38: 34.6 | AF38: 34.9 | AG38: 30.5 | AH38: 34.3 | AI38: 32.9 | AJ38: 28.3 | AK38: 32.88823529 | AL38: 32.5 | AM38: 31.9 | AN38: 33.9 | AO38: 31.4 | AP38: 30.3 | AQ38: 29.5 | AR38: 33 | AS38: 31.7 | AT38: 32.4 | AU38: 33.2 | AV38: 30.3 | AW38: 30.2 | AX38: 31.5 | AY38: 31.4 | AZ38: 32.2 | BA38: 34 | BB38: 34.5 | BC38: 31.99411765 | BD38: 33.3 | BE38: 30.7 | BF38: 33.3 | BG38: 30.5 | BH38: 36.3 | BI38: 31.2 | BJ38: 31.7 | BK38: 31.4 | BL38: 35.6 | BM38: 31.6 | BN38: 29.6 | BO38: 31.2 | BP38: 33.8 | BQ38: 29.5 | BR38: 34.4 | BS38: 36.3 | BT38: 31.9 | BU38: 32.48823529 | BV38: Opponents Rebounds Per Game | BY38: 31.45 | BZ38: 32.5 | CA38: 34.05
A39: Overall Defensive Skill Set % Tile Ranking | B39: =AVERAGE(B37,B35,B33,B31,B29,B27) -> 0.302 | C39: 0.3405 | D39: 0.394 | E39: 0.6351666667 | F39: 0.2973333333 | G39: 0.5201666667 | H39: 0.2308333333 | I39: 0.4638333333 | J39: 0.324 | K39: 0.4821666667 | L39: 0.4458333333 | M39: 0.4688333333 | N39: 0.336 | O39: 0.5 | P39: 0.4976666667 | Q39: 0.3245 | R39: 0.3668333333 | S39: 0.407627451 | T39: =AVERAGE(T37,T35,T33,T31,T29,T27) -> 0.569 | U39: 0.569 | V39: 0.457 | W39: 0.6595 | X39: 0.4301666667 | Y39: 0.5968333333 | Z39: 0.7096666667 | AA39: 0.2715 | AB39: 0.232 | AC39: 0.7165 | AD39: 0.205 | AE39: 0.4736666667 | AF39: 0.5925 | AG39: 0.4093333333 | AH39: 0.5381666667 | AI39: 0.7665 | AJ39: 0.531 | AK39: 0.513372549 | AL39: =AVERAGE(AL37,AL35,AL33,AL31,AL29,AL27) -> 0.3808333333 | AM39: 0.3788333333 | AN39: 0.6023333333 | AO39: 0.5643333333 | AP39: 0.07866666667 | AQ39: 0.4428333333 | AR39: 0.3738333333 | AS39: 0.7571666667 | AT39: 0.4546666667 | AU39: 0.4238333333 | AV39: 0.5381666667 | AW39: 0.1263333333 | AX39: 0.607 | AY39: 0.6095 | AZ39: 0.3356666667 | BA39: 0.355 | BB39: 0.6308333333 | BC39: 0.4505784314 | BD39: =AVERAGE(BD37,BD35,BD33,BD31,BD29,BD27) -> 0.8356666667 | BE39: 0.362 | BF39: 0.612 | BG39: 0.7286666667 | BH39: 0.8168333333 | BI39: 0.6213333333 | BJ39: 0.243 | BK39: 0.2738333333 | BL39: 0.5235 | BM39: 0.636 | BN39: 0.6308333333 | BO39: 0.6976666667 | BP39: 0.443 | BQ39: 0.8666666667 | BR39: 0.7215 | BS39: 0.8071666667 | BT39: 0.7858333333 | BU39: 0.6238529412 | BV39: Overall Defensive Skill Set % Tile Ranking | BY39: 0.3703333333 | BZ39: 0.4821666667 | CA39: 0.6166666667

Sheet P2010 (hidden)
A1: 2012 NCAA March Madness "Eye Chart"
A2: Performance Management "Eye Chart"™ NCAA March Madness 2012 338 Teams | B2: Binghamton | C2: South Carolina St. | D2: Grambling | E2: Alabama A&M | F2: UC Davis | G2: Northern Ill. | H2: Longwood | I2: Alcorn St. | J2: UMBC | K2: Northern Ariz. | L2: Chicago St. | M2: Kennesaw St. | N2: Fairleigh Dickinson | O2: Southeastern La. | P2: Canisius | Q2: Navy | R2: Radford | S2: UT Martin | T2: Florida A&M | U2: Dartmouth | V2: Citadel | W2: Cal St. Northridge | X2: Houston Baptist | Y2: A&M-Corpus Chris | Z2: Arkansas St. | AA2: La.-Monroe | AB2: Central Ark. | AC2: Sacramento St. | AD2: Jackson St. | AE2: Brown | AF2: Saint Francis (PA) | AG2: Hampton | AH2: NJIT | AI2: Md.-East. Shore | AJ2: Hartford | AK2: Towson | AL2: Loyola Chicago | AM2: Alabama St. | AN2: Chattanooga | AO2: Prairie View | AP2: Colgate | AQ2: Army | AR2: Ill.-Chicago | AS2: Saint Peter's | AT2: Morgan St. | AU2: New Hampshire | AV2: Southern U. | AW2: Tex.-Pan American | AX2: William & Mary | AY2: Gardner-Webb | AZ2: Howard | BA2: Santa Clara | BB2: Mt. St. Mary's | BC2: Eastern Ill. | BD2: Central Mich. | BE2: Nicholls St. | BF2: Pacific | BG2: Liberty | BH2: Maine | BI2: VMI | BJ2: IPFW | BK2: N.C. A&T | BL2: Idaho St. | BM2: Winthrop | BN2: Texas St. | BO2: San Jose St. | BP2: Sam Houston St. | BQ2: Montana St. | BR2: High Point | BS2: UC Irvine | BT2: Utah | BU2: Stetson | BV2: Coppin St. | BW2: UMKC | BX2: Appalachian St. | BY2: Jacksonville | BZ2: Pepperdine | CA2: Samford | CB2: Bethune-Cookman | CC2: Hofstra | CD2: Bradley | CE2: Northern Colo. | CF2: Southern California | CG2: Troy | CH2: Southern Ill. | CI2: Ave. Bottom Quartile Team | CJ2: Southeast Mo. St. | CK2: Ball St. | CL2: James Madison | CM2: Rhode Island | CN2: Arizona St. | CO2: UC Riverside | CP2: N.C. Central | CQ2: Arkansas | CR2: Furman | CS2: Southern Utah | CT2: Toledo | CU2: Texas Southern | CV2: Western Caro. | CW2: Elon | CX2: FIU | CY2: Fla. Gulf Coast | CZ2: UNC Greensboro | DA2: Sacred Heart | DB2: Miami (OH) | DC2: Boston College | DD2: Texas Tech | DE2: Siena | DF2: Monmouth | DG2: Portland | DH2: Central Conn. St. | DI2: Eastern Mich. | DJ2: Marist | DK2: Jacksonville St. | DL2: Stephen F. Austin | DM2: Lipscomb | DN2: Western Ky. | DO2: UNC Wilmington | DP2: SMU | DQ2: Fordham | DR2: Albany (NY) | DS2: Northwestern St. | DT2: Wright St. | DU2: Eastern Ky. | DV2: CSU Bakersfield | DW2: Cal Poly | DX2: Utah Valley | DY2: IUPUI | DZ2: Eastern Wash. | EA2: Lafayette | EB2: Houston | EC2: Fresno St. | ED2: Tulane | EE2: Delaware St. | EF2: Niagara | EG2: St. Francis (NY) | EH2: North Texas | EI2: UTSA | EJ2: DePaul | EK2: Campbell | EL2: Rider | EM2: San Diego | EN2: Fla. Atlantic | EO2: Ga. Southern | EP2: Louisiana Tech | EQ2: Hawaii | ER2: East Carolina | ES2: Savannah St. | ET2: McNeese St. | EU2: East Tenn. St. | EV2: Western Mich. | EW2: Western Ill. | EX2: Austin Peay | EY2: South Carolina | EZ2: Boston U. | FA2: Washington St. | FB2: Columbia | FC2: La.-Lafayette | FD2: Portland St. | FE2: Northeastern | FF2: South Ala. | FG2: North Dakota St. | FH2: Morehead St. | FI2: Coastal Caro. | FJ2: Georgia Tech | FK2: Youngstown St. | FL2: Cornell | FM2: George Washington | FN2: North Florida | FO2: Wofford | FP2: Ave. Lower-Middle Quartile Team | FQ2: Charleston So. | FR2: Quinnipiac | FS2: UALR | FT2: Boise St. | FU2: Holy Cross | FV2: Air Force | FW2: Texas A&M | FX2: Charlotte | FY2: Wake Forest | FZ2: Rice | GA2: Vermont | GB2: Providence | GC2: Cal St. Fullerton | GD2: Tennessee Tech | GE2: Idaho | GF2: Utah St. | GG2: Oregon St. | GH2: Penn St. | GI2: Detroit | GJ2: Mississippi Val. | GK2: San Francisco | GL2: American | GM2: Stony Brook | GN2: Delaware | GO2: Auburn | GP2: Manhattan | GQ2: Georgia St. | GR2: Bowling Green | GS2: Evansville | GT2: Clemson | GU2: Green Bay | GV2: Rutgers | GW2: Norfolk St. | GX2: Oakland | GY2: UTEP | GZ2: Lamar | HA2: St. John's (NY) | HB2: Drake | HC2: UCLA | HD2: Indiana St. | HE2: Iowa | HF2: Nebraska | HG2: S.C. Upstate | HH2: Illinois St. | HI2: Fairfield | HJ2: Richmond | HK2: Tennessee St. | HL2: Mercer | HM2: Robert Morris | HN2: Oklahoma | HO2: Butler | HP2: UNC Asheville | HQ2: UC Santa Barbara | HR2: Villanova | HS2: Milwaukee | HT2: Loyola Marymount | HU2: Old Dominion | HV2: Missouri St. | HW2: Oklahoma St. | HX2: Col. of Charleston | HY2: UAB | HZ2: Georgia | IA2: Kent St. | IB2: Stanford | IC2: Duquesne | ID2: Lehigh | IE2: Virginia Tech | IF2: Montana | IG2: Maryland | IH2: St. Bonaventure | II2: Princeton | IJ2: Tulsa | IK2: Pittsburgh | IL2: Yale | IM2: LIU Brooklyn | IN2: Penn | IO2: Buffalo | IP2: Tennessee | IQ2: Denver | IR2: TCU | IS2: Valparaiso | IT2: La Salle | IU2: Loyola Maryland | IV2: Wagner | IW2: Ave. Upper-Middle Quartile Team | IX2: Minnesota | IY2: Texas-Arlington | IZ2: George Mason | JA2: Ark.-Pine Bluff | JB2: Massachusetts | JC2: Bucknell | JD2: Wyoming | JE2: Cleveland St. | JF2: Cincinnati | JG2: Colorado | JH2: Weber St. | JI2: Illinois | JJ2: Ohio | JK2: North Carolina St. | JL2: New Mexico St. | JM2: Ole Miss | JN2: Arizona | JO2: LSU | JP2: Drexel | JQ2: UCF | JR2: Mississippi St. | JS2: Davidson | JT2: UNI | JU2: Marshall | JV2: Dayton | JW2: VCU | JX2: Belmont | JY2: Akron | JZ2: South Dakota St. | KA2: Nevada | KB2: Texas | KC2: Xavier | KD2: Oregon | KE2: Washington | KF2: Saint Joseph's | KG2: West Virginia | KH2: BYU | KI2: Miami (FL) | KJ2: Middle Tenn. | KK2: South Fla. | KL2: Kansas St. | KM2: Seton Hall | KN2: Northwestern | KO2: Oral Roberts | KP2: Notre Dame | KQ2: Purdue | KR2: Iona | KS2: Virginia | KT2: Harvard | KU2: California | KV2: Saint Louis | KW2: New Mexico | KX2: Long Beach St. | KY2: St. Mary's (CA) | KZ2: Iowa St. | LA2: Connecticut | LB2: Murray St. | LC2: San Diego St. | LD2: Colorado St. | LE2: Florida St. | LF2: Alabama | LG2: Creighton | LH2: Vanderbilt | LI2: Memphis | LJ2: Louisville | LK2: Wisconsin | LL2: Florida | LM2: Gonzaga | LN2: Indiana | LO2: Missouri | LP2: Michigan | LQ2: Temple | LR2: Southern Miss. | LS2: Georgetown | LT2: UNLV | LU2: Wichita St. | LV2: Ohio St. | LW2: Baylor | LX2: Marquette | LY2: Kansas | LZ2: North Carolina | MA2: Michigan St. | MB2: Duke | MC2: Kentucky | MD2: Syracuse | ME2: Ave. Upper-Middle Quartile Team | MF2: Performance Management "Eye Chart"™ NCAA March Madness 2012 338 Teams
A3: Games Played | B3: 29 | C3: 27 | D3: 25 | E3: 24 | F3: 28 | G3: 27 | H3: 29 | I3: 28 | J3: 29 | K3: 28 | L3: 28 | M3: 31 | N3: 29 | O3: 27 | P3: 29 | Q3: 28 | R3: 31 | S3: 31 | T3: 28 | U3: 28 | V3: 29 | W3: 27 | X3: 28 | Y3: 28 | Z3: 31 | AA3: 29 | AB3: 27 | AC3: 28 | AD3: 27 | AE3: 29 | AF3: 29 | AG3: 28 | AH3: 28 | AI3: 27 | AJ3: 29 | AK3: 31 | AL3: 29 | AM3: 27 | AN3: 31 | AO3: 28 | AP3: 29 | AQ3: 29 | AR3: 29 | AS3: 30 | AT3: 26 | AU3: 28 | AV3: 29 | AW3: 29 | AX3: 31 | AY3: 31 | AZ3: 29 | BA3: 29 | BB3: 29 | BC3: 29 | BD3: 28 | BE3: 27 | BF3: 27 | BG3: 31 | BH3: 28 | BI3: 29 | BJ3: 29 | BK3: 29 | BL3: 28 | BM3: 30 | BN3: 28 | BO3: 28 | BP3: 29 | BQ3: 27 | BR3: 29 | BS3: 28 | BT3: 28 | BU3: 29 | BV3: 27 | BW3: 31 | BX3: 29 | BY3: 29 | BZ3: 28 | CA3: 29 | CB3: 29 | CC3: 31 | CD3: 31 | CE3: 27 | CF3: 29 | CG3: 27 | CH3: 30 | CI3: =SUM(B3:CH3) -> 2430 | CJ3: 29 | CK3: 27 | CL3: 31 | CM3: 29 | CN3: 29 | CO3: 29 | CP3: 28 | CQ3: 29 | CR3: 29 | CS3: 29 | CT3: 29 | CU3: 27 | CV3: 31 | CW3: 29 | CX3: 28 | CY3: 29 | CZ3: 30 | DA3: 31 | DB3: 27 | DC3: 28 | DD3: 28 | DE3: 29 | DF3: 31 | DG3: 29 | DH3: 28 | DI3: 29 | DJ3: 30 | DK3: 31 | DL3: 28 | DM3: 30 | DN3: 29 | DO3: 29 | DP3: 29 | DQ3: 27 | DR3: 31 | DS3: 29 | DT3: 31 | DU3: 31 | DV3: 30 | DW3: 29 | DX3: 30 | DY3: 31 | DZ3: 29 | EA3: 29 | EB3: 27 | EC3: 30 | ED3: 28 | EE3: 26 | EF3: 31 | EG3: 29 | EH3: 29 | EI3: 29 | EJ3: 28 | EK3: 31 | EL3: 31 | EM3: 29 | EN3: 29 | EO3: 28 | EP3: 29 | EQ3: 28 | ER3: 27 | ES3: 29 | ET3: 27 | EU3: 29 | EV3: 29 | EW3: 28 | EX3: 31 | EY3: 28 | EZ3: 31 | FA3: 28 | FB3: 28 | FC3: 30 | FD3: 28 | FE3: 29 | FF3: 27 | FG3: 29 | FH3: 31 | FI3: 29 | FJ3: 28 | FK3: 29 | FL3: 26 | FM3: 28 | FN3: 31 | FO3: 31 | FP3: =SUM(CJ3:FO3) -> 2438 | FQ3: 29 | FR3: 29 | FS3: 30 | FT3: 27 | FU3: 28 | FV3: 26 | FW3: 28 | FX3: 27 | FY3: 28 | FZ3: 29 | GA3: 31 | GB3: 29 | GC3: 27 | GD3: 30 | GE3: 28 | GF3: 29 | GG3: 28 | GH3: 29 | GI3: 31 | GJ3: 28 | GK3: 30 | GL3: 29 | GM3: 28 | GN3: 29 | GO3: 28 | GP3: 31 | GQ3: 30 | GR3: 28 | GS3: 29 | GT3: 28 | GU3: 29 | GV3: 29 | GW3: 29 | GX3: 31 | GY3: 28 | GZ3: 29 | HA3: 29 | HB3: 30 | HC3: 29 | HD3: 30 | HE3: 29 | HF3: 27 | HG3: 31 | HH3: 30 | HI3: 30 | HJ3: 30 | HK3: 30 | HL3: 31 | HM3: 31 | HN3: 28 | HO3: 31 | HP3: 30 | HQ3: 25 | HR3: 28 | HS3: 31 | HT3: 30 | HU3: 31 | HV3: 31 | HW3: 29 | HX3: 30 | HY3: 27 | HZ3: 28 | IA3: 28 | IB3: 29 | IC3: 28 | ID3: 30 | IE3: 29 | IF3: 28 | IG3: 28 | IH3: 26 | II3: 27 | IJ3: 28 | IK3: 29 | IL3: 26 | IM3: 30 | IN3: 28 | IO3: 26 | IP3: 29 | IQ3: 29 | IR3: 28 | IS3: 31 | IT3: 29 | IU3: 29 | IV3: 29 | IW3: =SUM(FQ3:IV3) -> 2426 | IX3: 29 | IY3: 28 | IZ3: 31 | JA3: 29 | JB3: 28 | JC3: 30 | JD3: 28 | JE3: 31 | JF3: 29 | JG3: 28 | JH3: 27 | JI3: 29 | JJ3: 29 | JK3: 29 | JL3: 30 | JM3: 28 | JN3: 30 | JO3: 28 | JP3: 30 | JQ3: 28 | JR3: 29 | JS3: 29 | JT3: 31 | JU3: 28 | JV3: 28 | JW3: 31 | JX3: 31 | JY3: 29 | JZ3: 31 | KA3: 28 | KB3: 29 | KC3: 28 | KD3: 28 | KE3: 28 | KF3: 30 | KG3: 29 | KH3: 31 | KI3: 27 | KJ3: 30 | KK3: 29 | KL3: 28 | KM3: 29 | KN3: 28 | KO3: 31 | KP3: 29 | KQ3: 29 | KR3: 30 | KS3: 28 | KT3: 28 | KU3: 30 | KV3: 28 | KW3: 28 | KX3: 28 | KY3: 30 | KZ3: 29 | LA3: 28 | LB3: 29 | LC3: 28 | LD3: 27 | LE3: 28 | LF3: 28 | LG3: 30 | LH3: 29 | LI3: 29 | LJ3: 29 | LK3: 29 | LL3: 29 | LM3: 28 | LN3: 29 | LO3: 29 | LP3: 29 | LQ3: 28 | LR3: 29 | LS3: 27 | LT3: 30 | LU3: 30 | LV3: 29 | LW3: 29 | LX3: 29 | LY3: 29 | LZ3: 29 | MA3: 29 | MB3: 29 | MC3: 29 | MD3: 30 | ME3: =SUM(IX3:MD3) -> 2460 | MF3: Games Played
A4: Winning % | B4: 3.4 | C4: 14.8 | D4: 12 | E4: 25 | F4: 17.9 | G4: 11.1 | H4: 34.5 | I4: 32.1 | J4: 13.8 | K4: 17.9 | L4: 14.3 | M4: 9.7 | N4: 10.3 | O4: 37 | P4: 17.2 | Q4: 10.7 | R4: 19.4 | S4: 12.9 | T4: 28.6 | U4: 17.9 | V4: 20.7 | W4: 25.9 | X4: 32.1 | Y4: 17.9 | Z4: 38.7 | AA4: 10.3 | AB4: 29.6 | AC4: 35.7 | AD4: 25.9 | AE4: 27.6 | AF4: 20.7 | AG4: 35.7 | AH4: 42.9 | AI4: 25.9 | AJ4: 27.6 | AK4: 3.2 | AL4: 24.1 | AM4: 37 | AN4: 35.5 | AO4: 42.9 | AP4: 27.6 | AQ4: 41.4 | AR4: 27.6 | AS4: 16.7 | AT4: 26.9 | AU4: 46.4 | AV4: 51.7 | AW4: 37.9 | AX4: 19.4 | AY4: 38.7 | AZ4: 31 | BA4: 27.6 | BB4: 27.6 | BC4: 41.4 | BD4: 32.1 | BE4: 37 | BF4: 40.7 | BG4: 45.2 | BH4: 42.9 | BI4: 48.3 | BJ4: 37.9 | BK4: 41.4 | BL4: 32.1 | BM4: 36.7 | BN4: 46.4 | BO4: 32.1 | BP4: 41.4 | BQ4: 40.7 | BR4: 41.4 | BS4: 39.3 | BT4: 21.4 | BU4: 31 | BV4: 48.1 | BW4: 32.3 | BX4: 41.4 | BY4: 27.6 | BZ4: 35.7 | CA4: 37.9 | CB4: 44.8 | CC4: 32.3 | CD4: 22.6 | CE4: 33.3 | CF4: 20.7 | CG4: 37 | CH4: 26.7 | CI4: =AVERAGE(B4:CH4) -> 29.53764706 | CJ4: 48.3 | CK4: 48.1 | CL4: 38.7 | CM4: 20.7 | CN4: 31 | CO4: 44.8 | CP4: 50 | CQ4: 62.1 | CR4: 48.3 | CS4: 44.8 | CT4: 51.7 | CU4: 40.7 | CV4: 45.2 | CW4: 48.3 | CX4: 28.6 | CY4: 44.8 | CZ4: 40 | DA4: 45.2 | DB4: 33.3 | DC4: 28.6 | DD4: 28.6 | DE4: 44.8 | DF4: 38.7 | DG4: 20.7 | DH4: 46.4 | DI4: 44.8 | DJ4: 43.3 | DK4: 45.2 | DL4: 60.7 | DM4: 43.3 | DN4: 37.9 | DO4: 31 | DP4: 41.4 | DQ4: 37 | DR4: 58.1 | DS4: 51.7 | DT4: 41.9 | DU4: 51.6 | DV4: 53.3 | DW4: 51.7 | DX4: 66.7 | DY4: 45.2 | DZ4: 44.8 | EA4: 41.4 | EB4: 48.1 | EC4: 43.3 | ED4: 53.6 | EE4: 53.8 | EF4: 41.9 | EG4: 51.7 | EH4: 55.2 | EI4: 55.2 | EJ4: 39.3 | EK4: 54.8 | EL4: 41.9 | EM4: 41.4 | EN4: 37.9 | EO4: 50 | EP4: 51.7 | EQ4: 53.6 | ER4: 44.4 | ES4: 65.5 | ET4: 55.6 | EU4: 55.2 | EV4: 41.4 | EW4: 53.6 | EX4: 38.7 | EY4: 35.7 | EZ4: 51.6 | FA4: 50 | FB4: 50 | FC4: 53.3 | FD4: 53.6 | FE4: 44.8 | FF4: 59.3 | FG4: 58.6 | FH4: 54.8 | FI4: 65.5 | FJ4: 35.7 | FK4: 51.7 | FL4: 42.3 | FM4: 35.7 | FN4: 51.6 | FO4: 61.3 | FP4: =AVERAGE(CJ4:FO4) -> 46.38928571 | FQ4: 62.1 | FR4: 58.6 | FS4: 50 | FT4: 48.1 | FU4: 53.6 | FV4: 50 | FW4: 46.4 | FX4: 48.1 | FY4: 46.4 | FZ4: 55.2 | GA4: 64.5 | GB4: 48.3 | GC4: 70.4 | GD4: 60 | GE4: 57.1 | GF4: 51.7 | GG4: 53.6 | GH4: 41.4 | GI4: 58.1 | GJ4: 60.7 | GK4: 60 | GL4: 65.5 | GM4: 71.4 | GN4: 58.6 | GO4: 50 | GP4: 64.5 | GQ4: 66.7 | GR4: 53.6 | GS4: 51.7 | GT4: 53.6 | GU4: 51.7 | GV4: 44.8 | GW4: 69 | GX4: 54.8 | GY4: 50 | GZ4: 62.1 | HA4: 44.8 | HB4: 53.3 | HC4: 55.2 | HD4: 56.7 | HE4: 51.7 | HF4: 44.4 | HG4: 64.5 | HH4: 60 | HI4: 56.7 | HJ4: 50 | HK4: 63.3 | HL4: 67.7 | HM4: 71 | HN4: 50 | HO4: 58.1 | HP4: 70 | HQ4: 64 | HR4: 39.3 | HS4: 61.3 | HT4: 63.3 | HU4: 61.3 | HV4: 51.6 | HW4: 48.3 | HX4: 63.3 | HY4: 48.1 | HZ4: 46.4 | IA4: 67.9 | IB4: 65.5 | IC4: 53.6 | ID4: 76.7 | IE4: 51.7 | IF4: 78.6 | IG4: 57.1 | IH4: 61.5 | II4: 59.3 | IJ4: 60.7 | IK4: 51.7 | IL4: 73.1 | IM4: 73.3 | IN4: 60.7 | IO4: 65.4 | IP4: 55.2 | IQ4: 72.4 | IR4: 60.7 | IS4: 67.7 | IT4: 62.1 | IU4: 72.4 | IV4: 82.8 | IW4: =AVERAGE(FQ4:IV4) -> 58.41309524 | IX4: 58.6 | IY4: 78.6 | IZ4: 74.2 | JA4: 27.6 | JB4: 67.9 | JC4: 73.3 | JD4: 67.9 | JE4: 71 | JF4: 69 | JG4: 67.9 | JH4: 85.2 | JI4: 58.6 | JJ4: 79.3 | JK4: 62.1 | JL4: 73.3 | JM4: 57.1 | JN4: 70 | JO4: 60.7 | JP4: 83.3 | JQ4: 71.4 | JR4: 65.5 | JS4: 75.9 | JT4: 61.3 | JU4: 60.7 | JV4: 64.3 | JW4: 80.6 | JX4: 77.4 | JY4: 69 | JZ4: 77.4 | KA4: 82.1 | KB4: 62.1 | KC4: 64.3 | KD4: 71.4 | KE4: 71.4 | KF4: 63.3 | KG4: 58.6 | KH4: 77.4 | KI4: 63 | KJ4: 83.3 | KK4: 62.1 | KL4: 67.9 | KM4: 65.5 | KN4: 60.7 | KO4: 83.9 | KP4: 69 | KQ4: 65.5 | KR4: 80 | KS4: 75 | KT4: 85.7 | KU4: 76.7 | KV4: 78.6 | KW4: 78.6 | KX4: 75 | KY4: 83.3 | KZ4: 72.4 | LA4: 60.7 | LB4: 96.6 | LC4: 78.6 | LD4: 63 | LE4: 67.9 | LF4: 67.9 | LG4: 83.3 | LH4: 69 | LI4: 72.4 | LJ4: 75.9 | LK4: 72.4 | LL4: 75.9 | LM4: 82.1 | LN4: 75.9 | LO4: 86.2 | LP4: 72.4 | LQ4: 78.6 | LR4: 79.3 | LS4: 77.8 | LT4: 80 | LU4: 86.7 | LV4: 79.3 | LW4: 82.8 | LX4: 82.8 | LY4: 82.8 | LZ4: 86.2 | MA4: 82.8 | MB4: 86.2 | MC4: 96.6 | MD4: 96.7 | ME4: =AVERAGE(IX4:MD4) -> 73.46705882 | MF4: Winning % | MG4: 39.3 | MH4: 51.7 | MI4: 65.5
A5: Scoring Margin | B5: -14.8 | C5: -13.9 | D5: -19 | E5: -8.1 | F5: -10.3 | G5: -13.3 | H5: -9.4 | I5: -7.1 | J5: -14.1 | K5: -8.8 | L5: -14.6 | M5: -13.2 | N5: -11.9 | O5: -2.7 | P5: -10.2 | Q5: -7.8 | R5: -7.5 | S5: -12.4 | T5: -8.1 | U5: -5.6 | V5: -7.6 | W5: -6.7 | X5: -5.1 | Y5: -9.4 | Z5: -1.8 | AA5: -11.3 | AB5: -11 | AC5: -2.2 | AD5: -10 | AE5: -7 | AF5: -8.8 | AG5: -1.9 | AH5: 2 | AI5: -10.5 | AJ5: -7.7 | AK5: -18.6 | AL5: -5.6 | AM5: -5.7 | AN5: 2 | AO5: -2.4 | AP5: -10.4 | AQ5: -1.6 | AR5: -6.7 | AS5: -11.1 | AT5: -3.3 | AU5: -1 | AV5: -3.6 | AW5: -5.7 | AX5: -9.1 | AY5: -0.8 | AZ5: -9.8 | BA5: -5.4 | BB5: -6.8 | BC5: -3 | BD5: -5 | BE5: -9.6 | BF5: -2.6 | BG5: -2.2 | BH5: 0.6 | BI5: -1.8 | BJ5: -4.8 | BK5: -2.4 | BL5: -6.9 | BM5: -2.4 | BN5: 2.4 | BO5: -4.9 | BP5: -1.2 | BQ5: -2 | BR5: 1.4 | BS5: -3.4 | BT5: -13.3 | BU5: -6.4 | BV5: -1.4 | BW5: -6.6 | BX5: -1.9 | BY5: -7.2 | BZ5: -6.1 | CA5: -3.4 | CB5: -2.7 | CC5: -0.8 | CD5: -9.2 | CE5: -3.1 | CF5: -6.4 | CG5: -4.4 | CH5: -6.2 | CI5: =AVERAGE(B5:CH5) -> -6.403529412 | CJ5: 0.6 | CK5: 2 | CL5: -3.5 | CM5: -7.8 | CN5: -5.2 | CO5: -3.6 | CP5: 7.1 | CQ5: 3.7 | CR5: -0.2 | CS5: -1.9 | CT5: 3.4 | CU5: -2.9 | CV5: 0.2 | CW5: -1.4 | CX5: -4 | CY5: 0 | CZ5: -7.7 | DA5: -1 | DB5: -3.1 | DC5: -8.9 | DD5: -7.3 | DE5: -2.7 | DF5: -8.4 | DG5: -11.1 | DH5: 0 | DI5: -5.1 | DJ5: -4.7 | DK5: 1.5 | DL5: 7 | DM5: -1.8 | DN5: -3.9 | DO5: -6 | DP5: 0.1 | DQ5: -8.8 | DR5: 3.1 | DS5: 0.2 | DT5: -3 | DU5: 0.5 | DV5: -0.9 | DW5: 3.3 | DX5: 4.3 | DY5: 0.4 | DZ5: 1.1 | EA5: -2.8 | EB5: -0.7 | EC5: 0.5 | ED5: 5.2 | EE5: 1.9 | EF5: -4 | EG5: 1 | EH5: 5.8 | EI5: 5.3 | EJ5: -2.8 | EK5: 0.8 | EL5: -3 | EM5: -4 | EN5: -1.9 | EO5: -1.1 | EP5: 0.9 | EQ5: -0.1 | ER5: 3.7 | ES5: 4.7 | ET5: 1.8 | EU5: 3 | EV5: -1.9 | EW5: 1.5 | EX5: -3.3 | EY5: -3.3 | EZ5: 0.5 | FA5: 3.2 | FB5: 3.3 | FC5: 1.4 | FD5: 3.1 | FE5: -3 | FF5: -0.3 | FG5: 5.4 | FH5: 1.5 | FI5: 7.8 | FJ5: -2.1 | FK5: 1.7 | FL5: -2.8 | FM5: -4 | FN5: -3.1 | FO5: 2.1 | FP5: =AVERAGE(CJ5:FO5) -> -0.6488095238 | FQ5: 5.3 | FR5: 4.4 | FS5: -0.4 | FT5: 3.4 | FU5: -1.6 | FV5: 1.7 | FW5: 0.2 | FX5: -0.7 | FY5: -4.1 | FZ5: 3.7 | GA5: 6.7 | GB5: 0.8 | GC5: 7.9 | GD5: 1.8 | GE5: 1.9 | GF5: 3 | GG5: 6.4 | GH5: -2.8 | GI5: 4.2 | GJ5: -0.8 | GK5: 4.6 | GL5: 3 | GM5: 8.3 | GN5: 1.4 | GO5: -1.3 | GP5: 6.3 | GQ5: 7.9 | GR5: 3.4 | GS5: 1.8 | GT5: 4.6 | GU5: -1 | GV5: 0.4 | GW5: 2 | GX5: 1.2 | GY5: 1.1 | GZ5: 7.7 | HA5: -3.5 | HB5: 0 | HC5: 5.3 | HD5: -0.2 | HE5: 1 | HF5: -3.8 | HG5: 3.5 | HH5: 4 | HI5: 4.2 | HJ5: 1.8 | HK5: 1.8 | HL5: 5.5 | HM5: 5 | HN5: 1.2 | HO5: 2.1 | HP5: 8.6 | HQ5: 5 | HR5: -0.2 | HS5: 2.5 | HT5: 3.4 | HU5: 4.3 | HV5: 3.3 | HW5: -0.2 | HX5: 2.9 | HY5: -1 | HZ5: -1.3 | IA5: 5.6 | IB5: 7.7 | IC5: 1.2 | ID5: 11 | IE5: 3.6 | IF5: 8.4 | IG5: -1.6 | IH5: 6.3 | II5: 3.8 | IJ5: 4 | IK5: 2.4 | IL5: 5.9 | IM5: 3.9 | IN5: 0.6 | IO5: 6.1 | IP5: 3.7 | IQ5: 7.9 | IR5: 1.9 | IS5: 3.8 | IT5: 7.7 | IU5: 3.2 | IV5: 9.6 | IW5: =AVERAGE(FQ5:IV5) -> 3.027380952 | IX5: 3.1 | IY5: 10.1 | IZ5: 6.1 | JA5: -10.4 | JB5: 5.2 | JC5: 7.1 | JD5: 8.5 | JE5: 6.8 | JF5: 8.1 | JG5: 6.1 | JH5: 10.9 | JI5: 2.4 | JJ5: 9.3 | JK5: 5 | JL5: 10.4 | JM5: 0.4 | JN5: 7.4 | JO5: 2.5 | JP5: 9.3 | JQ5: 4.9 | JR5: 4.6 | JS5: 10.4 | JT5: 3.9 | JU5: 3.1 | JV5: 4.5 | JW5: 8.7 | JX5: 14.4 | JY5: 7.3 | JZ5: 10.6 | KA5: 6.3 | KB5: 7.4 | KC5: 4.1 | KD5: 3.8 | KE5: 5.2 | KF5: 4.3 | KG5: 5.4 | KH5: 12.8 | KI5: 4.8 | KJ5: 10.8 | KK5: 2.5 | KL5: 7.9 | KM5: 5.7 | KN5: 2.1 | KO5: 7.6 | KP5: 6.5 | KQ5: 6.6 | KR5: 10.9 | KS5: 10.5 | KT5: 11 | KU5: 11.2 | KV5: 12.4 | KW5: 14 | KX5: 9.3 | KY5: 13.1 | KZ5: 7.3 | LA5: 4.8 | LB5: 13.1 | LC5: 8.6 | LD5: 2 | LE5: 7.8 | LF5: 7.8 | LG5: 10.2 | LH5: 7.8 | LI5: 10.2 | LJ5: 8.4 | LK5: 12 | LL5: 12.5 | LM5: 10.3 | LN5: 12.1 | LO5: 14.5 | LP5: 5.9 | LQ5: 6.2 | LR5: 7.8 | LS5: 10.9 | LT5: 12 | LU5: 15.5 | LV5: 17.1 | LW5: 10.9 | LX5: 11.1 | LY5: 13.8 | LZ5: 15.8 | MA5: 14.7 | MB5: 10.6 | MC5: 19 | MD5: 15.2 | ME5: =AVERAGE(IX5:MD5) -> 8.385882353 | MF5: Scoring Margin | MG5: -3.1 | MH5: 1.45 | MI5: 5.575
A6: Rebound Margin | B6: -3.5 | C6: -1.6 | D6: -5.6 | E6: -2.4 | F6: -5 | G6: 3.3 | H6: -4.9 | I6: -6.1 | J6: -2.7 | K6: -1 | L6: -2.7 | M6: -6.8 | N6: -3.3 | O6: 1.2 | P6: -2.1 | Q6: -0.9 | R6: -4.1 | S6: -2.5 | T6: -3.8 | U6: -0.4 | V6: -1.6 | W6: -1.6 | X6: -3.3 | Y6: -3 | Z6: 1.9 | AA6: -4.1 | AB6: -3.6 | AC6: 1.5 | AD6: -2 | AE6: -5.5 | AF6: -6 | AG6: -1.6 | AH6: -1.4 | AI6: 0.7 | AJ6: -7 | AK6: 1.6 | AL6: 0.2 | AM6: -2.5 | AN6: 2.6 | AO6: 2.1 | AP6: -1.4 | AQ6: -4 | AR6: 1.1 | AS6: -6 | AT6: -2.5 | AU6: -1.8 | AV6: -6.3 | AW6: -4.9 | AX6: -3.5 | AY6: 2.4 | AZ6: 0.1 | BA6: -3.3 | BB6: 0.1 | BC6: -1.7 | BD6: -4 | BE6: -6.4 | BF6: -4 | BG6: 1.4 | BH6: -2.1 | BI6: -6.9 | BJ6: 1.9 | BK6: -3.2 | BL6: -3.9 | BM6: 0.5 | BN6: -2.3 | BO6: -4.8 | BP6: 1.6 | BQ6: -0.6 | BR6: -0.9 | BS6: -0.6 | BT6: -5.1 | BU6: 0.3 | BV6: -4.3 | BW6: -6 | BX6: -0.5 | BY6: 0.3 | BZ6: 3.1 | CA6: -3.5 | CB6: -2.7 | CC6: 0.1 | CD6: -4.3 | CE6: 5.2 | CF6: -8.6 | CG6: -2.6 | CH6: -1.4 | CI6: -2.158823529 | CJ6: 2 | CK6: 1.5 | CL6: -5.1 | CM6: 2.7 | CN6: 1.8 | CO6: -1.6 | CP6: 0.1 | CQ6: -3.1 | CR6: 1.9 | CS6: 2.7 | CT6: -0.8 | CU6: -1.6 | CV6: -0.2 | CW6: -2.5 | CX6: -1.7 | CY6: 0.5 | CZ6: -1.1 | DA6: 0 | DB6: -1.7 | DC6: -6.3 | DD6: -2.1 | DE6: 2 | DF6: -7.2 | DG6: -0.5 | DH6: -2.8 | DI6: -3 | DJ6: -1 | DK6: -0.5 | DL6: 7.1 | DM6: -3 | DN6: -1.4 | DO6: 0.3 | DP6: -4.7 | DQ6: 0.1 | DR6: 2.6 | DS6: -3.8 | DT6: -4.1 | DU6: -3.9 | DV6: 0.5 | DW6: 4.8 | DX6: 4.2 | DY6: -0.7 | DZ6: -2.7 | EA6: -5.6 | EB6: 1.5 | EC6: -3.7 | ED6: 1.9 | EE6: -6.3 | EF6: -3.9 | EG6: 2.7 | EH6: 4.9 | EI6: -2.8 | EJ6: -6.8 | EK6: 1.3 | EL6: -2.9 | EM6: -3.9 | EN6: -1.8 | EO6: -1.1 | EP6: -0.6 | EQ6: 3.3 | ER6: -0.3 | ES6: 4.4 | ET6: 1.3 | EU6: 0.6 | EV6: 5.1 | EW6: -0.9 | EX6: -1.7 | EY6: -1.9 | EZ6: 0.2 | FA6: 1.6 | FB6: 2.2 | FC6: 3.2 | FD6: 3.4 | FE6: -0.9 | FF6: 7.5 | FG6: 1.6 | FH6: 2.6 | FI6: 6.3 | FJ6: 3.8 | FK6: -4.2 | FL6: -5.7 | FM6: -0.6 | FN6: -0.5 | FO6: 2.5 | FP6: -0.3154761905 | FQ6: 1.6 | FR6: 10.8 | FS6: -2.2 | FT6: 2.9 | FU6: 0.1 | FV6: -5.2 | FW6: 1.5 | FX6: -1 | FY6: -3.7 | FZ6: 1.1 | GA6: 3.6 | GB6: 1.4 | GC6: 6 | GD6: 2.6 | GE6: 2.4 | GF6: 0 | GG6: -0.4 | GH6: 2.8 | GI6: 2.1 | GJ6: 0.5 | GK6: 1.2 | GL6: -1.1 | GM6: 7.6 | GN6: -0.4 | GO6: -0.4 | GP6: 3 | GQ6: 0.9 | GR6: 1 | GS6: -5.2 | GT6: 0.7 | GU6: 1.2 | GV6: 1.3 | GW6: 1.8 | GX6: -0.4 | GY6: -0.5 | GZ6: 5.6 | HA6: -3.6 | HB6: -1.9 | HC6: 3 | HD6: 0 | HE6: 0.4 | HF6: -0.6 | HG6: 4.6 | HH6: 2.7 | HI6: 0.7 | HJ6: -6.1 | HK6: 2.6 | HL6: 1 | HM6: 4.5 | HN6: 4 | HO6: 3.4 | HP6: 1.3 | HQ6: 3.9 | HR6: 4.4 | HS6: 1.4 | HT6: -0.2 | HU6: 6 | HV6: 1.2 | HW6: -4.9 | HX6: -3.3 | HY6: 3.4 | HZ6: -1.4 | IA6: -0.6 | IB6: 6 | IC6: -7.4 | ID6: 2.1 | IE6: 0.1 | IF6: -1 | IG6: 1.8 | IH6: 5 | II6: 0.1 | IJ6: 6.1 | IK6: 7.7 | IL6: 5 | IM6: 2.9 | IN6: -3 | IO6: 7.5 | IP6: 3.4 | IQ6: -4.2 | IR6: -0.6 | IS6: 1 | IT6: -3.2 | IU6: 3.8 | IV6: 1.1 | IW6: 1.229761905 | IX6: 3 | IY6: 4.3 | IZ6: 1.7 | JA6: -3 | JB6: 1 | JC6: 6.6 | JD6: -0.8 | JE6: 0.2 | JF6: 0.9 | JG6: 4.6 | JH6: 2 | JI6: 1.8 | JJ6: 0.1 | JK6: 4.7 | JL6: 8.1 | JM6: 3.1 | JN6: 2.2 | JO6: 0.9 | JP6: 5.8 | JQ6: 4.4 | JR6: 3.2 | JS6: 7.1 | JT6: -0.8 | JU6: 7.4 | JV6: 3.8 | JW6: -0.5 | JX6: 2.6 | JY6: 2.2 | JZ6: 2.3 | KA6: 3.2 | KB6: 3.3 | KC6: 2.8 | KD6: 1.2 | KE6: 4.9 | KF6: 2.4 | KG6: 6 | KH6: 4.7 | KI6: -0.3 | KJ6: 2.8 | KK6: 3.3 | KL6: 5.4 | KM6: 1.7 | KN6: -5.1 | KO6: 3.9 | KP6: -0.2 | KQ6: -0.8 | KR6: 1.1 | KS6: 3.6 | KT6: 4.6 | KU6: 4.3 | KV6: 1.5 | KW6: 6.7 | KX6: 2.6 | KY6: 7.2 | KZ6: 4.5 | LA6: 4 | LB6: 2.1 | LC6: 4.9 | LD6: 1 | LE6: 4.3 | LF6: 2.3 | LG6: 5.5 | LH6: 1.6 | LI6: 1.2 | LJ6: 2.5 | LK6: 2.9 | LL6: 3.2 | LM6: 6.9 | LN6: 4.1 | LO6: 1 | LP6: -0.6 | LQ6: 0.7 | LR6: 4.6 | LS6: 5.6 | LT6: 4.2 | LU6: 6.5 | LV6: 6.9 | LW6: 5 | LX6: -0.4 | LY6: 6.1 | LZ6: 11.4 | MA6: 9.6 | MB6: 3.3 | MC6: 7.3 | MD6: -0.8 | ME6: 3.189411765 | MF6: Rebound Margin | MG6: -1.975 | MH6: 0.55 | MI6: 2.9
A7: Strength of Schedule | B7: 317 | C7: 336 | D7: 341 | E7: 338 | F7: 318 | G7: 252 | H7: 339 | I7: 343 | J7: 313 | K7: 272 | L7: 279 | M7: 221 | N7: 257 | O7: 330 | P7: 299 | Q7: 193 | R7: 234 | S7: 208 | T7: 319 | U7: 212 | V7: 226 | W7: 308 | X7: 286 | Y7: 260 | Z7: 175 | AA7: 194 | AB7: 295 | AC7: 322 | AD7: 291 | AE7: 237 | AF7: 218 | AG7: 333 | AH7: 329 | AI7: 276 | AJ7: 310 | AK7: 91 | AL7: 245 | AM7: 335 | AN7: 231 | AO7: 331 | AP7: 248 | AQ7: 321 | AR7: 210 | AS7: 157 | AT7: 258 | AU7: 342 | AV7: 344 | AW7: 247 | AX7: 148 | AY7: 311 | AZ7: 264 | BA7: 165 | BB7: 265 | BC7: 315 | BD7: 262 | BE7: 287 | BF7: 282 | BG7: 300 | BH7: 326 | BI7: 324 | BJ7: 217 | BK7: 307 | BL7: 228 | BM7: 241 | BN7: 292 | BO7: 197 | BP7: 229 | BQ7: 306 | BR7: 255 | BS7: 211 | BT7: 69 | BU7: 177 | BV7: 314 | BW7: 188 | BX7: 242 | BY7: 160 | BZ7: 209 | CA7: 205 | CB7: 323 | CC7: 144 | CD7: 82 | CE7: 166 | CF7: 83 | CG7: 203 | CH7: 117 | CI7: 253.5882353 | CJ7: 296 | CK7: 312 | CL7: 224 | CM7: 98 | CN7: 132 | CO7: 267 | CP7: 316 | CQ7: 62 | CR7: 290 | CS7: 243 | CT7: 301 | CU7: 297 | CV7: 266 | CW7: 278 | CX7: 152 | CY7: 253 | CZ7: 199 | DA7: 269 | DB7: 109 | DC7: 79 | DD7: 72 | DE7: 227 | DF7: 202 | DG7: 64 | DH7: 259 | DI7: 238 | DJ7: 196 | DK7: 213 | DL7: 320 | DM7: 198 | DN7: 137 | DO7: 128 | DP7: 130 | DQ7: 139 | DR7: 334 | DS7: 275 | DT7: 158 | DU7: 268 | DV7: 283 | DW7: 289 | DX7: 340 | DY7: 162 | DZ7: 236 | EA7: 187 | EB7: 164 | EC7: 169 | ED7: 216 | EE7: 303 | EF7: 163 | EG7: 288 | EH7: 239 | EI7: 298 | EJ7: 114 | EK7: 305 | EL7: 153 | EM7: 113 | EN7: 125 | EO7: 220 | EP7: 178 | EQ7: 180 | ER7: 81 | ES7: 332 | ET7: 250 | EU7: 270 | EV7: 112 | EW7: 190 | EX7: 106 | EY7: 36 | EZ7: 219 | FA7: 145 | FB7: 167 | FC7: 201 | FD7: 223 | FE7: 161 | FF7: 235 | FG7: 232 | FH7: 184 | FI7: 273 | FJ7: 75 | FK7: 183 | FL7: 111 | FM7: 59 | FN7: 189 | FO7: 284 | FP7: 202.9047619 | FQ7: 277 | FR7: 254 | FS7: 137 | FT7: 89 | FU7: 206 | FV7: 70 | FW7: 65 | FX7: 138 | FY7: 80 | FZ7: 134 | GA7: 274 | GB7: 92 | GC7: 328 | GD7: 195 | GE7: 147 | GF7: 103 | GG7: 127 | GH7: 33 | GI7: 172 | GJ7: 304 | GK7: 155 | GL7: 302 | GM7: 325 | GN7: 192 | GO7: 71 | GP7: 251 | GQ7: 240 | GR7: 140 | GS7: 88 | GT7: 118 | GU7: 110 | GV7: 51 | GW7: 293 | GX7: 131 | GY7: 76 | GZ7: 215 | HA7: 26 | HB7: 97 | HC7: 87 | HD7: 136 | HE7: 73 | HF7: 39 | HG7: 230 | HH7: 135 | HI7: 142 | HJ7: 84 | HK7: 186 | HL7: 256 | HM7: 281 | HN7: 46 | HO7: 122 | HP7: 214 | HQ7: 171 | HR7: 5 | HS7: 159 | HT7: 116 | HU7: 124 | HV7: 68 | HW7: 22 | HX7: 151 | HY7: 56 | HZ7: 16 | IA7: 168 | IB7: 143 | IC7: 61 | ID7: 309 | IE7: 35 | IF7: 222 | IG7: 55 | IH7: 129 | II7: 126 | IJ7: 107 | IK7: 30 | IL7: 225 | IM7: 271 | IN7: 95 | IO7: 133 | IP7: 34 | IQ7: 185 | IR7: 77 | IS7: 149 | IT7: 121 | IU7: 207 | IV7: 263 | IW7: 144.8809524 | IX7: 37 | IY7: 280 | IZ7: 200 | JA7: 337 | JB7: 123 | JC7: 204 | JD7: 105 | JE7: 150 | JF7: 100 | JG7: 86 | JH7: 246 | JI7: 29 | JJ7: 182 | JK7: 25 | JL7: 115 | JM7: 44 | JN7: 99 | JO7: 60 | JP7: 261 | JQ7: 94 | JR7: 67 | JS7: 154 | JT7: 53 | JU7: 40 | JV7: 58 | JW7: 181 | JX7: 191 | JY7: 108 | JZ7: 176 | KA7: 156 | KB7: 31 | KC7: 43 | KD7: 78 | KE7: 74 | KF7: 47 | KG7: 12 | KH7: 104 | KI7: 32 | KJ7: 173 | KK7: 19 | KL7: 52 | KM7: 41 | KN7: 10 | KO7: 174 | KP7: 45 | KQ7: 23 | KR7: 146 | KS7: 85 | KT7: 170 | KU7: 96 | KV7: 102 | KW7: 90 | KX7: 120 | KY7: 119 | KZ7: 48 | LA7: 2 | LB7: 179 | LC7: 63 | LD7: 4 | LE7: 13 | LF7: 15 | LG7: 101 | LH7: 6 | LI7: 18 | LJ7: 28 | LK7: 17 | LL7: 49 | LM7: 93 | LN7: 27 | LO7: 66 | LP7: 9 | LQ7: 42 | LR7: 57 | LS7: 14 | LT7: 50 | LU7: 54 | LV7: 11 | LW7: 21 | LX7: 20 | LY7: 8 | LZ7: 7 | MA7: 1 | MB7: 3 | MC7: 38 | MD7: 24 | ME7: 81.58823529 | MF7: Strength of Schedule | MG7: 85.25 | MH7: 169.5 | MI7: 256.75
A8: Ratings Percentage Index | B8: 344 | C8: 343 | D8: 342 | E8: 341 | F8: 340 | G8: 339 | H8: 337 | I8: 336 | J8: 335 | K8: 334 | L8: 333 | M8: 332 | N8: 331 | O8: 330 | P8: 329 | Q8: 328 | R8: 327 | S8: 326 | T8: 325 | U8: 324 | V8: 323 | W8: 322 | X8: 321 | Y8: 320 | Z8: 319 | AA8: 318 | AB8: 317 | AC8: 316 | AD8: 315 | AE8: 314 | AF8: 313 | AG8: 312 | AH8: 311 | AI8: 310 | AJ8: 309 | AK8: 308 | AL8: 307 | AM8: 306 | AN8: 305 | AO8: 303 | AP8: 302 | AQ8: 301 | AR8: 300 | AS8: 299 | AT8: 298 | AU8: 297 | AV8: 296 | AW8: 295 | AX8: 294 | AY8: 293 | AZ8: 292 | BA8: 291 | BB8: 289 | BC8: 288 | BD8: 287 | BE8: 286 | BF8: 285 | BG8: 284 | BH8: 283 | BI8: 281 | BJ8: 280 | BK8: 279 | BL8: 278 | BM8: 276 | BN8: 275 | BO8: 274 | BP8: 273 | BQ8: 272 | BR8: 271 | BS8: 270 | BT8: 269 | BU8: 268 | BV8: 267 | BW8: 266 | BX8: 265 | BY8: 264 | BZ8: 263 | CA8: 262 | CB8: 261 | CC8: 260 | CD8: 259 | CE8: 258 | CF8: 257 | CG8: 256 | CH8: 255 | CI8: 299.5764706 | CJ8: 254 | CK8: 253 | CL8: 252 | CM8: 251 | CN8: 250 | CO8: 249 | CP8: 248 | CQ8: 247 | CR8: 246 | CS8: 245 | CT8: 243 | CU8: 242 | CV8: 241 | CW8: 240 | CX8: 239 | CY8: 238 | CZ8: 237 | DA8: 236 | DB8: 235 | DC8: 234 | DD8: 233 | DE8: 232 | DF8: 231 | DG8: 230 | DH8: 229 | DI8: 228 | DJ8: 227 | DK8: 226 | DL8: 225 | DM8: 224 | DN8: 223 | DO8: 222 | DP8: 221 | DQ8: 220 | DR8: 219 | DS8: 218 | DT8: 217 | DU8: 216 | DV8: 215 | DW8: 214 | DX8: 213 | DY8: 212 | DZ8: 211 | EA8: 210 | EB8: 209 | EC8: 208 | ED8: 207 | EE8: 206 | EF8: 205 | EG8: 204 | EH8: 203 | EI8: 202 | EJ8: 201 | EK8: 200 | EL8: 199 | EM8: 198 | EN8: 197 | EO8: 196 | EP8: 195 | EQ8: 194 | ER8: 193 | ES8: 192 | ET8: 191 | EU8: 190 | EV8: 189 | EW8: 188 | EX8: 187 | EY8: 186 | EZ8: 185 | FA8: 184 | FB8: 183 | FC8: 182 | FD8: 181 | FE8: 180 | FF8: 179 | FG8: 178 | FH8: 177 | FI8: 176 | FJ8: 175 | FK8: 174 | FL8: 173 | FM8: 172 | FN8: 171 | FO8: 170 | FP8: 211.6190476 | FQ8: 169 | FR8: 168 | FS8: 167 | FT8: 166 | FU8: 165 | FV8: 163 | FW8: 163 | FX8: 162 | FY8: 161 | FZ8: 160 | GA8: 159 | GB8: 158 | GC8: 157 | GD8: 156 | GE8: 155 | GF8: 154 | GG8: 153 | GH8: 152 | GI8: 151 | GJ8: 150 | GK8: 149 | GL8: 148 | GM8: 147 | GN8: 146 | GO8: 145 | GP8: 144 | GQ8: 143 | GR8: 142 | GS8: 141 | GT8: 140 | GU8: 139 | GV8: 138 | GW8: 137 | GX8: 136 | GY8: 135 | GZ8: 134 | HA8: 133 | HB8: 132 | HC8: 131 | HD8: 130 | HE8: 129 | HF8: 128 | HG8: 127 | HH8: 126 | HI8: 125 | HJ8: 124 | HK8: 123 | HL8: 122 | HM8: 121 | HN8: 120 | HO8: 119 | HP8: 118 | HQ8: 117 | HR8: 116 | HS8: 115 | HT8: 114 | HU8: 113 | HV8: 112 | HW8: 111 | HX8: 110 | HY8: 109 | HZ8: 108 | IA8: 107 | IB8: 106 | IC8: 105 | ID8: 104 | IE8: 103 | IF8: 102 | IG8: 101 | IH8: 100 | II8: 99 | IJ8: 98 | IK8: 97 | IL8: 96 | IM8: 95 | IN8: 94 | IO8: 93 | IP8: 92 | IQ8: 91 | IR8: 90 | IS8: 89 | IT8: 88 | IU8: 87 | IV8: 86 | IW8: 127.4880952 | IX8: 85 | IY8: 84 | IZ8: 83 | JA8: 82 | JB8: 81 | JC8: 80 | JD8: 79 | JE8: 78 | JF8: 77 | JG8: 76 | JH8: 75 | JI8: 74 | JJ8: 73 | JK8: 72 | JL8: 71 | JM8: 70 | JN8: 69 | JO8: 68 | JP8: 67 | JQ8: 66 | JR8: 65 | JS8: 64 | JT8: 63 | JU8: 62 | JV8: 61 | JW8: 60 | JX8: 59 | JY8: 58 | JZ8: 57 | KA8: 56 | KB8: 55 | KC8: 54 | KD8: 53 | KE8: 52 | KF8: 51 | KG8: 50 | KH8: 49 | KI8: 48 | KJ8: 47 | KK8: 46 | KL8: 45 | KM8: 44 | KN8: 43 | KO8: 42 | KP8: 41 | KQ8: 40 | KR8: 39 | KS8: 38 | KT8: 37 | KU8: 36 | KV8: 35 | KW8: 34 | KX8: 33 | KY8: 32 | KZ8: 31 | LA8: 30 | LB8: 29 | LC8: 28 | LD8: 27 | LE8: 26 | LF8: 25 | LG8: 24 | LH8: 23 | LI8: 22 | LJ8: 21 | LK8: 20 | LL8: 19 | LM8: 18 | LN8: 17 | LO8: 16 | LP8: 15 | LQ8: 14 | LR8: 13 | LS8: 12 | LT8: 11 | LU8: 10 | LV8: 9 | LW8: 8 | LX8: 7 | LY8: 6 | LZ8: 5 | MA8: 4 | MB8: 3 | MC8: 2 | MD8: 1 | ME8: 43 | MF8: Ratings Percentage Index | MG8: 85.25 | MH8: 169.5 | MI8: 254.75
A9: Player Quartile Performance | B9: Bottom Quartile Performance | CJ9: Lower-Middle Quartile Performance | FQ9: Upper-Middle Quartile Performance | IX9: Top Quartile Performance | MF9: Player Quartile Performance
A10: Points Per Game | B10: 55.9 | C10: 64.9 | D10: 53 | E10: 62.4 | F10: 63.5 | G10: 55.2 | H10: 73.9 | I10: 61.9 | J10: 63.1 | K10: 62.3 | L10: 63 | M10: 61.9 | N10: 60.8 | O10: 59.5 | P10: 65.3 | Q10: 57.7 | R10: 61.5 | S10: 62.7 | T10: 66.1 | U10: 57.7 | V10: 64.4 | W10: 67.9 | X10: 74.3 | Y10: 58 | Z10: 64.3 | AA10: 60.3 | AB10: 71.6 | AC10: 67 | AD10: 55.9 | AE10: 62.7 | AF10: 60.8 | AG10: 65.2 | AH10: 70.2 | AI10: 60.3 | AJ10: 59.8 | AK10: 51 | AL10: 56.8 | AM10: 59.7 | AN10: 70.6 | AO10: 62.4 | AP10: 63.3 | AQ10: 68.5 | AR10: 61.1 | AS10: 58.1 | AT10: 66.2 | AU10: 61.8 | AV10: 60.7 | AW10: 62.6 | AX10: 60.7 | AY10: 66 | AZ10: 61 | BA10: 69.5 | BB10: 60.3 | BC10: 65.4 | BD10: 61.6 | BE10: 67.5 | BF10: 64.3 | BG10: 68.6 | BH10: 69.6 | BI10: 81.1 | BJ10: 70.1 | BK10: 71.4 | BL10: 65.7 | BM10: 63.6 | BN10: 77.4 | BO10: 68.9 | BP10: 59.3 | BQ10: 70.3 | BR10: 71.5 | BS10: 69.2 | BT10: 55.9 | BU10: 72 | BV10: 74 | BW10: 64.5 | BX10: 68 | BY10: 65.1 | BZ10: 59.5 | CA10: 66.1 | CB10: 63.5 | CC10: 65.8 | CD10: 61.5 | CE10: 72.3 | CF10: 53.3 | CG10: 70.9 | CH10: 63.1 | CI10: 64.19176471 | CJ10: 70.5 | CK10: 63.1 | CL10: 66.3 | CM10: 67.8 | CN10: 60 | CO10: 59.1 | CP10: 71.9 | CQ10: 72.8 | CR10: 64.7 | CS10: 65.8 | CT10: 70.6 | CU10: 60.7 | CV10: 70.3 | CW10: 70.4 | CX10: 63.3 | CY10: 72.6 | CZ10: 69.6 | DA10: 71.3 | DB10: 61.6 | DC10: 59.6 | DD10: 59.9 | DE10: 63.1 | DF10: 66.8 | DG10: 64.8 | DH10: 69.7 | DI10: 53.3 | DJ10: 68.3 | DK10: 65 | DL10: 62.1 | DM10: 73 | DN10: 64.5 | DO10: 65.4 | DP10: 59.9 | DQ10: 62.2 | DR10: 72.8 | DS10: 70.6 | DT10: 58.2 | DU10: 66.4 | DV10: 68.4 | DW10: 64.9 | DX10: 70.1 | DY10: 73 | DZ10: 72.5 | EA10: 69.8 | EB10: 71.6 | EC10: 65.8 | ED10: 65.6 | EE10: 65.7 | EF10: 70 | EG10: 69.4 | EH10: 70.3 | EI10: 72.2 | EJ10: 73.9 | EK10: 74.7 | EL10: 71.9 | EM10: 66.7 | EN10: 66.3 | EO10: 66.7 | EP10: 69.2 | EQ10: 74.3 | ER10: 68.7 | ES10: 64 | ET10: 66.7 | EU10: 67.9 | EV10: 68.9 | EW10: 62.1 | EX10: 69.2 | EY10: 61.6 | EZ10: 64.4 | FA10: 70 | FB10: 65.1 | FC10: 68.8 | FD10: 76.5 | FE10: 62.7 | FF10: 66.6 | FG10: 73.8 | FH10: 62.9 | FI10: 72.9 | FJ10: 61 | FK10: 67 | FL10: 65.4 | FM10: 62.7 | FN10: 67.8 | FO10: 64.1 | FP10: 67.0452381 | FQ10: 76.9 | FR10: 70.8 | FS10: 63.7 | FT10: 69.4 | FU10: 64.6 | FV10: 61.6 | FW10: 60.6 | FX10: 66.9 | FY10: 65.6 | FZ10: 69.6 | GA10: 68 | GB10: 69.5 | GC10: 78.3 | GD10: 72.9 | GE10: 69.1 | GF10: 67.2 | GG10: 79.6 | GH10: 62 | GI10: 72.3 | GJ10: 68.7 | GK10: 75.2 | GL10: 64.7 | GM10: 67.4 | GN10: 69 | GO10: 63.3 | GP10: 70.7 | GQ10: 67.4 | GR10: 67.3 | GS10: 73.2 | GT10: 64.6 | GU10: 64.7 | GV10: 66 | GW10: 68.7 | GX10: 79.5 | GY10: 64.2 | GZ10: 74.3 | HA10: 67 | HB10: 67.2 | HC10: 68.9 | HD10: 64.9 | HE10: 72.7 | HF10: 60.9 | HG10: 72.1 | HH10: 68.6 | HI10: 65.3 | HJ10: 68.4 | HK10: 69.3 | HL10: 68.5 | HM10: 67.9 | HN10: 70 | HO10: 63.4 | HP10: 80.8 | HQ10: 72.5 | HR10: 71.6 | HS10: 64.3 | HT10: 70 | HU10: 65.3 | HV10: 66 | HW10: 67.1 | HX10: 70.3 | HY10: 59.9 | HZ10: 61.5 | IA10: 71.1 | IB10: 69.8 | IC10: 72.2 | ID10: 75.9 | IE10: 65.8 | IF10: 70.2 | IG10: 68.3 | IH10: 69.6 | II10: 65.9 | IJ10: 66.5 | IK10: 68.6 | IL10: 70.4 | IM10: 81.8 | IN10: 65.9 | IO10: 72.8 | IP10: 68.8 | IQ10: 68.6 | IR10: 71.7 | IS10: 69.6 | IT10: 73.6 | IU10: 67.6 | IV10: 73.2 | IW10: 68.92619048 | IX10: 67.4 | IY10: 76.1 | IZ10: 70.9 | JA10: 60.1 | JB10: 75.3 | JC10: 67.8 | JD10: 63.1 | JE10: 66.3 | JF10: 68.9 | JG10: 68.2 | JH10: 79.1 | JI10: 66.2 | JJ10: 71.6 | JK10: 73.7 | JL10: 78.8 | JM10: 66 | JN10: 69.8 | JO10: 65.7 | JP10: 65 | JQ10: 66.7 | JR10: 71.4 | JS10: 77.9 | JT10: 65.9 | JU10: 69.2 | JV10: 71.9 | JW10: 68.3 | JX10: 82.1 | JY10: 72.8 | JZ10: 78.6 | KA10: 71.1 | KB10: 73.7 | KC10: 71.7 | KD10: 71.1 | KE10: 74.9 | KF10: 71.3 | KG10: 71.8 | KH10: 79 | KI10: 71.5 | KJ10: 72.3 | KK10: 60.1 | KL10: 71 | KM10: 69 | KN10: 69.4 | KO10: 73.7 | KP10: 68 | KQ10: 71.7 | KR10: 83.4 | KS10: 62.7 | KT10: 65 | KU10: 72 | KV10: 68.8 | KW10: 72.6 | KX10: 73.8 | KY10: 74.6 | KZ10: 73.3 | LA10: 68.6 | LB10: 74.8 | LC10: 70.9 | LD10: 70.8 | LE10: 69.6 | LF10: 65.9 | LG10: 79.7 | LH10: 73.9 | LI10: 74.7 | LJ10: 70.7 | LK10: 64 | LL10: 77.7 | LM10: 73.2 | LN10: 77.6 | LO10: 79.7 | LP10: 66.3 | LQ10: 75.6 | LR10: 71.6 | LS10: 69.6 | LT10: 78.4 | LU10: 78.3 | LV10: 74.7 | LW10: 74.4 | LX10: 76.4 | LY10: 75 | LZ10: 81.9 | MA10: 72.5 | MB10: 79 | MC10: 77.8 | MD10: 75.8 | ME10: 72.01647059 | MF10: Points Per Game | MG10: 64.325 | MH10: 68.35 | MI10: 71.7
B11: =PERCENTRANK($B10:$LF10, B10) -> 0.015 | C11: 0.3 | D11: 0.003 | E11: 0.174 | F11: 0.234 | G11: 0.012 | H11: 0.908 | I11: 0.151 | J11: 0.205 | K11: 0.17 | L11: 0.202 | M11: 0.151 | N11: 0.107 | O11: 0.05 | P11: 0.329 | Q11: 0.028 | R11: 0.126 | S11: 0.183 | T11: 0.401 | U11: 0.028 | V11: 0.268 | W11: 0.503 | X11: 0.917 | Y11: 0.034 | Z11: 0.259 | AA11: 0.085 | AB11: 0.778 | AC11: 0.452 | AD11: 0.015 | AE11: 0.183 | AF11: 0.107 | AG11: 0.325 | AH11: =PERCENTRANK($B10:$LF10, AH10) -> 0.689 | AI11: 0.085 | AJ11: 0.063 | AK11: 0 | AL11: 0.025 | AM11: 0.06 | AN11: 0.718 | AO11: 0.174 | AP11: 0.221 | AQ11: 0.541 | AR11: 0.123 | AS11: 0.037 | AT11: 0.408 | AU11: 0.148 | AV11: 0.098 | AW11: 0.18 | AX11: 0.098 | AY11: 0.389 | AZ11: 0.117 | BA11: 0.632 | BB11: 0.085 | BC11: 0.338 | BD11: 0.136 | BE11: 0.487 | BF11: 0.259 | BG11: 0.547 | BH11: 0.639 | BI11: 0.99 | BJ11: 0.683 | BK11: 0.765 | BL11: 0.354 | BM11: 0.24 | BN11: =PERCENTRANK($B10:$LF10, BN10) -> 0.958 | BO11: 0.582 | BP11: 0.047 | BQ11: 0.696 | BR11: 0.772 | BS11: 0.607 | BT11: 0.015 | BU11: 0.813 | BV11: 0.914 | BW11: 0.275 | BX11: 0.512 | BY11: 0.319 | BZ11: 0.05 | CA11: 0.401 | CB11: 0.234 | CC11: 0.363 | CD11: 0.126 | CE11: 0.829 | CF11: 0.006 | CG11: 0.737 | CH11: 0.205 | CI11: 0.3234470588 | CJ11: 0.715 | CK11: 0.205 | CL11: 0.414 | CM11: 0.493 | CN11: 0.075 | CO11: 0.044 | CP11: 0.803 | CQ11: 0.854 | CR11: 0.287 | CS11: 0.363 | CT11: 0.718 | CU11: =PERCENTRANK($B10:$LF10, CU10) -> 0.098 | CV11: 0.696 | CW11: 0.708 | CX11: 0.221 | CY11: 0.844 | CZ11: 0.639 | DA11: 0.759 | DB11: 0.136 | DC11: 0.056 | DD11: 0.066 | DE11: 0.205 | DF11: 0.446 | DG11: 0.297 | DH11: 0.658 | DI11: 0.006 | DJ11: 0.525 | DK11: 0.31 | DL11: 0.161 | DM11: 0.873 | DN11: 0.275 | DO11: 0.338 | DP11: 0.066 | DQ11: 0.167 | DR11: 0.854 | DS11: 0.718 | DT11: 0.041 | DU11: 0.424 | DV11: 0.534 | DW11: 0.3 | DX11: 0.683 | DY11: 0.873 | DZ11: 0.838 | EA11: =PERCENTRANK($B10:$LF10, EA10) -> 0.661 | EB11: 0.778 | EC11: 0.363 | ED11: 0.348 | EE11: 0.354 | EF11: 0.67 | EG11: 0.623 | EH11: 0.696 | EI11: 0.822 | EJ11: 0.908 | EK11: 0.93 | EL11: 0.803 | EM11: 0.433 | EN11: 0.414 | EO11: 0.433 | EP11: 0.607 | EQ11: 0.917 | ER11: 0.563 | ES11: 0.246 | ET11: 0.433 | EU11: 0.503 | EV11: 0.582 | EW11: 0.161 | EX11: 0.607 | EY11: 0.136 | EZ11: 0.268 | FA11: 0.67 | FB11: 0.319 | FC11: 0.572 | FD11: 0.952 | FE11: 0.183 | FF11: 0.43 | FG11: =PERCENTRANK($B10:$LF10, FG10) -> 0.901 | FH11: 0.199 | FI11: 0.867 | FJ11: 0.117 | FK11: 0.452 | FL11: 0.338 | FM11: 0.183 | FN11: 0.493 | FO11: 0.25 | FP11: 0.4758452381 | FQ11: =PERCENTRANK($B10:$LR10, FQ10) -> 0.945 | FR11: 0.713 | FS11: 0.234 | FT11: 0.606 | FU11: 0.274 | FV11: 0.131 | FW11: 0.091 | FX11: 0.439 | FY11: 0.338 | FZ11: 0.621 | GA11: 0.5 | GB11: 0.615 | GC11: 0.96 | GD11: 0.847 | GE11: 0.588 | GF11: 0.457 | GG11: 0.978 | GH11: 0.152 | GI11: 0.81 | GJ11: 0.548 | GK11: 0.926 | GL11: 0.28 | GM11: 0.466 | GN11: 0.582 | GO11: 0.213 | GP11: 0.707 | GQ11: 0.466 | GR11: 0.463 | GS11: 0.859 | GT11: 0.274 | GU11: 0.28 | GV11: 0.378 | GW11: =PERCENTRANK($B10:$LR10, GW10) -> 0.548 | GX11: 0.975 | GY11: 0.25 | GZ11: 0.902 | HA11: 0.442 | HB11: 0.457 | HC11: 0.567 | HD11: 0.292 | HE11: 0.832 | HF11: 0.109 | HG11: 0.801 | HH11: 0.533 | HI11: 0.32 | HJ11: 0.521 | HK11: 0.603 | HL11: 0.527 | HM11: 0.49 | HN11: 0.652 | HO11: 0.222 | HP11: 0.987 | HQ11: 0.82 | HR11: 0.759 | HS11: 0.253 | HT11: 0.652 | HU11: 0.32 | HV11: 0.378 | HW11: 0.454 | HX11: 0.676 | HY11: 0.064 | HZ11: 0.121 | IA11: 0.731 | IB11: 0.643 | IC11: =PERCENTRANK($B10:$LR10, IC10) -> 0.804 | ID11: 0.935 | IE11: 0.353 | IF11: 0.67 | IG11: 0.512 | IH11: 0.621 | II11: 0.365 | IJ11: 0.417 | IK11: 0.533 | IL11: 0.689 | IM11: 0.993 | IN11: 0.365 | IO11: 0.835 | IP11: 0.557 | IQ11: 0.533 | IR11: 0.774 | IS11: 0.621 | IT11: 0.871 | IU11: 0.478 | IV11: 0.859 | IW11: 0.552702381 | IX11: =PERCENTRANK($B10:$MD10, IX10) -> 0.45 | IY11: 0.923 | IZ11: 0.697 | JA11: 0.073 | JB11: 0.911 | JC11: 0.464 | JD11: 0.191 | JE11: 0.388 | JF11: 0.547 | JG11: 0.491 | JH11: 0.97 | JI11: 0.382 | JJ11: 0.735 | JK11: 0.85 | JL11: 0.961 | JM11: 0.364 | JN11: 0.623 | JO11: 0.332 | JP11: 0.291 | JQ11: 0.408 | JR11: 0.723 | JS11: 0.947 | JT11: 0.352 | JU11: 0.57 | JV11: 0.761 | JW11: 0.494 | JX11: 0.997 | JY11: 0.811 | JZ11: 0.958 | KA11: 0.708 | KB11: 0.85 | KC11: 0.75 | KD11: =PERCENTRANK($B10:$MD10, KD10) -> 0.708 | KE11: 0.902 | KF11: 0.717 | KG11: 0.758 | KH11: 0.964 | KI11: 0.729 | KJ11: 0.785 | KK11: 0.073 | KL11: 0.705 | KM11: 0.561 | KN11: 0.585 | KO11: 0.85 | KP11: 0.482 | KQ11: 0.75 | KR11: 1 | KS11: 0.17 | KT11: 0.291 | KU11: 0.77 | KV11: 0.538 | KW11: 0.802 | KX11: 0.858 | KY11: 0.888 | KZ11: 0.844 | LA11: 0.514 | LB11: 0.9 | LC11: 0.697 | LD11: 0.691 | LE11: 0.6 | LF11: 0.352 | LG11: 0.979 | LH11: 0.864 | LI11: 0.891 | LJ11: =PERCENTRANK($B10:$MD10, LJ10) -> 0.685 | LK11: 0.229 | LL11: 0.941 | LM11: 0.835 | LN11: 0.938 | LO11: 0.979 | LP11: 0.388 | LQ11: 0.914 | LR11: 0.735 | LS11: 0.6 | LT11: 0.955 | LU11: 0.95 | LV11: 0.891 | LW11: 0.885 | LX11: 0.926 | LY11: 0.905 | LZ11: 0.994 | MA11: 0.794 | MB11: 0.964 | MC11: 0.944 | MD11: 0.917 | ME11: 0.7006941176 | MG11: 0.24525 | MH11: 0.4965 | MI11: 0.747
A12: Field Goal Percentage | B12: 39.2 | C12: 39.3 | D12: 35.4 | E12: 40.1 | F12: 41.4 | G12: 36.5 | H12: 43.9 | I12: 41.1 | J12: 39.3 | K12: 40.8 | L12: 39.8 | M12: 41.5 | N12: 41.2 | O12: 40.5 | P12: 40.3 | Q12: 40.2 | R12: 38.6 | S12: 41.3 | T12: 40.8 | U12: 39.5 | V12: 43.5 | W12: 38.2 | X12: 42.1 | Y12: 38.9 | Z12: 43.1 | AA12: 41 | AB12: 42.2 | AC12: 45.1 | AD12: 37.7 | AE12: 41.1 | AF12: 45.9 | AG12: 40.2 | AH12: 42.8 | AI12: 38 | AJ12: 41.4 | AK12: 36.8 | AL12: 41.9 | AM12: 37.9 | AN12: 41.5 | AO12: 39 | AP12: 43.1 | AQ12: 42.7 | AR12: 39.7 | AS12: 40.4 | AT12: 42.5 | AU12: 40.5 | AV12: 40.8 | AW12: 41.8 | AX12: 40.6 | AY12: 41.8 | AZ12: 38.3 | BA12: 41.1 | BB12: 42.4 | BC12: 43.6 | BD12: 39.6 | BE12: 44.2 | BF12: 40.7 | BG12: 45.3 | BH12: 44.6 | BI12: 44.3 | BJ12: 45.1 | BK12: 42.7 | BL12: 42.2 | BM12: 42.3 | BN12: 43.7 | BO12: 39.8 | BP12: 41.7 | BQ12: 42.4 | BR12: 44.2 | BS12: 42 | BT12: 40.6 | BU12: 44.1 | BV12: 43.5 | BW12: 43.1 | BX12: 44 | BY12: 41.9 | BZ12: 39.6 | CA12: 44.3 | CB12: 42.2 | CC12: 40.6 | CD12: 40.2 | CE12: 47.9 | CF12: 39.1 | CG12: 41 | CH12: 41.6 | CI12: 41.37411765 | CJ12: 47.5 | CK12: 41.9 | CL12: 42.2 | CM12: 39.9 | CN12: 45.3 | CO12: 41 | CP12: 47.2 | CQ12: 43.8 | CR12: 41.4 | CS12: 47.2 | CT12: 45.7 | CU12: 41.5 | CV12: 41.7 | CW12: 41.8 | CX12: 41.7 | CY12: 46.1 | CZ12: 40.2 | DA12: 45.9 | DB12: 43.5 | DC12: 40.9 | DD12: 43.8 | DE12: 42 | DF12: 41.8 | DG12: 42.5 | DH12: 42.6 | DI12: 37.8 | DJ12: 41.4 | DK12: 42.4 | DL12: 45 | DM12: 43.7 | DN12: 39.4 | DO12: 41.8 | DP12: 42.4 | DQ12: 38.2 | DR12: 45 | DS12: 41.9 | DT12: 39.9 | DU12: 43.5 | DV12: 45.6 | DW12: 42.5 | DX12: 42.8 | DY12: 44.3 | DZ12: 40.5 | EA12: 43.7 | EB12: 46.4 | EC12: 41 | ED12: 42.9 | EE12: 43.3 | EF12: 40.4 | EG12: 43.4 | EH12: 43 | EI12: 44.6 | EJ12: 44 | EK12: 48.6 | EL12: 45.1 | EM12: 44.7 | EN12: 41.5 | EO12: 46.7 | EP12: 41.6 | EQ12: 46.3 | ER12: 43.2 | ES12: 42.5 | ET12: 42.6 | EU12: 43.9 | EV12: 43.1 | EW12: 45.7 | EX12: 44.2 | EY12: 40.3 | EZ12: 42.5 | FA12: 46.8 | FB12: 42.7 | FC12: 43.1 | FD12: 48.4 | FE12: 42.8 | FF12: 42.3 | FG12: 49.2 | FH12: 43.4 | FI12: 48.7 | FJ12: 43.2 | FK12: 42.6 | FL12: 40.9 | FM12: 42.4 | FN12: 46 | FO12: 44 | FP12: 43.3202381 | FQ12: 44.7 | FR12: 42.4 | FS12: 40.6 | FT12: 43 | FU12: 42.8 | FV12: 44.5 | FW12: 43.2 | FX12: 41.1 | FY12: 42.7 | FZ12: 44.3 | GA12: 44.6 | GB12: 43.6 | GC12: 48.6 | GD12: 47 | GE12: 47.6 | GF12: 47.1 | GG12: 46.8 | GH12: 39.2 | GI12: 45.2 | GJ12: 40 | GK12: 46.8 | GL12: 43.2 | GM12: 43.3 | GN12: 42.5 | GO12: 42 | GP12: 43.2 | GQ12: 43.3 | GR12: 46.3 | GS12: 45.8 | GT12: 43.3 | GU12: 42.2 | GV12: 43.3 | GW12: 44 | GX12: 45.1 | GY12: 47 | GZ12: 43.3 | HA12: 42.3 | HB12: 44.4 | HC12: 46.4 | HD12: 42.1 | HE12: 45 | HF12: 43.1 | HG12: 44.7 | HH12: 44.1 | HI12: 44.6 | HJ12: 42.6 | HK12: 43.7 | HL12: 46.7 | HM12: 41.9 | HN12: 43.4 | HO12: 40.7 | HP12: 48.2 | HQ12: 45.3 | HR12: 40.9 | HS12: 42 | HT12: 42.8 | HU12: 40.4 | HV12: 43.6 | HW12: 41.9 | HX12: 42.6 | HY12: 42.2 | HZ12: 39.7 | IA12: 45.2 | IB12: 44 | IC12: 44.7 | ID12: 44.6 | IE12: 42.5 | IF12: 46.4 | IG12: 42.6 | IH12: 45.8 | II12: 45.1 | IJ12: 45.3 | IK12: 44.7 | IL12: 44.2 | IM12: 47.4 | IN12: 44.5 | IO12: 46 | IP12: 44.5 | IQ12: 49 | IR12: 43.7 | IS12: 47.2 | IT12: 46 | IU12: 42.2 | IV12: 44.1 | IW12: 44.03095238 | IX12: 46.4 | IY12: 44.7 | IZ12: 46.5 | JA12: 40.9 | JB12: 43 | JC12: 46.1 | JD12: 45.2 | JE12: 45.3 | JF12: 42 | JG12: 44.3 | JH12: 46.6 | JI12: 44.4 | JJ12: 43.1 | JK12: 46 | JL12: 47.7 | JM12: 43.1 | JN12: 44.4 | JO12: 40.8 | JP12: 43.9 | JQ12: 43.5 | JR12: 45.6 | JS12: 44.5 | JT12: 43.8 | JU12: 43 | JV12: 43.6 | JW12: 40.8 | JX12: 48.7 | JY12: 46.5 | JZ12: 46.8 | KA12: 45.2 | KB12: 44.2 | KC12: 45.6 | KD12: 45.7 | KE12: 44.6 | KF12: 46.9 | KG12: 44.7 | KH12: 46.8 | KI12: 43.8 | KJ12: 49.8 | KK12: 44 | KL12: 43.7 | KM12: 43.7 | KN12: 45.6 | KO12: 49 | KP12: 43.7 | KQ12: 43.5 | KR12: 50.2 | KS12: 46.1 | KT12: 46.3 | KU12: 48.1 | KV12: 45.3 | KW12: 46 | KX12: 47.4 | KY12: 47.4 | KZ12: 45.2 | LA12: 45.2 | LB12: 47.8 | LC12: 45.4 | LD12: 47.5 | LE12: 45.1 | LF12: 45.7 | LG12: 50.8 | LH12: 46.4 | LI12: 49 | LJ12: 43.2 | LK12: 42.6 | LL12: 46.5 | LM12: 46.9 | LN12: 49 | LO12: 49.7 | LP12: 45.6 | LQ12: 47.4 | LR12: 41.6 | LS12: 46.2 | LT12: 46.8 | LU12: 49 | LV12: 48.3 | LW12: 47.2 | LX12: 46.4 | LY12: 48.3 | LZ12: 46.2 | MA12: 47.6 | MB12: 46.5 | MC12: 48.8 | MD12: 47.1 | ME12: 45.73529412 | MF12: Field Goal Percentage | MG12: 41.8 | MH12: 43.5 | MI12: 45.6
B13: =PERCENTRANK($B12:$LF12, B12) -> 0.044 | C13: 0.05 | D13: 0 | E13: 0.091 | F13: 0.215 | G13: 0.003 | H13: 0.591 | I13: 0.193 | J13: 0.05 | K13: 0.151 | L13: 0.075 | M13: 0.227 | N13: 0.205 | O13: 0.123 | P13: 0.107 | Q13: 0.094 | R13: 0.031 | S13: 0.208 | T13: 0.151 | U13: 0.06 | V13: 0.522 | W13: 0.022 | X13: 0.306 | Y13: 0.034 | Z13: 0.449 | AA13: 0.18 | AB13: 0.313 | AC13: 0.737 | AD13: 0.009 | AE13: 0.193 | AF13: 0.829 | AG13: 0.094 | AH13: =PERCENTRANK($B12:$LF12, AH12) -> 0.417 | AI13: 0.018 | AJ13: 0.215 | AK13: 0.006 | AL13: 0.272 | AM13: 0.015 | AN13: 0.227 | AO13: 0.037 | AP13: 0.449 | AQ13: 0.405 | AR13: 0.069 | AS13: 0.113 | AT13: 0.363 | AU13: 0.123 | AV13: 0.151 | AW13: 0.256 | AX13: 0.132 | AY13: 0.256 | AZ13: 0.028 | BA13: 0.193 | BB13: 0.344 | BC13: 0.541 | BD13: 0.063 | BE13: 0.632 | BF13: 0.145 | BG13: 0.775 | BH13: 0.686 | BI13: 0.648 | BJ13: 0.737 | BK13: 0.405 | BL13: 0.313 | BM13: 0.335 | BN13: =PERCENTRANK($B12:$LF12, BN12) -> 0.553 | BO13: 0.075 | BP13: 0.246 | BQ13: 0.344 | BR13: 0.632 | BS13: 0.291 | BT13: 0.132 | BU13: 0.623 | BV13: 0.522 | BW13: 0.449 | BX13: 0.601 | BY13: 0.272 | BZ13: 0.063 | CA13: 0.648 | CB13: 0.313 | CC13: 0.132 | CD13: 0.094 | CE13: 0.962 | CF13: 0.041 | CG13: 0.18 | CH13: 0.24 | CI13: 0.2722235294 | CJ13: 0.946 | CK13: 0.272 | CL13: 0.313 | CM13: 0.082 | CN13: 0.775 | CO13: 0.18 | CP13: 0.927 | CQ13: 0.579 | CR13: 0.215 | CS13: 0.927 | CT13: 0.81 | CU13: =PERCENTRANK($B12:$LF12, CU12) -> 0.227 | CV13: 0.246 | CW13: 0.256 | CX13: 0.246 | CY13: 0.851 | CZ13: 0.094 | DA13: 0.829 | DB13: 0.522 | DC13: 0.167 | DD13: 0.579 | DE13: 0.291 | DF13: 0.256 | DG13: 0.363 | DH13: 0.386 | DI13: 0.012 | DJ13: 0.215 | DK13: 0.344 | DL13: 0.727 | DM13: 0.553 | DN13: 0.056 | DO13: 0.256 | DP13: 0.344 | DQ13: 0.022 | DR13: 0.727 | DS13: 0.272 | DT13: 0.082 | DU13: 0.522 | DV13: 0.797 | DW13: 0.363 | DX13: 0.417 | DY13: 0.648 | DZ13: 0.123 | EA13: =PERCENTRANK($B12:$LF12, EA12) -> 0.553 | EB13: 0.87 | EC13: 0.18 | ED13: 0.433 | EE13: 0.49 | EF13: 0.113 | EG13: 0.512 | EH13: 0.436 | EI13: 0.686 | EJ13: 0.601 | EK13: 0.974 | EL13: 0.737 | EM13: 0.705 | EN13: 0.227 | EO13: 0.892 | EP13: 0.24 | EQ13: 0.86 | ER13: 0.474 | ES13: 0.363 | ET13: 0.386 | EU13: 0.591 | EV13: 0.449 | EW13: 0.81 | EX13: 0.632 | EY13: 0.107 | EZ13: 0.363 | FA13: 0.898 | FB13: 0.405 | FC13: 0.449 | FD13: 0.971 | FE13: 0.417 | FF13: 0.335 | FG13: =PERCENTRANK($B12:$LF12, FG12) -> 0.993 | FH13: 0.512 | FI13: 0.981 | FJ13: 0.474 | FK13: 0.386 | FL13: 0.167 | FM13: 0.344 | FN13: 0.835 | FO13: 0.601 | FP13: 0.4794166667 | FQ13: =PERCENTRANK($B12:$LR12, FQ12) -> 0.689 | FR13: 0.335 | FS13: 0.128 | FT13: 0.426 | FU13: 0.408 | FV13: 0.658 | FW13: 0.463 | FX13: 0.185 | FY13: 0.396 | FZ13: 0.634 | GA13: 0.67 | GB13: 0.53 | GC13: 0.963 | GD13: 0.905 | GE13: 0.942 | GF13: 0.911 | GG13: 0.884 | GH13: 0.042 | GI13: 0.737 | GJ13: 0.085 | GK13: 0.884 | GL13: 0.463 | GM13: 0.481 | GN13: 0.353 | GO13: 0.283 | GP13: 0.463 | GQ13: 0.481 | GR13: 0.841 | GS13: 0.804 | GT13: 0.481 | GU13: 0.304 | GV13: 0.481 | GW13: =PERCENTRANK($B12:$LR12, GW12) -> 0.588 | GX13: 0.719 | GY13: 0.905 | GZ13: 0.481 | HA13: 0.326 | HB13: 0.649 | HC13: 0.85 | HD13: 0.298 | HE13: 0.71 | HF13: 0.439 | HG13: 0.689 | HH13: 0.609 | HI13: 0.67 | HJ13: 0.375 | HK13: 0.542 | HL13: 0.878 | HM13: 0.265 | HN13: 0.503 | HO13: 0.14 | HP13: 0.957 | HQ13: 0.756 | HR13: 0.161 | HS13: 0.283 | HT13: 0.408 | HU13: 0.109 | HV13: 0.53 | HW13: 0.265 | HX13: 0.375 | HY13: 0.304 | HZ13: 0.067 | IA13: 0.737 | IB13: 0.588 | IC13: =PERCENTRANK($B12:$LR12, IC12) -> 0.689 | ID13: 0.67 | IE13: 0.353 | IF13: 0.85 | IG13: 0.375 | IH13: 0.804 | II13: 0.719 | IJ13: 0.756 | IK13: 0.689 | IL13: 0.618 | IM13: 0.923 | IN13: 0.658 | IO13: 0.817 | IP13: 0.658 | IQ13: 0.975 | IR13: 0.542 | IS13: 0.914 | IT13: 0.817 | IU13: 0.304 | IV13: 0.609 | IW13: 0.5622142857 | IX13: =PERCENTRANK($B12:$MD12, IX12) -> 0.826 | IY13: 0.664 | IZ13: 0.844 | JA13: 0.155 | JB13: 0.411 | JC13: 0.802 | JD13: 0.711 | JE13: 0.729 | JF13: 0.273 | JG13: 0.611 | JH13: 0.855 | JI13: 0.626 | JJ13: 0.423 | JK13: 0.788 | JL13: 0.935 | JM13: 0.423 | JN13: 0.626 | JO13: 0.141 | JP13: 0.558 | JQ13: 0.494 | JR13: 0.75 | JS13: 0.635 | JT13: 0.547 | JU13: 0.411 | JV13: 0.511 | JW13: 0.141 | JX13: 0.964 | JY13: 0.844 | JZ13: 0.864 | KA13: 0.711 | KB13: 0.597 | KC13: 0.75 | KD13: =PERCENTRANK($B12:$MD12, KD12) -> 0.764 | KE13: 0.647 | KF13: 0.882 | KG13: 0.664 | KH13: 0.864 | KI13: 0.547 | KJ13: 0.994 | KK13: 0.567 | KL13: 0.523 | KM13: 0.523 | KN13: 0.75 | KO13: 0.973 | KP13: 0.523 | KQ13: 0.494 | KR13: 0.997 | KS13: 0.802 | KT13: 0.817 | KU13: 0.944 | KV13: 0.729 | KW13: 0.788 | KX13: 0.911 | KY13: 0.911 | KZ13: 0.711 | LA13: 0.711 | LB13: 0.938 | LC13: 0.747 | LD13: 0.923 | LE13: 0.694 | LF13: 0.764 | LG13: 1 | LH13: 0.826 | LI13: 0.973 | LJ13: =PERCENTRANK($B12:$MD12, LJ12) -> 0.447 | LK13: 0.361 | LL13: 0.844 | LM13: 0.882 | LN13: 0.973 | LO13: 0.991 | LP13: 0.75 | LQ13: 0.911 | LR13: 0.223 | LS13: 0.811 | LT13: 0.864 | LU13: 0.973 | LV13: 0.95 | LW13: 0.9 | LX13: 0.826 | LY13: 0.95 | LZ13: 0.811 | MA13: 0.929 | MB13: 0.844 | MC13: 0.97 | MD13: 0.894 | ME13: 0.725 | MG13: 0.24 | MH13: 0.492 | MI13: 0.747
A14: 3 Point Percentage | B14: 30.2 | C14: 28.9 | D14: 27.5 | E14: 31.7 | F14: 38 | G14: 30.5 | H14: 35.3 | I14: 29.8 | J14: 30 | K14: 32.7 | L14: 30.4 | M14: 34.1 | N14: 27.7 | O14: 30.1 | P14: 32.7 | Q14: 27.4 | R14: 30.3 | S14: 28.6 | T14: 31 | U14: 34.3 | V14: 33.3 | W14: 30.7 | X14: 31.6 | Y14: 30.6 | Z14: 36.4 | AA14: 36.4 | AB14: 31.5 | AC14: 33.9 | AD14: 32.1 | AE14: 36.9 | AF14: 35.6 | AG14: 28.9 | AH14: 35.6 | AI14: 28 | AJ14: 30.8 | AK14: 27 | AL14: 31 | AM14: 30.1 | AN14: 33.5 | AO14: 30.5 | AP14: 38.7 | AQ14: 36.3 | AR14: 32.7 | AS14: 31.8 | AT14: 30.7 | AU14: 34.6 | AV14: 31.4 | AW14: 36.4 | AX14: 32.3 | AY14: 32 | AZ14: 31.1 | BA14: 36.4 | BB14: 31.7 | BC14: 34.2 | BD14: 32.6 | BE14: 33.3 | BF14: 32.3 | BG14: 31.6 | BH14: 33.7 | BI14: 31.1 | BJ14: 33.1 | BK14: 33.9 | BL14: 33.7 | BM14: 31 | BN14: 36.8 | BO14: 33.7 | BP14: 29.7 | BQ14: 34.9 | BR14: 40.9 | BS14: 35.7 | BT14: 30.9 | BU14: 34.3 | BV14: 37.5 | BW14: 37.7 | BX14: 34.5 | BY14: 31.9 | BZ14: 31.7 | CA14: 34.1 | CB14: 33.3 | CC14: 33.3 | CD14: 30 | CE14: 45 | CF14: 27.5 | CG14: 34.4 | CH14: 28.2 | CI14: 32.68470588 | CJ14: 36.8 | CK14: 32.4 | CL14: 36.8 | CM14: 27.5 | CN14: 35.8 | CO14: 31.1 | CP14: 34.9 | CQ14: 35.5 | CR14: 33.8 | CS14: 28.6 | CT14: 36.4 | CU14: 33 | CV14: 33.8 | CW14: 35.7 | CX14: 33.7 | CY14: 37.6 | CZ14: 33.5 | DA14: 36.9 | DB14: 36.8 | DC14: 33.8 | DD14: 36.2 | DE14: 30.7 | DF14: 33.9 | DG14: 32 | DH14: 34.5 | DI14: 35.7 | DJ14: 35.7 | DK14: 27 | DL14: 28.4 | DM14: 37.5 | DN14: 29.9 | DO14: 32.6 | DP14: 33.9 | DQ14: 27.5 | DR14: 35.1 | DS14: 30.2 | DT14: 34.6 | DU14: 33.8 | DV14: 36.7 | DW14: 35 | DX14: 32 | DY14: 35.6 | DZ14: 36 | EA14: 38 | EB14: 35.6 | EC14: 31.6 | ED14: 35.4 | EE14: 35.1 | EF14: 32 | EG14: 35.4 | EH14: 31.1 | EI14: 39.2 | EJ14: 33.1 | EK14: 37.3 | EL14: 37.6 | EM14: 36.3 | EN14: 34.1 | EO14: 35.7 | EP14: 32.2 | EQ14: 32.4 | ER14: 34.2 | ES14: 33.7 | ET14: 31.8 | EU14: 31.1 | EV14: 34.2 | EW14: 38.6 | EX14: 32.1 | EY14: 32.3 | EZ14: 32.4 | FA14: 36.7 | FB14: 36.9 | FC14: 33.4 | FD14: 33.3 | FE14: 34.9 | FF14: 34.5 | FG14: 37.2 | FH14: 36 | FI14: 33.4 | FJ14: 31.3 | FK14: 38.2 | FL14: 33.4 | FM14: 33 | FN14: 36.3 | FO14: 33.8 | FP14: 34.09166667 | FQ14: 37.7 | FR14: 33.1 | FS14: 32.9 | FT14: 34.7 | FU14: 33.5 | FV14: 32.4 | FW14: 32.9 | FX14: 32.5 | FY14: 33.2 | FZ14: 34.3 | GA14: 34.7 | GB14: 34.2 | GC14: 41.4 | GD14: 36.2 | GE14: 38.8 | GF14: 36.9 | GG14: 35.3 | GH14: 30.6 | GI14: 30.3 | GJ14: 33.1 | GK14: 34.4 | GL14: 40.6 | GM14: 34.3 | GN14: 31.6 | GO14: 31.2 | GP14: 36.5 | GQ14: 31.5 | GR14: 35.2 | GS14: 39.3 | GT14: 33 | GU14: 35.9 | GV14: 33.8 | GW14: 30.6 | GX14: 36.5 | GY14: 34.3 | GZ14: 34 | HA14: 28.6 | HB14: 36.6 | HC14: 37.2 | HD14: 34.7 | HE14: 36.6 | HF14: 32.7 | HG14: 34.7 | HH14: 36.8 | HI14: 35.8 | HJ14: 35.9 | HK14: 35 | HL14: 35.6 | HM14: 34.5 | HN14: 35.6 | HO14: 28.1 | HP14: 36.1 | HQ14: 36.5 | HR14: 31 | HS14: 34.8 | HT14: 34.9 | HU14: 31.1 | HV14: 34.1 | HW14: 32.2 | HX14: 34.1 | HY14: 34.7 | HZ14: 32 | IA14: 35.7 | IB14: 36.3 | IC14: 33 | ID14: 35.3 | IE14: 36.5 | IF14: 36.9 | IG14: 33.9 | IH14: 33.7 | II14: 36.9 | IJ14: 38.4 | IK14: 33.8 | IL14: 35.5 | IM14: 37.3 | IN14: 37.7 | IO14: 35.1 | IP14: 36.2 | IQ14: 39.9 | IR14: 37 | IS14: 35.3 | IT14: 40.8 | IU14: 33 | IV14: 36.2 | IW14: 34.8297619 | IX14: 35.5 | IY14: 35.9 | IZ14: 33.3 | JA14: 29.6 | JB14: 33.6 | JC14: 38.8 | JD14: 33.7 | JE14: 36.6 | JF14: 35.8 | JG14: 35.1 | JH14: 40.8 | JI14: 30.9 | JJ14: 33.8 | JK14: 35.5 | JL14: 33 | JM14: 30.8 | JN14: 37.8 | JO14: 31.4 | JP14: 38.3 | JQ14: 30.4 | JR14: 36.4 | JS14: 34.1 | JT14: 39.5 | JU14: 31.2 | JV14: 33.8 | JW14: 33.2 | JX14: 37.7 | JY14: 37.1 | JZ14: 39.5 | KA14: 36.6 | KB14: 33.8 | KC14: 35.9 | KD14: 36.8 | KE14: 33.4 | KF14: 35.8 | KG14: 30.7 | KH14: 34.4 | KI14: 35.9 | KJ14: 36.9 | KK14: 31.3 | KL14: 33 | KM14: 36.4 | KN14: 38.3 | KO14: 36.4 | KP14: 33.2 | KQ14: 36.6 | KR14: 39.4 | KS14: 33.8 | KT14: 34.7 | KU14: 37.1 | KV14: 36.3 | KW14: 38.4 | KX14: 35.8 | KY14: 34.7 | KZ14: 38.3 | LA14: 32.7 | LB14: 41.5 | LC14: 33.2 | LD14: 41 | LE14: 33 | LF14: 28.5 | LG14: 42.8 | LH14: 39.8 | LI14: 36.8 | LJ14: 32.2 | LK14: 35.8 | LL14: 39.4 | LM14: 37.5 | LN14: 42.6 | LO14: 38.4 | LP14: 34.7 | LQ14: 40.5 | LR14: 36.3 | LS14: 35.3 | LT14: 37.2 | LU14: 37.2 | LV14: 33.1 | LW14: 39 | LX14: 34.6 | LY14: 35.2 | LZ14: 34.8 | MA14: 35.2 | MB14: 38.7 | MC14: 37.6 | MD14: 34.2 | ME14: 36.08157895 | MF14: 3 Point Percentage | MG14: 33.15 | MH14: 34.8 | MI14: 36.6
E15: 0.119 | F15: 0.884 | G15: 0.042 | H15: 0.554 | J15: 0.021 | K15: 0.192 | L15: 0.035 | M15: 0.385 | P15: 0.192 | Q15: 0 | R15: 0.031 | T15: 0.073 | U15: 0.421 | V15: 0.263 | W15: 0.056 | X15: 0.108 | Z15: 0.705 | AA15: 0.705 | AB15: 0.101 | AC15: 0.368 | AE15: 0.796 | AG15: 0.014 | AH15: 0.592 | AI15: 0.007 | AJ15: 0.063 | AM15: 0.024 | AN15: 0.287 | AO15: 0.042 | AP15: 0.919 | AQ15: 0.684 | AR15: 0.192 | AS15: 0.126 | AU15: 0.456 | AW15: 0.705 | AX15: 0.157 | AY15: 0.133 | BA15: 0.705 | BB15: 0.119 | BC15: 0.407 | BD15: 0.185 | BE15: 0.263 | BF15: 0.157 | BH15: 0.305 | BI15: 0.08 | BJ15: 0.238 | BK15: 0.368 | BL15: 0.305 | BN15: 0.771 | BO15: 0.305 | BQ15: 0.505 | BR15: 0.978 | BS15: 0.607 | BT15: 0.066 | BU15: 0.421 | BV15: 0.845 | BW15: 0.866 | BX15: 0.445 | BY15: 0.129 | CA15: 0.385 | CB15: 0.263 | CE15: 1 | CG15: 0.435 | CI15: 0.3484677419 | CJ15: 0.771 | CK15: 0.168 | CL15: 0.771 | CM15: 0.003 | CN15: 0.624 | CP15: 0.505 | CQ15: 0.578 | CR15: 0.329 | CT15: 0.705 | CU15: 0.217 | CV15: 0.329 | CW15: 0.607 | CX15: 0.305 | CY15: 0.856 | CZ15: 0.287 | DA15: 0.796 | DB15: 0.771 | DC15: 0.329 | DF15: 0.368 | DH15: 0.445 | DJ15: 0.607 | DM15: 0.845 | DN15: 0.017 | DO15: 0.185 | DP15: 0.368 | DR15: 0.529 | DS15: 0.028 | DT15: 0.456 | DU15: 0.329 | DV15: 0.764 | DW15: 0.519 | DX15: 0.133 | DY15: 0.592 | DZ15: 0.663 | EA15: 0.884 | EB15: 0.592 | EC15: 0.108 | ED15: 0.571 | EE15: 0.529 | EF15: 0.133 | EG15: 0.571 | EI15: 0.936 | EJ15: 0.238 | EK15: 0.838 | EL15: 0.856 | EM15: 0.684 | EN15: 0.385 | EO15: 0.607 | EP15: 0.147 | EQ15: 0.168 | ER15: 0.407 | ES15: 0.305 | EV15: 0.407 | EW15: 0.915 | EY15: 0.157 | EZ15: 0.168 | FA15: 0.764 | FB15: 0.796 | FC15: 0.277 | FD15: 0.263 | FE15: 0.505 | FG15: 0.824 | FH15: 0.663 | FJ15: 0.094 | FK15: 0.891 | FL15: 0.277 | FN15: 0.684 | FO15: 0.329 | FP15: 0.4819411765 | FQ15: 0.866 | FS15: 0.21 | FT15: 0.47 | FU15: 0.287 | FV15: 0.168 | FW15: 0.21 | FX15: 0.182 | FY15: 0.249 | FZ15: 0.421 | GA15: 0.47 | GC15: 0.985 | GD15: 0.673 | GE15: 0.926 | GF15: 0.796 | GG15: 0.554 | GH15: 0.049 | GJ15: 0.238 | GK15: 0.435 | GL15: 0.968 | GM15: 0.421 | GN15: 0.108 | GO15: 0.087 | GP15: 0.733 | GQ15: 0.101 | GR15: 0.543 | GS15: 0.94 | GT15: 0.217 | GU15: 0.645 | GV15: 0.329 | GW15: 0.049 | GX15: 0.733 | HB15: 0.747 | HC15: 0.824 | HD15: 0.47 | HE15: 0.747 | HF15: 0.192 | HG15: 0.47 | HH15: 0.771 | HI15: 0.624 | HJ15: 0.645 | HK15: 0.519 | HL15: 0.592 | HM15: 0.445 | HO15: 0.01 | HP15: 0.67 | HQ15: 0.733 | HR15: 0.073 | HS15: 0.498 | HT15: 0.505 | HU15: 0.08 | HV15: 0.385 | HW15: 0.147 | HX15: 0.385 | HY15: 0.47 | HZ15: 0.133 | IA15: 0.607 | IB15: 0.684 | IC15: 0.217 | ID15: 0.554 | IE15: 0.733 | IF15: 0.796 | IG15: 0.368 | IH15: 0.305 | II15: 0.796 | IJ15: 0.905 | IK15: 0.329 | IL15: 0.578 | IM15: 0.838 | IN15: 0.866 | IO15: 0.529 | IP15: 0.673 | IQ15: 0.961 | IR15: 0.817 | IS15: 0.554 | IT15: 0.971 | IU15: 0.217 | IV15: 0.673 | IW15: 0.5086883117 | IX15: 0.578 | IY15: 0.645 | JB15: 0.301 | JC15: 0.926 | JD15: 0.305 | JE15: 0.747 | JF15: 0.624 | JG15: 0.529 | JH15: 0.971 | JI15: 0.066 | JJ15: 0.329 | JK15: 0.578 | JN15: 0.88 | JO15: 0.098 | JP15: 0.894 | JQ15: 0.035 | JR15: 0.705 | JS15: 0.385 | JT15: 0.95 | JU15: 0.087 | JV15: 0.329 | JW15: 0.249 | JX15: 0.866 | JY15: 0.821 | JZ15: 0.95 | KA15: 0.747 | KB15: 0.329 | KC15: 0.645 | KD15: 0.771 | KE15: 0.277 | KF15: 0.624 | KG15: 0.056 | KH15: 0.435 | KI15: 0.645 | KL15: 0.217 | KM15: 0.705 | KN15: 0.894 | KO15: 0.705 | KP15: 0.249 | KQ15: 0.747 | KR15: 0.943 | KS15: 0.329 | KT15: 0.47 | KV15: 0.684 | KW15: 0.905 | KX15: 0.624 | KY15: 0.47 | KZ15: 0.894 | LA15: 0.192 | LB15: 0.989 | LC15: 0.249 | LD15: 0.982 | LE15: 0.217 | LG15: 0.996 | LH15: 0.957 | LI15: 0.771 | LJ15: 0.147 | LK15: 0.624 | LL15: 0.943 | LM15: 0.845 | LN15: 0.992 | LO15: 0.905 | LP15: 0.47 | LQ15: 0.964 | LR15: 0.684 | LS15: 0.554 | LT15: 0.824 | LU15: 0.824 | LW15: 0.933 | LX15: 0.456 | LY15: 0.543 | LZ15: 0.498 | MA15: 0.543 | MB15: 0.919 | MC15: 0.856 | MD15: 0.407 | MG15: 0.2435 | MH15: 0.498 | MI15: 0.747
A16: Free Throw Percentage | B16: 69.6 | C16: 64.2 | D16: 68.1 | E16: 64 | F16: 68.3 | G16: 66.1 | H16: 67.5 | I16: 69.9 | J16: 66.4 | K16: 68.9 | L16: 65.2 | M16: 62.5 | N16: 66 | O16: 58.4 | P16: 73.4 | Q16: 68.4 | R16: 64 | S16: 70.3 | T16: 59.6 | U16: 70.5 | V16: 66.5 | W16: 75.5 | X16: 68.8 | Y16: 60.2 | Z16: 66.1 | AA16: 65.3 | AB16: 55 | AC16: 69.9 | AD16: 70 | AE16: 63.3 | AF16: 65.3 | AG16: 62.6 | AH16: 70.3 | AI16: 64.7 | AJ16: 67.1 | AK16: 58.2 | AL16: 69.4 | AM16: 58.7 | AN16: 68 | AO16: 54.9 | AP16: 68.5 | AQ16: 72.9 | AR16: 66.5 | AS16: 65 | AT16: 66.6 | AU16: 60.9 | AV16: 69 | AW16: 70.4 | AX16: 71.5 | AY16: 66.7 | AZ16: 67.7 | BA16: 70.3 | BB16: 64.4 | BC16: 75.7 | BD16: 64.4 | BE16: 67.2 | BF16: 69.8 | BG16: 70.8 | BH16: 73 | BI16: 71.6 | BJ16: 68.6 | BK16: 66.1 | BL16: 67.9 | BM16: 65.3 | BN16: 70.6 | BO16: 74.5 | BP16: 60.2 | BQ16: 69.4 | BR16: 68.6 | BS16: 65.2 | BT16: 67.5 | BU16: 69.5 | BV16: 69 | BW16: 69.5 | BX16: 64.3 | BY16: 65.6 | BZ16: 66.3 | CA16: 65.7 | CB16: 65.5 | CC16: 72 | CD16: 68.1 | CE16: 70.4 | CF16: 61.2 | CG16: 67.7 | CH16: 63.5 | CI16: 66.89647059 | CJ16: 63.4 | CK16: 68.1 | CL16: 67 | CM16: 68.9 | CN16: 66.9 | CO16: 69.1 | CP16: 71.4 | CQ16: 69.1 | CR16: 72.4 | CS16: 73.2 | CT16: 72.3 | CU16: 61.5 | CV16: 68.6 | CW16: 67.2 | CX16: 72.2 | CY16: 67.7 | CZ16: 68.4 | DA16: 74.5 | DB16: 69.7 | DC16: 68.1 | DD16: 70.5 | DE16: 68.3 | DF16: 64.5 | DG16: 71.2 | DH16: 75.3 | DI16: 69 | DJ16: 73 | DK16: 67.6 | DL16: 63.3 | DM16: 63.4 | DN16: 70.1 | DO16: 66.9 | DP16: 67.5 | DQ16: 61.2 | DR16: 75 | DS16: 60.6 | DT16: 71 | DU16: 73.2 | DV16: 68.1 | DW16: 68.5 | DX16: 68.9 | DY16: 77.4 | DZ16: 70.1 | EA16: 76.1 | EB16: 71.5 | EC16: 73.3 | ED16: 65.8 | EE16: 69.7 | EF16: 70 | EG16: 66.4 | EH16: 70.3 | EI16: 75.3 | EJ16: 68.4 | EK16: 66.7 | EL16: 71.9 | EM16: 65.7 | EN16: 65.9 | EO16: 67 | EP16: 64.2 | EQ16: 66.9 | ER16: 68.4 | ES16: 59.1 | ET16: 67.9 | EU16: 63.5 | EV16: 70.8 | EW16: 68.3 | EX16: 67.4 | EY16: 70.3 | EZ16: 67.8 | FA16: 71.5 | FB16: 74.9 | FC16: 63.5 | FD16: 73.8 | FE16: 70.9 | FF16: 70.2 | FG16: 72.8 | FH16: 74.5 | FI16: 67.3 | FJ16: 66.1 | FK16: 65.1 | FL16: 67.6 | FM16: 66.9 | FN16: 60.5 | FO16: 66.7 | FP16: 68.75238095 | FQ16: 69 | FR16: 64.5 | FS16: 69.7 | FT16: 69.2 | FU16: 71.9 | FV16: 68.4 | FW16: 64.8 | FX16: 65.5 | FY16: 73.1 | FZ16: 67.5 | GA16: 74.1 | GB16: 70.2 | GC16: 68.9 | GD16: 71.6 | GE16: 66.8 | GF16: 71 | GG16: 68.6 | GH16: 67.6 | GI16: 72.8 | GJ16: 65.4 | GK16: 69.1 | GL16: 71.3 | GM16: 69.3 | GN16: 72.5 | GO16: 64.8 | GP16: 73.1 | GQ16: 65.3 | GR16: 67.4 | GS16: 76.4 | GT16: 67.7 | GU16: 70.4 | GV16: 69.2 | GW16: 65 | GX16: 73.1 | GY16: 69.4 | GZ16: 71.7 | HA16: 68.3 | HB16: 64.2 | HC16: 66.4 | HD16: 72.7 | HE16: 71.8 | HF16: 75.4 | HG16: 63.9 | HH16: 74.3 | HI16: 65.2 | HJ16: 75.7 | HK16: 69 | HL16: 70.3 | HM16: 71.3 | HN16: 72.6 | HO16: 64.4 | HP16: 76 | HQ16: 69.4 | HR16: 76.2 | HS16: 61.6 | HT16: 73.5 | HU16: 62.1 | HV16: 72.5 | HW16: 74.4 | HX16: 64.4 | HY16: 68.6 | HZ16: 69.2 | IA16: 69.1 | IB16: 65.3 | IC16: 65.9 | ID16: 78.4 | IE16: 72.7 | IF16: 71.3 | IG16: 66.9 | IH16: 76.9 | II16: 66.4 | IJ16: 67.9 | IK16: 70.1 | IL16: 70.7 | IM16: 73 | IN16: 72.9 | IO16: 65.5 | IP16: 69.2 | IQ16: 76.5 | IR16: 69.6 | IS16: 71.3 | IT16: 72.1 | IU16: 71.1 | IV16: 74.5 | IW16: 69.8452381 | IX16: 68.8 | IY16: 69.7 | IZ16: 69.6 | JA16: 62 | JB16: 67.1 | JC16: 76 | JD16: 75.4 | JE16: 71 | JF16: 64.1 | JG16: 69.6 | JH16: 81.2 | JI16: 71.5 | JJ16: 68.2 | JK16: 72.5 | JL16: 66.3 | JM16: 60 | JN16: 69.5 | JO16: 70 | JP16: 74.6 | JQ16: 63 | JR16: 69.4 | JS16: 76.6 | JT16: 72.8 | JU16: 60.2 | JV16: 76.7 | JW16: 70.1 | JX16: 73.9 | JY16: 68.9 | JZ16: 72.6 | KA16: 64.3 | KB16: 73.1 | KC16: 69 | KD16: 70.3 | KE16: 62.2 | KF16: 69.3 | KG16: 66.1 | KH16: 71.1 | KI16: 72.8 | KJ16: 63.4 | KK16: 70.5 | KL16: 65.7 | KM16: 66.5 | KN16: 68.8 | KO16: 75.3 | KP16: 71.7 | KQ16: 64.8 | KR16: 71.8 | KS16: 72.4 | KT16: 74.2 | KU16: 75.1 | KV16: 70.5 | KW16: 69.5 | KX16: 66.3 | KY16: 72.6 | KZ16: 67.4 | LA16: 67.1 | LB16: 73.3 | LC16: 69.4 | LD16: 76.7 | LE16: 69.2 | LF16: 71 | LG16: 72.9 | LH16: 70.6 | LI16: 71.1 | LJ16: 68.1 | LK16: 73.6 | LL16: 70.3 | LM16: 71.7 | LN16: 75.5 | LO16: 77 | LP16: 70.8 | LQ16: 71.2 | LR16: 74.9 | LS16: 70.7 | LT16: 67.6 | LU16: 75.2 | LV16: 69.7 | LW16: 74.6 | LX16: 72.2 | LY16: 69.3 | LZ16: 66.8 | MA16: 70.1 | MB16: 69.5 | MC16: 72.4 | MD16: 69.7 | ME16: 70.33176471 | MF16: Free Throw Percentage | MG16: 66.4 | MH16: 69.15 | MI16: 71.6
B17: =PERCENTRANK($B16:$LF16, B16) -> 0.585 | C17: 0.113 | D17: 0.401 | E17: 0.104 | F17: 0.42 | G17: 0.234 | H17: 0.351 | I17: 0.617 | J17: 0.259 | K17: 0.484 | L17: 0.17 | M17: 0.066 | N17: 0.231 | O17: 0.009 | P17: 0.886 | Q17: 0.433 | R17: 0.104 | S17: 0.651 | T17: 0.018 | U17: 0.683 | V17: 0.272 | W17: 0.952 | X17: 0.474 | Y17: 0.025 | Z17: 0.234 | AA17: 0.18 | AB17: 0.003 | AC17: 0.617 | AD17: 0.623 | AE17: 0.075 | AF17: 0.18 | AG17: 0.069 | AH17: =PERCENTRANK($B16:$LF16, AH16) -> 0.651 | AI17: 0.148 | AJ17: 0.322 | AK17: 0.006 | AL17: 0.553 | AM17: 0.012 | AN17: 0.398 | AO17: 0 | AP17: 0.449 | AQ17: 0.844 | AR17: 0.272 | AS17: 0.161 | AT17: 0.281 | AU17: 0.041 | AV17: 0.5 | AW17: 0.674 | AX17: 0.75 | AY17: 0.284 | AZ17: 0.373 | BA17: 0.651 | BB17: 0.129 | BC17: 0.955 | BD17: 0.129 | BE17: 0.332 | BF17: 0.61 | BG17: 0.702 | BH17: 0.851 | BI17: 0.762 | BJ17: 0.455 | BK17: 0.234 | BL17: 0.389 | BM17: 0.18 | BN17: =PERCENTRANK($B16:$LF16, BN16) -> 0.696 | BO17: 0.911 | BP17: 0.025 | BQ17: 0.553 | BR17: 0.455 | BS17: 0.17 | BT17: 0.351 | BU17: 0.572 | BV17: 0.5 | BW17: 0.572 | BX17: 0.123 | BY17: 0.208 | BZ17: 0.25 | CA17: 0.212 | CB17: 0.199 | CC17: 0.787 | CD17: 0.401 | CE17: 0.674 | CF17: 0.044 | CG17: 0.373 | CH17: 0.091 | CI17: 0.3739764706 | CJ17: 0.082 | CK17: 0.401 | CL17: 0.316 | CM17: 0.484 | CN17: 0.3 | CO17: 0.518 | CP17: 0.746 | CQ17: 0.518 | CR17: 0.8 | CS17: 0.873 | CT17: 0.797 | CU17: =PERCENTRANK($B16:$LF16, CU16) -> 0.05 | CV17: 0.455 | CW17: 0.332 | CX17: 0.794 | CY17: 0.373 | CZ17: 0.433 | DA17: 0.911 | DB17: 0.598 | DC17: 0.401 | DD17: 0.683 | DE17: 0.42 | DF17: 0.142 | DG17: 0.731 | DH17: 0.936 | DI17: 0.5 | DJ17: 0.851 | DK17: 0.363 | DL17: 0.075 | DM17: 0.082 | DN17: 0.632 | DO17: 0.3 | DP17: 0.351 | DQ17: 0.044 | DR17: 0.93 | DS17: 0.037 | DT17: 0.712 | DU17: 0.873 | DV17: 0.401 | DW17: 0.449 | DX17: 0.484 | DY17: 0.993 | DZ17: 0.632 | EA17: =PERCENTRANK($B16:$LF16, EA16) -> 0.968 | EB17: 0.75 | EC17: 0.879 | ED17: 0.221 | EE17: 0.598 | EF17: 0.623 | EG17: 0.259 | EH17: 0.651 | EI17: 0.936 | EJ17: 0.433 | EK17: 0.284 | EL17: 0.781 | EM17: 0.212 | EN17: 0.224 | EO17: 0.316 | EP17: 0.113 | EQ17: 0.3 | ER17: 0.433 | ES17: 0.015 | ET17: 0.389 | EU17: 0.091 | EV17: 0.702 | EW17: 0.42 | EX17: 0.341 | EY17: 0.651 | EZ17: 0.386 | FA17: 0.75 | FB17: 0.927 | FC17: 0.091 | FD17: 0.892 | FE17: 0.708 | FF17: 0.645 | FG17: =PERCENTRANK($B16:$LF16, FG16) -> 0.832 | FH17: 0.911 | FI17: 0.338 | FJ17: 0.234 | FK17: 0.167 | FL17: 0.363 | FM17: 0.3 | FN17: 0.034 | FO17: 0.284 | FP17: 0.4911309524 | FQ17: =PERCENTRANK($B16:$LR16, FQ16) -> 0.484 | FR17: 0.137 | FS17: 0.579 | FT17: 0.515 | FU17: 0.774 | FV17: 0.42 | FW17: 0.146 | FX17: 0.192 | FY17: 0.853 | FZ17: 0.338 | GA17: 0.893 | GB17: 0.625 | GC17: 0.469 | GD17: 0.753 | GE17: 0.283 | GF17: 0.698 | GG17: 0.442 | GH17: 0.35 | GI17: 0.823 | GJ17: 0.189 | GK17: 0.503 | GL17: 0.725 | GM17: 0.53 | GN17: 0.798 | GO17: 0.146 | GP17: 0.853 | GQ17: 0.173 | GR17: 0.329 | GS17: 0.972 | GT17: 0.359 | GU17: 0.655 | GV17: 0.515 | GW17: =PERCENTRANK($B16:$LR16, GW16) -> 0.155 | GX17: 0.853 | GY17: 0.536 | GZ17: 0.759 | HA17: 0.408 | HB17: 0.109 | HC17: 0.25 | HD17: 0.817 | HE17: 0.768 | HF17: 0.942 | HG17: 0.097 | HH17: 0.899 | HI17: 0.164 | HJ17: 0.954 | HK17: 0.484 | HL17: 0.631 | HM17: 0.725 | HN17: 0.807 | HO17: 0.125 | HP17: 0.96 | HQ17: 0.536 | HR17: 0.969 | HS17: 0.051 | HT17: 0.881 | HU17: 0.057 | HV17: 0.798 | HW17: 0.902 | HX17: 0.125 | HY17: 0.442 | HZ17: 0.515 | IA17: 0.503 | IB17: 0.173 | IC17: =PERCENTRANK($B16:$LR16, IC16) -> 0.216 | ID17: 0.996 | IE17: 0.817 | IF17: 0.725 | IG17: 0.289 | IH17: 0.987 | II17: 0.25 | IJ17: 0.375 | IK17: 0.612 | IL17: 0.682 | IM17: 0.844 | IN17: 0.835 | IO17: 0.192 | IP17: 0.515 | IQ17: 0.975 | IR17: 0.567 | IS17: 0.725 | IT17: 0.783 | IU17: 0.71 | IV17: 0.905 | IW17: 0.5585238095 | IX17: =PERCENTRANK($B16:$MD16, IX16) -> 0.45 | IY17: 0.57 | IZ17: 0.558 | JA17: 0.052 | JB17: 0.302 | JC17: 0.961 | JD17: 0.944 | JE17: 0.697 | JF17: 0.102 | JG17: 0.558 | JH17: 1 | JI17: 0.738 | JJ17: 0.397 | JK17: 0.8 | JL17: 0.232 | JM17: 0.02 | JN17: 0.544 | JO17: 0.6 | JP17: 0.914 | JQ17: 0.067 | JR17: 0.526 | JS17: 0.979 | JT17: 0.823 | JU17: 0.023 | JV17: 0.982 | JW17: 0.608 | JX17: 0.888 | JY17: 0.458 | JZ17: 0.808 | KA17: 0.114 | KB17: 0.852 | KC17: 0.473 | KD17: =PERCENTRANK($B16:$MD16, KD16) -> 0.629 | KE17: 0.058 | KF17: 0.517 | KG17: 0.217 | KH17: 0.708 | KI17: 0.823 | KJ17: 0.076 | KK17: 0.661 | KL17: 0.197 | KM17: 0.252 | KN17: 0.45 | KO17: 0.935 | KP17: 0.755 | KQ17: 0.141 | KR17: 0.764 | KS17: 0.791 | KT17: 0.894 | KU17: 0.929 | KV17: 0.661 | KW17: 0.544 | KX17: 0.232 | KY17: 0.808 | KZ17: 0.32 | LA17: 0.302 | LB17: 0.87 | LC17: 0.526 | LD17: 0.982 | LE17: 0.502 | LF17: 0.697 | LG17: 0.835 | LH17: 0.673 | LI17: 0.708 | LJ17: =PERCENTRANK($B16:$MD16, LJ16) -> 0.379 | LK17: 0.882 | LL17: 0.629 | LM17: 0.755 | LN17: 0.95 | LO17: 0.991 | LP17: 0.685 | LQ17: 0.717 | LR17: 0.92 | LS17: 0.679 | LT17: 0.341 | LU17: 0.932 | LV17: 0.57 | LW17: 0.914 | LX17: 0.782 | LY17: 0.517 | LZ17: 0.273 | MA17: 0.608 | MB17: 0.544 | MC17: 0.791 | MD17: 0.57 | ME17: 0.5991294118 | MG17: 0.243 | MH17: 0.495 | MI17: 0.747
A18: Assists Per Game | B18: 10.9 | C18: 10.6 | D18: 8.4 | E18: 10.8 | F18: 12.1 | G18: 9.3 | H18: 15.5 | I18: 8.6 | J18: 10.3 | K18: 14.1 | L18: 10.9 | M18: 12.1 | N18: 11.1 | O18: 10.9 | P18: 10.9 | Q18: 11.4 | R18: 10.8 | S18: 13 | T18: 10.8 | U18: 9.9 | V18: 13.4 | W18: 13.5 | X18: 12.6 | Y18: 11.3 | Z18: 9.7 | AA18: 11.4 | AB18: 14.9 | AC18: 13.8 | AD18: 8.3 | AE18: 13.8 | AF18: 12.5 | AG18: 11.3 | AH18: 13.1 | AI18: 10.7 | AJ18: 13.1 | AK18: 8.2 | AL18: 12.3 | AM18: 11.5 | AN18: 14.5 | AO18: 10.8 | AP18: 12.1 | AQ18: 13.5 | AR18: 11.6 | AS18: 12.5 | AT18: 11.7 | AU18: 10 | AV18: 11 | AW18: 13.6 | AX18: 10.6 | AY18: 11.9 | AZ18: 9.1 | BA18: 13 | BB18: 11.4 | BC18: 13.2 | BD18: 10.1 | BE18: 12.4 | BF18: 12.5 | BG18: 13.7 | BH18: 14.3 | BI18: 13.2 | BJ18: 13.8 | BK18: 13.1 | BL18: 12 | BM18: 10.9 | BN18: 14.1 | BO18: 13.4 | BP18: 13 | BQ18: 13 | BR18: 12.8 | BS18: 16 | BT18: 10.6 | BU18: 15 | BV18: 15 | BW18: 12.3 | BX18: 12.4 | BY18: 12.1 | BZ18: 12.5 | CA18: 14.1 | CB18: 11.7 | CC18: 12.3 | CD18: 10.8 | CE18: 12.4 | CF18: 9.5 | CG18: 12.8 | CH18: 11.8 | CI18: 12.02235294 | CJ18: 14.8 | CK18: 13.3 | CL18: 13.4 | CM18: 10.9 | CN18: 12 | CO18: 10.1 | CP18: 14.6 | CQ18: 14 | CR18: 11.1 | CS18: 14.6 | CT18: 13.2 | CU18: 10.4 | CV18: 10.8 | CW18: 13.3 | CX18: 9.3 | CY18: 13.7 | CZ18: 11.7 | DA18: 14 | DB18: 11.4 | DC18: 11.4 | DD18: 11.2 | DE18: 12.2 | DF18: 13.9 | DG18: 11.6 | DH18: 13.6 | DI18: 9.7 | DJ18: 12 | DK18: 12.1 | DL18: 14 | DM18: 14.5 | DN18: 11.2 | DO18: 12.2 | DP18: 12 | DQ18: 12 | DR18: 12.3 | DS18: 12.7 | DT18: 9.9 | DU18: 11.9 | DV18: 14.2 | DW18: 12.6 | DX18: 13.6 | DY18: 11.7 | DZ18: 12.4 | EA18: 12.6 | EB18: 12.8 | EC18: 11.3 | ED18: 12.5 | EE18: 12.1 | EF18: 11.6 | EG18: 13.1 | EH18: 12.1 | EI18: 13.3 | EJ18: 15.2 | EK18: 15.6 | EL18: 13.9 | EM18: 13.4 | EN18: 13 | EO18: 12.3 | EP18: 13.2 | EQ18: 15 | ER18: 14.4 | ES18: 12.8 | ET18: 10.2 | EU18: 10.5 | EV18: 13.2 | EW18: 12.6 | EX18: 12.2 | EY18: 10 | EZ18: 11.6 | FA18: 14.3 | FB18: 12.6 | FC18: 11.7 | FD18: 11.4 | FE18: 12.1 | FF18: 11.2 | FG18: 13.8 | FH18: 12 | FI18: 12.9 | FJ18: 10.9 | FK18: 12.8 | FL18: 13.5 | FM18: 12.4 | FN18: 12.4 | FO18: 14.3 | FP18: 12.50357143 | FQ18: 12.8 | FR18: 12.3 | FS18: 10.5 | FT18: 11.8 | FU18: 12.7 | FV18: 13.8 | FW18: 11.9 | FX18: 13.1 | FY18: 11.7 | FZ18: 14.2 | GA18: 13.4 | GB18: 13.5 | GC18: 15 | GD18: 13.7 | GE18: 14.5 | GF18: 12.7 | GG18: 16.1 | GH18: 11 | GI18: 13 | GJ18: 13.5 | GK18: 13.7 | GL18: 12.6 | GM18: 11.3 | GN18: 9.6 | GO18: 12.8 | GP18: 14.4 | GQ18: 12.7 | GR18: 14 | GS18: 16 | GT18: 12.8 | GU18: 12.2 | GV18: 13 | GW18: 11.9 | GX18: 13.3 | GY18: 14.5 | GZ18: 13.3 | HA18: 10.9 | HB18: 10.5 | HC18: 14.2 | HD18: 12.3 | HE18: 14.4 | HF18: 12.4 | HG18: 13.2 | HH18: 13.3 | HI18: 14.6 | HJ18: 12.6 | HK18: 12.4 | HL18: 13.6 | HM18: 13.1 | HN18: 14.2 | HO18: 12.3 | HP18: 16.5 | HQ18: 14.8 | HR18: 12.4 | HS18: 12.6 | HT18: 11.9 | HU18: 12.7 | HV18: 13.6 | HW18: 11 | HX18: 12 | HY18: 11.6 | HZ18: 11.1 | IA18: 14.9 | IB18: 12.4 | IC18: 15.3 | ID18: 13.3 | IE18: 11.9 | IF18: 14 | IG18: 10.5 | IH18: 13.7 | II18: 14.4 | IJ18: 11.4 | IK18: 15.1 | IL18: 13.9 | IM18: 14.9 | IN18: 13.7 | IO18: 16.4 | IP18: 13.1 | IQ18: 16 | IR18: 13.9 | IS18: 14.1 | IT18: 14.7 | IU18: 11.8 | IV18: 12.9 | IW18: 13.16428571 | IX18: 15.4 | IY18: 13.5 | IZ18: 13.1 | JA18: 10.9 | JB18: 15.8 | JC18: 13.5 | JD18: 11.4 | JE18: 13.8 | JF18: 13.1 | JG18: 12.3 | JH18: 13.7 | JI18: 12.7 | JJ18: 13.3 | JK18: 16.3 | JL18: 13.8 | JM18: 11.4 | JN18: 14 | JO18: 12.4 | JP18: 12.7 | JQ18: 11.5 | JR18: 12.8 | JS18: 13.6 | JT18: 11.3 | JU18: 12.8 | JV18: 14.6 | JW18: 12.4 | JX18: 17.8 | JY18: 13.8 | JZ18: 14.4 | KA18: 12.8 | KB18: 12.5 | KC18: 14.1 | KD18: 13.5 | KE18: 12.9 | KF18: 14.3 | KG18: 14.9 | KH18: 17.3 | KI18: 12.1 | KJ18: 15.6 | KK18: 12.2 | KL18: 14.2 | KM18: 14.4 | KN18: 15.4 | KO18: 13.8 | KP18: 14.7 | KQ18: 13.4 | KR18: 19.5 | KS18: 12.4 | KT18: 12.7 | KU18: 16.1 | KV18: 13.6 | KW18: 16.3 | KX18: 14 | KY18: 16 | KZ18: 14.4 | LA18: 13.4 | LB18: 13 | LC18: 12.5 | LD18: 12.4 | LE18: 11.8 | LF18: 12.7 | LG18: 18 | LH18: 13 | LI18: 14.1 | LJ18: 14.1 | LK18: 11.7 | LL18: 15.2 | LM18: 13.3 | LN18: 13.8 | LO18: 16.1 | LP18: 13.2 | LQ18: 15.4 | LR18: 11.3 | LS18: 13.8 | LT18: 18.3 | LU18: 15 | LV18: 15 | LW18: 15.1 | LX18: 17.3 | LY18: 15.8 | LZ18: 17.6 | MA18: 15.7 | MB18: 12.8 | MC18: 13.4 | MD18: 16.1 | ME18: 14.02470588 | MF18: Assists Per Game | MG18: 11.825 | MH18: 12.8 | MI18: 13.975
B19: =PERCENTRANK($B18:$LF18, B18) -> 0.107 | C19: 0.075 | D19: 0.006 | E19: 0.088 | F19: 0.306 | G19: 0.015 | H19: 0.949 | I19: 0.009 | J19: 0.056 | K19: 0.803 | L19: 0.107 | M19: 0.306 | N19: 0.145 | O19: 0.107 | P19: 0.107 | Q19: 0.18 | R19: 0.088 | S19: 0.547 | T19: 0.088 | U19: 0.034 | V19: 0.648 | W19: 0.67 | X19: 0.449 | Y19: 0.164 | Z19: 0.028 | AA19: 0.18 | AB19: 0.908 | AC19: 0.74 | AD19: 0.003 | AE19: 0.74 | AF19: 0.424 | AG19: 0.164 | AH19: =PERCENTRANK($B18:$LF18, AH18) -> 0.572 | AI19: 0.085 | AJ19: 0.572 | AK19: 0 | AL19: 0.351 | AM19: 0.208 | AN19: 0.87 | AO19: 0.088 | AP19: 0.306 | AQ19: 0.67 | AR19: 0.215 | AS19: 0.424 | AT19: 0.231 | AU19: 0.041 | AV19: 0.136 | AW19: 0.696 | AX19: 0.075 | AY19: 0.262 | AZ19: 0.012 | BA19: 0.547 | BB19: 0.18 | BC19: 0.604 | BD19: 0.047 | BE19: 0.379 | BF19: 0.424 | BG19: 0.718 | BH19: 0.835 | BI19: 0.604 | BJ19: 0.74 | BK19: 0.572 | BL19: 0.281 | BM19: 0.107 | BN19: =PERCENTRANK($B18:$LF18, BN18) -> 0.803 | BO19: 0.648 | BP19: 0.547 | BQ19: 0.547 | BR19: 0.503 | BS19: 0.962 | BT19: 0.075 | BU19: 0.92 | BV19: 0.92 | BW19: 0.351 | BX19: 0.379 | BY19: 0.306 | BZ19: 0.424 | CA19: 0.803 | CB19: 0.231 | CC19: 0.351 | CD19: 0.088 | CE19: 0.379 | CF19: 0.022 | CG19: 0.503 | CH19: 0.25 | CI19: 0.3659411765 | CJ19: 0.901 | CK19: 0.623 | CL19: 0.648 | CM19: 0.107 | CN19: 0.281 | CO19: 0.047 | CP19: 0.882 | CQ19: 0.781 | CR19: 0.145 | CS19: 0.882 | CT19: 0.604 | CU19: =PERCENTRANK($B18:$LF18, CU18) -> 0.06 | CV19: 0.088 | CW19: 0.623 | CX19: 0.015 | CY19: 0.718 | CZ19: 0.231 | DA19: 0.781 | DB19: 0.18 | DC19: 0.18 | DD19: 0.155 | DE19: 0.335 | DF19: 0.768 | DG19: 0.215 | DH19: 0.696 | DI19: 0.028 | DJ19: 0.281 | DK19: 0.306 | DL19: 0.781 | DM19: 0.87 | DN19: 0.155 | DO19: 0.335 | DP19: 0.281 | DQ19: 0.281 | DR19: 0.351 | DS19: 0.474 | DT19: 0.034 | DU19: 0.262 | DV19: 0.819 | DW19: 0.449 | DX19: 0.696 | DY19: 0.231 | DZ19: 0.379 | EA19: =PERCENTRANK($B18:$LF18, EA18) -> 0.449 | EB19: 0.503 | EC19: 0.164 | ED19: 0.424 | EE19: 0.306 | EF19: 0.215 | EG19: 0.572 | EH19: 0.306 | EI19: 0.623 | EJ19: 0.936 | EK19: 0.952 | EL19: 0.768 | EM19: 0.648 | EN19: 0.547 | EO19: 0.351 | EP19: 0.604 | EQ19: 0.92 | ER19: 0.848 | ES19: 0.503 | ET19: 0.053 | EU19: 0.063 | EV19: 0.604 | EW19: 0.449 | EX19: 0.335 | EY19: 0.041 | EZ19: 0.215 | FA19: 0.835 | FB19: 0.449 | FC19: 0.231 | FD19: 0.18 | FE19: 0.306 | FF19: 0.155 | FG19: =PERCENTRANK($B18:$LF18, FG18) -> 0.74 | FH19: 0.281 | FI19: 0.537 | FJ19: 0.107 | FK19: 0.503 | FL19: 0.67 | FM19: 0.379 | FN19: 0.379 | FO19: 0.835 | FP19: 0.4398214286 | FQ19: =PERCENTRANK($B18:$LR18, FQ18) -> 0.49 | FR19: 0.344 | FS19: 0.06 | FT19: 0.246 | FU19: 0.463 | FV19: 0.728 | FW19: 0.259 | FX19: 0.56 | FY19: 0.225 | FZ19: 0.814 | GA19: 0.64 | GB19: 0.661 | GC19: 0.911 | GD19: 0.707 | GE19: 0.862 | GF19: 0.463 | GG19: 0.969 | GH19: 0.131 | GI19: 0.533 | GJ19: 0.661 | GK19: 0.707 | GL19: 0.439 | GM19: 0.158 | GN19: 0.024 | GO19: 0.49 | GP19: 0.841 | GQ19: 0.463 | GR19: 0.771 | GS19: 0.957 | GT19: 0.49 | GU19: 0.329 | GV19: 0.533 | GW19: =PERCENTRANK($B18:$LR18, GW18) -> 0.259 | GX19: 0.612 | GY19: 0.862 | GZ19: 0.612 | HA19: 0.103 | HB19: 0.06 | HC19: 0.814 | HD19: 0.344 | HE19: 0.841 | HF19: 0.371 | HG19: 0.591 | HH19: 0.612 | HI19: 0.875 | HJ19: 0.439 | HK19: 0.371 | HL19: 0.685 | HM19: 0.56 | HN19: 0.814 | HO19: 0.344 | HP19: 0.987 | HQ19: 0.893 | HR19: 0.371 | HS19: 0.439 | HT19: 0.259 | HU19: 0.463 | HV19: 0.685 | HW19: 0.131 | HX19: 0.277 | HY19: 0.21 | HZ19: 0.14 | IA19: 0.899 | IB19: 0.371 | IC19: =PERCENTRANK($B18:$LR18, IC18) -> 0.932 | ID19: 0.612 | IE19: 0.259 | IF19: 0.771 | IG19: 0.06 | IH19: 0.707 | II19: 0.841 | IJ19: 0.176 | IK19: 0.923 | IL19: 0.759 | IM19: 0.899 | IN19: 0.707 | IO19: 0.984 | IP19: 0.56 | IQ19: 0.957 | IR19: 0.759 | IS19: 0.792 | IT19: 0.887 | IU19: 0.246 | IV19: 0.524 | IW19: 0.5545 | IX19: =PERCENTRANK($B18:$MD18, IX18) -> 0.92 | IY19: 0.644 | IZ19: 0.544 | JA19: 0.1 | JB19: 0.941 | JC19: 0.644 | JD19: 0.17 | JE19: 0.708 | JF19: 0.544 | JG19: 0.332 | JH19: 0.688 | JI19: 0.447 | JJ19: 0.594 | JK19: 0.97 | JL19: 0.708 | JM19: 0.17 | JN19: 0.752 | JO19: 0.358 | JP19: 0.447 | JQ19: 0.197 | JR19: 0.473 | JS19: 0.667 | JT19: 0.152 | JU19: 0.473 | JV19: 0.852 | JW19: 0.358 | JX19: 0.991 | JY19: 0.708 | JZ19: 0.82 | KA19: 0.473 | KB19: 0.4 | KC19: 0.773 | KD19: =PERCENTRANK($B18:$MD18, KD18) -> 0.644 | KE19: 0.508 | KF19: 0.808 | KG19: 0.876 | KH19: 0.982 | KI19: 0.291 | KJ19: 0.932 | KK19: 0.317 | KL19: 0.794 | KM19: 0.82 | KN19: 0.92 | KO19: 0.708 | KP19: 0.864 | KQ19: 0.62 | KR19: 1 | KS19: 0.358 | KT19: 0.447 | KU19: 0.958 | KV19: 0.667 | KW19: 0.97 | KX19: 0.752 | KY19: 0.947 | KZ19: 0.82 | LA19: 0.62 | LB19: 0.517 | LC19: 0.4 | LD19: 0.358 | LE19: 0.238 | LF19: 0.447 | LG19: 0.994 | LH19: 0.517 | LI19: 0.773 | LJ19: =PERCENTRANK($B18:$MD18, LJ18) -> 0.773 | LK19: 0.217 | LL19: 0.911 | LM19: 0.594 | LN19: 0.708 | LO19: 0.958 | LP19: 0.573 | LQ19: 0.92 | LR19: 0.152 | LS19: 0.708 | LT19: 0.997 | LU19: 0.888 | LV19: 0.888 | LW19: 0.905 | LX19: 0.982 | LY19: 0.941 | LZ19: 0.988 | MA19: 0.938 | MB19: 0.473 | MC19: 0.62 | MD19: 0.958 | ME19: 0.6585529412 | MG19: 0.243 | MH19: 0.471 | MI19: 0.747
